Workbook

Sheet Contents and Model Structure
C3: Sheet Tab | D3: Description | E3: Author
B4: 1 | C4: Contents and Model Structure
B5: 2 | C5: Summary Output
B6: 3 | C6: Master Scenario
B7: 4 | C7: Tornado Chart
B8: 5 | C8: Model Time Line
B9: 6 | C9: Historic Data
B10: 7 | C10: Valuation Inputs
B11: 8 | C11: Time Series Assumptions
B12: 9 | C12: Operating Analysis
B13: 10 | C13: Financial Model
B14: 11 | C14: Discounted Cash Flow
B15: 12 | C15: Graph Data
B16: 13 | C16: Integrity
B17: 14 | C17: Guidance Comparison
B18: 15 | C18: Back Up Data
B19: 16 | C19: Profit and Loss
B20: 17 | C20: Segments
B21: 18 | C21: Debt
B22: 19 | C22: Stock Options
B23: 20 | C23: Cash Flow
B24: 21 | C24: Industry Demand and Capacity
B25: 22 | C25: Demand
B26: 23 | C26: Operating Cost
B27: 24 | C27: 2011 Guidance
B28: 25 | C28: 2012 Guidance
B29: 26 | C29: Capacity
B30: 27 | C30: MW Produced
B31: 28 | C31: Other Companies
B32: 29 | C32: Value Line
B33: 30 | C33: 2011 Third Qtr
B34: 31 | C34: EV EBITDA Summary
B35: 32 | C35: Stable Period
B36: 33 | C36: PE Summary
B37: 34 | C37: PE Ratio
B38: 35 | C38: Incremental Return
B39: 36 | C39: Existing Plant Analysis
B40: 37 | C40: General Stuff
B42: File Name: | D42: C:\Users\Nelson Mandela\Documents\Courses\1. Models and Slides\Course Materials\1 Corporate Model Templates and Exercises\Examples\Corporate Model Example - First Solar.xlsm
B44: Colour Codes
B46: Date | D46: 2012-03-16

Sheet Summary Output
A1: SUMMARY OF VALUATION | F1: =Integrity!D12 -> Model OK
A3: Valuation
B5: Growth Rate Method
D6: PV of Free Cash Flow | E6: ='Discounted Cash Flow'!E55 -> 1327487.685 | G6: Valuation Date
D7: Terminal Value | E7: ='Discounted Cash Flow'!E61 -> 1989926.954 | G7: Explicit Period
D8: Enterprise Value | E8: =SUM(E6:E7) -> 3317414.639
D9: Add: Bridge to Equity Value | E9: ='Discounted Cash Flow'!E65+'Discounted Cash Flow'!E66 -> 962461 | G9: Equity Beta for Sample | I9: ='Master Scenario'!F36 -> 1.8
D10: Equity Value | E10: =E8+E9 -> 4279875.639 | G10: EMRP | I10: ='Master Scenario'!F37 -> 0.055
D11: Shares | E11: ='Discounted Cash Flow'!E69 -> 86424 | G11: Risk Free Rate | I11: ='Master Scenario'!F35 -> 0.035
D12: Value per Share | E12: =E10/E11 -> 49.5218416 | G12: Cost of Equity | I12: =I11+I10*I9 -> 0.134
G13: WACC | I13: ='Valuation Inputs'!J33 -> 0.1155487857
B14: Value Driver Method
D15: PV of Free Cash Flow | E15: =E6 -> 1327487.685
D16: Terminal Value | E16: ='Discounted Cash Flow'!E81 -> 1726358.446 | I16: Sensitivity
D17: Enterprise Value | E17: =E15+E16 -> 3053846.131
D18: Value per Share | E18: =(E17+E9)/E11 -> 46.47212731 | G18: Price
G19: Cost Structure
B20: EV/EBITDA Formula | G20: Industry Capacity
D21: PV of Free Cash Flow | E21: =E15 -> 1327487.685 | G21: Industry Demand
D22: Terminal Value | E22: ='Discounted Cash Flow'!E95 -> 3590367.761 | G22: Company Capacity
D23: Enterprise Value | E23: =E21+E22+E9 -> 5880316.446 | G23: Costruction Cost | I23: ='Master Scenario'!F22 -> 1200
D24: Value per Share | E24: =E23/E11 -> 68.04031803
B26: P/E Ratio
D27: PV of Dividends | E27: ='Financial Model'!E277 -> 0
D28: PV of Termnial Value | E28: ='Financial Model'!E278 -> 19.52905005
D29: Value per Share | E29: =SUM(E27:E28) -> 19.52905005

Sheet Master Scenario
A1: SCENARIO AND SENSITIVITY ANALYSIS | G1: =Integrity!D12 -> Model OK
C4: Scenario | E4: 1 | M4: TRUE
C5: Variable Number | E5: 1
F7: Selected Case | H7: Tornado Case | I7: Variable Test | J7: Scenario Value | K7: Base Case | L7: Downside Case | M7: Upside Case | N7: Sensivity Case | O7: Industry Capacity | P7: Industry Demand | Q7: Company Capacity | R7: Demand Fac | S7: Price | T7: CGS per kW | U7: SG&A Percent | V7: R&D Percent | W7: Cap Exp/MW | X7: Start Up Expense | Y7: A/R to Revenues | Z7: Inventories to CGS | AA7: Prepaid to Revenues | AB7: A/P to GSS | AC7: Accrued Expenses to total expenses | AD7: Other Liabilities to Revenues | AE7: Depreciation Life | AF7: Tax Rate
F8: Value | G8: Description
C10: Demand and Capacity
A11: 1 | D11: Industry Capacity | F11: =IF($M$4,H11,J11) -> 1 | G11: =INDEX('Time Series Assumptions'!D12:D14,'Master Scenario'!F11) -> Base Increase of 10% | H11: =IF(I11,J11,K11) -> 1 | I11: =A11=$E$5 -> TRUE | J11: =INDEX(K11:AF11,$E$4) -> 1 | K11: 1 | L11: 2 | M11: 3 | N11: 3 | O11: =L11 -> 2 | P11: 1 | Q11: 1 | R11: 1 | S11: 1 | T11: 1 | U11: 1 | V11: 1 | W11: 1 | X11: 1 | Y11: 1 | Z11: 1 | AA11: 1 | AB11: 1 | AC11: 1 | AD11: 1 | AE11: 1 | AF11: 1
A12: =A11+1 -> 2 | D12: Industry Demand | F12: =IF($M$4,H12,J12) -> 1 | G12: =INDEX('Time Series Assumptions'!D21:D25,'Master Scenario'!F12) -> Base 15% to 10% | H12: =IF(I12,J12,K12) -> 1 | I12: =A12=$E$5 -> FALSE | J12: =INDEX(K12:AF12,$E$4) -> 1 | K12: 1 | L12: 2 | M12: 4 | N12: 1 | O12: 1 | P12: =L12 -> 2 | Q12: 1 | R12: 1 | S12: 1 | T12: 1 | U12: 1 | V12: 1 | W12: 1 | X12: 1 | Y12: 1 | Z12: 1 | AA12: 1 | AB12: 1 | AC12: 1 | AD12: 1 | AE12: 1 | AF12: 1
A13: =A12+1 -> 3 | D13: First Solar Capacity | F13: =IF($M$4,H13,J13) -> 1 | G13: =INDEX('Time Series Assumptions'!D32:D35,'Master Scenario'!F13) -> Continued Increase of 10% | H13: =IF(I13,J13,K13) -> 1 | I13: =A13=$E$5 -> FALSE | J13: 1 | K13: 1 | L13: 2 | M13: 3 | N13: 2 | O13: 1 | P13: 1 | Q13: =L13 -> 2 | R13: 1 | S13: 1 | T13: 1 | U13: 1 | V13: 1 | W13: 1 | X13: 1 | Y13: 1 | Z13: 1 | AA13: 1 | AB13: 1 | AC13: 1 | AD13: 1 | AE13: 1 | AF13: 1
A14: =A13+1 -> 4 | D14: Demand Factor | F14: =IF($M$4,H14,J14) -> 1 | H14: =IF(I14,J14,K14) -> 1 | I14: =A14=$E$5 -> FALSE | J14: 1 | K14: 1 | L14: 0.9 | M14: 1.1 | N14: 1 | O14: 1 | P14: 1 | Q14: 1 | R14: =L14 -> 0.9 | S14: 1 | T14: 1 | U14: 1 | V14: 1 | W14: 1 | X14: 1 | Y14: 1 | Z14: 1 | AA14: 1 | AB14: 1 | AC14: 1 | AD14: 1 | AE14: 1 | AF14: 1
C15: Pricing
A16: =A14+1 -> 5 | D16: Price | F16: =IF($M$4,H16,J16) -> 2 | G16: =INDEX('Time Series Assumptions'!D51:D55,'Master Scenario'!F16) -> 25% Decline in 2012 and 10%/5% | H16: =IF(I16,J16,K16) -> 2 | I16: =A16=$E$5 -> FALSE | J16: 2 | K16: 2 | L16: 3 | M16: 5 | N16: 1 | O16: 2 | P16: 2 | Q16: 2 | R16: 2 | S16: =L16 -> 3 | T16: 2 | U16: 2 | V16: 2 | W16: 2 | X16: 2 | Y16: 2 | Z16: 2 | AA16: 2 | AB16: 2 | AC16: 2 | AD16: 2 | AE16: 2 | AF16: 2
C17: Operating Expenses
A18: =A16+1 -> 6 | D18: Cost of Goods Sold | F18: =IF($M$4,H18,J18) -> 1 | G18: =INDEX('Time Series Assumptions'!D64:D68,'Master Scenario'!F18) -> 5% Decline Case | H18: =IF(I18,J18,K18) -> 1 | I18: =A18=$E$5 -> FALSE | J18: 1 | K18: 1 | L18: 3 | M18: 5 | N18: 4 | O18: 1 | P18: 1 | Q18: 1 | R18: 1 | S18: 1 | T18: =L18 -> 3 | U18: 1 | V18: 1 | W18: 1 | X18: 1 | Y18: 1 | Z18: 1 | AA18: 1 | AB18: 1 | AC18: 1 | AD18: 1 | AE18: 1 | AF18: 1
A19: =A18+1 -> 7 | D19: SG&A Percent | F19: =IF($M$4,H19,J19) -> 0.1254933168 | H19: =IF(I19,J19,K19) -> 0.1254933168 | I19: =A19=$E$5 -> FALSE | J19: 0.1254933168 | K19: 0.1254933168 | L19: 0.14 | M19: 0.115 | N19: 0.1254933168 | O19: 0.1254933168 | P19: 0.1254933168 | Q19: 0.1254933168 | R19: 0.1254933168 | S19: 0.1254933168 | T19: 0.1254933168 | U19: =L19 -> 0.14 | V19: 0.1254933168 | W19: 0.1254933168 | X19: 0.1254933168 | Y19: 0.1254933168 | Z19: 0.1254933168 | AA19: 0.1254933168 | AB19: 0.1254933168 | AC19: 0.1254933168 | AD19: 0.1254933168 | AE19: 0.1254933168 | AF19: 0.1254933168
A20: =A19+1 -> 8 | D20: R&D Percent | F20: =IF($M$4,H20,J20) -> 0.03697930381 | H20: =IF(I20,J20,K20) -> 0.03697930381 | I20: =A20=$E$5 -> FALSE | J20: 0.03697930381 | K20: 0.03697930381 | L20: 0.045 | M20: 0.025 | N20: 0.03697930381 | O20: 0.03697930381 | P20: 0.03697930381 | Q20: 0.03697930381 | R20: 0.03697930381 | S20: 0.03697930381 | T20: 0.03697930381 | U20: 0.03697930381 | V20: =L20 -> 0.045 | W20: 0.03697930381 | X20: 0.03697930381 | Y20: 0.03697930381 | Z20: 0.03697930381 | AA20: 0.03697930381 | AB20: 0.03697930381 | AC20: 0.03697930381 | AD20: 0.03697930381 | AE20: 0.03697930381 | AF20: 0.03697930381
C21: Capital Expenditures
A22: =A20+1 -> 9 | D22: Capital Expenditures per New kW | F22: =IF($M$4,H22,J22) -> 1200 | H22: =IF(I22,J22,K22) -> 1200 | I22: =A22=$E$5 -> FALSE | J22: 1200 | K22: 1200 | L22: 1500 | M22: 800 | N22: 1200 | O22: 1200 | P22: 1200 | Q22: 1200 | R22: 1200 | S22: 1200 | T22: 1200 | U22: 1200 | V22: 1200 | W22: =L22 -> 1500 | X22: 1200 | Y22: 1200 | Z22: 1200 | AA22: 1200 | AB22: 1200 | AC22: 1200 | AD22: 1200 | AE22: 1200 | AF22: 1200
A23: =A22+1 -> 10 | D23: Start-up Expenses per New kW | F23: =IF($M$4,H23,J23) -> 70 | H23: =IF(I23,J23,K23) -> 70 | I23: =A23=$E$5 -> FALSE | J23: 70 | K23: 70 | L23: 80 | M23: 65 | N23: 70 | O23: 70 | P23: 70 | Q23: 70 | R23: 70 | S23: 70 | T23: 70 | U23: 70 | V23: 70 | W23: 70 | X23: =L23 -> 80 | Y23: 70 | Z23: 70 | AA23: 70 | AB23: 70 | AC23: 70 | AD23: 70 | AE23: 70 | AF23: 70
C24: Working Capital
A25: =A23+1 -> 11 | D25: A/R to Revenues | F25: =IF($M$4,H25,J25) -> 0.1197648541 | H25: =IF(I25,J25,K25) -> 0.1197648541 | I25: =A25=$E$5 -> FALSE | J25: 0.1197648541 | K25: 0.1197648541 | L25: 0.2 | M25: 0.1 | N25: 0.1197648541 | O25: 0.1197648541 | P25: 0.1197648541 | Q25: 0.1197648541 | R25: 0.1197648541 | S25: 0.1197648541 | T25: 0.1197648541 | U25: 0.1197648541 | V25: 0.1197648541 | W25: 0.1197648541 | X25: 0.1197648541 | Y25: =L25 -> 0.2 | Z25: 0.1197648541 | AA25: 0.1197648541 | AB25: 0.1197648541 | AC25: 0.1197648541 | AD25: 0.1197648541 | AE25: 0.1197648541 | AF25: 0.1197648541
A26: =A25+1 -> 12 | D26: Inventories to CGS | F26: 0.2007003921 | H26: =IF(I26,J26,K26) -> 0.2007003921 | I26: FALSE | J26: 0.2007003921 | K26: 0.2007003921 | L26: 0.3 | M26: 0.15 | N26: 0.2007003921 | O26: 0.2007003921 | P26: 0.2007003921 | Q26: 0.2007003921 | R26: 0.2007003921 | S26: 0.2007003921 | T26: 0.2007003921 | U26: 0.2007003921 | V26: 0.2007003921 | W26: 0.2007003921 | X26: 0.2007003921 | Y26: 0.2007003921 | Z26: =L26 -> 0.3 | AA26: 0.2007003921 | AB26: 0.2007003921 | AC26: 0.2007003921 | AD26: 0.2007003921 | AE26: 0.2007003921 | AF26: 0.2007003921
A27: =A26+1 -> 13 | D27: Prepaid to Revenues | F27: 0.05579565557 | H27: 0.05579565557 | I27: FALSE | J27: 0.05579565557 | K27: 0.05579565557 | L27: 0.08 | M27: 0.04 | N27: 0.05579565557 | O27: 0.05579565557 | P27: 0.05579565557 | Q27: 0.05579565557 | R27: 0.05579565557 | S27: 0.05579565557 | T27: 0.05579565557 | U27: 0.05579565557 | V27: 0.05579565557 | W27: 0.05579565557 | X27: 0.05579565557 | Y27: 0.05579565557 | Z27: 0.05579565557 | AA27: =L27 -> 0.08 | AB27: 0.05579565557 | AC27: 0.05579565557 | AD27: 0.05579565557 | AE27: 0.05579565557 | AF27: 0.05579565557
A28: =A27+1 -> 14 | D28: A/P to GSS | F28: 0.06793622024 | H28: 0.06793622024 | I28: FALSE | J28: 0.06793622024 | K28: 0.06793622024 | L28: 0.04 | M28: 0.1 | N28: 0.06793622024 | O28: 0.06793622024 | P28: 0.06793622024 | Q28: 0.06793622024 | R28: 0.06793622024 | S28: 0.06793622024 | T28: 0.06793622024 | U28: 0.06793622024 | V28: 0.06793622024 | W28: 0.06793622024 | X28: 0.06793622024 | Y28: 0.06793622024 | Z28: 0.06793622024 | AA28: 0.06793622024 | AB28: =L28 -> 0.04 | AC28: 0.06793622024 | AD28: 0.06793622024 | AE28: 0.06793622024 | AF28: 0.06793622024
A29: =A28+1 -> 15 | D29: Accrued Expenses to total expenses | F29: 0.1482631787 | H29: 0.1482631787 | I29: FALSE | J29: 0.1482631787 | K29: 0.1482631787 | L29: 0.1 | M29: 0.2 | N29: 0.1482631787 | O29: 0.1482631787 | P29: 0.1482631787 | Q29: 0.1482631787 | R29: 0.1482631787 | S29: 0.1482631787 | T29: 0.1482631787 | U29: 0.1482631787 | V29: 0.1482631787 | W29: 0.1482631787 | X29: 0.1482631787 | Y29: 0.1482631787 | Z29: 0.1482631787 | AA29: 0.1482631787 | AB29: 0.1482631787 | AC29: =L29 -> 0.1 | AD29: 0.1482631787 | AE29: 0.1482631787 | AF29: 0.1482631787
A30: =A29+1 -> 16 | D30: Other Liabilities to Revenues | F30: 0.04370015389 | H30: 0.04370015389 | I30: FALSE | J30: 0.04370015389 | K30: 0.04370015389 | L30: 0.03 | M30: 0.1 | N30: 0.04370015389 | O30: 0.04370015389 | P30: 0.04370015389 | Q30: 0.04370015389 | R30: 0.04370015389 | S30: 0.04370015389 | T30: 0.04370015389 | U30: 0.04370015389 | V30: 0.04370015389 | W30: 0.04370015389 | X30: 0.04370015389 | Y30: 0.04370015389 | Z30: 0.04370015389 | AA30: 0.04370015389 | AB30: 0.04370015389 | AC30: 0.04370015389 | AD30: =L30 -> 0.03 | AE30: 0.04370015389 | AF30: 0.04370015389
C31: Depreciation and Taxes
A32: =A30+1 -> 17 | D32: Depreciation Life | F32: =IF($M$4,H32,J32) -> 12 | H32: =IF(I32,J32,K32) -> 12 | I32: =A32=$E$5 -> FALSE | J32: 12 | K32: 12 | L32: 10 | M32: 14 | N32: 12 | O32: 12 | P32: 12 | Q32: 12 | R32: 12 | S32: 12 | T32: 12 | U32: 12 | V32: 12 | W32: 12 | X32: 12 | Y32: 12 | Z32: 12 | AA32: 12 | AB32: 12 | AC32: 12 | AD32: 12 | AE32: =L32 -> 10 | AF32: 12
A33: =A32+1 -> 18 | D33: Tax Rate | F33: =IF($M$4,H33,J33) -> 0.15 | H33: =IF(I33,J33,K33) -> 0.15 | I33: =A33=$E$5 -> FALSE | J33: 0.15 | K33: 0.15 | L33: 0.17 | M33: 0.13 | N33: 0.15 | O33: 0.15 | P33: 0.15 | Q33: 0.15 | R33: 0.15 | S33: 0.15 | T33: 0.15 | U33: 0.15 | V33: 0.15 | W33: 0.15 | X33: 0.15 | Y33: 0.15 | Z33: 0.15 | AA33: 0.15 | AB33: 0.15 | AC33: 0.15 | AD33: 0.15 | AE33: 0.15 | AF33: =L33 -> 0.17
C34: Valuation Parameters
A35: =A33+1 -> 19 | D35: Risk Free Rate | F35: =IF($M$4,H35,J35) -> 0.035 | H35: =IF(I35,J35,K35) -> 0.035 | I35: =A35=$E$5 -> FALSE | J35: 0.035 | K35: 0.035 | L35: 0.04 | M35: 0.03 | N35: =AH35/1000 -> 0.035 | O35: 0.035 | P35: 0.035 | Q35: 0.035 | R35: 0.035 | S35: 0.035 | T35: 0.035 | U35: 0.035 | V35: 0.035 | W35: 0.035 | X35: 0.035 | Y35: 0.035 | Z35: 0.035 | AA35: 0.035 | AB35: 0.035 | AC35: 0.035 | AD35: 0.035 | AE35: 0.035 | AF35: 0.035 | AH35: 35
A36: =A35+1 -> 20 | D36: Equity Beta for Sample | F36: =IF($M$4,H36,J36) -> 1.8 | H36: =IF(I36,J36,K36) -> 1.8 | I36: =A36=$E$5 -> FALSE | J36: 1.8 | K36: 1.8 | L36: 2 | M36: 1.5 | N36: =AH36/100 -> 1.8 | O36: 1.8 | P36: 1.8 | Q36: 1.8 | R36: 1.8 | S36: 1.8 | T36: 1.8 | U36: 1.8 | V36: 1.8 | W36: 1.8 | X36: 1.8 | Y36: 1.8 | Z36: 1.8 | AA36: 1.8 | AB36: 1.8 | AC36: 1.8 | AD36: 1.8 | AE36: 1.8 | AF36: 1.8 | AH36: 180
A37: =A36+1 -> 21 | D37: EMRP | F37: =IF($M$4,H37,J37) -> 0.055 | H37: =IF(I37,J37,K37) -> 0.055 | I37: =A37=$E$5 -> FALSE | J37: 0.055 | K37: 0.055 | L37: 0.06 | M37: 0.05 | N37: =AH37/1000 -> 0.055 | O37: 0.055 | P37: 0.055 | Q37: 0.055 | R37: 0.055 | S37: 0.055 | T37: 0.055 | U37: 0.055 | V37: 0.055 | W37: 0.055 | X37: 0.055 | Y37: 0.055 | Z37: 0.055 | AA37: 0.055 | AB37: 0.055 | AC37: 0.055 | AD37: 0.055 | AE37: 0.055 | AF37: 0.055 | AH37: 55
A38: =A37+1 -> 22 | D38: Terminal Growth Rate | F38: =IF($M$4,H38,J38) -> 0.04 | H38: =IF(I38,J38,K38) -> 0.04 | I38: =A38=$E$5 -> FALSE | J38: 0.04 | K38: 0.04 | L38: 0.02 | M38: 0.05 | N38: =AH38/1000 -> 0.04 | O38: 0.04 | P38: 0.04 | Q38: 0.04 | R38: 0.04 | S38: 0.04 | T38: 0.04 | U38: 0.04 | V38: 0.04 | W38: 0.04 | X38: 0.04 | Y38: 0.04 | Z38: 0.04 | AA38: 0.04 | AB38: 0.04 | AC38: 0.04 | AD38: 0.04 | AE38: 0.04 | AF38: 0.04 | AH38: 40
A39: =A38+1 -> 23 | D39: ROIC WACC Spread | F39: =IF($M$4,H39,J39) -> 0.01 | H39: =IF(I39,J39,K39) -> 0.01 | I39: =A39=$E$5 -> FALSE | J39: 0.01 | K39: 0.01 | L39: 0 | M39: 0.03 | N39: =AH39/1000 -> 0.01 | O39: 0.01 | P39: 0.01 | Q39: 0.01 | R39: 0.01 | S39: 0.01 | T39: 0.01 | U39: 0.01 | V39: 0.01 | W39: 0.01 | X39: 0.01 | Y39: 0.01 | Z39: 0.01 | AA39: 0.01 | AB39: 0.01 | AC39: 0.01 | AD39: 0.01 | AE39: 0.01 | AF39: 0.01 | AH39: 10
A43: One Way Data Table for Scenario Analysis
K44: 1 | L44: 2 | M44: 3 | N44: 4 | O44: =N44+1 -> 5 | P44: =O44+1 -> 6 | Q44: 7 | R44: 8 | S44: 9 | T44: 10 | U44: 11 | V44: 12 | W44: 13 | X44: 14 | Y44: 15 | Z44: 16 | AA44: 17 | AB44: 18 | AC44: 19 | AD44: 20 | AE44: 21 | AF44: 22
D45: Equity Value per Share - Growth Rate | J45: ='Summary Output'!E12 -> 49.5218416 | K45: 49.5218416 | L45: 23.05375395 | M45: 66.39422701 | N45: 66.39422701 | O45: 23.05375395 | P45: 49.5218416 | Q45: 49.5218416 | R45: 49.5218416 | S45: 49.5218416 | T45: 49.5218416 | U45: 49.5218416 | V45: 49.5218416 | W45: 49.5218416 | X45: 49.5218416 | Y45: 49.5218416 | Z45: 49.5218416 | AA45: 49.5218416 | AB45: 49.5218416 | AC45: 49.5218416 | AD45: 49.5218416 | AE45: 49.5218416 | AF45: 49.5218416
D46: Equity Value per Share - Value Driver | J46: ='Summary Output'!E18 -> 46.47212731 | K46: 46.47212731 | L46: 26.06169305 | M46: 59.40249586 | N46: 59.40249586 | O46: 26.06169305 | P46: 46.47212731 | Q46: 46.47212731 | R46: 46.47212731 | S46: 46.47212731 | T46: 46.47212731 | U46: 46.47212731 | V46: 46.47212731 | W46: 46.47212731 | X46: 46.47212731 | Y46: 46.47212731 | Z46: 46.47212731 | AA46: 46.47212731 | AB46: 46.47212731 | AC46: 46.47212731 | AD46: 46.47212731 | AE46: 46.47212731 | AF46: 46.47212731
D47: Equity Value per Share - EV/EBITDA | J47: ='Summary Output'!E24 -> 68.04031803 | K47: 68.04031803 | L47: 46.32250373 | M47: 81.82146391 | N47: 81.82146391 | O47: 46.32250373 | P47: 68.04031803 | Q47: 68.04031803 | R47: 68.04031803 | S47: 68.04031803 | T47: 68.04031803 | U47: 68.04031803 | V47: 68.04031803 | W47: 68.04031803 | X47: 68.04031803 | Y47: 68.04031803 | Z47: 68.04031803 | AA47: 68.04031803 | AB47: 68.04031803 | AC47: 68.04031803 | AD47: 68.04031803 | AE47: 68.04031803 | AF47: 68.04031803
D48: Equity Value per Share - P/E Ratio | J48: ='Summary Output'!E29 -> 19.52905005 | K48: 19.52905005 | L48: 6.301732111 | M48: 27.40055972 | N48: 27.40055972 | O48: 6.301732111 | P48: 19.52905005 | Q48: 19.52905005 | R48: 19.52905005 | S48: 19.52905005 | T48: 19.52905005 | U48: 19.52905005 | V48: 19.52905005 | W48: 19.52905005 | X48: 19.52905005 | Y48: 19.52905005 | Z48: 19.52905005 | AA48: 19.52905005 | AB48: 19.52905005 | AC48: 19.52905005 | AD48: 19.52905005 | AE48: 19.52905005 | AF48: 19.52905005
T51: Graph Data ------------------------------------------------------->
K52: Base | L52: Low | M52: High | O52: Low vs Base | P52: High vs Base | Q52: Total Difference | R52: Sorted Difference | S52: Match | U52: Low vs Base | V52: High vs Base
J53: =J45 -> 49.5218416 | K53: 1 | L53: 2 | M53: 3
H54: =INDEX($D$11:$D$39,MATCH(J54,$A$11:$A$39,0)) -> Industry Capacity | J54: 1 | K54: 49.5218416 | L54: 23.05375395 | M54: 66.39422701 | O54: =L54-K54 -> -26.46808765 | P54: =M54-K54 -> 16.87238541 | Q54: =ABS(O54)+ABS(P54) -> 43.34047305 | R54: =SMALL($Q$54:$Q$76,J54) -> 0 | S54: =MATCH(R54,$Q$54:$Q$76,0) -> 23 | T54: =INDEX($H$54:$H$76,S54) -> ROIC WACC Spread | U54: =INDEX($O$54:$O$76,S54) -> 0 | V54: =INDEX($P$54:$P$76,S54) -> 0
H55: Industry Demand | J55: =J54+1 -> 2 | K55: 49.5218416 | L55: 25.43029852 | M55: 88.04790572 | O55: =L55-K55 -> -24.09154308 | P55: =M55-K55 -> 38.52606412 | Q55: =ABS(O55)+ABS(P55) -> 62.6176072 | R55: =SMALL($Q$54:$Q$76,J55) -> 0.7009574016 | S55: =MATCH(R55,$Q$54:$Q$76,0) -> 13 | T55: =INDEX($H$54:$H$76,S55) -> Prepaid to Revenues | U55: =INDEX($O$54:$O$76,S55) -> -0.4241553594 | V55: =INDEX($P$54:$P$76,S55) -> 0.2768020422
H56: First Solar Capacity | J56: =J55+1 -> 3 | K56: 49.5218416 | L56: 47.25589499 | M56: 51.93496274 | O56: -2.265946615 | P56: 2.413121136 | Q56: 4.679067751 | R56: 0.7273918097 | S56: 10 | T56: Start-up Expenses per New kW | U56: -0.4849278731 | V56: 0.2424639366
H57: Demand Factor | J57: 4 | K57: 49.5218416 | L57: 39.60282039 | M57: 59.44086281 | O57: -9.919021208 | P57: 9.919021208 | Q57: 19.83804242 | R57: 0.9113559724 | S57: 14 | T57: A/P to GSS | U57: -0.4243306861 | V57: 0.4870252863
H58: Price | J58: 5 | K58: 49.5218416 | L58: -4.188539048 | M58: 143.0944994 | O58: -53.71038065 | P58: 93.57265777 | Q58: 147.2830384 | R58: 1.226675453 | S58: 16 | T58: Other Liabilities to Revenues | U58: -0.2400806068 | V58: 0.9865948459
H59: Cost of Goods Sold | J59: 6 | K59: 49.5218416 | L59: 47.80112447 | M59: 104.1861844 | O59: -1.72071713 | P59: 54.66434284 | Q59: 56.38505997 | R59: 1.752393504 | S59: 11 | T59: A/R to Revenues | U59: -1.406035484 | V59: 0.3463580196
H60: SG&A Percent | J60: 7 | K60: 49.5218416 | L60: 43.26957291 | M60: 54.04438029 | O60: -6.252268688 | P60: 4.522538687 | Q60: 10.77480738 | R60: 1.807411108 | S60: 15 | T60: Accrued Expenses to total expenses | U60: -0.8723140524 | V60: 0.9350970561
H61: R&D Percent | J61: 8 | K61: 49.5218416 | L61: 46.06498334 | M61: 54.68482924 | O61: -3.45685826 | P61: 5.162987641 | Q61: 8.619845901 | R61: 2.278389931 | S61: 12 | T61: Inventories to CGS | U61: -1.508288178 | V61: 0.7701017527
H62: Capital Expenditures per New kW | J62: 9 | K62: 49.5218416 | L62: 38.36053215 | M62: 64.40358754 | O62: -11.16130945 | P62: 14.88174594 | Q62: 26.04305539 | R62: 2.573222463 | S62: 18 | T62: Tax Rate | U62: -1.285292779 | V62: 1.287929684
H63: Start-up Expenses per New kW | J63: 10 | K63: 49.5218416 | L63: 49.03691373 | M63: 49.76430554 | O63: -0.4849278731 | P63: 0.2424639366 | Q63: 0.7273918097 | R63: 4.679067751 | S63: 3 | T63: First Solar Capacity | U63: -2.265946615 | V63: 2.413121136
H64: A/R to Revenues | J64: 11 | K64: 49.5218416 | L64: 48.11580612 | M64: 49.86819962 | O64: -1.406035484 | P64: 0.3463580196 | Q64: 1.752393504 | R64: 5.162403281 | S64: 19 | T64: Risk Free Rate | U64: -2.406772102 | V64: 2.75563118
H65: Inventories to CGS | J65: 12 | K65: 49.5218416 | L65: 48.01355342 | M65: 50.29194335 | O65: -1.508288178 | P65: 0.7701017527 | Q65: 2.278389931 | R65: 7.31769214 | S65: 21 | T65: EMRP | U65: -3.30995905 | V65: 4.00773309
H66: Prepaid to Revenues | J66: 13 | K66: 49.5218416 | L66: 49.09768624 | M66: 49.79864364 | O66: -0.4241553594 | P66: 0.2768020422 | Q66: 0.7009574016 | R66: 8.487432194 | S66: 17 | T66: Depreciation Life | U66: -4.951002113 | V66: 3.536430081
H67: A/P to GSS | J67: 14 | K67: 49.5218416 | L67: 49.09751092 | M67: 50.00886689 | O67: -0.4243306861 | P67: 0.4870252863 | Q67: 0.9113559724 | R67: 8.619845901 | S67: 8 | T67: R&D Percent | U67: -3.45685826 | V67: 5.162987641
H68: Accrued Expenses to total expenses | J68: 15 | K68: 49.5218416 | L68: 48.64952755 | M68: 50.45693866 | O68: -0.8723140524 | P68: 0.9350970561 | Q68: 1.807411108 | R68: 8.769039843 | S68: 22 | T68: Terminal Growth Rate | U68: -5.072218418 | V68: 3.696821425
H69: Other Liabilities to Revenues | J69: 16 | K69: 49.5218416 | L69: 49.28176099 | M69: 50.50843645 | O69: -0.2400806068 | P69: 0.9865948459 | Q69: 1.226675453 | R69: 10.77480738 | S69: 7 | T69: SG&A Percent | U69: -6.252268688 | V69: 4.522538687
H70: Depreciation Life | J70: 17 | K70: 49.5218416 | L70: 44.57083949 | M70: 53.05827168 | O70: -4.951002113 | P70: 3.536430081 | Q70: 8.487432194 | R70: 12.02373045 | S70: 20 | T70: Equity Beta for Sample | U70: -3.96872757 | V70: 8.055002879
H71: Tax Rate | J71: 18 | K71: 49.5218416 | L71: 48.23654882 | M71: 50.80977129 | O71: -1.285292779 | P71: 1.287929684 | Q71: 2.573222463 | R71: 19.83804242 | S71: 4 | T71: Demand Factor | U71: -9.919021208 | V71: 9.919021208
H72: Risk Free Rate | J72: 19 | K72: 49.5218416 | L72: 47.1150695 | M72: 52.27747278 | O72: -2.406772102 | P72: 2.75563118 | Q72: 5.162403281 | R72: 26.04305539 | S72: 9 | T72: Capital Expenditures per New kW | U72: -11.16130945 | V72: 14.88174594
H73: Equity Beta for Sample | J73: 20 | K73: 49.5218416 | L73: 45.55311403 | M73: 57.57684448 | O73: -3.96872757 | P73: 8.055002879 | Q73: 12.02373045 | R73: 43.34047305 | S73: 1 | T73: Industry Capacity | U73: -26.46808765 | V73: 16.87238541
H74: EMRP | J74: 21 | K74: 49.5218416 | L74: 46.21188255 | M74: 53.52957469 | O74: -3.30995905 | P74: 4.00773309 | Q74: 7.31769214 | R74: 56.38505997 | S74: 6 | T74: Cost of Goods Sold | U74: -1.72071713 | V74: 54.66434284
H75: Terminal Growth Rate | J75: 22 | K75: 49.5218416 | L75: 44.44962318 | M75: 53.21866303 | O75: -5.072218418 | P75: 3.696821425 | Q75: 8.769039843 | R75: 62.6176072 | S75: 2 | T75: Industry Demand | U75: -24.09154308 | V75: 38.52606412
H76: ROIC WACC Spread | J76: 23 | K76: 49.5218416 | L76: 49.5218416 | M76: 49.5218416 | O76: 0 | P76: 0 | Q76: 0 | R76: 147.2830384 | S76: 5 | T76: Price | U76: -53.71038065 | V76: 93.57265777
D82: Base Case
D83: Downside Case
D84: Upside Case
D85: Sensivity Case
D86: Industry Capacity
D87: Industry Demand
D88: Company Capacity
D89: Demand Fac
D90: Price
D91: CGS per kW
D92: SG&A Percent
D93: R&D Percent
D94: Cap Exp/MW
D95: Start Up Expense
D96: SG&A Percent
D97: A/R to Revenues
D98: Inventories to CGS
D99: Prepaid to Revenues
D100: A/P to GSS
D101: Accrued Expenses to total expenses
D102: Other Liabilities to Revenues

Sheet Model Time Line
A1: TIME LINE STRUCTURE | E1: =Integrity!D12 -> Model OK
A4: Date Inputs
D6: First Date of Historic Financials | E6: 2004-12-31
D7: Last Date of Historic Financials | E7: 2010-12-31
D8: Valuation Date | E8: =INDEX(G81:G128,G8) -> 2012-04-30 | G8: 17
D9: Explicit Period End | E9: =INDEX(E81:E128,G9) -> 2018-12-31 | G9: 19
D10: Stable Period | E10: =EDATE(E9,12) -> 2019-12-31
A12: Time Period Codes
D14: Historic Years | E14: =YEAR(E7)-YEAR(E6) -> 6
D15: Full Years from History to Valuation | E15: =YEAR(E8)-YEAR(E7) -> 2
D16: Months in Valuation Year before Date | E16: =MONTH(E8) -> 4
D17: Remaining Months in Valuation Year | E17: =12-E16 -> 8
D18: Full Explicit Years | E18: =YEAR(E9)-YEAR(E8) -> 6
D19: Stable Period | E19: 1
D20: Partial Valuation Year | E20: =E16<>12 -> TRUE
A22: Time Period Factors
D24: Total Periods Before Valuation Date | E24: =E14+E15 -> 8
D25: Total Explicit Periods | E25: =E20+E18 -> 7
D26: Terminal Period | E26: =E25 -> 7
D27: Stable Period | E27: =E26+1 -> 8
D28: Initial Period Code | E28: =-E24 -> -8
D29: Final Historic Period Code | E29: =E28+E14 -> -2
D30: Last Historic Year | E30: =YEAR(E7) -> 2010
D32: Years for Graph (width) | E32: =E24+E18+1 -> 15
A35: Time Line
D37: Period Code | E37: =-E24 -> -8 | F37: =E37+1 -> -7 | G37: =F37+1 -> -6 | H37: -5 | I37: -4 | J37: -3 | K37: -2 | L37: -1 | M37: 0 | N37: 1 | O37: 2 | P37: 3 | Q37: 4 | R37: 5 | S37: 6 | T37: 7 | U37: 8 | V37: 9 | W37: 10 | X37: 11 | Y37: 12 | Z37: 13 | AA37: 14 | AB37: 15 | AC37: 16 | AD37: 17 | AE37: 18 | AF37: 19 | AG37: 20
D39: Start Date | F39: =E40+1 -> 2005-01-01 | G39: =F40+1 -> 2006-01-01 | H39: 2007-01-01 | I39: 2008-01-01 | J39: 2009-01-01 | K39: 2010-01-01 | L39: 2011-01-01 | M39: 2012-01-01 | N39: 2012-05-01 | O39: 2013-01-01 | P39: 2014-01-01 | Q39: 2015-01-01 | R39: 2016-01-01 | S39: 2017-01-01 | T39: 2018-01-01 | U39: 2019-01-01 | V39: 2020-01-01 | W39: 2021-01-01 | X39: 2022-01-01 | Y39: 2023-01-01 | Z39: 2024-01-01 | AA39: 2025-01-01 | AB39: 2026-01-01 | AC39: 2027-01-01 | AD39: 2028-01-01 | AE39: 2029-01-01 | AF39: 2030-01-01 | AG39: 2031-01-01
D40: End Date | E40: =E6 -> 2004-12-31 | F40: =EDATE(F39,F47)-1 -> 2005-12-31 | G40: =EDATE(G39,G47)-1 -> 2006-12-31 | H40: 2007-12-31 | I40: 2008-12-31 | J40: 2009-12-31 | K40: 2010-12-31 | L40: 2011-12-31 | M40: 2012-04-30 | N40: 2012-12-31 | O40: 2013-12-31 | P40: 2014-12-31 | Q40: 2015-12-31 | R40: 2016-12-31 | S40: 2017-12-31 | T40: 2018-12-31 | U40: 2019-12-31 | V40: 2020-12-31 | W40: 2021-12-31 | X40: 2022-12-31 | Y40: 2023-12-31 | Z40: 2024-12-31 | AA40: 2025-12-31 | AB40: 2026-12-31 | AC40: 2027-12-31 | AD40: 2028-12-31 | AE40: 2029-12-31 | AF40: 2030-12-31 | AG40: 2031-12-31
D42: Pre-Valuation Period | E42: =E37<1 -> TRUE | F42: =F37<1 -> TRUE | G42: TRUE | H42: TRUE | I42: TRUE | J42: TRUE | K42: TRUE | L42: TRUE | M42: TRUE | N42: FALSE | O42: FALSE | P42: FALSE | Q42: FALSE | R42: FALSE | S42: FALSE | T42: FALSE | U42: FALSE | V42: FALSE | W42: FALSE | X42: FALSE | Y42: FALSE | Z42: FALSE | AA42: FALSE | AB42: FALSE | AC42: FALSE | AD42: FALSE | AE42: FALSE | AF42: FALSE | AG42: FALSE
D43: Historic Period | E43: =E37<=$E$29 -> TRUE | F43: =F37<=$E$29 -> TRUE | G43: TRUE | H43: TRUE | I43: TRUE | J43: TRUE | K43: TRUE | L43: FALSE | M43: FALSE | N43: FALSE | O43: FALSE | P43: FALSE | Q43: FALSE | R43: FALSE | S43: FALSE | T43: FALSE | U43: FALSE | V43: FALSE | W43: FALSE | X43: FALSE | Y43: FALSE | Z43: FALSE | AA43: FALSE | AB43: FALSE | AC43: FALSE | AD43: FALSE | AE43: FALSE | AF43: FALSE | AG43: FALSE
D44: Partial Year | E44: =IF($E$20,OR(E37=0,E37=1)) -> FALSE | F44: =IF($E$20,OR(F37=0,F37=1)) -> FALSE | G44: FALSE | H44: FALSE | I44: FALSE | J44: FALSE | K44: FALSE | L44: FALSE | M44: TRUE | N44: =IF($E$20,OR(N37=0,N37=1)) -> TRUE | O44: FALSE | P44: FALSE | Q44: FALSE | R44: FALSE | S44: FALSE | T44: FALSE | U44: FALSE | V44: FALSE | W44: FALSE | X44: FALSE | Y44: FALSE | Z44: FALSE | AA44: FALSE | AB44: FALSE | AC44: FALSE | AD44: FALSE | AE44: FALSE | AF44: FALSE | AG44: FALSE
D45: Partial Year Counter | F45: =(E45+F44)*F44 -> 0 | G45: =(F45+G44)*G44 -> 0 | H45: 0 | I45: 0 | J45: 0 | K45: 0 | L45: 0 | M45: 1 | N45: 2 | O45: 0 | P45: 0 | Q45: 0 | R45: 0 | S45: 0 | T45: 0 | U45: 0 | V45: 0 | W45: 0 | X45: 0 | Y45: 0 | Z45: 0 | AA45: 0 | AB45: 0 | AC45: 0 | AD45: 0 | AE45: 0 | AF45: 0 | AG45: 0
D46: Full Year | E46: =NOT(E44) -> TRUE | F46: =NOT(F44) -> TRUE | G46: TRUE | H46: TRUE | I46: TRUE | J46: TRUE | K46: TRUE | L46: TRUE | M46: FALSE | N46: FALSE | O46: TRUE | P46: TRUE | Q46: TRUE | R46: TRUE | S46: TRUE | T46: TRUE | U46: TRUE | V46: TRUE | W46: TRUE | X46: TRUE | Y46: TRUE | Z46: TRUE | AA46: TRUE | AB46: TRUE | AC46: TRUE | AD46: TRUE | AE46: TRUE | AF46: TRUE | AG46: TRUE
D47: Months per Period | E47: =IF(E46,12,CHOOSE(E45,$E$16,$E$17)) -> 12 | F47: =IF(F46,12,CHOOSE(F45,$E$16,$E$17)) -> 12 | G47: 12 | H47: 12 | I47: 12 | J47: 12 | K47: 12 | L47: 12 | M47: 4 | N47: 8 | O47: 12 | P47: 12 | Q47: 12 | R47: 12 | S47: 12 | T47: 12 | U47: 12 | V47: 12 | W47: 12 | X47: 12 | Y47: 12 | Z47: 12 | AA47: 12 | AB47: 12 | AC47: 12 | AD47: 12 | AE47: 12 | AF47: 12 | AG47: 12
D48: Explicit Period | E48: =AND(E37>0,E37<=$E$26) -> FALSE | F48: =AND(F37>0,F37<=$E$26) -> FALSE | G48: FALSE | H48: FALSE | I48: FALSE | J48: FALSE | K48: FALSE | L48: FALSE | M48: FALSE | N48: TRUE | O48: TRUE | P48: TRUE | Q48: TRUE | R48: TRUE | S48: TRUE | T48: TRUE | U48: FALSE | V48: FALSE | W48: FALSE | X48: FALSE | Y48: FALSE | Z48: FALSE | AA48: FALSE | AB48: FALSE | AC48: FALSE | AD48: FALSE | AE48: FALSE | AF48: FALSE | AG48: FALSE
D49: Stable Period | E49: =E37=$E$27 -> FALSE | F49: =F37=$E$27 -> FALSE | G49: FALSE | H49: FALSE | I49: FALSE | J49: FALSE | K49: FALSE | L49: FALSE | M49: FALSE | N49: FALSE | O49: FALSE | P49: FALSE | Q49: FALSE | R49: FALSE | S49: FALSE | T49: FALSE | U49: TRUE | V49: FALSE | W49: FALSE | X49: FALSE | Y49: FALSE | Z49: FALSE | AA49: FALSE | AB49: FALSE | AC49: FALSE | AD49: FALSE | AE49: FALSE | AF49: FALSE | AG49: FALSE
E81: 2000-12-31 | G81: =E7 -> 2010-12-31
E82: =EDATE(E81,12) -> 2001-12-31 | G82: =EOMONTH(G81,1) -> 2011-01-31
E83: =EDATE(E82,12) -> 2002-12-31 | G83: =EOMONTH(G82,1) -> 2011-02-28
E84: 2003-12-31 | G84: 2011-03-31
E85: 2004-12-31 | G85: 2011-04-30
E86: 2005-12-31 | G86: 2011-05-31
E87: 2006-12-31 | G87: 2011-06-30
E88: 2007-12-31 | G88: 2011-07-31
E89: 2008-12-31 | G89: 2011-08-31
E90: 2009-12-31 | G90: 2011-09-30
E91: 2010-12-31 | G91: 2011-10-31
E92: 2011-12-31 | G92: 2011-11-30
E93: 2012-12-31 | G93: 2011-12-31
E94: 2013-12-31 | G94: 2012-01-31
E95: 2014-12-31 | G95: 2012-02-29
E96: 2015-12-31 | G96: 2012-03-31
E97: 2016-12-31 | G97: 2012-04-30
E98: 2017-12-31 | G98: 2012-05-31
E99: 2018-12-31 | G99: 2012-06-30
E100: 2019-12-31 | G100: 2012-07-31
E101: 2020-12-31 | G101: 2012-08-31
E102: 2021-12-31 | G102: 2012-09-30
E103: 2022-12-31 | G103: 2012-10-31
E104: 2023-12-31 | G104: 2012-11-30
E105: 2024-12-31 | G105: 2012-12-31
E106: 2025-12-31 | G106: 2013-01-31
E107: 2026-12-31 | G107: 2013-02-28
E108: 2027-12-31 | G108: 2013-03-31
E109: 2028-12-31 | G109: 2013-04-30
E110: 2029-12-31 | G110: 2013-05-31
E111: 2030-12-31 | G111: 2013-06-30
E112: 2031-12-31 | G112: 2013-07-31
E113: 2032-12-31 | G113: 2013-08-31
E114: 2033-12-31 | G114: 2013-09-30
E115: 2034-12-31 | G115: 2013-10-31
E116: 2035-12-31 | G116: 2013-11-30
E117: 2036-12-31 | G117: 2013-12-31
E118: 2037-12-31 | G118: 2014-01-31
E119: 2038-12-31 | G119: 2014-02-28
E120: 2039-12-31 | G120: 2014-03-31
E121: 2040-12-31 | G121: 2014-04-30
E122: 2041-12-31 | G122: 2014-05-31
E123: 2042-12-31 | G123: 2014-06-30
E124: 2043-12-31 | G124: 2014-07-31
E125: 2044-12-31 | G125: 2014-08-31
E126: 2045-12-31 | G126: 2014-09-30
E127: 2046-12-31 | G127: 2014-10-31
E128: 2047-12-31 | G128: 2014-11-30

Sheet Historic Data
A1: HISTORIC FINANCIAL DATA | E1: =Integrity!D12 -> Model OK
E3: 2004 | F3: 2005 | G3: 2006 | H3: 2007 | I3: 2008 | J3: 2009 | K3: 2010
A4: Balance Sheet
D5: ASSETS
D6: Current assets:
D7: Cash and cash equivalents | E7: 3465 | F7: 16721 | G7: 308092 | H7: 404264 | I7: 716218 | J7: 664499 | K7: 765689
D8: Marketable securities | E8: 306 | F8: 312 | G8: 323 | H8: 232686 | I8: 76042 | J8: 120236 | K8: 167889
D9: Accounts receivable trade, net | E9: 4125 | F9: 1098 | G9: 27966 | H9: 18165 | I9: 61703 | J9: 226826 | K9: 305537
D10: Accounts receivable, unbilled | H10: 40204 | I10: 121554 | J10: 58 | K10: 1482
D11: Inventories | E11: 3686 | F11: 6917 | G11: 16510 | H11: 2643 | I11: 710 | J11: 152821 | K11: 200442
D12: Project assets | F12: 0 | G12: 27515 | H12: 35877 | I12: 668 | J12: 1081 | K12: 0
D13: Deferred tax assets, net | H13: 3890 | I13: 9922 | J13: 21679 | K13: 388
D14: Prepaid expenses and other current assets | F14: 1505 | G14: 8116 | H14: 64780 | I14: 90584 | J14: 164071 | K14: 143033
D15: Total current assets | E15: =SUM(E7:E14) -> 11582 | F15: 26553 | G15: 388522 | H15: 802509 | I15: 1077401 | J15: 1351271 | K15: 1584460
D16: Property, plant and equipment, net | E16: 29277 | F16: 73778 | G16: 178868 | H16: 430104 | I16: 842622 | J16: 988782 | K16: 1430789
D17: Project assets | H17: 51811 | I17: 61325 | J17: 131415 | K17: 320140
D18: Deferred tax assets, net | H18: 32713 | I18: 29559 | J18: 130515 | K18: 259236
D19: Marketable securities | H19: 14695 | I19: 30059 | J19: 329608 | K19: 180271
D20: Restricted cash and investments | F20: 1267 | G20: 8224 | H20: 0 | I20: 25000 | J20: 36494 | K20: 86003
D21: Investment in related party | H21: 33449 | I21: 33829 | J21: 25000 | K21: 0
D22: Goodwill | J22: 286515 | K22: 433288
D23: Inventories | H23: 6031 | I23: 14707 | J23: 21695 | K23: 42728
D24: Other assets | E24: =E25-E16 -> 12488 | F24: 286 | G24: 2896 | J24: 48217 | K24: 43488
D25: Total assets | E25: 41765 | F25: 101884 | G25: 578510 | H25: 1371312 | I25: 2114502 | J25: 3349512 | K25: 4380403
D26: LIABILITIES AND STOCKHOLDERS’ EQUITY
D27: Current liabilities:
D28: Accounts payable | F28: 13771 | G28: 32083 | H28: 26441 | I28: 46251 | J28: 75744 | K28: 82312
D29: Income taxes payable | F29: 0 | G29: 340 | H29: 24487 | I29: 99938 | J29: 8740 | K29: 16831
D30: Accrued expenses | H30: 76256 | I30: 140899 | J30: 193277 | K30: 244271
D31: Short-term debt | F31: 20000 | G31: 16339 | H31: 24473 | I31: 0
D32: Current portion of long-term debt | F32: 142 | G32: 3311 | H32: 14836 | I32: 34951 | J32: 28559 | K32: 26587
D33: Other current liabilities | H33: 14803 | I33: 59738 | J33: 88607 | K33: 99676
D34: Total current liabilities | F34: 33913 | G34: 52073 | H34: 181296 | I34: 381777 | J34: 394927 | K34: 469677
D35: Accrued solar module collection and recycling liability | E35: 0 | F35: 917 | G35: 3724 | H35: 13079 | I35: 35238 | J35: 92799 | K35: 132951
D36: Long-term debt | E36: 13700 | F36: 28581 | G36: 61047 | H36: 68856 | I36: 163519 | J36: 146399 | K36: 210804
D37: Other liabilities | E37: 0 | F37: 79 | G37: 0 | H37: 10814 | I37: 20926 | J37: 62600 | K37: 112026
D38: Total liabilities | E38: 19124 | F38: 63490 | G38: 116844 | H38: 274045 | I38: 601460 | J38: 696725 | K38: 925458
D39: Stockholders’ equity:
D40: Common stock, $0.001 par value per share; 500,000,000 shares authorized; 85,843,511 and 85,208,199 shares issued and outstanding at December 31, 2010 and December 26, 2009, respectively | H40: 79 | I40: 82 | J40: 85 | K40: 86
D41: Additional paid-in capital | H41: 1079775 | I41: 1176156 | J41: 1658091 | K41: 1815420
D42: Contingent consideration | J42: 2844 | K42: 1118
D43: Accumulated earnings | H43: 12895 | I43: 361225 | J43: 1001363 | K43: 1665564
D44: Accumulated other comprehensive loss | H44: 4518 | I44: (24,421 | J44: -9596 | K44: -27243
D45: Total stockholders’ equity | F45: 38394 | G45: 461666 | H45: 1097267 | I45: 1513042 | J45: 2652787 | K45: 3454945
D46: Total liabilities and stockholders’ equity | E46: 22641 | F46: 101884 | G46: 578510 | H46: 1371312 | I46: 2114502 | J46: 3349512 | K46: 4380403
D48: Total Liabilities and Capital | E48: =E46+E38 -> 41765 | F48: =F46 -> 101884 | G48: =G45+G38 -> 578510 | H48: =H46 -> 1371312 | I48: =I46 -> 2114502 | J48: =J46 -> 3349512 | K48: =K46 -> 4380403
E50: =E48-E25 -> 0 | F50: 0 | G50: 0 | H50: 0 | I50: 0 | J50: 0 | K50: 0
D51: Test | E51: =E48=E25 -> TRUE | F51: TRUE | G51: TRUE | H51: TRUE | I51: TRUE | J51: TRUE | K51: TRUE
A53: Income Statement
E54: 2004 | F54: 2005 | G54: 2006 | H54: 2007 | I54: 2008 | J54: 2009 | K54: 2010
D55: Statement of Operations:
D56: Net sales | E56: 13522 | F56: 48063 | G56: 134974 | H56: 503976 | I56: 1246301 | J56: 2066200 | K56: 2563515
D57: Cost of sales | E57: 18851 | F57: 31483 | G57: 80730 | H57: 252573 | I57: 567908 | J57: 1021618 | K57: 1378669
D58: Gross profit | E58: -5329 | F58: 16580 | G58: 54244 | H58: 251403 | I58: 678393 | J58: 1044582 | K58: 1184846
D59: Research and development | E59: 1240 | F59: 2372 | G59: 6361 | H59: 15107 | I59: 33517 | J59: 78161 | K59: 94797
D60: Selling, general and administrative | E60: 9312 | F60: 15825 | G60: 33348 | H60: 82248 | I60: 174039 | J60: 272898 | K60: 321704
D61: Production start-up | E61: 900 | F61: 3173 | G61: 11725 | H61: 16867 | I61: 32498 | J61: 13908 | K61: 19442
D62: Operating income | E62: -16781 | F62: -4790 | G62: 2810 | H62: 137181 | I62: 438339 | J62: 679615 | K62: 748903
D63: Foreign currency (loss) gain | E63: 116 | F63: -1715 | G63: 5544 | H63: 1881 | I63: 5722 | J63: 5207 | K63: -3468
D64: Interest income | E64: 131 | F64: 316 | G64: 2648 | H64: 20413 | I64: 21158 | J64: 9735 | K64: 14375
D65: Interest expense, net | E65: -100 | F65: -418 | G65: -1023 | H65: -2294 | I65: -509 | J65: -5258 | K65: -6
D66: Other income (expense), net | E66: -137 | F66: 56 | G66: -799 | H66: -1219 | I66: -934 | J66: -2985 | K66: 2273
D67: Income tax expense (benefit) | E67: 0 | F67: 0 | G67: 5206 | H67: -2392 | I67: 115446 | J67: 46176 | K67: 97876
D68: Net income | E68: -16771 | F68: -6551 | G68: 3974 | H68: 158354 | I68: 348330 | J68: 640138 | K68: 664201
D69: Net income per share data:
D70: Net income per share | G70: 0.0700000003 | H70: 2.119999886 | I70: 4.340000153 | J70: 7.670000076 | K70: 7.820000172
D71: Weighted average shares | G71: 56310 | H71: 74701 | I71: 80178 | J71: 83500 | K71: 84891
D72: Diluted net income per share:
D73: Net income per share | G73: 0.0700000003 | H73: 2.029999971 | I73: 4.239999771 | J73: 7.53000021 | K73: 7.679999828
D74: Weighted average shares | G74: 58255 | H74: 77971 | I74: 82124 | J74: 85044 | K74: 86491
D75: Cash dividends declared per common share | G75: 0 | H75: 0 | I75: 0 | J75: 0 | K75: 0
A78: Cash Flow Analysis
G79: 2006 | H79: 2007 | I79: 2008 | J79: 2009 | K79: 2010
D80: Cash flows from operating activities:
D81: Cash received from customers | G81: 110196 | H81: 515994 | I81: 1203822 | J81: 1957604 | K81: 2458088
D82: Cash paid to suppliers and associates | G82: -111945 | H82: -276525 | I82: -723123 | J82: -1123746 | K82: -1614763
D83: Interest received | G83: 2640 | H83: 19965 | I83: 19138 | J83: 6147 | K83: 20531
D84: Interest paid | G84: -712 | H84: -2294 | I84: -4629 | J84: -10550 | K84: -7610
D85: Income taxes paid, net of refunds | G85: 0 | H85: -19002 | I85: -1975 | J85: -147843 | K85: -80064
D86: Excess tax benefit from share-based compensation arrangements | G86: -45 | H86: -30196 | I86: -28661 | J86: -4892 | K86: -69367
D87: Other operating activities | G87: -710 | H87: -1991 | I87: -1505 | J87: -1527 | K87: -1323
D88: Net cash provided by operating activities | G88: -576 | H88: 205951 | I88: 463067 | J88: 675193 | K88: 705492
D89: Cash flows from investing activities:
D90: Purchases of property, plant and equipment | G90: -153150 | H90: -242371 | I90: -459271 | J90: -279941 | K90: -588914 | L90: -750000
D91: Purchases of marketable securities | G91: 0 | H91: -1081154 | I91: -334818 | J91: -607356 | K91: -462070
D92: Proceeds from maturities of marketable securities | G92: 0 | H92: 787783 | I92: 107450 | J92: 149076 | K92: 62648
D93: Proceeds from sales of marketable securities | G93: 0 | H93: 0 | I93: 418762 | J93: 115805 | K93: 494256
D94: Investment in notes receivable | G94: -6804 | H94: -6008 | I94: 0 | J94: -99637 | K94: 0
D95: Payments received on notes receivable | I95: 0 | J95: 25447 | K95: 61658
D96: Increase in restricted investments | I96: -15564 | J96: -4150 | K96: -43064
D97: Sale of (purchase of) investment in related party | G97: 0 | H97: 0 | I97: -25000 | J97: 0 | K97: 28596
D98: Acquisitions, net of cash acquired | G98: 0 | H98: -5500 | I98: 0 | J98: 318 | K98: -296496
D99: Other investing activities | G99: -40 | H99: 0 | I99: 0 | J99: -1252 | K99: 1301
D100: Net cash used in investing activities | G100: -159994 | H100: -547250 | I100: -308441 | J100: -701690 | K100: -742085
D101: Cash flows from financing activities:
D102: Proceeds from issuance of common stock | G102: 302650 | H102: 365969
D103: Proceeds from notes payable to a related party | G103: 36000 | H103: 0
D104: Repayment of notes payable to a related party | G104: -64700 | H104: 0
D105: Repayment of long-term debt | G105: -135 | H105: -34757 | I105: -41691 | J105: -78224 | K105: -27879
D106: Other equity contributions | G106: 30000 | H106: 0
D107: Proceeds from stock option exercises | G107: 100 | H107: 10173 | I107: 16036 | J107: 5961 | K107: 9379
D108: Proceeds from issuance of debt, net of issuance costs | G108: 130833 | H108: 49368 | I108: 138887 | J108: 44739 | K108: 100000
D109: Excess tax benefit from share-based compensation arrangements | G109: 45 | H109: 30196 | I109: 28661 | J109: 4892 | K109: 69367
D110: Proceeds from economic development funding | G110: 16766 | H110: 9475 | I110: 35661 | J110: 615 | K110: 0
D111: Other financing activities | G111: -9 | H111: -3 | I111: -5 | J111: -4 | K111: -416
D113: Net cash provided by (used in) financing activities | G113: 451550 | H113: 430421 | I113: 177549 | J113: -22021 | K113: 150451
D114: Effect of exchange rate changes on cash and cash equivalents | G114: 391 | H114: 7050 | I114: -20221 | J114: -3201 | K114: -12668
D115: Net increase (decrease) in cash and cash equivalents | G115: 291371 | H115: 96172 | I115: 311954 | J115: -51719 | K115: 101190
D116: Cash and cash equivalents, beginning of the period | G116: 16721 | H116: 308092 | I116: 404264 | J116: 716218 | K116: 664499
D117: Cash and cash equivalents, end of the period | G117: 308092 | H117: 404264 | I117: 716218 | J117: 664499 | K117: 765689
D118: Supplemental disclosure of noncash investing and financing activities:
D119: Property, plant and equipment acquisitions funded by liabilities | G119: 2304 | H119: 38320 | I119: 19449 | J119: 59374 | K119: 88977
D120: Non-cash conversion of debt and accrued interest to equity | G120: 74000 | H120: 0
D121: Issuance of common stock for purchase acquisition | G121: 0 | H121: 28066
G123: =G131/G74*100 -> 20.42228135 | H123: =H131/H74*100 -> 49.97370817 | I123: =I131/I74*100 -> 71.77438995 | J123: =J131/J74*100 -> 104.3518649 | K123: =K131/K74*100 -> 115.1819264
G125: 2006 | H125: 2007 | I125: 2008 | J125: 2009 | K125: 2010
D126: Net income | G126: 3974 | H126: 158354 | I126: 348330 | J126: 640138 | K126: 664201
D127: Adjustments to reconcile net income to cash provided by (used in) operating activities:
D128: Depreciation and amortization | G128: 10210 | H128: 24481 | I128: 59518 | J128: 129628 | K128: 156093
D129: Impairment of assets and liabilities | G129: 0 | H129: 0 | I129: 2328 | J129: 1118 | K129: 5692
D130: Impairment of project assets | I130: 0 | J130: 0 | K130: 5277
D131: Share-based compensation | G131: 11897 | H131: 38965 | I131: 58944 | J131: 88745 | K131: 99622
D132: Remeasurement of monetary assets and liabilities | G132: 0 | H132: 0 | I132: 32 | J132: -2696 | K132: 625
D133: Deferred income taxes | G133: 0 | H133: -55881 | I133: -12974 | J133: -35029 | K133: -58040
D134: Excess tax benefits from share-based compensation arrangements | G134: -45 | H134: -30196 | I134: -28661 | J134: -4892 | K134: -69367
D135: Loss on disposal of property and equipment | G135: 314 | H135: 321
D136: Non-cash interest | G136: 394 | H136: 0
D137: Non-cash loss | G137: 45 | H137: 0
D138: Provision for doubtful accounts receivable | I138: -5 | J138: 990 | K138: -990
D139: Inventory valuation adjustment | G139: 11 | H139: 34 | I139: 2548 | J139: 0 | K139: 0
D140: Gain on sales of investments, net | I140: -189 | J140: -110 | K140: -336
D141: Gain on sale of related party equity investment | I141: 0 | J141: 0 | K141: -3596
D142: Other operating activities | I142: 0 | J142: 1551 | K142: -1504
D143: Changes in operating assets and liabilities:
D144: Accounts receivable, trade | G144: -28149 | H144: 10975 | I144: -40852 | J144: -153312 | K144: -90349
D145: Accounts receivable, unbilled | I145: -108 | J145: 56 | K145: -1424
D146: Inventories | G146: -9753 | H146: -19832 | I146: -84762 | J146: -52058 | K146: -69680
D147: Project assets | G147: 0 | H147: 2333 | I147: 0 | J147: -12546 | K147: -47995
D148: Prepaid expenses and other current assets | G148: -6689 | H148: -7359 | I148: -46055 | J148: -28476 | K148: -41394
D149: Costs and estimated earnings in excess of billings | G149: 0 | H149: 28
D150: Other assets | G150: 142 | H150: -4179 | I150: -4935 | J150: -5320 | K150: -8911
D151: Billings in excess of costs and estimated earnings | G151: 0 | H151: -1992
D152: Accounts payable, accrued expenses, and all other liabilities | G152: 17073 | H152: 89899 | I152: 209908 | J152: 107406 | K152: 167568
D153: Total adjustments | G153: -4550 | H153: 47597 | I153: 114737 | J153: 35055 | K153: 41291
D154: Net cash provided by operating activities | G154: -576 | H154: 205951 | I154: 463067 | J154: 675193 | K154: 705492
A155: Re-formatted Income Statement
C157: Revenues | E157: =E56 -> 13522 | F157: 48063 | G157: 134974 | H157: 503976 | I157: 1246301 | J157: 2066200 | K157: 2563515 | L157: 2850000 | M157: 3700000
C158: Less: Cost of Sales Less Depreciation | E158: =E57-E128-E129-E130 -> 18851 | F158: 31483 | G158: 70520 | H158: 228092 | I158: 506062 | J158: 890872 | K158: 1211607
C159: Less: SG&A | E159: =E60 -> 9312 | F159: 15825 | G159: 33348 | H159: 82248 | I159: 174039 | J159: 272898 | K159: 321704
C160: Less: Research and Development | E160: =E59 -> 1240 | F160: 2372 | G160: 6361 | H160: 15107 | I160: 33517 | J160: 78161 | K160: 94797
D161: EBITDA | E161: =E157-E158-E159-E160 -> -15881 | F161: -1617 | G161: 24745 | H161: 178529 | I161: 532683 | J161: 824269 | K161: =K157-K158-K159-K160 -> 935407
C162: Less: Production Start-up | E162: =E61 -> 900 | F162: 3173 | G162: 11725 | H162: 16867 | I162: 32498 | J162: 13908 | K162: 19442
C163: Less: Depreciation and Impariment | E163: =E128+E129+E130 -> 0 | F163: 0 | G163: 10210 | H163: 24481 | I163: 61846 | J163: 130746 | K163: 167062
D164: EBIT | E164: =E161-E162-E163 -> -16781 | F164: -4790 | G164: 2810 | H164: 137181 | I164: 438339 | J164: 679615 | K164: 748903
C165: Less: Interest Expense | E165: =-E65 -> 100 | F165: 418 | G165: 1023 | H165: 2294 | I165: 509 | J165: 5258 | K165: 6
C166: Add: Interest Income | E166: =E64 -> 131 | F166: 316 | G166: 2648 | H166: 20413 | I166: 21158 | J166: 9735 | K166: 14375
C167: Add: Other Income | E167: =E66 -> -137 | F167: 56 | G167: -799 | H167: -1219 | I167: -934 | J167: -2985 | K167: 2273
C168: Add: Foreign Exchange Gain | E168: =E63 -> 116 | F168: -1715 | G168: 5544 | H168: 1881 | I168: 5722 | J168: 5207 | K168: -3468
D169: EBT | E169: =E164-E165+E166+E167+E168 -> -16771 | F169: =F164-F165+F166+F167+F168 -> -6551 | G169: 9180 | H169: 155962 | I169: 463776 | J169: 686314 | K169: 762077
C170: Less: Income Taxes | E170: =E67 -> 0 | F170: 0 | G170: 5206 | H170: -2392 | I170: 115446 | J170: 46176 | K170: 97876
D171: Net Income | E171: =E169-E170 -> -16771 | F171: -6551 | G171: 3974 | H171: 158354 | I171: 348330 | J171: 640138 | K171: 664201
D173: Reported Income | E173: =E68 -> -16771 | F173: -6551 | G173: 3974 | H173: 158354 | I173: 348330 | J173: 640138 | K173: 664201
D174: Total Cash Operating Expenses | E174: =E158+E159+E160+E162 -> 30303 | F174: 52853 | G174: 121954 | H174: 342314 | I174: 746116 | J174: 1255839 | K174: 1647550
D175: Difference | E175: =E173-E171 -> 0 | F175: 0 | G175: 0 | H175: 0 | I175: 0 | J175: 0 | K175: 0
A177: Balance Sheet
B178: Assets
D179: Current assets:
D180: Short-term and Long-term Cash and Marketable Securities | E180: =E7+E8+E19+E20 -> 3771 | F180: 18300 | G180: 316639 | H180: 651645 | I180: 847319 | J180: 1150837 | K180: 1199852
D181: Accounts receivable trade, net | E181: =E9+E10 -> 4125 | F181: 1098 | G181: 27966 | H181: 58369 | I181: 183257 | J181: 226884 | K181: 307019
D182: Inventories | E182: =E11+E23 -> 3686 | F182: 6917 | G182: 16510 | H182: 8674 | I182: 15417 | J182: 174516 | K182: 243170
D183: Prepaid expenses and other current assets | E183: =E14 -> 0 | F183: 1505 | G183: 8116 | H183: 64780 | I183: 90584 | J183: 164071 | K183: 143033
D184: Total current assets | E184: =SUM(E180:E183) -> 11582 | F184: 27820 | G184: 369231 | H184: 783468 | I184: 1136577 | J184: 1716308 | K184: 1893074
D185: Property, plant and equipment, net | E185: =E16 -> 29277 | F185: 73778 | G185: 178868 | H185: 430104 | I185: 842622 | J185: 988782 | K185: 1430789
D186: Project assets | E186: =E12+E17 -> 0 | F186: 0 | G186: 27515 | H186: 87688 | I186: 61993 | J186: 132496 | K186: 320140
D187: Deferred tax assets, net | E187: 0 | F187: 0 | G187: 0 | H187: 36603 | I187: 39481 | J187: 152194 | K187: 259624
D188: Investment in related party | E188: =E21 -> 0 | F188: 0 | G188: 0 | H188: 33449 | I188: 33829 | J188: 25000 | K188: 0
D189: Goodwill | E189: 0 | F189: 0 | G189: 0 | H189: 0 | I189: 0 | J189: 286515 | K189: 433288
D190: Other assets | E190: 906 | F190: =F24 -> 286 | G190: 2896 | H190: 0 | I190: 0 | J190: 48217 | K190: 43488
D191: Total assets | E191: =E184+SUM(E185:E190) -> 41765 | F191: =F184+SUM(F185:F190) -> 101884 | G191: 578510 | H191: 1371312 | I191: 2114502 | J191: 3349512 | K191: 4380403
E192: =E25 -> 41765 | F192: 101884 | G192: 578510 | H192: 1371312 | I192: 2114502 | J192: 3349512 | K192: 4380403
D193: LIABILITIES AND STOCKHOLDERS’ EQUITY
D194: Current liabilities:
D195: Accounts payable | E195: =E28 -> 0 | F195: 13771 | G195: 32083 | H195: 26441 | I195: 46251 | J195: 75744 | K195: 82312
D196: Income taxes payable | E196: 0 | F196: 0 | G196: 340 | H196: 24487 | I196: 99938 | J196: 8740 | K196: 16831
D197: Accrued expenses | E197: 0 | F197: 0 | G197: 0 | H197: 76256 | I197: 140899 | J197: 193277 | K197: 244271
D198: Short-term debt | E198: 0 | F198: 20000 | G198: 16339 | H198: 24473 | I198: 0 | J198: 0 | K198: 0
D199: Current portion of long-term debt
D200: Other current liabilities | E200: =E33 -> 0 | F200: 0 | G200: 0 | H200: 14803 | I200: 59738 | J200: 88607 | K200: 99676
D201: Total current liabilities | E201: =E205-E203 -> 5424 | F201: =SUM(F195:F200) -> 33771 | G201: 48762 | H201: =SUM(H195:H200) -> 166460 | I201: 346826 | J201: 366368 | K201: 443090
D202: Accrued solar module collection and recycling liability | E202: =E35 -> 0 | F202: 917 | G202: 3724 | H202: 13079 | I202: 35238 | J202: 92799 | K202: 132951
D203: Long-term debt | E203: =E36+E32 -> 13700 | F203: 28723 | G203: 64358 | H203: 83692 | I203: 198470 | J203: 174958 | K203: 237391
D204: Other liabilities | E204: =E37 -> 0 | F204: 79 | G204: 0 | H204: 10814 | I204: 20926 | J204: 62600 | K204: 112026
D205: Total liabilities | E205: =E38 -> 19124 | F205: =F38 -> 63490 | G205: =G38 -> 116844 | H205: =SUM(H201:H204) -> 274045 | I205: =SUM(I201:I204) -> 601460 | J205: 696725 | K205: 925458
D206: Stockholders’ equity: | E206: =E46 -> 22641 | F206: =F45 -> 38394 | G206: 461666 | H206: 1097267 | I206: 1513042 | J206: 2652787 | K206: 3454945
D207: Total liabilities and stockholders’ equity | E207: =E205+E206 -> 41765 | F207: =F205+F206 -> 101884 | G207: =G205+G206 -> 578510 | H207: 1371312 | I207: 2114502 | J207: 3349512 | K207: 4380403
D209: Total Liabilities and Capital | E209: =E48 -> 41765 | F209: 101884 | G209: 578510 | H209: 1371312 | I209: 2114502 | J209: 3349512 | K209: 4380403
E210: =E207-E209 -> 0 | F210: =F207-F209 -> 0 | G210: 0 | H210: 0 | I210: 0 | J210: 0 | K210: 0
E211: =SUM(E201:E204) -> 19124 | F211: =SUM(F201:F204) -> 63490 | G211: 116844 | H211: 274045 | I211: 601460 | J211: 696725 | K211: 925458
D213: Total Assets versus Liabilities | E213: =E209-E191 -> 0 | F213: 0 | G213: 0 | H213: 0 | I213: 0 | J213: 0 | K213: 0
D214: Test | E214: =E213=0 -> TRUE | F214: TRUE | G214: TRUE | H214: TRUE | I214: TRUE | J214: TRUE | K214: TRUE
... 76 more rows

Sheet Valuation Inputs
A1: VALUATION INPUTS | E1: =Integrity!D12 -> Model OK
A4: Cost of Capital
D6: Equity Beta for Sample | E6: ='Master Scenario'!F36 -> 1.8
D7: Equity to Capital for Sample | E7: 0.8
D9: Asset Beta for Sample | E9: =E6*E7 -> 1.44
D11: Risk Free Rate | E11: ='Master Scenario'!F35 -> 0.035
D12: Equity Risk Premium | E12: ='Master Scenario'!F37 -> 0.055
D13: Credit Spread | E13: 0.022
D15: Tax Rate | E15: ='Master Scenario'!F33 -> 0.15
D16: Year of Balance Sheet | E16: 2010
D17: Match of Balance Sheet | E17: =MATCH(E16,'Historic Data'!3:3,0) -> 11
A19: Weighted Cost of Capital
D21: Equity to Capital Ratio for Company | E21: =F31 -> 1.136761018
D22: Capital to Equity Ratio | E22: =1/E21 -> 0.879692375
D23: Asset Beta for Sample | E23: =E9 -> 1.44
D24: Equity Beta for Company | E24: =E22*E23 -> 1.26675702
D25: Cost of Equity for Company | E25: =E24*E12+E11 -> 0.1046716361
G27: Cost of | H27: Tax | I27: After
E28: Amount | F28: Percent | G28: Capital | H28: Rate | I28: Tax | J28: WACC
D29: Surplus Cash | E29: =-INDEX('Historic Data'!180:180,'Valuation Inputs'!E17) -> -1199852 | F29: =E29/$E$33 -> -0.1704931227 | G29: =E11 -> 0.035 | H29: =E15 -> 0.15 | I29: =G29*(1-H29) -> 0.02975 | J29: =I29*F29 -> -0.005072170399
D30: Market Value of Debt | E30: =INDEX('Historic Data'!203:203,'Valuation Inputs'!E17) -> 237391 | F30: =E30/$E$33 -> 0.03373210436 | G30: =E11+E13 -> 0.057 | H30: =E15 -> 0.15 | I30: =G30*(1-H30) -> 0.04845 | J30: =I30*F30 -> 0.001634320456
D31: Market Value of Equity | E31: 8000000 | F31: =E31/$E$33 -> 1.136761018 | G31: =E25 -> 0.1046716361 | I31: =G31*(1-H31) -> 0.1046716361 | J31: =I31*F31 -> 0.1189866356
D33: Total | E33: =SUM(E29:E32) -> 7037539 | F33: =SUM(F29:F32) -> 1 | J33: =SUM(J29:J32) -> 0.1155487857
A35: Terminal Growth Rates and Value Drivers
D37: Terminal Growth Rate | E37: ='Master Scenario'!F38 -> 0.04
D38: Capital Expenditures to Depreciation | E38: 1.2
D39: ROIC WACC Spread | E39: ='Master Scenario'!F39 -> 0.01
D41: WACC in Terminal Year | E41: =J33 -> 0.1155487857
A43: Inputs for EV/EBITDA and P/E Analysis
D45: Book Life | E45: ='Time Series Assumptions'!H97 -> 12
D46: Tax Life | E46: 12
D48: P/E Ratio | E48: 11.5

Sheet Time Series Assumptions
A1: HISTORIC DATA AND PROJECTED ASSUMPTIONS | J1: =Integrity!D12 -> Model OK
F3: =YEAR('Model Time Line'!E6) -> 2004 | G3: =F3+1 -> 2005 | H3: =G3+1 -> 2006 | I3: 2007 | J3: 2008 | K3: 2009 | L3: 2010 | M3: 2011 | N3: 2012 | O3: 2013 | P3: 2014 | Q3: 2015 | R3: 2016 | S3: 2017 | T3: 2018 | U3: 2019 | V3: 2020 | W3: 2021 | X3: 2022 | Y3: 2023 | Z3: 2024 | AA3: 2025 | AB3: 2026 | AC3: 2027 | AD3: 2028 | AE3: 2029 | AF3: 2030 | AG3: 2031 | AH3: 2032 | AI3: 2033 | AJ3: 2034 | AK3: 2035 | AL3: 2036 | AM3: 2037 | AN3: 2038 | AO3: 2039 | AP3: 2040 | AQ3: 2041 | AR3: 2042 | AS3: 2043 | AT3: 2044
B4: Historic Switch | F4: =F3<='Model Time Line'!$E$30 -> TRUE | G4: =G3<='Model Time Line'!$E$30 -> TRUE | H4: =H3<='Model Time Line'!$E$30 -> TRUE | I4: =I3<='Model Time Line'!$E$30 -> TRUE | J4: =J3<='Model Time Line'!$E$30 -> TRUE | K4: =K3<='Model Time Line'!$E$30 -> TRUE | L4: =L3<='Model Time Line'!$E$30 -> TRUE | M4: =M3<='Model Time Line'!$E$30 -> FALSE | N4: =N3<='Model Time Line'!$E$30 -> FALSE | O4: =O3<='Model Time Line'!$E$30 -> FALSE | P4: =P3<='Model Time Line'!$E$30 -> FALSE | Q4: =Q3<='Model Time Line'!$E$30 -> FALSE | R4: =R3<='Model Time Line'!$E$30 -> FALSE | S4: =S3<='Model Time Line'!$E$30 -> FALSE | T4: =T3<='Model Time Line'!$E$30 -> FALSE | U4: =U3<='Model Time Line'!$E$30 -> FALSE | V4: =V3<='Model Time Line'!$E$30 -> FALSE
B5: Future Switch | F5: =NOT(F4) -> FALSE | G5: =NOT(G4) -> FALSE | H5: FALSE | I5: FALSE | J5: FALSE | K5: FALSE | L5: FALSE | M5: TRUE | N5: TRUE | O5: TRUE | P5: TRUE | Q5: TRUE | R5: TRUE | S5: TRUE | T5: TRUE | U5: TRUE | V5: TRUE
A7: Capacity and Demand Assumptions
B9: Capacity and Demand
C10: Industry Capacity
D11: Code | E11: ='Master Scenario'!F11 -> 1
D12: Base Increase of 10% | I12: ='Historic Data'!H225 -> 0.8620689655 | J12: ='Historic Data'!I225 -> 0.7962962963 | K12: ='Historic Data'!J225 -> 0.4020618557 | L12: ='Historic Data'!K225 -> 0.9191176471 | M12: ='Historic Data'!L225 -> 0.3908045977 | N12: ='Historic Data'!M225 -> 0.07438016529 | O12: 0.1 | P12: 0.1 | Q12: 0.1 | R12: 0.1 | S12: 0.1 | T12: 0.1 | U12: 0.1 | V12: 0.1
D13: Negative Case Short-term Increase of 20% | I13: =I12 -> 0.8620689655 | J13: =J12 -> 0.7962962963 | K13: =K12 -> 0.4020618557 | L13: =L12 -> 0.9191176471 | M13: =M12 -> 0.3908045977 | N13: 0.15 | O13: 0.2 | P13: 0.15 | Q13: 0.15 | R13: 0.15 | S13: 0.15 | T13: 0.15 | U13: 0.15 | V13: 0.15
D14: Positivie Case with low increase 5% and 10% | I14: =I12 -> 0.8620689655 | J14: =J13 -> 0.7962962963 | K14: =K13 -> 0.4020618557 | L14: =L13 -> 0.9191176471 | M14: =M13 -> 0.3908045977 | N14: =N12 -> 0.07438016529 | O14: 0.05 | P14: 0.05 | Q14: 0.05 | R14: 0.05 | S14: 0.1 | T14: 0.1 | U14: 0.1 | V14: 0.1
D16: Percent Capacity Increase Applied | E16: Percent | I16: =INDEX(I12:I14,$E$11) -> 0.8620689655 | J16: =INDEX(J12:J14,$E$11) -> 0.7962962963 | K16: 0.4020618557 | L16: 0.9191176471 | M16: 0.3908045977 | N16: 0.07438016529 | O16: 0.1 | P16: 0.1 | Q16: 0.1 | R16: 0.1 | S16: 0.1 | T16: 0.1 | U16: 0.1 | V16: 0.1
D17: Industry Capacity | E17: MW | H17: ='Historic Data'!G220*1000 -> 2900 | I17: =H17*(1+I16) -> 5400 | J17: =I17*(1+J16) -> 9700 | K17: 13600 | L17: 26100 | M17: 36300 | N17: 39000 | O17: 42900 | P17: 47190 | Q17: 51909 | R17: 57099.9 | S17: 62809.89 | T17: 69090.879 | U17: 75999.9669 | V17: 83599.96359
C19: Industry Demand
D20: Code | E20: ='Master Scenario'!F12 -> 1
D21: Base 15% to 10% | I21: 0.8235294118 | J21: 0.935483871 | K21: 0.35 | L21: 1.555555556 | M21: 0.1690821256 | N21: 0.1 | O21: 0.15 | P21: 0.15 | Q21: 0.15 | R21: 0.1 | S21: 0.1 | T21: 0.1 | U21: 0.1 | V21: 0.1
D22: Negative Case 5% to 10% | I22: 0.8235294118 | J22: 0.935483871 | K22: 0.35 | L22: 1.555555556 | M22: 0.1690821256 | N22: 0.05 | O22: 0.05 | P22: 0.05 | Q22: 0.05 | R22: 0.1 | S22: 0.1 | T22: 0.1 | U22: 0.1 | V22: 0.1
D23: Very Negative Case 5% to 0% | I23: 0.8235294118 | J23: 0.935483871 | K23: 0.35 | L23: 1.555555556 | M23: 0.1690821256 | N23: 0.05 | O23: 0 | P23: 0 | Q23: 0 | R23: 0 | S23: 0 | T23: 0 | U23: 0 | V23: 0
D24: Positivie Case 20% to 15% | I24: 0.8235294118 | J24: 0.935483871 | K24: 0.35 | L24: 1.555555556 | M24: 0.1690821256 | N24: 0.2 | O24: 0.2 | P24: 0.2 | Q24: 0.2 | R24: 0.2 | S24: 0.15 | T24: 0.15 | U24: 0.15 | V24: 0.15
D25: Very Positive Case 30% to 20% | I25: 0.8235294118 | J25: 0.935483871 | K25: 0.35 | L25: 1.555555556 | M25: 0.1690821256 | N25: 0.2 | O25: 0.3 | P25: 0.3 | Q25: 0.3 | R25: 0.2 | S25: 0.2 | T25: 0.2 | U25: 0.2 | V25: 0.2
D27: Percent Capacity Increase Applied | E27: Percent | I27: =INDEX(I21:I25,$E$20) -> 0.8235294118 | J27: =INDEX(J21:J25,$E$20) -> 0.935483871 | K27: =INDEX(K21:K25,$E$20) -> 0.35 | L27: =INDEX(L21:L25,$E$20) -> 1.555555556 | M27: 0.1690821256 | N27: 0.1 | O27: 0.15 | P27: 0.15 | Q27: 0.15 | R27: 0.1 | S27: 0.1 | T27: 0.1 | U27: 0.1 | V27: 0.1
D28: Industry Demand | E28: MW | H28: ='Historic Data'!G221*1000 -> 1700 | I28: =H28*(1+I27) -> 3100 | J28: =I28*(1+J27) -> 6000 | K28: 8100 | L28: 20700 | M28: 24200 | N28: 26620 | O28: 30613 | P28: 35204.95 | Q28: 40485.6925 | R28: 44534.26175 | S28: 48987.68792 | T28: 53886.45672 | U28: 59275.10239 | V28: 65202.61263
C30: First Solar Capacity
D31: Code | E31: ='Master Scenario'!F13 -> 1
D32: Continued Increase of 10% | H32: 3 | I32: 2.08 | J32: 1.324675325 | K32: 0.7150837989 | L32: 0.2231270358 | M32: 0.5119840213 | N32: 0.2329370321 | O32: 0.1 | P32: 0.1 | Q32: 0.1 | R32: 0.1 | S32: 0.1 | T32: 0.1 | U32: 0.1 | V32: 0.1
D33: Increase in Capacity of 15% to 10% | H33: 3 | I33: 2.08 | J33: 1.324675325 | K33: 0.7150837989 | L33: 0.2231270358 | M33: 0.5119840213 | N33: 0.25 | O33: 0.15 | P33: 0.15 | Q33: 0.15 | R33: 0.15 | S33: 0.15 | T33: 0.1 | U33: 0.1 | V33: 0.1
D34: Stop of Capacity Increase | H34: 3 | I34: 2.08 | J34: 1.324675325 | K34: 0.7150837989 | L34: 0.2231270358 | M34: 0.5119840213 | N34: 0.1 | O34: 0.01 | P34: 0.01 | Q34: 0.01 | R34: 0.01 | S34: 0.01 | T34: 0.01 | U34: 0.01 | V34: 0.01
D35: Zero and then Increase | H35: 3 | I35: 2.08 | J35: 1.324675325 | K35: 0.7150837989 | L35: 0.2231270358 | M35: 0.5119840213 | N35: 0.1 | O35: 0.01 | P35: 0.01 | Q35: 0.1 | R35: 0.1 | S35: 0.1 | T35: 0.1 | U35: 0.1 | V35: 0.1
D37: Percent Capacity Increase Applied | E37: Percent | H37: =INDEX(H32:H35,$E$31) -> 3 | I37: 2.08 | J37: 1.324675325 | K37: 0.7150837989 | L37: 0.2231270358 | M37: 0.5119840213 | N37: 0.2329370321 | O37: =INDEX(O32:O35,$E$31) -> 0.1 | P37: 0.1 | Q37: 0.1 | R37: 0.1 | S37: 0.1 | T37: 0.1 | U37: 0.1 | V37: 0.1
D38: First Solar Capacity | G38: ='Historic Data'!F229 -> 25 | H38: =G38*(1+H37) -> 100 | I38: 308 | J38: 716 | K38: 1228 | L38: 1502 | M38: 2271 | N38: 2800 | O38: =N38*(1+O37) -> 3080 | P38: 3388 | Q38: 3726.8 | R38: 4099.48 | S38: 4509.428 | T38: 4960.3708 | U38: 5456.40788 | V38: 6002.048668
C40: First Solar Demand and Production
D41: Fist Solar Percent of Industry | H41: =H38/H17 -> 0.03448275862 | I41: =I38/I17 -> 0.05703703704 | J41: 0.07381443299 | K41: 0.09029411765 | L41: 0.05754789272 | M41: 0.06256198347 | N41: 0.07179487179 | O41: 0.07179487179 | P41: 0.07179487179 | Q41: 0.07179487179 | R41: 0.07179487179 | S41: 0.07179487179 | T41: 0.07179487179 | U41: 0.07179487179 | V41: 0.07179487179
D42: Demand Assuming Proportional Share | H42: =H41*H28 -> 58.62068966 | I42: =I41*I28 -> 176.8148148 | J42: 442.8865979 | K42: 731.3823529 | L42: 1191.241379 | M42: 1514 | N42: 1911.179487 | O42: 2197.85641 | P42: 2527.534872 | Q42: 2906.665103 | R42: 3197.331613 | S42: 3517.064774 | T42: 3868.771252 | U42: 4255.648377 | V42: 4681.213214
D43: Demand Factor | H43: 1.023529412 | I43: 1.165060746 | J43: 1.137988827 | K43: 1.521775848 | L43: 1.185318127 | M43: 0.9907529723 | N43: ='Master Scenario'!F14 -> 1 | O43: =N43 -> 1 | P43: =O43 -> 1 | Q43: 1 | R43: 1 | S43: 1 | T43: 1 | U43: 1 | V43: 1
D45: First Solar Production | E45: MW | H45: =H43*H42 -> 60 | I45: =I43*I42 -> 206 | J45: =J43*J42 -> 504 | K45: 1113 | L45: 1412 | M45: 1500 | N45: 1911.179487 | O45: 2197.85641 | P45: 2527.534872 | Q45: 2906.665103 | R45: 3197.331613 | S45: 3517.064774 | T45: 3868.771252 | U45: 4255.648377 | V45: 4681.213214
A47: Pricing Assumptions
C49: Price per MW of Production
D50: Code | E50: ='Master Scenario'!F16 -> 2
D51: Management Case with 15% Decline | I51: 0.08753631228 | J51: 0.01076401566 | K51: -0.2492682459 | L51: -0.02203351125 | M51: 0.04653181276 | N51: 0.01425438596 | O51: -0.05 | P51: -0.15 | Q51: -0.1 | R51: -0.02 | S51: -0.02 | T51: -0.02 | U51: -0.02 | V51: -0.02
D52: 25% Decline in 2012 and 10%/5% | I52: 0.08753631228 | J52: 0.01076401566 | K52: -0.2492682459 | L52: -0.02203351125 | M52: 0.02 | N52: -0.25 | O52: -0.1 | P52: -0.05 | Q52: -0.05 | R52: -0.02 | S52: -0.02 | T52: -0.02 | U52: -0.02 | V52: -0.02
D53: 25% Decline in 2012 and 15%/10%/5% | I53: 0.08753631228 | J53: 0.01076401566 | K53: -0.2492682459 | L53: -0.02203351125 | M53: 0.02 | N53: -0.25 | O53: -0.1 | P53: -0.1 | Q53: -0.1 | R53: -0.05 | S53: -0.05 | T53: -0.05 | U53: -0.05 | V53: -0.05
D54: 25% Decline in 2012 and 5%/2% | I54: 0.08753631228 | J54: 0.01076401566 | K54: -0.2492682459 | L54: -0.02203351125 | M54: 0.02 | N54: -0.25 | O54: -0.05 | P54: -0.05 | Q54: -0.02 | R54: -0.02 | S54: -0.02 | T54: -0.02 | U54: -0.02 | V54: -0.02
D55: 15% Decline in 2012 and 5%/2% | I55: 0.08753631228 | J55: 0.01076401566 | K55: -0.2492682459 | L55: -0.02203351125 | M55: 0.02 | N55: -0.15 | O55: -0.05 | P55: -0.02 | Q55: -0.02 | R55: -0.02 | S55: -0.02 | T55: -0.02 | U55: -0.02 | V55: -0.02
D57: Price Increase Applied | I57: =INDEX(I51:I55,$E$50) -> 0.08753631228 | J57: =INDEX(J51:J55,$E$50) -> 0.01076401566 | K57: -0.2492682459 | L57: -0.02203351125 | M57: 0.02 | N57: -0.25 | O57: -0.1 | P57: -0.05 | Q57: -0.05 | R57: -0.02 | S57: -0.02 | T57: -0.02 | U57: -0.02 | V57: -0.02
D58: Price Applied | H58: ='Historic Data'!G244 -> 2249.566667 | I58: =H58*(1+I57) -> 2446.485437 | J58: =I58*(1+J57) -> 2472.819444 | K58: 1856.424079 | L58: 1815.520538 | M58: 1851.830949 | N58: 1388.873212 | O58: 1249.985891 | P58: 1187.486596 | Q58: 1128.112266 | R58: 1105.550021 | S58: 1083.439021 | T58: 1061.77024 | U58: 1040.534835 | V58: 1019.724139
A60: Cost Assumptions
C62: Cost of Sales Increase
D63: Code | E63: ='Master Scenario'!F18 -> 1
D64: 5% Decline Case | I64: -0.05793302458 | J64: -0.09316064751 | K64: -0.2028373285 | L64: 0.07202998303 | M64: -0.05 | N64: -0.05 | O64: -0.05 | P64: -0.05 | Q64: -0.05 | R64: -0.02 | S64: 0 | T64: 0 | U64: 0 | V64: 0
D65: 5% 2011 and then 0% | I65: -0.05793302458 | J65: -0.09316064751 | K65: -0.2028373285 | L65: 0.07202998303 | M65: -0.05 | N65: 0 | O65: 0 | P65: 0.01 | Q65: 0.02 | R65: 0 | S65: 0 | T65: 0 | U65: 0 | V65: 0
D66: 10% 2011 and then 5% | I66: -0.05793302458 | J66: -0.09316064751 | K66: -0.2028373285 | L66: 0.07202998303 | M66: -0.1 | N66: -0.05 | O66: -0.05 | P66: -0.05 | Q66: 0 | R66: 0 | S66: 0 | T66: 0 | U66: 0 | V66: 0
D67: Flat Cost | I67: -0.05793302458 | J67: -0.09316064751 | K67: -0.2028373285 | L67: 0.07202998303 | M67: 0 | N67: 0 | O67: 0 | P67: 0 | Q67: 0 | R67: 0 | S67: 0 | T67: 0 | U67: 0 | V67: 0
D68: 10% Cost through 2014 | I68: -0.05793302458 | J68: -0.09316064751 | K68: -0.2028373285 | L68: 0.07202998303 | M68: -0.1 | N68: -0.1 | O68: -0.1 | P68: -0.1 | Q68: -0.05 | R68: -0.05 | S68: 0 | T68: 0 | U68: 0 | V68: 0
D70: Cost Increase Applied | I70: =INDEX(I64:I68,$E$63) -> -0.05793302458 | J70: -0.09316064751 | K70: -0.2028373285 | L70: 0.07202998303 | M70: -0.05 | N70: -0.05 | O70: -0.05 | P70: -0.05 | Q70: -0.05 | R70: -0.02 | S70: 0 | T70: 0 | U70: 0 | V70: 0
D71: Cost per kW Applied | H71: ='Historic Data'!G248 -> 1175.333333 | I71: =H71*(1+I70) -> 1107.242718 | J71: =I71*(1+J70) -> 1004.09127 | K71: 800.4240791 | L71: 858.0786119 | M71: 815.1746813 | N71: 774.4159472 | O71: 735.6951499 | P71: 698.9103924 | Q71: 663.9648728 | R71: 650.6855753 | S71: 650.6855753 | T71: 650.6855753 | U71: 650.6855753 | V71: 650.6855753
C73: SG&A as Percent of Sales | H73: 0.247069806 | I73: 0.1631982475 | J73: 0.1396444358 | K73: 0.1320772432 | L73: 0.1254933168 | M73: ='Master Scenario'!F19 -> 0.1254933168 | N73: =M73 -> 0.1254933168 | O73: =N73 -> 0.1254933168 | P73: 0.1254933168 | Q73: 0.1254933168 | R73: 0.1254933168 | S73: 0.1254933168 | T73: 0.1254933168 | U73: 0.1254933168 | V73: 0.1254933168
C74: R&D as Percent of Sales | H74: 0.04712759494 | I74: 0.02997563376 | J74: 0.02689318231 | K74: 0.0378283806 | L74: 0.03697930381 | M74: ='Master Scenario'!F20 -> 0.03697930381 | N74: =M74 -> 0.03697930381 | O74: =N74 -> 0.03697930381 | P74: 0.03697930381 | Q74: 0.03697930381 | R74: 0.03697930381 | S74: 0.03697930381 | T74: 0.03697930381 | U74: 0.03697930381 | V74: 0.03697930381
A76: Capital Expenditures
C78: Capital Expenditure per New kW | H78: 2042 | I78: 1165.245192 | J78: 1125.664216 | K78: 546.7597656 | L78: 2149.321168 | M78: 975.2925878 | N78: ='Master Scenario'!F22 -> 1200 | O78: =N78 -> 1200 | P78: =O78 -> 1200 | Q78: 1200 | R78: 1200 | S78: 1200 | T78: 1200 | U78: 1200 | V78: 1200
C79: Maintenance Capital Expenditure per kW | N79: 0 | O79: =N79 -> 0 | P79: 0 | Q79: 0 | R79: 0 | S79: 0 | T79: 0 | U79: 0 | V79: 0
C80: Start-up Expenses per New KW | H80: 156.3333333 | I80: 81.09134615 | J80: 79.65196078 | K80: 27.1640625 | L80: 70.95620438 | M80: 70 | N80: ='Master Scenario'!F23 -> 70 | O80: =N80 -> 70 | P80: =O80 -> 70 | Q80: 70 | R80: 70 | S80: 70 | T80: 70 | U80: 70 | V80: 70
A82: Working Capital Ratios
C84: A/R to Revenues | F84: =IF(F$4,'Historic Data'!E263,'Time Series Assumptions'!E84) -> 0.3050584233 | G84: =IF(G$4,'Historic Data'!F263,'Time Series Assumptions'!F84) -> 0.02284501592 | H84: =IF(H$4,'Historic Data'!G263,'Time Series Assumptions'!G84) -> 0.2071954599 | I84: =IF(I$4,'Historic Data'!H263,'Time Series Assumptions'!H84) -> 0.115817023 | J84: =IF(J$4,'Historic Data'!I263,'Time Series Assumptions'!I84) -> 0.1470407229 | K84: =IF(K$4,'Historic Data'!J263,'Time Series Assumptions'!J84) -> 0.1098073759 | L84: =IF(L$4,'Historic Data'!K263,'Time Series Assumptions'!K84) -> 0.1197648541 | M84: ='Master Scenario'!F25 -> 0.1197648541 | N84: =M84 -> 0.1197648541 | O84: =N84 -> 0.1197648541 | P84: 0.1197648541 | Q84: 0.1197648541 | R84: 0.1197648541 | S84: 0.1197648541 | T84: 0.1197648541 | U84: 0.1197648541 | V84: 0.1197648541
C85: Inventories to CGS | F85: =IF(F$4,'Historic Data'!E264,'Time Series Assumptions'!E85) -> 0.1955333935 | G85: =IF(G$4,'Historic Data'!F264,'Time Series Assumptions'!F85) -> 0.219705873 | H85: =IF(H$4,'Historic Data'!G264,'Time Series Assumptions'!G85) -> 0.2341179807 | I85: =IF(I$4,'Historic Data'!H264,'Time Series Assumptions'!H85) -> 0.03802851481 | J85: =IF(J$4,'Historic Data'!I264,'Time Series Assumptions'!I85) -> 0.03046464662 | K85: =IF(K$4,'Historic Data'!J264,'Time Series Assumptions'!J85) -> 0.1958934617 | L85: =IF(L$4,'Historic Data'!K264,'Time Series Assumptions'!K85) -> 0.2007003921 | M85: ='Master Scenario'!F26 -> 0.2007003921 | N85: 0.2007003921 | O85: 0.2007003921 | P85: 0.2007003921 | Q85: 0.2007003921 | R85: 0.2007003921 | S85: 0.2007003921 | T85: 0.2007003921 | U85: 0.2007003921 | V85: 0.2007003921
C86: Prepaid to Revenues | F86: =IF(F$4,'Historic Data'!E265,'Time Series Assumptions'!E86) -> 0 | G86: =IF(G$4,'Historic Data'!F265,'Time Series Assumptions'!F86) -> 0.03131306826 | H86: =IF(H$4,'Historic Data'!G265,'Time Series Assumptions'!G86) -> 0.06013009913 | I86: =IF(I$4,'Historic Data'!H265,'Time Series Assumptions'!H86) -> 0.1285378669 | J86: =IF(J$4,'Historic Data'!I265,'Time Series Assumptions'!I86) -> 0.07268228141 | K86: =IF(K$4,'Historic Data'!J265,'Time Series Assumptions'!J86) -> 0.07940712419 | L86: =IF(L$4,'Historic Data'!K265,'Time Series Assumptions'!K86) -> 0.05579565557 | M86: ='Master Scenario'!F27 -> 0.05579565557 | N86: 0.05579565557 | O86: 0.05579565557 | P86: 0.05579565557 | Q86: 0.05579565557 | R86: 0.05579565557 | S86: 0.05579565557 | T86: 0.05579565557 | U86: 0.05579565557 | V86: 0.05579565557
C87: A/P to GSS | F87: =IF(F$4,'Historic Data'!E266,'Time Series Assumptions'!E87) -> 0 | G87: =IF(G$4,'Historic Data'!F266,'Time Series Assumptions'!F87) -> 0.4374106661 | H87: =IF(H$4,'Historic Data'!G266,'Time Series Assumptions'!G87) -> 0.4549489507 | I87: =IF(I$4,'Historic Data'!H266,'Time Series Assumptions'!H87) -> 0.1159225225 | J87: =IF(J$4,'Historic Data'!I266,'Time Series Assumptions'!I87) -> 0.09139393987 | K87: =IF(K$4,'Historic Data'!J266,'Time Series Assumptions'!J87) -> 0.08502231521 | L87: =IF(L$4,'Historic Data'!K266,'Time Series Assumptions'!K87) -> 0.06793622024 | M87: ='Master Scenario'!F28 -> 0.06793622024 | N87: 0.06793622024 | O87: 0.06793622024 | P87: 0.06793622024 | Q87: 0.06793622024 | R87: 0.06793622024 | S87: 0.06793622024 | T87: 0.06793622024 | U87: 0.06793622024 | V87: 0.06793622024
C88: Accrued Expenses to total expenses | F88: =IF(F$4,'Historic Data'!E267,'Time Series Assumptions'!E88) -> 0 | G88: =IF(G$4,'Historic Data'!F267,'Time Series Assumptions'!F88) -> 0 | H88: =IF(H$4,'Historic Data'!G267,'Time Series Assumptions'!G88) -> 0 | I88: =IF(I$4,'Historic Data'!H267,'Time Series Assumptions'!H88) -> 0.2227662322 | J88: =IF(J$4,'Historic Data'!I267,'Time Series Assumptions'!I88) -> 0.1888432898 | K88: =IF(K$4,'Historic Data'!J267,'Time Series Assumptions'!J88) -> 0.1539026898 | L88: =IF(L$4,'Historic Data'!K267,'Time Series Assumptions'!K88) -> 0.1482631787 | M88: ='Master Scenario'!F29 -> 0.1482631787 | N88: 0.1482631787 | O88: 0.1482631787 | P88: 0.1482631787 | Q88: 0.1482631787 | R88: 0.1482631787 | S88: 0.1482631787 | T88: 0.1482631787 | U88: 0.1482631787 | V88: 0.1482631787
C89: Other Liabilities to Revenues | F89: =IF(F$4,'Historic Data'!E268,'Time Series Assumptions'!E89) -> 0 | G89: =IF(G$4,'Historic Data'!F268,'Time Series Assumptions'!F89) -> 0 | H89: =IF(H$4,'Historic Data'!G268,'Time Series Assumptions'!G89) -> 0 | I89: =IF(I$4,'Historic Data'!H268,'Time Series Assumptions'!H89) -> 0.02937243043 | J89: =IF(J$4,'Historic Data'!I268,'Time Series Assumptions'!I89) -> 0.04793224109 | K89: =IF(K$4,'Historic Data'!J268,'Time Series Assumptions'!J89) -> 0.04288403833 | L89: =IF(L$4,'Historic Data'!K268,'Time Series Assumptions'!K89) -> 0.03888254994 | M89: ='Master Scenario'!F30 -> 0.04370015389 | N89: 0.04370015389 | O89: 0.04370015389 | P89: 0.04370015389 | Q89: 0.04370015389 | R89: 0.04370015389 | S89: 0.04370015389 | T89: 0.04370015389 | U89: 0.04370015389 | V89: 0.04370015389
A91: Depreciation and Taxes
C93: Match of Last Historic Year | F93: =MATCH('Model Time Line'!$E$30,'Historic Data'!3:3) -> 11 | G93: =MATCH('Model Time Line'!$E$30,'Historic Data'!3:3) -> 11 | H93: =MATCH('Model Time Line'!$E$30,'Historic Data'!3:3) -> 11 | I93: =MATCH('Model Time Line'!$E$30,'Historic Data'!3:3) -> 11 | J93: =MATCH('Model Time Line'!$E$30,'Historic Data'!3:3) -> 11 | K93: =MATCH('Model Time Line'!$E$30,'Historic Data'!3:3) -> 11 | L93: =MATCH('Model Time Line'!$E$30,'Historic Data'!3:3) -> 11 | M93: =MATCH('Model Time Line'!$E$30,'Historic Data'!3:3) -> 11 | N93: =MATCH('Model Time Line'!$E$30,'Historic Data'!3:3) -> 11 | O93: =MATCH('Model Time Line'!$E$30,'Historic Data'!3:3) -> 11 | P93: =MATCH('Model Time Line'!$E$30,'Historic Data'!3:3) -> 11 | Q93: =MATCH('Model Time Line'!$E$30,'Historic Data'!3:3) -> 11 | R93: =MATCH('Model Time Line'!$E$30,'Historic Data'!3:3) -> 11 | S93: =MATCH('Model Time Line'!$E$30,'Historic Data'!3:3) -> 11 | T93: =MATCH('Model Time Line'!$E$30,'Historic Data'!3:3) -> 11 | U93: =MATCH('Model Time Line'!$E$30,'Historic Data'!3:3) -> 11 | V93: =MATCH('Model Time Line'!$E$30,'Historic Data'!3:3) -> 11
C95: Base Depreciation on Existing Plant | F95: =IF(F4,'Historic Data'!E271,INDEX('Historic Data'!271:271,'Time Series Assumptions'!F93)) -> 0 | G95: =IF(G4,'Historic Data'!F271,INDEX('Historic Data'!271:271,'Time Series Assumptions'!G93)) -> 0 | H95: =IF(H4,'Historic Data'!G271,INDEX('Historic Data'!271:271,'Time Series Assumptions'!H93)) -> 10210 | I95: =IF(I4,'Historic Data'!H271,INDEX('Historic Data'!271:271,'Time Series Assumptions'!I93)) -> 24481 | J95: =IF(J4,'Historic Data'!I271,INDEX('Historic Data'!271:271,'Time Series Assumptions'!J93)) -> 61846 | K95: =IF(K4,'Historic Data'!J271,INDEX('Historic Data'!271:271,'Time Series Assumptions'!K93)) -> 130746 | L95: =IF(L4,'Historic Data'!K271,INDEX('Historic Data'!271:271,'Time Series Assumptions'!L93)) -> 167062 | M95: =IF(M4,'Historic Data'!L271,INDEX('Historic Data'!271:271,'Time Series Assumptions'!M93)) -> 167062 | N95: =IF(N4,'Historic Data'!M271,INDEX('Historic Data'!271:271,'Time Series Assumptions'!N93)) -> 167062 | O95: =IF(O4,'Historic Data'!N271,INDEX('Historic Data'!271:271,'Time Series Assumptions'!O93)) -> 167062 | P95: =IF(P4,'Historic Data'!O271,INDEX('Historic Data'!271:271,'Time Series Assumptions'!P93)) -> 167062 | Q95: =IF(Q4,'Historic Data'!P271,INDEX('Historic Data'!271:271,'Time Series Assumptions'!Q93)) -> 167062 | R95: =IF(R4,'Historic Data'!Q271,INDEX('Historic Data'!271:271,'Time Series Assumptions'!R93)) -> 167062 | S95: =IF(S4,'Historic Data'!R271,INDEX('Historic Data'!271:271,'Time Series Assumptions'!S93)) -> 167062 | T95: =IF(T4,'Historic Data'!S271,INDEX('Historic Data'!271:271,'Time Series Assumptions'!T93)) -> 167062 | U95: =IF(U4,'Historic Data'!T271,INDEX('Historic Data'!271:271,'Time Series Assumptions'!U93)) -> 167062 | V95: =IF(V4,'Historic Data'!U271,INDEX('Historic Data'!271:271,'Time Series Assumptions'!V93)) -> 167062
C96: Retirement Rate on Existing Plant | F96: 0 | G96: 0 | H96: 0 | I96: 0 | J96: 0 | K96: 0 | L96: 0 | M96: 0 | N96: 0 | O96: 0.01 | P96: 0.01 | Q96: 0.02 | R96: 0.1 | S96: 0.12 | T96: 0.15 | U96: 0.2 | V96: 0.2
C97: Lifetime of New Plant | F97: 12 | G97: 12 | H97: 12 | I97: 12 | J97: 12 | K97: 12 | L97: 12 | M97: ='Master Scenario'!F32 -> 12 | N97: =M97 -> 12 | O97: =N97 -> 12 | P97: 12 | Q97: 12 | R97: 12 | S97: 12 | T97: 12 | U97: 12 | V97: 12
C99: Existing Plant | F99: =IF(F4,'Historic Data'!E185,'Time Series Assumptions'!E99) -> 29277 | G99: =IF(G4,'Historic Data'!F185,'Time Series Assumptions'!F99) -> 73778 | H99: =IF(H4,'Historic Data'!G185,'Time Series Assumptions'!G99) -> 178868 | I99: =IF(I4,'Historic Data'!H185,'Time Series Assumptions'!H99) -> 430104 | J99: =IF(J4,'Historic Data'!I185,'Time Series Assumptions'!I99) -> 842622 | K99: =IF(K4,'Historic Data'!J185,'Time Series Assumptions'!J99) -> 988782 | L99: =IF(L4,'Historic Data'!K185,'Time Series Assumptions'!K99) -> 1430789 | M99: =IF(M4,'Historic Data'!L185,'Time Series Assumptions'!L99) -> 1430789 | N99: =IF(N4,'Historic Data'!M185,'Time Series Assumptions'!M99) -> 1430789 | O99: =IF(O4,'Historic Data'!N185,'Time Series Assumptions'!N99) -> 1430789 | P99: =IF(P4,'Historic Data'!O185,'Time Series Assumptions'!O99) -> 1430789 | Q99: =IF(Q4,'Historic Data'!P185,'Time Series Assumptions'!P99) -> 1430789 | R99: =IF(R4,'Historic Data'!Q185,'Time Series Assumptions'!Q99) -> 1430789 | S99: =IF(S4,'Historic Data'!R185,'Time Series Assumptions'!R99) -> 1430789 | T99: =IF(T4,'Historic Data'!S185,'Time Series Assumptions'!S99) -> 1430789 | U99: =IF(U4,'Historic Data'!T185,'Time Series Assumptions'!T99) -> 1430789 | V99: =IF(V4,'Historic Data'!U185,'Time Series Assumptions'!U99) -> 1430789
C100: Effective Tax Rate | F100: ='Historic Data'!E275 -> 0 | G100: ='Historic Data'!F275 -> 0 | H100: ='Historic Data'!G275 -> 0.5671023965 | I100: ='Historic Data'!H275 -> -0.01533706929 | J100: ='Historic Data'!I275 -> 0.2489262058 | K100: ='Historic Data'!J275 -> 0.06728115702 | L100: ='Historic Data'!K275 -> 0.1284332161 | M100: ='Master Scenario'!F33 -> 0.15 | N100: =M100 -> 0.15 | O100: =N100 -> 0.15 | P100: 0.15 | Q100: 0.15 | R100: 0.15 | S100: 0.15 | T100: 0.15 | U100: 0.15 | V100: 0.15
C102: Tax Rate for ROIC Calculation | F102: 0.15 | G102: 0.15 | H102: 0.15 | I102: 0.15 | J102: 0.15 | K102: 0.15 | L102: 0.15 | M102: 0.15 | N102: 0.15 | O102: 0.15 | P102: 0.15 | Q102: 0.15 | R102: 0.15 | S102: 0.15 | T102: 0.15 | U102: 0.15 | V102: 0.15
A104: Other Assets and Liabilities
C106: Project Assets | F106: =IF(F$4,'Historic Data'!E186,E106) -> 0 | G106: =IF(G$4,'Historic Data'!F186,F106) -> 0 | H106: =IF(H$4,'Historic Data'!G186,G106) -> 27515 | I106: =IF(I$4,'Historic Data'!H186,H106) -> 87688 | J106: =IF(J$4,'Historic Data'!I186,I106) -> 61993 | K106: =IF(K$4,'Historic Data'!J186,J106) -> 132496 | L106: =IF(L$4,'Historic Data'!K186,K106) -> 320140 | M106: =IF(M$4,'Historic Data'!L186,L106) -> 320140 | N106: =IF(N$4,'Historic Data'!M186,M106) -> 320140 | O106: =IF(O$4,'Historic Data'!N186,N106) -> 320140 | P106: =IF(P$4,'Historic Data'!O186,O106) -> 320140 | Q106: =IF(Q$4,'Historic Data'!P186,P106) -> 320140 | R106: =IF(R$4,'Historic Data'!Q186,Q106) -> 320140 | S106: =IF(S$4,'Historic Data'!R186,R106) -> 320140 | T106: =IF(T$4,'Historic Data'!S186,S106) -> 320140 | U106: =IF(U$4,'Historic Data'!T186,T106) -> 320140 | V106: =IF(V$4,'Historic Data'!U186,U106) -> 320140
C107: Deferred Tax Assets | F107: =IF(F$4,'Historic Data'!E187,E107) -> 0 | G107: =IF(G$4,'Historic Data'!F187,F107) -> 0 | H107: =IF(H$4,'Historic Data'!G187,G107) -> 0 | I107: =IF(I$4,'Historic Data'!H187,H107) -> 36603 | J107: =IF(J$4,'Historic Data'!I187,I107) -> 39481 | K107: =IF(K$4,'Historic Data'!J187,J107) -> 152194 | L107: =IF(L$4,'Historic Data'!K187,K107) -> 259624 | M107: =IF(M$4,'Historic Data'!L187,L107) -> 259624 | N107: =IF(N$4,'Historic Data'!M187,M107) -> 259624 | O107: =IF(O$4,'Historic Data'!N187,N107) -> 259624 | P107: =IF(P$4,'Historic Data'!O187,O107) -> 259624 | Q107: =IF(Q$4,'Historic Data'!P187,P107) -> 259624 | R107: =IF(R$4,'Historic Data'!Q187,Q107) -> 259624 | S107: =IF(S$4,'Historic Data'!R187,R107) -> 259624 | T107: =IF(T$4,'Historic Data'!S187,S107) -> 259624 | U107: =IF(U$4,'Historic Data'!T187,T107) -> 259624 | V107: =IF(V$4,'Historic Data'!U187,U107) -> 259624
C108: Investment in Related Property | F108: =IF(F$4,'Historic Data'!E188,E108) -> 0 | G108: =IF(G$4,'Historic Data'!F188,F108) -> 0 | H108: =IF(H$4,'Historic Data'!G188,G108) -> 0 | I108: =IF(I$4,'Historic Data'!H188,H108) -> 33449 | J108: =IF(J$4,'Historic Data'!I188,I108) -> 33829 | K108: =IF(K$4,'Historic Data'!J188,J108) -> 25000 | L108: =IF(L$4,'Historic Data'!K188,K108) -> 0 | M108: =IF(M$4,'Historic Data'!L188,L108) -> 0 | N108: =IF(N$4,'Historic Data'!M188,M108) -> 0 | O108: =IF(O$4,'Historic Data'!N188,N108) -> 0 | P108: =IF(P$4,'Historic Data'!O188,O108) -> 0 | Q108: =IF(Q$4,'Historic Data'!P188,P108) -> 0 | R108: =IF(R$4,'Historic Data'!Q188,Q108) -> 0 | S108: =IF(S$4,'Historic Data'!R188,R108) -> 0 | T108: =IF(T$4,'Historic Data'!S188,S108) -> 0 | U108: =IF(U$4,'Historic Data'!T188,T108) -> 0 | V108: =IF(V$4,'Historic Data'!U188,U108) -> 0
C109: Goodwilll | F109: =IF(F$4,'Historic Data'!E189,E109) -> 0 | G109: =IF(G$4,'Historic Data'!F189,F109) -> 0 | H109: =IF(H$4,'Historic Data'!G189,G109) -> 0 | I109: =IF(I$4,'Historic Data'!H189,H109) -> 0 | J109: =IF(J$4,'Historic Data'!I189,I109) -> 0 | K109: =IF(K$4,'Historic Data'!J189,J109) -> 286515 | L109: =IF(L$4,'Historic Data'!K189,K109) -> 433288 | M109: =IF(M$4,'Historic Data'!L189,L109) -> 433288 | N109: =IF(N$4,'Historic Data'!M189,M109) -> 433288 | O109: =IF(O$4,'Historic Data'!N189,N109) -> 433288 | P109: =IF(P$4,'Historic Data'!O189,O109) -> 433288 | Q109: =IF(Q$4,'Historic Data'!P189,P109) -> 433288 | R109: =IF(R$4,'Historic Data'!Q189,Q109) -> 433288 | S109: =IF(S$4,'Historic Data'!R189,R109) -> 433288 | T109: =IF(T$4,'Historic Data'!S189,S109) -> 433288 | U109: =IF(U$4,'Historic Data'!T189,T109) -> 433288 | V109: =IF(V$4,'Historic Data'!U189,U109) -> 433288
C110: Other Assets | F110: =IF(F$4,'Historic Data'!E190,E110) -> 906 | G110: =IF(G$4,'Historic Data'!F190,F110) -> 286 | H110: =IF(H$4,'Historic Data'!G190,G110) -> 2896 | I110: =IF(I$4,'Historic Data'!H190,H110) -> 0 | J110: =IF(J$4,'Historic Data'!I190,I110) -> 0 | K110: =IF(K$4,'Historic Data'!J190,J110) -> 48217 | L110: =IF(L$4,'Historic Data'!K190,K110) -> 43488 | M110: =IF(M$4,'Historic Data'!L190,L110) -> 43488 | N110: =IF(N$4,'Historic Data'!M190,M110) -> 43488 | O110: =IF(O$4,'Historic Data'!N190,N110) -> 43488 | P110: =IF(P$4,'Historic Data'!O190,O110) -> 43488 | Q110: =IF(Q$4,'Historic Data'!P190,P110) -> 43488 | R110: =IF(R$4,'Historic Data'!Q190,Q110) -> 43488 | S110: =IF(S$4,'Historic Data'!R190,R110) -> 43488 | T110: =IF(T$4,'Historic Data'!S190,S110) -> 43488 | U110: =IF(U$4,'Historic Data'!T190,T110) -> 43488 | V110: =IF(V$4,'Historic Data'!U190,U110) -> 43488
C111: Less: Accrued Liability | F111: =-IF(F$4,'Historic Data'!E202,-E111) -> 0 | G111: =-IF(G$4,'Historic Data'!F202,-F111) -> -917 | H111: =-IF(H$4,'Historic Data'!G202,-G111) -> -3724 | I111: =-IF(I$4,'Historic Data'!H202,-H111) -> -13079 | J111: =-IF(J$4,'Historic Data'!I202,-I111) -> -35238 | K111: =-IF(K$4,'Historic Data'!J202,-J111) -> -92799 | L111: =-IF(L$4,'Historic Data'!K202,-K111) -> -132951 | M111: =-IF(M$4,'Historic Data'!L202,-L111) -> -132951 | N111: =-IF(N$4,'Historic Data'!M202,-M111) -> -132951 | O111: =-IF(O$4,'Historic Data'!N202,-N111) -> -132951 | P111: =-IF(P$4,'Historic Data'!O202,-O111) -> -132951 | Q111: =-IF(Q$4,'Historic Data'!P202,-P111) -> -132951 | R111: =-IF(R$4,'Historic Data'!Q202,-Q111) -> -132951 | S111: =-IF(S$4,'Historic Data'!R202,-R111) -> -132951 | T111: =-IF(T$4,'Historic Data'!S202,-S111) -> -132951 | U111: =-IF(U$4,'Historic Data'!T202,-T111) -> -132951 | V111: =-IF(V$4,'Historic Data'!U202,-U111) -> -132951
C112: Less: Other Liabiilities | F112: =IF(F$4,'Historic Data'!E297,'Time Series Assumptions'!E112) -> 0 | G112: =IF(G$4,'Historic Data'!F297,'Time Series Assumptions'!F112) -> -79 | H112: =IF(H$4,'Historic Data'!G297,'Time Series Assumptions'!G112) -> 0 | I112: =IF(I$4,'Historic Data'!H297,'Time Series Assumptions'!H112) -> -10814 | J112: =IF(J$4,'Historic Data'!I297,'Time Series Assumptions'!I112) -> -20926 | K112: =IF(K$4,'Historic Data'!J297,'Time Series Assumptions'!J112) -> -62600 | L112: =IF(L$4,'Historic Data'!K297,'Time Series Assumptions'!K112) -> -112026 | M112: =IF(M$4,'Historic Data'!L297,'Time Series Assumptions'!L112) -> -112026 | N112: =IF(N$4,'Historic Data'!M297,'Time Series Assumptions'!M112) -> -112026 | O112: =IF(O$4,'Historic Data'!N297,'Time Series Assumptions'!N112) -> -112026 | P112: =IF(P$4,'Historic Data'!O297,'Time Series Assumptions'!O112) -> -112026 | Q112: =IF(Q$4,'Historic Data'!P297,'Time Series Assumptions'!P112) -> -112026 | R112: =IF(R$4,'Historic Data'!Q297,'Time Series Assumptions'!Q112) -> -112026 | S112: =IF(S$4,'Historic Data'!R297,'Time Series Assumptions'!R112) -> -112026 | T112: =IF(T$4,'Historic Data'!S297,'Time Series Assumptions'!S112) -> -112026 | U112: =IF(U$4,'Historic Data'!T297,'Time Series Assumptions'!T112) -> -112026 | V112: =IF(V$4,'Historic Data'!U297,'Time Series Assumptions'!U112) -> -112026
C114: Total Invested Capital Adjustments | F114: =SUM(F106:F112) -> 906 | G114: =SUM(G106:G112) -> -710 | H114: 26687 | I114: 133847 | J114: 79139 | K114: 489023 | L114: 811563 | M114: 811563 | N114: 811563 | O114: 811563 | P114: 811563 | Q114: 811563 | R114: 811563 | S114: 811563 | T114: 811563 | U114: 811563 | V114: 811563
C116: Other Income | F116: =IF(F4,'Historic Data'!E167,'Time Series Assumptions'!E116) -> -137 | G116: =IF(G4,'Historic Data'!F167,'Time Series Assumptions'!F116) -> 56 | H116: =IF(H4,'Historic Data'!G167,'Time Series Assumptions'!G116) -> -799 | I116: =IF(I4,'Historic Data'!H167,'Time Series Assumptions'!H116) -> -1219 | J116: =IF(J4,'Historic Data'!I167,'Time Series Assumptions'!I116) -> -934 | K116: =IF(K4,'Historic Data'!J167,'Time Series Assumptions'!J116) -> -2985 | L116: =IF(L4,'Historic Data'!K167,'Time Series Assumptions'!K116) -> 2273 | M116: =IF(M4,'Historic Data'!L167,'Time Series Assumptions'!L116) -> 2273 | N116: =IF(N4,'Historic Data'!M167,'Time Series Assumptions'!M116) -> 2273 | O116: =IF(O4,'Historic Data'!N167,'Time Series Assumptions'!N116) -> 2273 | P116: =IF(P4,'Historic Data'!O167,'Time Series Assumptions'!O116) -> 2273 | Q116: =IF(Q4,'Historic Data'!P167,'Time Series Assumptions'!P116) -> 2273 | R116: =IF(R4,'Historic Data'!Q167,'Time Series Assumptions'!Q116) -> 2273 | S116: =IF(S4,'Historic Data'!R167,'Time Series Assumptions'!R116) -> 2273 | T116: =IF(T4,'Historic Data'!S167,'Time Series Assumptions'!S116) -> 2273 | U116: =IF(U4,'Historic Data'!T167,'Time Series Assumptions'!T116) -> 2273 | V116: =IF(V4,'Historic Data'!U167,'Time Series Assumptions'!U116) -> 2273
C117: Foreign Exchange Gain | F117: =IF(F3,'Historic Data'!E168,0) -> 116 | G117: =IF(G3,'Historic Data'!F168,0) -> -1715 | H117: =IF(H3,'Historic Data'!G168,0) -> 5544 | I117: =IF(I3,'Historic Data'!H168,0) -> 1881 | J117: =IF(J3,'Historic Data'!I168,0) -> 5722 | K117: =IF(K3,'Historic Data'!J168,0) -> 5207 | L117: =IF(L3,'Historic Data'!K168,0) -> -3468 | M117: =IF(M3,'Historic Data'!L168,0) -> 0 | N117: =IF(N3,'Historic Data'!M168,0) -> 0 | O117: =IF(O3,'Historic Data'!N168,0) -> 0 | P117: =IF(P3,'Historic Data'!O168,0) -> 0 | Q117: =IF(Q3,'Historic Data'!P168,0) -> 0 | R117: =IF(R3,'Historic Data'!Q168,0) -> 0 | S117: =IF(S3,'Historic Data'!R168,0) -> 0 | T117: =IF(T3,'Historic Data'!S168,0) -> 0 | U117: =IF(U3,'Historic Data'!T168,0) -> 0 | V117: =IF(V3,'Historic Data'!U168,0) -> 0
C119: Share Based Compensation | F119: =IF(F4,'Historic Data'!E307,'Time Series Assumptions'!E119) -> 0 | G119: =IF(G4,'Historic Data'!F307,'Time Series Assumptions'!F119) -> 0 | H119: =IF(H4,'Historic Data'!G307,'Time Series Assumptions'!G119) -> 11897 | I119: =IF(I4,'Historic Data'!H307,'Time Series Assumptions'!H119) -> 38965 | J119: =IF(J4,'Historic Data'!I307,'Time Series Assumptions'!I119) -> 58944 | K119: =IF(K4,'Historic Data'!J307,'Time Series Assumptions'!J119) -> 88745 | L119: =IF(L4,'Historic Data'!K307,'Time Series Assumptions'!K119) -> 99622 | M119: =IF(M4,'Historic Data'!L307,'Time Series Assumptions'!L119) -> 99622 | N119: =IF(N4,'Historic Data'!M307,'Time Series Assumptions'!M119) -> 99622 | O119: =IF(O4,'Historic Data'!N307,'Time Series Assumptions'!N119) -> 99622 | P119: =IF(P4,'Historic Data'!O307,'Time Series Assumptions'!O119) -> 99622 | Q119: =IF(Q4,'Historic Data'!P307,'Time Series Assumptions'!P119) -> 99622 | R119: =IF(R4,'Historic Data'!Q307,'Time Series Assumptions'!Q119) -> 99622 | S119: =IF(S4,'Historic Data'!R307,'Time Series Assumptions'!R119) -> 99622 | T119: =IF(T4,'Historic Data'!S307,'Time Series Assumptions'!S119) -> 99622 | U119: =IF(U4,'Historic Data'!T307,'Time Series Assumptions'!T119) -> 99622 | V119: =IF(V4,'Historic Data'!U307,'Time Series Assumptions'!U119) -> 99622
A121: Debt Issues
B123: Debt Issue 1: Fixed Rate Malaysian Issue
C124: Base Debt | F124: =Debt!$C$4 -> 65009 | G124: =Debt!$C$4 -> 65009 | H124: =Debt!$C$4 -> 65009 | I124: =Debt!$C$4 -> 65009 | J124: =Debt!$C$4 -> 65009 | K124: =Debt!$C$4 -> 65009 | L124: =Debt!$C$4 -> 65009 | M124: =Debt!$C$4 -> 65009 | N124: =Debt!$C$4 -> 65009 | O124: =Debt!$C$4 -> 65009 | P124: =Debt!$C$4 -> 65009 | Q124: =Debt!$C$4 -> 65009 | R124: =Debt!$C$4 -> 65009 | S124: =Debt!$C$4 -> 65009 | T124: =Debt!$C$4 -> 65009 | U124: =Debt!$C$4 -> 65009 | V124: =Debt!$C$4 -> 65009
C125: Maturity | F125: 2016 | G125: 2016 | H125: 2016 | I125: 2016 | J125: 2016 | K125: 2016 | L125: 2016 | M125: 2016 | N125: 2016 | O125: 2016 | P125: 2016 | Q125: 2016 | R125: 2016 | S125: 2016 | T125: 2016 | U125: 2016 | V125: 2016
C126: Interest Rate | F126: 0.05 | G126: 0.05 | H126: 0.05 | I126: 0.05 | J126: 0.05 | K126: 0.05 | L126: 0.05 | M126: 0.05 | N126: 0.05 | O126: 0.05 | P126: 0.05 | Q126: 0.05 | R126: 0.05 | S126: 0.05 | T126: 0.05 | U126: 0.05 | V126: 0.05
C127: Repayment Percentage | F127: =(F3=F125)*1 -> 0 | G127: =(G3=G125)*1 -> 0 | H127: 0 | I127: 0 | J127: 0 | K127: 0 | L127: 0 | M127: 0 | N127: 0 | O127: 0 | P127: 0 | Q127: 0 | R127: 1 | S127: 0 | T127: 0 | U127: 0 | V127: 0
B129: Debt Issue 2: Floating Rate Malaysian Isssue
C130: Base Debt | F130: =F124 -> 65009 | G130: =G124 -> 65009 | H130: 65009 | I130: 65009 | J130: 65009 | K130: 65009 | L130: 65009 | M130: 65009 | N130: 65009 | O130: 65009 | P130: 65009 | Q130: 65009 | R130: 65009 | S130: 65009 | T130: 65009 | U130: 65009 | V130: 65009
C131: Maturity | F131: =F125 -> 2016 | G131: =G125 -> 2016 | H131: 2016 | I131: 2016 | J131: 2016 | K131: 2016 | L131: 2016 | M131: 2016 | N131: 2016 | O131: 2016 | P131: 2016 | Q131: 2016 | R131: 2016 | S131: 2016 | T131: 2016 | U131: 2016 | V131: 2016
C132: Interest Rate | F132: 0.015 | G132: 0.015 | H132: 0.015 | I132: 0.015 | J132: 0.015 | K132: 0.015 | L132: 0.015 | M132: 0.015 | N132: 0.015 | O132: 0.015 | P132: 0.015 | Q132: 0.015 | R132: 0.015 | S132: 0.015 | T132: 0.015 | U132: 0.015 | V132: 0.015
C133: Repayment Percentage | F133: =F127 -> 0 | G133: =G127 -> 0 | H133: 0 | I133: 0 | J133: 0 | K133: 0 | L133: 0 | M133: 0 | N133: 0 | O133: 0 | P133: 0 | Q133: 0 | R133: 1 | S133: 0 | T133: 0 | U133: 0 | V133: 0
B135: Debt Issue 3: Other Long-term Debt
C136: Total Long-term Debt | F136: =IF(F4,'Historic Data'!E203+'Historic Data'!E199-F124-F130,'Time Series Assumptions'!E136) -> -116318 | G136: =IF(G4,'Historic Data'!F203+'Historic Data'!F199-G124-G130,'Time Series Assumptions'!F136) -> -101295 | H136: =IF(H4,'Historic Data'!G203+'Historic Data'!G199-H124-H130,'Time Series Assumptions'!G136) -> -65660 | I136: =IF(I4,'Historic Data'!H203+'Historic Data'!H199-I124-I130,'Time Series Assumptions'!H136) -> -46326 | J136: =IF(J4,'Historic Data'!I203+'Historic Data'!I199-J124-J130,'Time Series Assumptions'!I136) -> 68452 | K136: =IF(K4,'Historic Data'!J203+'Historic Data'!J199-K124-K130,'Time Series Assumptions'!J136) -> 44940 | L136: =IF(L4,'Historic Data'!K203+'Historic Data'!K199-L124-L130,'Time Series Assumptions'!K136) -> 107373 | M136: =IF(M4,'Historic Data'!L203+'Historic Data'!L199-M124-M130,'Time Series Assumptions'!L136) -> 107373 | N136: =IF(N4,'Historic Data'!M203+'Historic Data'!M199-N124-N130,'Time Series Assumptions'!M136) -> 107373 | O136: =IF(O4,'Historic Data'!N203+'Historic Data'!N199-O124-O130,'Time Series Assumptions'!N136) -> 107373 | P136: =IF(P4,'Historic Data'!O203+'Historic Data'!O199-P124-P130,'Time Series Assumptions'!O136) -> 107373 | Q136: =IF(Q4,'Historic Data'!P203+'Historic Data'!P199-Q124-Q130,'Time Series Assumptions'!P136) -> 107373 | R136: =IF(R4,'Historic Data'!Q203+'Historic Data'!Q199-R124-R130,'Time Series Assumptions'!Q136) -> 107373 | S136: =IF(S4,'Historic Data'!R203+'Historic Data'!R199-S124-S130,'Time Series Assumptions'!R136) -> 107373 | T136: =IF(T4,'Historic Data'!S203+'Historic Data'!S199-T124-T130,'Time Series Assumptions'!S136) -> 107373 | U136: =IF(U4,'Historic Data'!T203+'Historic Data'!T199-U124-U130,'Time Series Assumptions'!T136) -> 107373 | V136: =IF(V4,'Historic Data'!U203+'Historic Data'!U199-V124-V130,'Time Series Assumptions'!U136) -> 107373
C137: Interest Rate | F137: 0.025 | G137: 0.025 | H137: 0.025 | I137: 0.025 | J137: 0.025 | K137: 0.025 | L137: 0.025 | M137: 0.025 | N137: 0.025 | O137: 0.025 | P137: 0.025 | Q137: 0.025 | R137: 0.025 | S137: 0.025 | T137: 0.025 | U137: 0.025 | V137: 0.025
C138: Repayment Percentage | M138: 0.25 | N138: 0.25 | O138: 0.25 | P138: 0.25 | Q138: 0
B140: Short-term Debt and Marketable Securities
C141: Interest Income Rate | F141: 0.0075 | G141: 0.0075 | H141: 0.0075 | I141: 0.0075 | J141: 0.0075 | K141: 0.0075 | L141: 0.0075 | M141: 0.0075 | N141: 0.0075 | O141: 0.0075 | P141: 0.0075 | Q141: 0.0075 | R141: 0.0075 | S141: 0.0075 | T141: 0.0075 | U141: 0.0075 | V141: 0.0075
C142: Minimum Cash as Percent of Revenues | F142: 0.02 | G142: 0.02 | H142: 0.02 | I142: 0.02 | J142: 0.02 | K142: 0.02 | L142: 0.02 | M142: 0.02 | N142: 0.02 | O142: 0.02 | P142: 0.02 | Q142: 0.02 | R142: 0.02 | S142: 0.02 | T142: 0.02 | U142: 0.02 | V142: 0.02
C143: Short-term Debt Rate | F143: 0.025 | G143: 0.025 | H143: 0.025 | I143: 0.025 | J143: 0.025 | K143: 0.025 | L143: 0.025 | M143: 0.025 | N143: 0.025 | O143: 0.025 | P143: 0.025 | Q143: 0.025 | R143: 0.025 | S143: 0.025 | T143: 0.025 | U143: 0.025 | V143: 0.025
B145: Assumptions for New Share Issues
C146: Future P/E Ratio | F146: 15 | G146: 15 | H146: 15 | I146: 15 | J146: 15 | K146: 15 | L146: 15 | M146: 15 | N146: 15 | O146: 15 | P146: 15 | Q146: 15 | R146: 15 | S146: 15 | T146: 15 | U146: 15 | V146: 15

Sheet Operating Analysis
A1: OPERATING ANALYSIS | F1: =Integrity!D12 -> Model OK
A3: Dates
D4: Start Date | G4: ='Model Time Line'!F39 -> 2005-01-01 | H4: ='Model Time Line'!G39 -> 2006-01-01 | I4: ='Model Time Line'!H39 -> 2007-01-01 | J4: ='Model Time Line'!I39 -> 2008-01-01 | K4: ='Model Time Line'!J39 -> 2009-01-01 | L4: ='Model Time Line'!K39 -> 2010-01-01 | M4: ='Model Time Line'!L39 -> 2011-01-01 | N4: ='Model Time Line'!M39 -> 2012-01-01 | O4: ='Model Time Line'!N39 -> 2012-05-01 | P4: ='Model Time Line'!O39 -> 2013-01-01 | Q4: ='Model Time Line'!P39 -> 2014-01-01 | R4: ='Model Time Line'!Q39 -> 2015-01-01 | S4: ='Model Time Line'!R39 -> 2016-01-01 | T4: ='Model Time Line'!S39 -> 2017-01-01 | U4: ='Model Time Line'!T39 -> 2018-01-01 | V4: ='Model Time Line'!U39 -> 2019-01-01 | W4: ='Model Time Line'!V39 -> 2020-01-01 | X4: ='Model Time Line'!W39 -> 2021-01-01 | Y4: ='Model Time Line'!X39 -> 2022-01-01 | Z4: ='Model Time Line'!Y39 -> 2023-01-01 | AA4: ='Model Time Line'!Z39 -> 2024-01-01 | AB4: ='Model Time Line'!AA39 -> 2025-01-01 | AC4: ='Model Time Line'!AB39 -> 2026-01-01 | AD4: ='Model Time Line'!AC39 -> 2027-01-01 | AE4: ='Model Time Line'!AD39 -> 2028-01-01 | AF4: ='Model Time Line'!AE39 -> 2029-01-01 | AG4: ='Model Time Line'!AF39 -> 2030-01-01 | AH4: ='Model Time Line'!AG39 -> 2031-01-01 | AI4: ='Model Time Line'!AH39 -> 00:00:00 | AJ4: ='Model Time Line'!AI39 -> 00:00:00 | AK4: ='Model Time Line'!AJ39 -> 00:00:00 | AL4: ='Model Time Line'!AK39 -> 00:00:00 | AM4: ='Model Time Line'!AL39 -> 00:00:00 | AN4: ='Model Time Line'!AM39 -> 00:00:00 | AO4: ='Model Time Line'!AN39 -> 00:00:00
D5: End Date | F5: ='Model Time Line'!E40 -> 2004-12-31 | G5: ='Model Time Line'!F40 -> 2005-12-31 | H5: ='Model Time Line'!G40 -> 2006-12-31 | I5: ='Model Time Line'!H40 -> 2007-12-31 | J5: ='Model Time Line'!I40 -> 2008-12-31 | K5: ='Model Time Line'!J40 -> 2009-12-31 | L5: ='Model Time Line'!K40 -> 2010-12-31 | M5: ='Model Time Line'!L40 -> 2011-12-31 | N5: ='Model Time Line'!M40 -> 2012-04-30 | O5: ='Model Time Line'!N40 -> 2012-12-31 | P5: ='Model Time Line'!O40 -> 2013-12-31 | Q5: ='Model Time Line'!P40 -> 2014-12-31 | R5: ='Model Time Line'!Q40 -> 2015-12-31 | S5: ='Model Time Line'!R40 -> 2016-12-31 | T5: ='Model Time Line'!S40 -> 2017-12-31 | U5: ='Model Time Line'!T40 -> 2018-12-31 | V5: ='Model Time Line'!U40 -> 2019-12-31 | W5: ='Model Time Line'!V40 -> 2020-12-31 | X5: ='Model Time Line'!W40 -> 2021-12-31 | Y5: ='Model Time Line'!X40 -> 2022-12-31 | Z5: ='Model Time Line'!Y40 -> 2023-12-31 | AA5: ='Model Time Line'!Z40 -> 2024-12-31 | AB5: ='Model Time Line'!AA40 -> 2025-12-31 | AC5: ='Model Time Line'!AB40 -> 2026-12-31 | AD5: ='Model Time Line'!AC40 -> 2027-12-31 | AE5: ='Model Time Line'!AD40 -> 2028-12-31 | AF5: ='Model Time Line'!AE40 -> 2029-12-31 | AG5: ='Model Time Line'!AF40 -> 2030-12-31 | AH5: ='Model Time Line'!AG40 -> 2031-12-31 | AI5: ='Model Time Line'!AH40 -> 00:00:00 | AJ5: ='Model Time Line'!AI40 -> 00:00:00 | AK5: ='Model Time Line'!AJ40 -> 00:00:00 | AL5: ='Model Time Line'!AK40 -> 00:00:00 | AM5: ='Model Time Line'!AL40 -> 00:00:00 | AN5: ='Model Time Line'!AM40 -> 00:00:00 | AO5: ='Model Time Line'!AN40 -> 00:00:00
D6: Year | F6: =YEAR(F5) -> 2004 | G6: =YEAR(G5) -> 2005 | H6: 2006 | I6: 2007 | J6: 2008 | K6: 2009 | L6: 2010 | M6: 2011 | N6: 2012 | O6: 2012 | P6: 2013 | Q6: 2014 | R6: 2015 | S6: 2016 | T6: 2017 | U6: 2018 | V6: 2019 | W6: 2020 | X6: 2021 | Y6: 2022 | Z6: 2023 | AA6: 2024 | AB6: 2025 | AC6: 2026 | AD6: =YEAR(AD5) -> 2027 | AE6: 2028 | AF6: 2029 | AG6: 2030 | AH6: 2031 | AI6: 1900 | AJ6: 1900 | AK6: 1900 | AL6: 1900 | AM6: 1900 | AN6: 1900 | AO6: 1900
D8: Days per Period 360 | F8: 360 | G8: =DAYS360(G4,G5+1) -> 360 | H8: =DAYS360(H4,H5+1) -> 360 | I8: 360 | J8: 360 | K8: 360 | L8: 360 | M8: 360 | N8: 120 | O8: 240 | P8: 360 | Q8: 360 | R8: 360 | S8: 360 | T8: 360 | U8: 360 | V8: 360 | W8: 360 | X8: 360 | Y8: 360 | Z8: 360 | AA8: 360 | AB8: 360 | AC8: 360 | AD8: =DAYS360(AD4,AD5+1) -> 360 | AE8: 360 | AF8: 360 | AG8: 360 | AH8: 360 | AI8: 1 | AJ8: 1 | AK8: 1 | AL8: 1 | AM8: 1 | AN8: 1 | AO8: 1
D9: Months per Period | F9: 12 | G9: =G8/30 -> 12 | H9: =H8/30 -> 12 | I9: 12 | J9: 12 | K9: 12 | L9: 12 | M9: 12 | N9: 4 | O9: 8 | P9: 12 | Q9: 12 | R9: 12 | S9: 12 | T9: 12 | U9: 12 | V9: 12 | W9: 12 | X9: 12 | Y9: 12 | Z9: 12 | AA9: 12 | AB9: 12 | AC9: 12 | AD9: =AD8/30 -> 12 | AE9: 12 | AF9: 12 | AG9: 12 | AH9: 12 | AI9: 0.03333333333 | AJ9: 0.03333333333 | AK9: 0.03333333333 | AL9: 0.03333333333 | AM9: 0.03333333333 | AN9: 0.03333333333 | AO9: 0.03333333333
D11: Match of Assumption Sheet | F11: =MATCH(F6,'Time Series Assumptions'!3:3) -> 6 | G11: =MATCH(G6,'Time Series Assumptions'!3:3) -> 7 | H11: =MATCH(H6,'Time Series Assumptions'!3:3) -> 8 | I11: =MATCH(I6,'Time Series Assumptions'!3:3) -> 9 | J11: =MATCH(J6,'Time Series Assumptions'!3:3) -> 10 | K11: =MATCH(K6,'Time Series Assumptions'!3:3) -> 11 | L11: =MATCH(L6,'Time Series Assumptions'!3:3) -> 12 | M11: =MATCH(M6,'Time Series Assumptions'!3:3) -> 13 | N11: =MATCH(N6,'Time Series Assumptions'!3:3) -> 14 | O11: =MATCH(O6,'Time Series Assumptions'!3:3) -> 14 | P11: =MATCH(P6,'Time Series Assumptions'!3:3) -> 15 | Q11: =MATCH(Q6,'Time Series Assumptions'!3:3) -> 16 | R11: =MATCH(R6,'Time Series Assumptions'!3:3) -> 17 | S11: =MATCH(S6,'Time Series Assumptions'!3:3) -> 18 | T11: =MATCH(T6,'Time Series Assumptions'!3:3) -> 19 | U11: =MATCH(U6,'Time Series Assumptions'!3:3) -> 20 | V11: =MATCH(V6,'Time Series Assumptions'!3:3) -> 21 | W11: =MATCH(W6,'Time Series Assumptions'!3:3) -> 22 | X11: =MATCH(X6,'Time Series Assumptions'!3:3) -> 23 | Y11: =MATCH(Y6,'Time Series Assumptions'!3:3) -> 24 | Z11: =MATCH(Z6,'Time Series Assumptions'!3:3) -> 25 | AA11: =MATCH(AA6,'Time Series Assumptions'!3:3) -> 26 | AB11: =MATCH(AB6,'Time Series Assumptions'!3:3) -> 27 | AC11: =MATCH(AC6,'Time Series Assumptions'!3:3) -> 28 | AD11: =MATCH(AD6,'Time Series Assumptions'!3:3) -> 29 | AE11: =MATCH(AE6,'Time Series Assumptions'!3:3) -> 30 | AF11: =MATCH(AF6,'Time Series Assumptions'!3:3) -> 31 | AG11: =MATCH(AG6,'Time Series Assumptions'!3:3) -> 32 | AH11: =MATCH(AH6,'Time Series Assumptions'!3:3) -> 33 | AI11: =MATCH(AI6,'Time Series Assumptions'!3:3) ->  | AJ11: =MATCH(AJ6,'Time Series Assumptions'!3:3) ->  | AK11: =MATCH(AK6,'Time Series Assumptions'!3:3) ->  | AL11: =MATCH(AL6,'Time Series Assumptions'!3:3) ->  | AM11: =MATCH(AM6,'Time Series Assumptions'!3:3) ->  | AN11: =MATCH(AN6,'Time Series Assumptions'!3:3) ->  | AO11: =MATCH(AO6,'Time Series Assumptions'!3:3) -> 
D12: Match of Historic Sheet | F12: =MATCH(F6,'Historic Data'!3:3,0) -> 5 | G12: =MATCH(G6,'Historic Data'!3:3,0) -> 6 | H12: =MATCH(H6,'Historic Data'!3:3,0) -> 7 | I12: =MATCH(I6,'Historic Data'!3:3,0) -> 8 | J12: =MATCH(J6,'Historic Data'!3:3,0) -> 9 | K12: =MATCH(K6,'Historic Data'!3:3,0) -> 10 | L12: =MATCH(L6,'Historic Data'!3:3,0) -> 11 | M12: =MATCH(M6,'Historic Data'!3:3,0) ->  | N12: =MATCH(N6,'Historic Data'!3:3,0) ->  | O12: =MATCH(O6,'Historic Data'!3:3,0) ->  | P12: =MATCH(P6,'Historic Data'!3:3,0) ->  | Q12: =MATCH(Q6,'Historic Data'!3:3,0) ->  | R12: =MATCH(R6,'Historic Data'!3:3,0) ->  | S12: =MATCH(S6,'Historic Data'!3:3,0) ->  | T12: =MATCH(T6,'Historic Data'!3:3,0) ->  | U12: =MATCH(U6,'Historic Data'!3:3,0) ->  | V12: =MATCH(V6,'Historic Data'!3:3,0) ->  | W12: =MATCH(W6,'Historic Data'!3:3,0) -> 
D13: Historic Period | F13: =INDEX('Time Series Assumptions'!4:4,'Operating Analysis'!F11) -> TRUE | G13: =INDEX('Time Series Assumptions'!4:4,'Operating Analysis'!G11) -> TRUE | H13: =INDEX('Time Series Assumptions'!4:4,'Operating Analysis'!H11) -> TRUE | I13: =INDEX('Time Series Assumptions'!4:4,'Operating Analysis'!I11) -> TRUE | J13: =INDEX('Time Series Assumptions'!4:4,'Operating Analysis'!J11) -> TRUE | K13: =INDEX('Time Series Assumptions'!4:4,'Operating Analysis'!K11) -> TRUE | L13: =INDEX('Time Series Assumptions'!4:4,'Operating Analysis'!L11) -> TRUE | M13: =INDEX('Time Series Assumptions'!4:4,'Operating Analysis'!M11) -> FALSE | N13: =INDEX('Time Series Assumptions'!4:4,'Operating Analysis'!N11) -> FALSE | O13: =INDEX('Time Series Assumptions'!4:4,'Operating Analysis'!O11) -> FALSE | P13: =INDEX('Time Series Assumptions'!4:4,'Operating Analysis'!P11) -> FALSE | Q13: =INDEX('Time Series Assumptions'!4:4,'Operating Analysis'!Q11) -> FALSE | R13: =INDEX('Time Series Assumptions'!4:4,'Operating Analysis'!R11) -> FALSE | S13: =INDEX('Time Series Assumptions'!4:4,'Operating Analysis'!S11) -> FALSE | T13: =INDEX('Time Series Assumptions'!4:4,'Operating Analysis'!T11) -> FALSE | U13: =INDEX('Time Series Assumptions'!4:4,'Operating Analysis'!U11) -> FALSE | V13: =INDEX('Time Series Assumptions'!4:4,'Operating Analysis'!V11) -> FALSE | W13: =INDEX('Time Series Assumptions'!4:4,'Operating Analysis'!W11) -> FALSE
D14: Explicit Period | F14: ='Model Time Line'!E48 -> FALSE | G14: ='Model Time Line'!F48 -> FALSE | H14: ='Model Time Line'!G48 -> FALSE | I14: ='Model Time Line'!H48 -> FALSE | J14: ='Model Time Line'!I48 -> FALSE | K14: ='Model Time Line'!J48 -> FALSE | L14: ='Model Time Line'!K48 -> FALSE | M14: ='Model Time Line'!L48 -> FALSE | N14: ='Model Time Line'!M48 -> FALSE | O14: ='Model Time Line'!N48 -> TRUE | P14: ='Model Time Line'!O48 -> TRUE | Q14: ='Model Time Line'!P48 -> TRUE | R14: ='Model Time Line'!Q48 -> TRUE | S14: ='Model Time Line'!R48 -> TRUE | T14: ='Model Time Line'!S48 -> TRUE | U14: ='Model Time Line'!T48 -> TRUE | V14: ='Model Time Line'!U48 -> FALSE | W14: ='Model Time Line'!V48 -> FALSE
D15: Stable Period | F15: ='Model Time Line'!E49 -> FALSE | G15: ='Model Time Line'!F49 -> FALSE | H15: ='Model Time Line'!G49 -> FALSE | I15: ='Model Time Line'!H49 -> FALSE | J15: ='Model Time Line'!I49 -> FALSE | K15: ='Model Time Line'!J49 -> FALSE | L15: ='Model Time Line'!K49 -> FALSE | M15: ='Model Time Line'!L49 -> FALSE | N15: ='Model Time Line'!M49 -> FALSE | O15: ='Model Time Line'!N49 -> FALSE | P15: ='Model Time Line'!O49 -> FALSE | Q15: ='Model Time Line'!P49 -> FALSE | R15: ='Model Time Line'!Q49 -> FALSE | S15: ='Model Time Line'!R49 -> FALSE | T15: ='Model Time Line'!S49 -> FALSE | U15: ='Model Time Line'!T49 -> FALSE | V15: ='Model Time Line'!U49 -> TRUE | W15: ='Model Time Line'!V49 -> FALSE
D16: End of Year | F16: =MONTH(F5)=12 -> TRUE | G16: =MONTH(G5)=12 -> TRUE | H16: TRUE | I16: TRUE | J16: TRUE | K16: TRUE | L16: TRUE | M16: TRUE | N16: FALSE | O16: TRUE | P16: TRUE | Q16: TRUE | R16: TRUE | S16: TRUE | T16: TRUE | U16: TRUE | V16: TRUE | W16: TRUE
A18: Working Analysis of Revenues, Expenses and Capital Expenditures
B20: Revenues
C21: Annual Demand | E21: MW | H21: =INDEX('Time Series Assumptions'!45:45,'Operating Analysis'!H11) -> 60 | I21: =INDEX('Time Series Assumptions'!45:45,'Operating Analysis'!I11) -> 206 | J21: =INDEX('Time Series Assumptions'!45:45,'Operating Analysis'!J11) -> 504 | K21: =INDEX('Time Series Assumptions'!45:45,'Operating Analysis'!K11) -> 1113 | L21: =INDEX('Time Series Assumptions'!45:45,'Operating Analysis'!L11) -> 1412 | M21: =INDEX('Time Series Assumptions'!45:45,'Operating Analysis'!M11) -> 1500 | N21: =INDEX('Time Series Assumptions'!45:45,'Operating Analysis'!N11) -> 1911.179487 | O21: =INDEX('Time Series Assumptions'!45:45,'Operating Analysis'!O11) -> 1911.179487 | P21: =INDEX('Time Series Assumptions'!45:45,'Operating Analysis'!P11) -> 2197.85641 | Q21: =INDEX('Time Series Assumptions'!45:45,'Operating Analysis'!Q11) -> 2527.534872 | R21: =INDEX('Time Series Assumptions'!45:45,'Operating Analysis'!R11) -> 2906.665103 | S21: =INDEX('Time Series Assumptions'!45:45,'Operating Analysis'!S11) -> 3197.331613 | T21: =INDEX('Time Series Assumptions'!45:45,'Operating Analysis'!T11) -> 3517.064774 | U21: =INDEX('Time Series Assumptions'!45:45,'Operating Analysis'!U11) -> 3868.771252 | V21: =INDEX('Time Series Assumptions'!45:45,'Operating Analysis'!V11) -> 4255.648377 | W21: =INDEX('Time Series Assumptions'!45:45,'Operating Analysis'!W11) -> 4681.213214 | X21: =INDEX('Time Series Assumptions'!45:45,'Operating Analysis'!X11) -> 0 | Y21: =INDEX('Time Series Assumptions'!45:45,'Operating Analysis'!Y11) -> 0 | Z21: =INDEX('Time Series Assumptions'!45:45,'Operating Analysis'!Z11) -> 0 | AA21: =INDEX('Time Series Assumptions'!45:45,'Operating Analysis'!AA11) -> 0 | AB21: =INDEX('Time Series Assumptions'!45:45,'Operating Analysis'!AB11) -> 0 | AC21: =INDEX('Time Series Assumptions'!45:45,'Operating Analysis'!AC11) -> 0 | AD21: =INDEX('Time Series Assumptions'!45:45,'Operating Analysis'!AD11) -> 0 | AE21: =INDEX('Time Series Assumptions'!45:45,'Operating Analysis'!AE11) -> 0 | AF21: =INDEX('Time Series Assumptions'!45:45,'Operating Analysis'!AF11) -> 0 | AG21: =INDEX('Time Series Assumptions'!45:45,'Operating Analysis'!AG11) -> 0 | AH21: =INDEX('Time Series Assumptions'!45:45,'Operating Analysis'!AH11) -> 0 | AI21: =INDEX('Time Series Assumptions'!45:45,'Operating Analysis'!AI11) ->  | AJ21: =INDEX('Time Series Assumptions'!45:45,'Operating Analysis'!AJ11) ->  | AK21: =INDEX('Time Series Assumptions'!45:45,'Operating Analysis'!AK11) ->  | AL21: =INDEX('Time Series Assumptions'!45:45,'Operating Analysis'!AL11) ->  | AM21: =INDEX('Time Series Assumptions'!45:45,'Operating Analysis'!AM11) ->  | AN21: =INDEX('Time Series Assumptions'!45:45,'Operating Analysis'!AN11) ->  | AO21: =INDEX('Time Series Assumptions'!45:45,'Operating Analysis'!AO11) -> 
C22: Partial Year Demand | E22: MW | H22: =H21*H9/12 -> 60 | I22: 206 | J22: 504 | K22: 1113 | L22: 1412 | M22: 1500 | N22: 637.0598291 | O22: 1274.119658 | P22: 2197.85641 | Q22: 2527.534872 | R22: 2906.665103 | S22: 3197.331613 | T22: 3517.064774 | U22: 3868.771252 | V22: 4255.648377 | W22: 4681.213214 | X22: 0 | Y22: 0 | Z22: 0 | AA22: 0 | AB22: 0 | AC22: 0 | AD22: 0 | AE22: 0 | AF22: 0 | AG22: 0 | AH22: 0
C24: Annual Price Increase | E24: Percent | H24: =INDEX('Time Series Assumptions'!57:57,'Operating Analysis'!H11) -> 0 | I24: =INDEX('Time Series Assumptions'!57:57,'Operating Analysis'!I11) -> 0.08753631228 | J24: =INDEX('Time Series Assumptions'!57:57,'Operating Analysis'!J11) -> 0.01076401566 | K24: =INDEX('Time Series Assumptions'!57:57,'Operating Analysis'!K11) -> -0.2492682459 | L24: =INDEX('Time Series Assumptions'!57:57,'Operating Analysis'!L11) -> -0.02203351125 | M24: =INDEX('Time Series Assumptions'!57:57,'Operating Analysis'!M11) -> 0.02 | N24: =INDEX('Time Series Assumptions'!57:57,'Operating Analysis'!N11) -> -0.25 | O24: =INDEX('Time Series Assumptions'!57:57,'Operating Analysis'!O11) -> -0.25 | P24: =INDEX('Time Series Assumptions'!57:57,'Operating Analysis'!P11) -> -0.1 | Q24: =INDEX('Time Series Assumptions'!57:57,'Operating Analysis'!Q11) -> -0.05 | R24: =INDEX('Time Series Assumptions'!57:57,'Operating Analysis'!R11) -> -0.05 | S24: =INDEX('Time Series Assumptions'!57:57,'Operating Analysis'!S11) -> -0.02 | T24: =INDEX('Time Series Assumptions'!57:57,'Operating Analysis'!T11) -> -0.02 | U24: =INDEX('Time Series Assumptions'!57:57,'Operating Analysis'!U11) -> -0.02 | V24: =INDEX('Time Series Assumptions'!57:57,'Operating Analysis'!V11) -> -0.02 | W24: =INDEX('Time Series Assumptions'!57:57,'Operating Analysis'!W11) -> -0.02 | X24: =INDEX('Time Series Assumptions'!57:57,'Operating Analysis'!X11) -> 0 | Y24: =INDEX('Time Series Assumptions'!57:57,'Operating Analysis'!Y11) -> 0 | Z24: =INDEX('Time Series Assumptions'!57:57,'Operating Analysis'!Z11) -> 0 | AA24: =INDEX('Time Series Assumptions'!57:57,'Operating Analysis'!AA11) -> 0 | AB24: =INDEX('Time Series Assumptions'!57:57,'Operating Analysis'!AB11) -> 0 | AC24: =INDEX('Time Series Assumptions'!57:57,'Operating Analysis'!AC11) -> 0 | AD24: =INDEX('Time Series Assumptions'!57:57,'Operating Analysis'!AD11) -> 0 | AE24: =INDEX('Time Series Assumptions'!57:57,'Operating Analysis'!AE11) -> 0 | AF24: =INDEX('Time Series Assumptions'!57:57,'Operating Analysis'!AF11) -> 0 | AG24: =INDEX('Time Series Assumptions'!57:57,'Operating Analysis'!AG11) -> 0 | AH24: =INDEX('Time Series Assumptions'!57:57,'Operating Analysis'!AH11) -> 0 | AI24: =INDEX('Time Series Assumptions'!57:57,'Operating Analysis'!AI11) ->  | AJ24: =INDEX('Time Series Assumptions'!57:57,'Operating Analysis'!AJ11) ->  | AK24: =INDEX('Time Series Assumptions'!57:57,'Operating Analysis'!AK11) ->  | AL24: =INDEX('Time Series Assumptions'!57:57,'Operating Analysis'!AL11) ->  | AM24: =INDEX('Time Series Assumptions'!57:57,'Operating Analysis'!AM11) ->  | AN24: =INDEX('Time Series Assumptions'!57:57,'Operating Analysis'!AN11) ->  | AO24: =INDEX('Time Series Assumptions'!57:57,'Operating Analysis'!AO11) -> 
C25: Periodic Price Increase | E25: Percent | H25: =(1+H24)^(H9/12)-1 -> 0 | I25: 0.08753631228 | J25: 0.01076401566 | K25: -0.2492682459 | L25: -0.02203351125 | M25: 0.02 | N25: -0.09143970358 | O25: -0.1745181878 | P25: -0.1 | Q25: -0.05 | R25: -0.05 | S25: -0.02 | T25: -0.02 | U25: -0.02 | V25: -0.02 | W25: -0.02 | X25: 0 | Y25: 0 | Z25: 0 | AA25: 0 | AB25: 0 | AC25: 0 | AD25: 0 | AE25: 0 | AF25: 0 | AG25: 0 | AH25: 0
C26: Price | E26: USD/kW | H26: =INDEX('Time Series Assumptions'!58:58,'Operating Analysis'!H11) -> 2249.566667 | I26: =H26*(1+I25) -> 2446.485437 | J26: =I26*(1+J25) -> 2472.819444 | K26: 1856.424079 | L26: 1815.520538 | M26: 1851.830949 | N26: 1682.500076 | O26: 1388.873212 | P26: 1249.985891 | Q26: 1187.486596 | R26: 1128.112266 | S26: 1105.550021 | T26: 1083.439021 | U26: 1061.77024 | V26: 1040.534835 | W26: 1019.724139 | X26: 1019.724139 | Y26: 1019.724139 | Z26: 1019.724139 | AA26: 1019.724139 | AB26: 1019.724139 | AC26: 1019.724139 | AD26: 1019.724139 | AE26: 1019.724139 | AF26: 1019.724139 | AG26: 1019.724139 | AH26: 1019.724139
D27: Revenues | E27: USD 000's | F27: =IF(F13,INDEX('Historic Data'!56:56,F12),F26*F22) -> 13522 | G27: =IF(G13,INDEX('Historic Data'!56:56,G12),G26*G22) -> 48063 | H27: =IF(H13,INDEX('Historic Data'!56:56,H12),H26*H22) -> 134974 | I27: =IF(I13,INDEX('Historic Data'!56:56,I12),I26*I22) -> 503976 | J27: =IF(J13,INDEX('Historic Data'!56:56,J12),J26*J22) -> 1246301 | K27: =IF(K13,INDEX('Historic Data'!56:56,K12),K26*K22) -> 2066200 | L27: =IF(L13,INDEX('Historic Data'!56:56,L12),L26*L22) -> 2563515 | M27: =IF(M13,INDEX('Historic Data'!56:56,M12),M26*M22) -> 2777746.424 | N27: =IF(N13,INDEX('Historic Data'!56:56,N12),N26*N22) -> 1071853.211 | O27: =IF(O13,INDEX('Historic Data'!56:56,O12),O26*O22) -> 1769590.662 | P27: =IF(P13,INDEX('Historic Data'!56:56,P12),P26*P22) -> 2747289.502 | Q27: =IF(Q13,INDEX('Historic Data'!56:56,Q12),Q26*Q22) -> 3001413.781 | R27: =IF(R13,INDEX('Historic Data'!56:56,R12),R26*R22) -> 3279044.556 | S27: =IF(S13,INDEX('Historic Data'!56:56,S12),S26*S22) -> 3534810.031 | T27: =IF(T13,INDEX('Historic Data'!56:56,T12),T26*T22) -> 3810525.214 | U27: =IF(U13,INDEX('Historic Data'!56:56,U12),U26*U22) -> 4107746.181 | V27: =IF(V13,INDEX('Historic Data'!56:56,V12),V26*V22) -> 4428150.383 | W27: =IF(W13,INDEX('Historic Data'!56:56,W12),W26*W22) -> 4773546.113 | X27: =X26*X22 -> 0 | Y27: 0 | Z27: 0 | AA27: 0 | AB27: 0 | AC27: 0 | AD27: 0 | AE27: 0 | AF27: 0 | AG27: 0 | AH27: 0
B30: Capital Expenditures
C31: Annual Capacity Percent Increase | E31: Percent | H31: =INDEX('Time Series Assumptions'!37:37,'Operating Analysis'!H11) -> 3 | I31: =INDEX('Time Series Assumptions'!37:37,'Operating Analysis'!I11) -> 2.08 | J31: =INDEX('Time Series Assumptions'!37:37,'Operating Analysis'!J11) -> 1.324675325 | K31: =INDEX('Time Series Assumptions'!37:37,'Operating Analysis'!K11) -> 0.7150837989 | L31: =INDEX('Time Series Assumptions'!37:37,'Operating Analysis'!L11) -> 0.2231270358 | M31: =INDEX('Time Series Assumptions'!37:37,'Operating Analysis'!M11) -> 0.5119840213 | N31: =INDEX('Time Series Assumptions'!37:37,'Operating Analysis'!N11) -> 0.2329370321 | O31: =INDEX('Time Series Assumptions'!37:37,'Operating Analysis'!O11) -> 0.2329370321 | P31: =INDEX('Time Series Assumptions'!37:37,'Operating Analysis'!P11) -> 0.1 | Q31: =INDEX('Time Series Assumptions'!37:37,'Operating Analysis'!Q11) -> 0.1 | R31: =INDEX('Time Series Assumptions'!37:37,'Operating Analysis'!R11) -> 0.1 | S31: =INDEX('Time Series Assumptions'!37:37,'Operating Analysis'!S11) -> 0.1 | T31: =INDEX('Time Series Assumptions'!37:37,'Operating Analysis'!T11) -> 0.1 | U31: =INDEX('Time Series Assumptions'!37:37,'Operating Analysis'!U11) -> 0.1 | V31: =INDEX('Time Series Assumptions'!37:37,'Operating Analysis'!V11) -> 0.1 | W31: =INDEX('Time Series Assumptions'!37:37,'Operating Analysis'!W11) -> 0.1
C32: Partial Capacity Percent Incease | E32: Percent | H32: =(1+H31)^(H9/12)-1 -> 3 | I32: =(1+I31)^(I9/12)-1 -> 2.08 | J32: 1.324675325 | K32: 0.7150837989 | L32: 0.2231270358 | M32: 0.5119840213 | N32: 0.0722933987 | O32: 0.1498131329 | P32: 0.1 | Q32: 0.1 | R32: 0.1 | S32: 0.1 | T32: 0.1 | U32: 0.1 | V32: 0.1 | W32: 0.1
C33: Annual Capacity | E33: MW | G33: =INDEX('Time Series Assumptions'!38:38,'Operating Analysis'!G11) -> 25 | H33: =G33*(1+H32) -> 100 | I33: =H33*(1+I32) -> 308 | J33: 716 | K33: 1228 | L33: 1502 | M33: 2271 | N33: 2435.178308 | O33: 2800 | P33: 3080 | Q33: 3388 | R33: 3726.8 | S33: 4099.48 | T33: 4509.428 | U33: 4960.3708 | V33: 5456.40788 | W33: 6002.048668
C34: Increase in Capacity | E34: MW | H34: =H33-G33 -> 75 | I34: =I33-H33 -> 208 | J34: 408 | K34: 512 | L34: 274 | M34: 769 | N34: 164.1783084 | O34: 364.8216916 | P34: 280 | Q34: 308 | R34: 338.8 | S34: 372.68 | T34: 409.948 | U34: 450.9428 | V34: 496.03708 | W34: 545.640788
C35: Partial Year Increase in Capacity | E35: MW | H35: =H34 -> 75 | I35: =I34 -> 208 | J35: 408 | K35: 512 | L35: 274 | M35: 769 | N35: 164.1783084 | O35: 364.8216916 | P35: 280 | Q35: 308 | R35: 338.8 | S35: 372.68 | T35: 409.948 | U35: 450.9428 | V35: 496.03708 | W35: 545.640788
C37: Cost per MW of New Capacity | E37: USD/kW | G37: =INDEX('Time Series Assumptions'!78:78,'Operating Analysis'!G11) -> 0 | H37: =INDEX('Time Series Assumptions'!78:78,'Operating Analysis'!H11) -> 2042 | I37: =INDEX('Time Series Assumptions'!78:78,'Operating Analysis'!I11) -> 1165.245192 | J37: =INDEX('Time Series Assumptions'!78:78,'Operating Analysis'!J11) -> 1125.664216 | K37: =INDEX('Time Series Assumptions'!78:78,'Operating Analysis'!K11) -> 546.7597656 | L37: =INDEX('Time Series Assumptions'!78:78,'Operating Analysis'!L11) -> 2149.321168 | M37: =INDEX('Time Series Assumptions'!78:78,'Operating Analysis'!M11) -> 975.2925878 | N37: =INDEX('Time Series Assumptions'!78:78,'Operating Analysis'!N11) -> 1200 | O37: =INDEX('Time Series Assumptions'!78:78,'Operating Analysis'!O11) -> 1200 | P37: =INDEX('Time Series Assumptions'!78:78,'Operating Analysis'!P11) -> 1200 | Q37: =INDEX('Time Series Assumptions'!78:78,'Operating Analysis'!Q11) -> 1200 | R37: =INDEX('Time Series Assumptions'!78:78,'Operating Analysis'!R11) -> 1200 | S37: =INDEX('Time Series Assumptions'!78:78,'Operating Analysis'!S11) -> 1200 | T37: =INDEX('Time Series Assumptions'!78:78,'Operating Analysis'!T11) -> 1200 | U37: =INDEX('Time Series Assumptions'!78:78,'Operating Analysis'!U11) -> 1200 | V37: =INDEX('Time Series Assumptions'!78:78,'Operating Analysis'!V11) -> 1200 | W37: =INDEX('Time Series Assumptions'!78:78,'Operating Analysis'!W11) -> 1200
C38: Capital Expenditures for New Capacity | E38: USD 000's | G38: =G37*G35 -> 0 | H38: =H37*H35 -> 153150 | I38: 242371 | J38: 459271 | K38: 279941 | L38: 588914 | M38: 750000 | N38: 197013.9701 | O38: 437786.0299 | P38: 336000 | Q38: 369600 | R38: 406560 | S38: 447216 | T38: 491937.6 | U38: 541131.36 | V38: 595244.496 | W38: 654768.9456
C40: Cost per kW for Maintenance Capital Expenditures | E40: USD/kW | F40: =INDEX('Time Series Assumptions'!79:79,'Operating Analysis'!F11) -> 0 | G40: =INDEX('Time Series Assumptions'!79:79,'Operating Analysis'!G11) -> 0 | H40: =INDEX('Time Series Assumptions'!79:79,'Operating Analysis'!H11) -> 0 | I40: =INDEX('Time Series Assumptions'!79:79,'Operating Analysis'!I11) -> 0 | J40: =INDEX('Time Series Assumptions'!79:79,'Operating Analysis'!J11) -> 0 | K40: =INDEX('Time Series Assumptions'!79:79,'Operating Analysis'!K11) -> 0 | L40: =INDEX('Time Series Assumptions'!79:79,'Operating Analysis'!L11) -> 0 | M40: =INDEX('Time Series Assumptions'!79:79,'Operating Analysis'!M11) -> 0 | N40: =INDEX('Time Series Assumptions'!79:79,'Operating Analysis'!N11) -> 0 | O40: =INDEX('Time Series Assumptions'!79:79,'Operating Analysis'!O11) -> 0 | P40: =INDEX('Time Series Assumptions'!79:79,'Operating Analysis'!P11) -> 0 | Q40: =INDEX('Time Series Assumptions'!79:79,'Operating Analysis'!Q11) -> 0 | R40: =INDEX('Time Series Assumptions'!79:79,'Operating Analysis'!R11) -> 0 | S40: =INDEX('Time Series Assumptions'!79:79,'Operating Analysis'!S11) -> 0 | T40: =INDEX('Time Series Assumptions'!79:79,'Operating Analysis'!T11) -> 0 | U40: =INDEX('Time Series Assumptions'!79:79,'Operating Analysis'!U11) -> 0 | V40: =INDEX('Time Series Assumptions'!79:79,'Operating Analysis'!V11) -> 0 | W40: =INDEX('Time Series Assumptions'!79:79,'Operating Analysis'!W11) -> 0
C41: Total MW of Capacity | E41: MW | F41: =F33 -> 0 | G41: =G33 -> 25 | H41: 100 | I41: 308 | J41: 716 | K41: 1228 | L41: 1502 | M41: 2271 | N41: 2435.178308 | O41: 2800 | P41: 3080 | Q41: 3388 | R41: 3726.8 | S41: 4099.48 | T41: 4509.428 | U41: 4960.3708 | V41: 5456.40788 | W41: 6002.048668
C42: Maintenance Capital Expenditures | E42: USD 000's | F42: =F41*F40 -> 0 | G42: =G41*G40 -> 0 | H42: 0 | I42: 0 | J42: 0 | K42: 0 | L42: 0 | M42: 0 | N42: 0 | O42: 0 | P42: 0 | Q42: 0 | R42: 0 | S42: 0 | T42: 0 | U42: 0 | V42: 0 | W42: 0
C44: Total Capital Expenditures | E44: USD 000's | F44: =F38+F42 -> 0 | G44: =G38+G42 -> 0 | H44: 153150 | I44: 242371 | J44: 459271 | K44: 279941 | L44: 588914 | M44: 750000 | N44: 197013.9701 | O44: 437786.0299 | P44: 336000 | Q44: 369600 | R44: 406560 | S44: 447216 | T44: 491937.6 | U44: 541131.36 | V44: 595244.496 | W44: 654768.9456
B46: Operating Expenses
C47: Patial Year Demand | E47: MW | G47: =G22 -> 0 | H47: 60 | I47: 206 | J47: 504 | K47: 1113 | L47: 1412 | M47: 1500 | N47: 637.0598291 | O47: 1274.119658 | P47: 2197.85641 | Q47: 2527.534872 | R47: 2906.665103 | S47: 3197.331613 | T47: 3517.064774 | U47: 3868.771252 | V47: 4255.648377 | W47: 4681.213214 | X47: 0 | Y47: 0 | Z47: 0 | AA47: 0 | AB47: 0 | AC47: 0 | AD47: 0 | AE47: 0 | AF47: 0 | AG47: 0 | AH47: 0
C48: Annual Cost Increase Percent | E48: Percent | G48: =INDEX('Time Series Assumptions'!70:70,'Operating Analysis'!G11) -> 0 | H48: =INDEX('Time Series Assumptions'!70:70,'Operating Analysis'!H11) -> 0 | I48: =INDEX('Time Series Assumptions'!70:70,'Operating Analysis'!I11) -> -0.05793302458 | J48: =INDEX('Time Series Assumptions'!70:70,'Operating Analysis'!J11) -> -0.09316064751 | K48: =INDEX('Time Series Assumptions'!70:70,'Operating Analysis'!K11) -> -0.2028373285 | L48: =INDEX('Time Series Assumptions'!70:70,'Operating Analysis'!L11) -> 0.07202998303 | M48: =INDEX('Time Series Assumptions'!70:70,'Operating Analysis'!M11) -> -0.05 | N48: =INDEX('Time Series Assumptions'!70:70,'Operating Analysis'!N11) -> -0.05 | O48: =INDEX('Time Series Assumptions'!70:70,'Operating Analysis'!O11) -> -0.05 | P48: =INDEX('Time Series Assumptions'!70:70,'Operating Analysis'!P11) -> -0.05 | Q48: =INDEX('Time Series Assumptions'!70:70,'Operating Analysis'!Q11) -> -0.05 | R48: =INDEX('Time Series Assumptions'!70:70,'Operating Analysis'!R11) -> -0.05 | S48: =INDEX('Time Series Assumptions'!70:70,'Operating Analysis'!S11) -> -0.02 | T48: =INDEX('Time Series Assumptions'!70:70,'Operating Analysis'!T11) -> 0 | U48: =INDEX('Time Series Assumptions'!70:70,'Operating Analysis'!U11) -> 0 | V48: =INDEX('Time Series Assumptions'!70:70,'Operating Analysis'!V11) -> 0 | W48: =INDEX('Time Series Assumptions'!70:70,'Operating Analysis'!W11) -> 0 | X48: =INDEX('Time Series Assumptions'!70:70,'Operating Analysis'!X11) -> 0 | Y48: =INDEX('Time Series Assumptions'!70:70,'Operating Analysis'!Y11) -> 0 | Z48: =INDEX('Time Series Assumptions'!70:70,'Operating Analysis'!Z11) -> 0 | AA48: =INDEX('Time Series Assumptions'!70:70,'Operating Analysis'!AA11) -> 0 | AB48: =INDEX('Time Series Assumptions'!70:70,'Operating Analysis'!AB11) -> 0 | AC48: =INDEX('Time Series Assumptions'!70:70,'Operating Analysis'!AC11) -> 0 | AD48: =INDEX('Time Series Assumptions'!70:70,'Operating Analysis'!AD11) -> 0 | AE48: =INDEX('Time Series Assumptions'!70:70,'Operating Analysis'!AE11) -> 0 | AF48: =INDEX('Time Series Assumptions'!70:70,'Operating Analysis'!AF11) -> 0 | AG48: =INDEX('Time Series Assumptions'!70:70,'Operating Analysis'!AG11) -> 0 | AH48: =INDEX('Time Series Assumptions'!70:70,'Operating Analysis'!AH11) -> 0 | AI48: =INDEX('Time Series Assumptions'!70:70,'Operating Analysis'!AI11) ->  | AJ48: =INDEX('Time Series Assumptions'!70:70,'Operating Analysis'!AJ11) ->  | AK48: =INDEX('Time Series Assumptions'!70:70,'Operating Analysis'!AK11) ->  | AL48: =INDEX('Time Series Assumptions'!70:70,'Operating Analysis'!AL11) ->  | AM48: =INDEX('Time Series Assumptions'!70:70,'Operating Analysis'!AM11) ->  | AN48: =INDEX('Time Series Assumptions'!70:70,'Operating Analysis'!AN11) ->  | AO48: =INDEX('Time Series Assumptions'!70:70,'Operating Analysis'!AO11) -> 
C49: Periodic Cost Increase Percent | E49: Percent | G49: =(1+G48)^(G9/12)-1 -> 0 | H49: 0 | I49: -0.05793302458 | J49: -0.09316064751 | K49: -0.2028373285 | L49: 0.07202998303 | M49: -0.05 | N49: -0.01695242751 | O49: -0.03361747022 | P49: -0.05 | Q49: -0.05 | R49: -0.05 | S49: -0.02 | T49: 0 | U49: 0 | V49: 0 | W49: 0 | X49: 0 | Y49: 0 | Z49: 0 | AA49: 0 | AB49: 0 | AC49: 0 | AD49: 0 | AE49: 0 | AF49: 0 | AG49: 0 | AH49: 0
C50: Cost of Goods Sold per kW | E50: USD/kW | H50: ='Time Series Assumptions'!H71 -> 1175.333333 | I50: =H50*(1+I49) -> 1107.242718 | J50: =I50*(1+J49) -> 1004.09127 | K50: 800.4240791 | L50: 858.0786119 | M50: 815.1746813 | N50: 801.3554916 | O50: 774.4159472 | P50: 735.6951499 | Q50: 698.9103924 | R50: 663.9648728 | S50: 650.6855753 | T50: 650.6855753 | U50: 650.6855753 | V50: 650.6855753 | W50: 650.6855753 | X50: 650.6855753 | Y50: 650.6855753 | Z50: 650.6855753 | AA50: 650.6855753 | AB50: 650.6855753 | AC50: 650.6855753 | AD50: 650.6855753 | AE50: 650.6855753 | AF50: 650.6855753 | AG50: 650.6855753 | AH50: 650.6855753
C51: Total Cost of Goods Sold | E51: USD 000's | F51: =IF(F13,INDEX('Historic Data'!158:158,'Operating Analysis'!F12),E51*(1+F49)) -> 18851 | G51: =IF(G13,INDEX('Historic Data'!158:158,'Operating Analysis'!G12),G50*G47) -> 31483 | H51: =IF(H13,INDEX('Historic Data'!158:158,'Operating Analysis'!H12),H50*H47) -> 70520 | I51: =IF(I13,INDEX('Historic Data'!158:158,'Operating Analysis'!I12),I50*I47) -> 228092 | J51: =IF(J13,INDEX('Historic Data'!158:158,'Operating Analysis'!J12),J50*J47) -> 506062 | K51: =IF(K13,INDEX('Historic Data'!158:158,'Operating Analysis'!K12),K50*K47) -> 890872 | L51: =IF(L13,INDEX('Historic Data'!158:158,'Operating Analysis'!L12),L50*L47) -> 1211607 | M51: =IF(M13,INDEX('Historic Data'!158:158,'Operating Analysis'!M12),M50*M47) -> 1222762.022 | N51: =IF(N13,INDEX('Historic Data'!158:158,'Operating Analysis'!N12),N50*N47) -> 510511.3925 | O51: =IF(O13,INDEX('Historic Data'!158:158,'Operating Analysis'!O12),O50*O47) -> 986698.5819 | P51: =IF(P13,INDEX('Historic Data'!158:158,'Operating Analysis'!P12),P50*P47) -> 1616952.301 | Q51: =IF(Q13,INDEX('Historic Data'!158:158,'Operating Analysis'!Q12),Q50*Q47) -> 1766520.389 | R51: =IF(R13,INDEX('Historic Data'!158:158,'Operating Analysis'!R12),R50*R47) -> 1929923.525 | S51: =IF(S13,INDEX('Historic Data'!158:158,'Operating Analysis'!S12),S50*S47) -> 2080457.56 | T51: =IF(T13,INDEX('Historic Data'!158:158,'Operating Analysis'!T12),T50*T47) -> 2288503.316 | U51: =IF(U13,INDEX('Historic Data'!158:158,'Operating Analysis'!U12),U50*U47) -> 2517353.648 | V51: =IF(V13,INDEX('Historic Data'!158:158,'Operating Analysis'!V12),V50*V47) -> 2769089.012 | W51: =IF(W13,INDEX('Historic Data'!158:158,'Operating Analysis'!W12),W50*W47) -> 3045997.914
C53: SG&A as Percent of Revenues | E53: Percent | G53: =INDEX('Time Series Assumptions'!73:73,'Operating Analysis'!G11) -> 0 | H53: =INDEX('Time Series Assumptions'!73:73,'Operating Analysis'!H11) -> 0.247069806 | I53: =INDEX('Time Series Assumptions'!73:73,'Operating Analysis'!I11) -> 0.1631982475 | J53: =INDEX('Time Series Assumptions'!73:73,'Operating Analysis'!J11) -> 0.1396444358 | K53: =INDEX('Time Series Assumptions'!73:73,'Operating Analysis'!K11) -> 0.1320772432 | L53: =INDEX('Time Series Assumptions'!73:73,'Operating Analysis'!L11) -> 0.1254933168 | M53: =INDEX('Time Series Assumptions'!73:73,'Operating Analysis'!M11) -> 0.1254933168 | N53: =INDEX('Time Series Assumptions'!73:73,'Operating Analysis'!N11) -> 0.1254933168 | O53: =INDEX('Time Series Assumptions'!73:73,'Operating Analysis'!O11) -> 0.1254933168 | P53: =INDEX('Time Series Assumptions'!73:73,'Operating Analysis'!P11) -> 0.1254933168 | Q53: =INDEX('Time Series Assumptions'!73:73,'Operating Analysis'!Q11) -> 0.1254933168 | R53: =INDEX('Time Series Assumptions'!73:73,'Operating Analysis'!R11) -> 0.1254933168 | S53: =INDEX('Time Series Assumptions'!73:73,'Operating Analysis'!S11) -> 0.1254933168 | T53: =INDEX('Time Series Assumptions'!73:73,'Operating Analysis'!T11) -> 0.1254933168 | U53: =INDEX('Time Series Assumptions'!73:73,'Operating Analysis'!U11) -> 0.1254933168 | V53: =INDEX('Time Series Assumptions'!73:73,'Operating Analysis'!V11) -> 0.1254933168 | W53: =INDEX('Time Series Assumptions'!73:73,'Operating Analysis'!W11) -> 0.1254933168
C54: SG&A Expenses | E54: USD 000's | F54: =IF(F13,INDEX('Historic Data'!159:159,'Operating Analysis'!F12),F53*F27) -> 9312 | G54: =IF(G13,INDEX('Historic Data'!159:159,'Operating Analysis'!G12),G53*G27) -> 15825 | H54: =IF(H13,INDEX('Historic Data'!159:159,'Operating Analysis'!H12),H53*H27) -> 33348 | I54: =IF(I13,INDEX('Historic Data'!159:159,'Operating Analysis'!I12),I53*I27) -> 82248 | J54: =IF(J13,INDEX('Historic Data'!159:159,'Operating Analysis'!J12),J53*J27) -> 174039 | K54: =IF(K13,INDEX('Historic Data'!159:159,'Operating Analysis'!K12),K53*K27) -> 272898 | L54: =IF(L13,INDEX('Historic Data'!159:159,'Operating Analysis'!L12),L53*L27) -> 321704 | M54: =IF(M13,INDEX('Historic Data'!159:159,'Operating Analysis'!M12),M53*M27) -> 348588.6119 | N54: =IF(N13,INDEX('Historic Data'!159:159,'Operating Analysis'!N12),N53*N27) -> 134510.4145 | O54: =IF(O13,INDEX('Historic Data'!159:159,'Operating Analysis'!O12),O53*O27) -> 222071.8015 | P54: =IF(P13,INDEX('Historic Data'!159:159,'Operating Analysis'!P12),P53*P27) -> 344766.4718 | Q54: =IF(Q13,INDEX('Historic Data'!159:159,'Operating Analysis'!Q12),Q53*Q27) -> 376657.3705 | R54: =IF(R13,INDEX('Historic Data'!159:159,'Operating Analysis'!R12),R53*R27) -> 411498.1773 | S54: =IF(S13,INDEX('Historic Data'!159:159,'Operating Analysis'!S12),S53*S27) -> 443595.0351 | T54: =IF(T13,INDEX('Historic Data'!159:159,'Operating Analysis'!T12),T53*T27) -> 478195.4478 | U54: =IF(U13,INDEX('Historic Data'!159:159,'Operating Analysis'!U12),U53*U27) -> 515494.6927 | V54: =IF(V13,INDEX('Historic Data'!159:159,'Operating Analysis'!V12),V53*V27) -> 555703.2788 | W54: =IF(W13,INDEX('Historic Data'!159:159,'Operating Analysis'!W12),W53*W27) -> 599048.1345
C56: R&D as Percent of Revenues | E56: Percent | G56: =INDEX('Time Series Assumptions'!74:74,'Operating Analysis'!G11) -> 0 | H56: =INDEX('Time Series Assumptions'!74:74,'Operating Analysis'!H11) -> 0.04712759494 | I56: =INDEX('Time Series Assumptions'!74:74,'Operating Analysis'!I11) -> 0.02997563376 | J56: =INDEX('Time Series Assumptions'!74:74,'Operating Analysis'!J11) -> 0.02689318231 | K56: =INDEX('Time Series Assumptions'!74:74,'Operating Analysis'!K11) -> 0.0378283806 | L56: =INDEX('Time Series Assumptions'!74:74,'Operating Analysis'!L11) -> 0.03697930381 | M56: =INDEX('Time Series Assumptions'!74:74,'Operating Analysis'!M11) -> 0.03697930381 | N56: =INDEX('Time Series Assumptions'!74:74,'Operating Analysis'!N11) -> 0.03697930381 | O56: =INDEX('Time Series Assumptions'!74:74,'Operating Analysis'!O11) -> 0.03697930381 | P56: =INDEX('Time Series Assumptions'!74:74,'Operating Analysis'!P11) -> 0.03697930381 | Q56: =INDEX('Time Series Assumptions'!74:74,'Operating Analysis'!Q11) -> 0.03697930381 | R56: =INDEX('Time Series Assumptions'!74:74,'Operating Analysis'!R11) -> 0.03697930381 | S56: =INDEX('Time Series Assumptions'!74:74,'Operating Analysis'!S11) -> 0.03697930381 | T56: =INDEX('Time Series Assumptions'!74:74,'Operating Analysis'!T11) -> 0.03697930381 | U56: =INDEX('Time Series Assumptions'!74:74,'Operating Analysis'!U11) -> 0.03697930381 | V56: =INDEX('Time Series Assumptions'!74:74,'Operating Analysis'!V11) -> 0.03697930381 | W56: =INDEX('Time Series Assumptions'!74:74,'Operating Analysis'!W11) -> 0.03697930381
C57: R&D Expenses | E57: USD 000's | F57: =IF(F13,INDEX('Historic Data'!160:160,'Operating Analysis'!F12),F56*F27) -> 1240 | G57: =IF(G13,INDEX('Historic Data'!160:160,'Operating Analysis'!G12),G56*G27) -> 2372 | H57: =IF(H13,INDEX('Historic Data'!160:160,'Operating Analysis'!H12),H56*H27) -> 6361 | I57: =IF(I13,INDEX('Historic Data'!160:160,'Operating Analysis'!I12),I56*I27) -> 15107 | J57: =IF(J13,INDEX('Historic Data'!160:160,'Operating Analysis'!J12),J56*J27) -> 33517 | K57: =IF(K13,INDEX('Historic Data'!160:160,'Operating Analysis'!K12),K56*K27) -> 78161 | L57: =IF(L13,INDEX('Historic Data'!160:160,'Operating Analysis'!L12),L56*L27) -> 94797 | M57: =IF(M13,INDEX('Historic Data'!160:160,'Operating Analysis'!M12),M56*M27) -> 102719.1289 | N57: =IF(N13,INDEX('Historic Data'!160:160,'Operating Analysis'!N12),N56*N27) -> 39636.38552 | O57: =IF(O13,INDEX('Historic Data'!160:160,'Operating Analysis'!O12),O56*O27) -> 65438.2307 | P57: =IF(P13,INDEX('Historic Data'!160:160,'Operating Analysis'!P12),P56*P27) -> 101592.8532 | Q57: =IF(Q13,INDEX('Historic Data'!160:160,'Operating Analysis'!Q12),Q56*Q27) -> 110990.1921 | R57: =IF(R13,INDEX('Historic Data'!160:160,'Operating Analysis'!R12),R56*R27) -> 121256.7848 | S57: =IF(S13,INDEX('Historic Data'!160:160,'Operating Analysis'!S12),S56*S27) -> 130714.8141 | T57: =IF(T13,INDEX('Historic Data'!160:160,'Operating Analysis'!T12),T56*T27) -> 140910.5696 | U57: =IF(U13,INDEX('Historic Data'!160:160,'Operating Analysis'!U12),U56*U27) -> 151901.594 | V57: =IF(V13,INDEX('Historic Data'!160:160,'Operating Analysis'!V12),V56*V27) -> 163749.9183 | W57: =IF(W13,INDEX('Historic Data'!160:160,'Operating Analysis'!W12),W56*W27) -> 176522.4119
C59: Start-up Expenses per kW | E59: USD/kW | G59: =INDEX('Time Series Assumptions'!80:80,'Operating Analysis'!G11) -> 0 | H59: =INDEX('Time Series Assumptions'!80:80,'Operating Analysis'!H11) -> 156.3333333 | I59: =INDEX('Time Series Assumptions'!80:80,'Operating Analysis'!I11) -> 81.09134615 | J59: =INDEX('Time Series Assumptions'!80:80,'Operating Analysis'!J11) -> 79.65196078 | K59: =INDEX('Time Series Assumptions'!80:80,'Operating Analysis'!K11) -> 27.1640625 | L59: =INDEX('Time Series Assumptions'!80:80,'Operating Analysis'!L11) -> 70.95620438 | M59: =INDEX('Time Series Assumptions'!80:80,'Operating Analysis'!M11) -> 70 | N59: =INDEX('Time Series Assumptions'!80:80,'Operating Analysis'!N11) -> 70 | O59: =INDEX('Time Series Assumptions'!80:80,'Operating Analysis'!O11) -> 70 | P59: =INDEX('Time Series Assumptions'!80:80,'Operating Analysis'!P11) -> 70 | Q59: =INDEX('Time Series Assumptions'!80:80,'Operating Analysis'!Q11) -> 70 | R59: =INDEX('Time Series Assumptions'!80:80,'Operating Analysis'!R11) -> 70 | S59: =INDEX('Time Series Assumptions'!80:80,'Operating Analysis'!S11) -> 70 | T59: =INDEX('Time Series Assumptions'!80:80,'Operating Analysis'!T11) -> 70 | U59: =INDEX('Time Series Assumptions'!80:80,'Operating Analysis'!U11) -> 70 | V59: =INDEX('Time Series Assumptions'!80:80,'Operating Analysis'!V11) -> 70 | W59: =INDEX('Time Series Assumptions'!80:80,'Operating Analysis'!W11) -> 70
C60: Start-up Expenses | E60: USD 000's | F60: =IF(F13,INDEX('Historic Data'!162:162,'Operating Analysis'!F12),F59*F35) -> 900 | G60: =IF(G13,INDEX('Historic Data'!162:162,'Operating Analysis'!G12),G59*G35) -> 3173 | H60: =IF(H13,INDEX('Historic Data'!162:162,'Operating Analysis'!H12),H59*H35) -> 11725 | I60: =IF(I13,INDEX('Historic Data'!162:162,'Operating Analysis'!I12),I59*I35) -> 16867 | J60: =IF(J13,INDEX('Historic Data'!162:162,'Operating Analysis'!J12),J59*J35) -> 32498 | K60: =IF(K13,INDEX('Historic Data'!162:162,'Operating Analysis'!K12),K59*K35) -> 13908 | L60: =IF(L13,INDEX('Historic Data'!162:162,'Operating Analysis'!L12),L59*L35) -> 19442 | M60: =IF(M13,INDEX('Historic Data'!162:162,'Operating Analysis'!M12),M59*M35) -> 53830 | N60: =IF(N13,INDEX('Historic Data'!162:162,'Operating Analysis'!N12),N59*N35) -> 11492.48159 | O60: =IF(O13,INDEX('Historic Data'!162:162,'Operating Analysis'!O12),O59*O35) -> 25537.51841 | P60: =IF(P13,INDEX('Historic Data'!162:162,'Operating Analysis'!P12),P59*P35) -> 19600 | Q60: =IF(Q13,INDEX('Historic Data'!162:162,'Operating Analysis'!Q12),Q59*Q35) -> 21560 | R60: =IF(R13,INDEX('Historic Data'!162:162,'Operating Analysis'!R12),R59*R35) -> 23716 | S60: =IF(S13,INDEX('Historic Data'!162:162,'Operating Analysis'!S12),S59*S35) -> 26087.6 | T60: =IF(T13,INDEX('Historic Data'!162:162,'Operating Analysis'!T12),T59*T35) -> 28696.36 | U60: =IF(U13,INDEX('Historic Data'!162:162,'Operating Analysis'!U12),U59*U35) -> 31565.996 | V60: =IF(V13,INDEX('Historic Data'!162:162,'Operating Analysis'!V12),V59*V35) -> 34722.5956 | W60: =IF(W13,INDEX('Historic Data'!162:162,'Operating Analysis'!W12),W59*W35) -> 38194.85516
C62: Total Cash Operating Expenses | E62: USD 000's | F62: =F57+F54+F51+F60 -> 30303 | G62: =G57+G54+G51+G60 -> 52853 | H62: 121954 | I62: 342314 | J62: 746116 | K62: 1255839 | L62: 1647550 | M62: 1727899.763 | N62: 696150.6741 | O62: 1299746.133 | P62: 2082911.626 | Q62: 2275727.952 | R62: 2486394.487 | S62: 2680855.009 | T62: 2936305.693 | U62: 3216315.93 | V62: 3523264.805 | W62: 3859763.315
A64: Working Capital
C66: Accounts Receivable
D67: A/R to Sales | E67: Percent | G67: =INDEX('Time Series Assumptions'!84:84,'Operating Analysis'!G11) -> 0.02284501592 | H67: =INDEX('Time Series Assumptions'!84:84,'Operating Analysis'!H11) -> 0.2071954599 | I67: =INDEX('Time Series Assumptions'!84:84,'Operating Analysis'!I11) -> 0.115817023 | J67: =INDEX('Time Series Assumptions'!84:84,'Operating Analysis'!J11) -> 0.1470407229 | K67: =INDEX('Time Series Assumptions'!84:84,'Operating Analysis'!K11) -> 0.1098073759 | L67: =INDEX('Time Series Assumptions'!84:84,'Operating Analysis'!L11) -> 0.1197648541 | M67: =INDEX('Time Series Assumptions'!84:84,'Operating Analysis'!M11) -> 0.1197648541 | N67: =INDEX('Time Series Assumptions'!84:84,'Operating Analysis'!N11) -> 0.1197648541 | O67: =INDEX('Time Series Assumptions'!84:84,'Operating Analysis'!O11) -> 0.1197648541 | P67: =INDEX('Time Series Assumptions'!84:84,'Operating Analysis'!P11) -> 0.1197648541 | Q67: =INDEX('Time Series Assumptions'!84:84,'Operating Analysis'!Q11) -> 0.1197648541 | R67: =INDEX('Time Series Assumptions'!84:84,'Operating Analysis'!R11) -> 0.1197648541 | S67: =INDEX('Time Series Assumptions'!84:84,'Operating Analysis'!S11) -> 0.1197648541 | T67: =INDEX('Time Series Assumptions'!84:84,'Operating Analysis'!T11) -> 0.1197648541 | U67: =INDEX('Time Series Assumptions'!84:84,'Operating Analysis'!U11) -> 0.1197648541 | V67: =INDEX('Time Series Assumptions'!84:84,'Operating Analysis'!V11) -> 0.1197648541 | W67: =INDEX('Time Series Assumptions'!84:84,'Operating Analysis'!W11) -> 0.1197648541
D68: Total Revenues | E68: USD 000's | G68: =G27 -> 48063 | H68: 134974 | I68: 503976 | J68: 1246301 | K68: 2066200 | L68: 2563515 | M68: 2777746.424 | N68: 1071853.211 | O68: 1769590.662 | P68: 2747289.502 | Q68: 3001413.781 | R68: 3279044.556 | S68: 3534810.031 | T68: 3810525.214 | U68: 4107746.181 | V68: 4428150.383 | W68: 4773546.113
D69: Period Adjustment | E69: Index | G69: =(12/G9) -> 1 | H69: 1 | I69: 1 | J69: 1 | K69: 1 | L69: 1 | M69: 1 | N69: 3 | O69: 1.5 | P69: 1 | Q69: 1 | R69: 1 | S69: 1 | T69: 1 | U69: 1 | V69: 1 | W69: 1
D70: Total Accounts Receivable | E70: USD 000's | G70: =G67*G68*G69 -> 1098 | H70: =H67*H68*H69 -> 27966 | I70: 58369 | J70: 183257 | K70: 226884 | L70: 307019 | M70: 332676.3952 | N70: 385111.0303 | O70: 317902.1512 | P70: 329028.7265 | Q70: 359463.8837 | R70: 392714.2929 | S70: 423346.0077 | T70: 456366.9964 | U70: 491963.6221 | V70: 530336.7846 | W70: 571703.0538
C72: Inventories
D73: Inventories to CGS | E73: Percent | G73: =INDEX('Time Series Assumptions'!85:85,'Operating Analysis'!G11) -> 0.219705873 | H73: =INDEX('Time Series Assumptions'!85:85,'Operating Analysis'!H11) -> 0.2341179807 | I73: =INDEX('Time Series Assumptions'!85:85,'Operating Analysis'!I11) -> 0.03802851481 | J73: =INDEX('Time Series Assumptions'!85:85,'Operating Analysis'!J11) -> 0.03046464662 | K73: =INDEX('Time Series Assumptions'!85:85,'Operating Analysis'!K11) -> 0.1958934617 | L73: =INDEX('Time Series Assumptions'!85:85,'Operating Analysis'!L11) -> 0.2007003921 | M73: =INDEX('Time Series Assumptions'!85:85,'Operating Analysis'!M11) -> 0.2007003921 | N73: =INDEX('Time Series Assumptions'!85:85,'Operating Analysis'!N11) -> 0.2007003921 | O73: =INDEX('Time Series Assumptions'!85:85,'Operating Analysis'!O11) -> 0.2007003921 | P73: =INDEX('Time Series Assumptions'!85:85,'Operating Analysis'!P11) -> 0.2007003921 | Q73: =INDEX('Time Series Assumptions'!85:85,'Operating Analysis'!Q11) -> 0.2007003921 | R73: =INDEX('Time Series Assumptions'!85:85,'Operating Analysis'!R11) -> 0.2007003921 | S73: =INDEX('Time Series Assumptions'!85:85,'Operating Analysis'!S11) -> 0.2007003921 | T73: =INDEX('Time Series Assumptions'!85:85,'Operating Analysis'!T11) -> 0.2007003921 | U73: =INDEX('Time Series Assumptions'!85:85,'Operating Analysis'!U11) -> 0.2007003921 | V73: =INDEX('Time Series Assumptions'!85:85,'Operating Analysis'!V11) -> 0.2007003921 | W73: =INDEX('Time Series Assumptions'!85:85,'Operating Analysis'!W11) -> 0.2007003921
D74: Total CGS | E74: USD 000's | G74: =G51 -> 31483 | H74: =H51 -> 70520 | I74: 228092 | J74: 506062 | K74: 890872 | L74: 1211607 | M74: 1222762.022 | N74: 510511.3925 | O74: 986698.5819 | P74: 1616952.301 | Q74: 1766520.389 | R74: 1929923.525 | S74: 2080457.56 | T74: 2288503.316 | U74: 2517353.648 | V74: 2769089.012 | W74: 3045997.914
D75: Total Inventories | E75: USD 000's | G75: =G73*G74*G69 -> 6917 | H75: =H73*H74*H69 -> 16510 | I75: 8674 | J75: 15417 | K75: 174516 | L75: 243170 | M75: 245408.8173 | N75: 307379.51 | O75: 297046.1885 | P75: 324522.9609 | Q75: 354541.3348 | R75: 387336.4082 | S75: 417548.6481 | T75: 459303.5129 | U75: 505233.8642 | V75: 555757.2506 | W75: 611332.9756
C77: Prepaid Expenses
D78: Prepaid to Revenues | E78: Percent | G78: =INDEX('Time Series Assumptions'!86:86,'Operating Analysis'!G11) -> 0.03131306826 | H78: =INDEX('Time Series Assumptions'!86:86,'Operating Analysis'!H11) -> 0.06013009913 | I78: =INDEX('Time Series Assumptions'!86:86,'Operating Analysis'!I11) -> 0.1285378669 | J78: =INDEX('Time Series Assumptions'!86:86,'Operating Analysis'!J11) -> 0.07268228141 | K78: =INDEX('Time Series Assumptions'!86:86,'Operating Analysis'!K11) -> 0.07940712419 | L78: =INDEX('Time Series Assumptions'!86:86,'Operating Analysis'!L11) -> 0.05579565557 | M78: =INDEX('Time Series Assumptions'!86:86,'Operating Analysis'!M11) -> 0.05579565557 | N78: =INDEX('Time Series Assumptions'!86:86,'Operating Analysis'!N11) -> 0.05579565557 | O78: =INDEX('Time Series Assumptions'!86:86,'Operating Analysis'!O11) -> 0.05579565557 | P78: =INDEX('Time Series Assumptions'!86:86,'Operating Analysis'!P11) -> 0.05579565557 | Q78: =INDEX('Time Series Assumptions'!86:86,'Operating Analysis'!Q11) -> 0.05579565557 | R78: =INDEX('Time Series Assumptions'!86:86,'Operating Analysis'!R11) -> 0.05579565557 | S78: =INDEX('Time Series Assumptions'!86:86,'Operating Analysis'!S11) -> 0.05579565557 | T78: =INDEX('Time Series Assumptions'!86:86,'Operating Analysis'!T11) -> 0.05579565557 | U78: =INDEX('Time Series Assumptions'!86:86,'Operating Analysis'!U11) -> 0.05579565557 | V78: =INDEX('Time Series Assumptions'!86:86,'Operating Analysis'!V11) -> 0.05579565557 | W78: =INDEX('Time Series Assumptions'!86:86,'Operating Analysis'!W11) -> 0.05579565557
D79: Total Revenues | E79: USD 000's | G79: =G68 -> 48063 | H79: =H68 -> 134974 | I79: 503976 | J79: 1246301 | K79: 2066200 | L79: 2563515 | M79: 2777746.424 | N79: 1071853.211 | O79: 1769590.662 | P79: 2747289.502 | Q79: 3001413.781 | R79: 3279044.556 | S79: 3534810.031 | T79: 3810525.214 | U79: 4107746.181 | V79: 4428150.383 | W79: 4773546.113
D80: Total Pre-paid Expenses | E80: USD 000's | G80: =G78*G79*G69 -> 1505 | H80: =H78*H79*H69 -> 8116 | I80: 64780 | J80: 90584 | K80: 164071 | L80: 143033 | M80: 154986.1827 | N80: 179414.2577 | O80: 148103.2066 | P80: 153286.8188 | Q80: 167465.8496 | R80: 182956.4407 | S80: 197227.043 | T80: 212610.7524 | U80: 229194.3911 | V80: 247071.5536 | W80: 266343.1348
C82: Accounts Payable
D83: A/P to CGS | E83: Percent | G83: =INDEX('Time Series Assumptions'!87:87,'Operating Analysis'!G11) -> 0.4374106661 | H83: =INDEX('Time Series Assumptions'!87:87,'Operating Analysis'!H11) -> 0.4549489507 | I83: =INDEX('Time Series Assumptions'!87:87,'Operating Analysis'!I11) -> 0.1159225225 | J83: =INDEX('Time Series Assumptions'!87:87,'Operating Analysis'!J11) -> 0.09139393987 | K83: =INDEX('Time Series Assumptions'!87:87,'Operating Analysis'!K11) -> 0.08502231521 | L83: =INDEX('Time Series Assumptions'!87:87,'Operating Analysis'!L11) -> 0.06793622024 | M83: =INDEX('Time Series Assumptions'!87:87,'Operating Analysis'!M11) -> 0.06793622024 | N83: =INDEX('Time Series Assumptions'!87:87,'Operating Analysis'!N11) -> 0.06793622024 | O83: =INDEX('Time Series Assumptions'!87:87,'Operating Analysis'!O11) -> 0.06793622024 | P83: =INDEX('Time Series Assumptions'!87:87,'Operating Analysis'!P11) -> 0.06793622024 | Q83: =INDEX('Time Series Assumptions'!87:87,'Operating Analysis'!Q11) -> 0.06793622024 | R83: =INDEX('Time Series Assumptions'!87:87,'Operating Analysis'!R11) -> 0.06793622024 | S83: =INDEX('Time Series Assumptions'!87:87,'Operating Analysis'!S11) -> 0.06793622024 | T83: =INDEX('Time Series Assumptions'!87:87,'Operating Analysis'!T11) -> 0.06793622024 | U83: =INDEX('Time Series Assumptions'!87:87,'Operating Analysis'!U11) -> 0.06793622024 | V83: =INDEX('Time Series Assumptions'!87:87,'Operating Analysis'!V11) -> 0.06793622024 | W83: =INDEX('Time Series Assumptions'!87:87,'Operating Analysis'!W11) -> 0.06793622024
D84: Total CGS | E84: USD 000's | G84: =G74 -> 31483 | H84: =H74 -> 70520 | I84: 228092 | J84: 506062 | K84: 890872 | L84: 1211607 | M84: 1222762.022 | N84: 510511.3925 | O84: 986698.5819 | P84: 1616952.301 | Q84: 1766520.389 | R84: 1929923.525 | S84: 2080457.56 | T84: 2288503.316 | U84: 2517353.648 | V84: 2769089.012 | W84: 3045997.914
D85: Total A/P | E85: USD 000's | G85: =G83*G84*G69 -> 13771 | H85: =H83*H84*H69 -> 32083 | I85: 26441 | J85: 46251 | K85: 75744 | L85: 82312 | M85: 83069.83003 | N85: 104046.6432 | O85: 100548.8583 | P85: 109849.6277 | Q85: 120010.7182 | R85: 131111.7096 | S85: 141338.423 | T85: 155472.2653 | U85: 171019.4918 | V85: 188121.441 | W85: 206933.5851
C87: Accrued Expenses
D88: Accrued Expenses to Total Expense | E88: Percent | G88: =INDEX('Time Series Assumptions'!88:88,'Operating Analysis'!G11) -> 0 | H88: =INDEX('Time Series Assumptions'!88:88,'Operating Analysis'!H11) -> 0 | I88: =INDEX('Time Series Assumptions'!88:88,'Operating Analysis'!I11) -> 0.2227662322 | J88: =INDEX('Time Series Assumptions'!88:88,'Operating Analysis'!J11) -> 0.1888432898 | K88: =INDEX('Time Series Assumptions'!88:88,'Operating Analysis'!K11) -> 0.1539026898 | L88: =INDEX('Time Series Assumptions'!88:88,'Operating Analysis'!L11) -> 0.1482631787 | M88: =INDEX('Time Series Assumptions'!88:88,'Operating Analysis'!M11) -> 0.1482631787 | N88: =INDEX('Time Series Assumptions'!88:88,'Operating Analysis'!N11) -> 0.1482631787 | O88: =INDEX('Time Series Assumptions'!88:88,'Operating Analysis'!O11) -> 0.1482631787 | P88: =INDEX('Time Series Assumptions'!88:88,'Operating Analysis'!P11) -> 0.1482631787 | Q88: =INDEX('Time Series Assumptions'!88:88,'Operating Analysis'!Q11) -> 0.1482631787 | R88: =INDEX('Time Series Assumptions'!88:88,'Operating Analysis'!R11) -> 0.1482631787 | S88: =INDEX('Time Series Assumptions'!88:88,'Operating Analysis'!S11) -> 0.1482631787 | T88: =INDEX('Time Series Assumptions'!88:88,'Operating Analysis'!T11) -> 0.1482631787 | U88: =INDEX('Time Series Assumptions'!88:88,'Operating Analysis'!U11) -> 0.1482631787 | V88: =INDEX('Time Series Assumptions'!88:88,'Operating Analysis'!V11) -> 0.1482631787 | W88: =INDEX('Time Series Assumptions'!88:88,'Operating Analysis'!W11) -> 0.1482631787
D89: Total Expenses | E89: USD 000's | G89: =G62 -> 52853 | H89: =H62 -> 121954 | I89: 342314 | J89: 746116 | K89: 1255839 | L89: 1647550 | M89: 1727899.763 | N89: 696150.6741 | O89: 1299746.133 | P89: 2082911.626 | Q89: 2275727.952 | R89: 2486394.487 | S89: 2680855.009 | T89: 2936305.693 | U89: 3216315.93 | V89: 3523264.805 | W89: 3859763.315
D90: Total Accrued Expenses | E90: USD 000's | G90: =G88*G89*G69 -> 0 | H90: =H88*H89*H69 -> 0 | I90: 76256 | J90: 140899 | K90: 193277 | L90: 244271 | M90: 256183.9112 | N90: 309640.5353 | O90: 289056.7396 | P90: 308819.0986 | Q90: 337406.6599 | R90: 368640.7501 | S90: 397472.0852 | T90: 435346.0156 | U90: 476861.2234 | V90: 522370.4392 | W90: 572260.778
C92: Other Liabilities
D93: Other Liabilities to Revenues | E93: Percent | G93: =INDEX('Time Series Assumptions'!89:89,'Operating Analysis'!G11) -> 0 | H93: =INDEX('Time Series Assumptions'!89:89,'Operating Analysis'!H11) -> 0 | I93: =INDEX('Time Series Assumptions'!89:89,'Operating Analysis'!I11) -> 0.02937243043 | J93: =INDEX('Time Series Assumptions'!89:89,'Operating Analysis'!J11) -> 0.04793224109 | K93: =INDEX('Time Series Assumptions'!89:89,'Operating Analysis'!K11) -> 0.04288403833 | L93: =INDEX('Time Series Assumptions'!89:89,'Operating Analysis'!L11) -> 0.03888254994 | M93: =INDEX('Time Series Assumptions'!89:89,'Operating Analysis'!M11) -> 0.04370015389 | N93: =INDEX('Time Series Assumptions'!89:89,'Operating Analysis'!N11) -> 0.04370015389 | O93: =INDEX('Time Series Assumptions'!89:89,'Operating Analysis'!O11) -> 0.04370015389 | P93: =INDEX('Time Series Assumptions'!89:89,'Operating Analysis'!P11) -> 0.04370015389 | Q93: =INDEX('Time Series Assumptions'!89:89,'Operating Analysis'!Q11) -> 0.04370015389 | R93: =INDEX('Time Series Assumptions'!89:89,'Operating Analysis'!R11) -> 0.04370015389 | S93: =INDEX('Time Series Assumptions'!89:89,'Operating Analysis'!S11) -> 0.04370015389 | T93: =INDEX('Time Series Assumptions'!89:89,'Operating Analysis'!T11) -> 0.04370015389 | U93: =INDEX('Time Series Assumptions'!89:89,'Operating Analysis'!U11) -> 0.04370015389 | V93: =INDEX('Time Series Assumptions'!89:89,'Operating Analysis'!V11) -> 0.04370015389 | W93: =INDEX('Time Series Assumptions'!89:89,'Operating Analysis'!W11) -> 0.04370015389
D94: Total Revenues | E94: USD 000's | G94: =G79 -> 48063 | H94: =H79 -> 134974 | I94: 503976 | J94: 1246301 | K94: 2066200 | L94: 2563515 | M94: 2777746.424 | N94: 1071853.211 | O94: 1769590.662 | P94: 2747289.502 | Q94: 3001413.781 | R94: 3279044.556 | S94: 3534810.031 | T94: 3810525.214 | U94: 4107746.181 | V94: 4428150.383 | W94: 4773546.113
D95: Total Other Liabilities | E95: USD 000's | G95: =G93*G94*G69 -> 0 | H95: =H93*H94*H69 -> 0 | I95: 14803 | J95: 59738 | K95: 88607 | L95: 99676 | M95: 121387.9462 | N95: 140520.4508 | O95: 115997.0764 | P95: 120056.974 | Q95: 131162.2441 | R95: 143294.7517 | S95: 154471.7423 | T95: 166520.5383 | U95: 179509.1402 | V95: 193510.8532 | W95: 208604.6997
C97: Total Curent Assets | G97: =G70+G75+G80 -> 9520 | H97: =H70+H75+H80 -> 52592 | I97: 131823 | J97: 289258 | K97: 565471 | L97: 693222 | M97: 733071.3952 | N97: 871904.798 | O97: 763051.5462 | P97: 806838.5062 | Q97: 881471.068 | R97: 963007.1418 | S97: 1038121.699 | T97: 1128281.262 | U97: 1226391.877 | V97: 1333165.589 | W97: 1449379.164
C98: Total Current Liabilities | G98: =G85+G90+G95 -> 13771 | H98: =H85+H90+H95 -> 32083 | I98: 117500 | J98: 246888 | K98: 357628 | L98: 426259 | M98: 460641.6874 | N98: 554207.6293 | O98: 505602.6742 | P98: 538725.7002 | Q98: 588579.6222 | R98: 643047.2114 | S98: 693282.2505 | T98: 757338.8192 | U98: 827389.8555 | V98: 904002.7334 | W98: 987799.0628
C99: Total Working Capital | G99: =G97-G98 -> -4251 | H99: =H97-H98 -> 20509 | I99: 14323 | J99: 42370 | K99: 207843 | L99: 266963 | M99: 272429.7078 | N99: 317697.1687 | O99: 257448.872 | P99: 268112.8059 | Q99: 292891.4458 | R99: 319959.9304 | S99: 344839.4483 | T99: 370942.4425 | U99: 399002.0219 | V99: 429162.8553 | W99: 461580.1014
C100: Change in Working Capital | H100: =H99-G99 -> 24760 | I100: =I99-H99 -> -6186 | J100: 28047 | K100: 165473 | L100: 59120 | M100: 5466.707751 | N100: 45267.46092 | O100: -60248.29666 | P100: 10663.93393 | Q100: 24778.63986 | R100: 27068.48458 | S100: 24879.51796 | T100: 26102.99413 | U100: 28059.57939 | V100: 30160.83347 | W100: 32417.24606
C102: EBITDA | G102: =G27-G62 -> -4790 | H102: 13020 | I102: 161662 | J102: 500185 | K102: 810361 | L102: 915965 | M102: 1049846.661 | N102: 375702.5366 | O102: 469844.5292 | P102: 664377.8762 | Q102: 725685.8297 | R102: 792650.069 | S102: 853955.0224 | T102: 874219.5206 | U102: 891430.2503 | V102: 904885.5777 | W102: 913782.7974
C103: Working Capial as Percent of EBITDA | H103: =H99/H102 -> 1.575192012 | I103: =I99/I102 -> 0.08859843377 | J103: 0.0847086578 | K103: 0.2564819877 | L103: 0.2914554595 | M103: 0.2594947605 | N103: 0.8456082611 | O103: 0.5479448116 | P103: 0.4035546871 | Q103: 0.4036064007 | R103: 0.4036584905 | S103: 0.4038145327 | T103: 0.4243126969 | U103: 0.447597579 | V103: 0.4742730638 | W103: 0.505131091
A105: Plant Balance and Depreciation
B107: Existing Plant
C108: Depreciation on Existing Plant Before Retirement | G108: =INDEX('Time Series Assumptions'!95:95,'Operating Analysis'!G11) -> 0 | H108: =INDEX('Time Series Assumptions'!95:95,'Operating Analysis'!H11) -> 10210 | I108: =INDEX('Time Series Assumptions'!95:95,'Operating Analysis'!I11) -> 24481 | J108: =INDEX('Time Series Assumptions'!95:95,'Operating Analysis'!J11) -> 61846 | K108: =INDEX('Time Series Assumptions'!95:95,'Operating Analysis'!K11) -> 130746 | L108: =INDEX('Time Series Assumptions'!95:95,'Operating Analysis'!L11) -> 167062 | M108: =INDEX('Time Series Assumptions'!95:95,'Operating Analysis'!M11) -> 167062 | N108: =INDEX('Time Series Assumptions'!95:95,'Operating Analysis'!N11) -> 167062 | O108: =INDEX('Time Series Assumptions'!95:95,'Operating Analysis'!O11) -> 167062 | P108: =INDEX('Time Series Assumptions'!95:95,'Operating Analysis'!P11) -> 167062 | Q108: =INDEX('Time Series Assumptions'!95:95,'Operating Analysis'!Q11) -> 167062 | R108: =INDEX('Time Series Assumptions'!95:95,'Operating Analysis'!R11) -> 167062 | S108: =INDEX('Time Series Assumptions'!95:95,'Operating Analysis'!S11) -> 167062 | T108: =INDEX('Time Series Assumptions'!95:95,'Operating Analysis'!T11) -> 167062 | U108: =INDEX('Time Series Assumptions'!95:95,'Operating Analysis'!U11) -> 167062 | V108: =INDEX('Time Series Assumptions'!95:95,'Operating Analysis'!V11) -> 167062 | W108: =INDEX('Time Series Assumptions'!95:95,'Operating Analysis'!W11) -> 167062
C109: Retirement Rate | G109: =INDEX('Time Series Assumptions'!96:96,'Operating Analysis'!G11) -> 0 | H109: =INDEX('Time Series Assumptions'!96:96,'Operating Analysis'!H11) -> 0 | I109: =INDEX('Time Series Assumptions'!96:96,'Operating Analysis'!I11) -> 0 | J109: =INDEX('Time Series Assumptions'!96:96,'Operating Analysis'!J11) -> 0 | K109: =INDEX('Time Series Assumptions'!96:96,'Operating Analysis'!K11) -> 0 | L109: =INDEX('Time Series Assumptions'!96:96,'Operating Analysis'!L11) -> 0 | M109: =INDEX('Time Series Assumptions'!96:96,'Operating Analysis'!M11) -> 0 | N109: =INDEX('Time Series Assumptions'!96:96,'Operating Analysis'!N11) -> 0 | O109: =INDEX('Time Series Assumptions'!96:96,'Operating Analysis'!O11) -> 0 | P109: =INDEX('Time Series Assumptions'!96:96,'Operating Analysis'!P11) -> 0.01 | Q109: =INDEX('Time Series Assumptions'!96:96,'Operating Analysis'!Q11) -> 0.01 | R109: =INDEX('Time Series Assumptions'!96:96,'Operating Analysis'!R11) -> 0.02 | S109: =INDEX('Time Series Assumptions'!96:96,'Operating Analysis'!S11) -> 0.1 | T109: =INDEX('Time Series Assumptions'!96:96,'Operating Analysis'!T11) -> 0.12 | U109: =INDEX('Time Series Assumptions'!96:96,'Operating Analysis'!U11) -> 0.15 | V109: =INDEX('Time Series Assumptions'!96:96,'Operating Analysis'!V11) -> 0.2 | W109: =INDEX('Time Series Assumptions'!96:96,'Operating Analysis'!W11) -> 0.2
C110: Accumulated Retirements | G110: 1 | H110: =G110*(1-H109) -> 1 | I110: =H110*(1-I109) -> 1 | J110: 1 | K110: 1 | L110: 1 | M110: 1 | N110: 1 | O110: 1 | P110: 0.99 | Q110: 0.9801 | R110: 0.960498 | S110: 0.8644482 | T110: 0.760714416 | U110: 0.6466072536 | V110: 0.5172858029 | W110: 0.4138286423
C111: Existing Depreciation - Annual | G111: =G110*G108 -> 0 | H111: =H110*H108 -> 10210 | I111: 24481 | J111: 61846 | K111: 130746 | L111: 167062 | M111: 167062 | N111: 167062 | O111: 167062 | P111: 165391.38 | Q111: 163737.4662 | R111: 160462.7169 | S111: 144416.4452 | T111: 127086.4718 | U111: 108023.501 | V111: 86418.8008 | W111: 69135.04064
C112: Periodic Depreciation on Existing Plant | G112: =G111*NOT(G13)*G9/12 -> 0 | H112: 0 | I112: 0 | J112: 0 | K112: 0 | L112: 0 | M112: 167062 | N112: 55687.33333 | O112: 111374.6667 | P112: 165391.38 | Q112: 163737.4662 | R112: 160462.7169 | S112: 144416.4452 | T112: 127086.4718 | U112: 108023.501 | V112: 86418.8008 | W112: 69135.04064
C114: Existing Net Plant Before Depreciation | F114: =INDEX('Time Series Assumptions'!99:99,'Operating Analysis'!F11) -> 29277 | G114: =INDEX('Time Series Assumptions'!99:99,'Operating Analysis'!G11) -> 73778 | H114: =INDEX('Time Series Assumptions'!99:99,'Operating Analysis'!H11) -> 178868 | I114: =INDEX('Time Series Assumptions'!99:99,'Operating Analysis'!I11) -> 430104 | J114: =INDEX('Time Series Assumptions'!99:99,'Operating Analysis'!J11) -> 842622 | K114: =INDEX('Time Series Assumptions'!99:99,'Operating Analysis'!K11) -> 988782 | L114: =INDEX('Time Series Assumptions'!99:99,'Operating Analysis'!L11) -> 1430789 | M114: =INDEX('Time Series Assumptions'!99:99,'Operating Analysis'!M11) -> 1430789 | N114: =INDEX('Time Series Assumptions'!99:99,'Operating Analysis'!N11) -> 1430789 | O114: =INDEX('Time Series Assumptions'!99:99,'Operating Analysis'!O11) -> 1430789 | P114: =INDEX('Time Series Assumptions'!99:99,'Operating Analysis'!P11) -> 1430789 | Q114: =INDEX('Time Series Assumptions'!99:99,'Operating Analysis'!Q11) -> 1430789 | R114: =INDEX('Time Series Assumptions'!99:99,'Operating Analysis'!R11) -> 1430789 | S114: =INDEX('Time Series Assumptions'!99:99,'Operating Analysis'!S11) -> 1430789 | T114: =INDEX('Time Series Assumptions'!99:99,'Operating Analysis'!T11) -> 1430789 | U114: =INDEX('Time Series Assumptions'!99:99,'Operating Analysis'!U11) -> 1430789 | V114: =INDEX('Time Series Assumptions'!99:99,'Operating Analysis'!V11) -> 1430789 | W114: =INDEX('Time Series Assumptions'!99:99,'Operating Analysis'!W11) -> 1430789
C115: Accumulated Depreciation on Existing Plant | G115: =F115+G112 -> 0 | H115: =G115+H112 -> 0 | I115: 0 | J115: 0 | K115: 0 | L115: 0 | M115: 167062 | N115: 222749.3333 | O115: 334124 | P115: 499515.38 | Q115: 663252.8462 | R115: 823715.5631 | S115: 968132.0083 | T115: 1095218.48 | U115: 1203241.981 | V115: 1289660.782 | W115: 1358795.822
C116: Net Existing Plant | F116: =F114-F115 -> 29277 | G116: =G114-G115 -> 73778 | H116: 178868 | I116: 430104 | J116: 842622 | K116: 988782 | L116: 1430789 | M116: 1263727 | N116: 1208039.667 | O116: 1096665 | P116: 931273.62 | Q116: 767536.1538 | R116: 607073.4369 | S116: 462656.9917 | T116: 335570.52 | U116: 227547.019 | V116: 141128.2182 | W116: 71993.17753
B118: New Plant
C119: Opening Balance | G119: =F122 -> 0 | H119: =G122 -> 0 | I119: 0 | J119: 0 | K119: 0 | L119: 0 | M119: 0 | N119: 750000 | O119: 947013.9701 | P119: 1384800 | Q119: 1720800 | R119: 2090400 | S119: 2496960 | T119: 2944176 | U119: 3436113.6 | V119: 3977244.96 | W119: 4572489.456
C120: Add: Capital Expenditures | G120: =G44*NOT(G13) -> 0 | H120: 0 | I120: 0 | J120: 0 | K120: 0 | L120: 0 | M120: 750000 | N120: 197013.9701 | O120: 437786.0299 | P120: 336000 | Q120: 369600 | R120: 406560 | S120: 447216 | T120: 491937.6 | U120: 541131.36 | V120: 595244.496 | W120: 654768.9456
C121: Less: Retirements
C122: Closing Balance | G122: =G119+G120-G121 -> 0 | H122: =H119+H120-H121 -> 0 | I122: 0 | J122: 0 | K122: 0 | L122: 0 | M122: 750000 | N122: 947013.9701 | O122: 1384800 | P122: 1720800 | Q122: 2090400 | R122: 2496960 | S122: 2944176 | T122: 3436113.6 | U122: 3977244.96 | V122: 4572489.456 | W122: 5227258.402
C124: Depeciation Life | G124: =INDEX('Time Series Assumptions'!97:97,'Operating Analysis'!G11) -> 12 | H124: =INDEX('Time Series Assumptions'!97:97,'Operating Analysis'!H11) -> 12 | I124: =INDEX('Time Series Assumptions'!97:97,'Operating Analysis'!I11) -> 12 | J124: =INDEX('Time Series Assumptions'!97:97,'Operating Analysis'!J11) -> 12 | K124: =INDEX('Time Series Assumptions'!97:97,'Operating Analysis'!K11) -> 12 | L124: =INDEX('Time Series Assumptions'!97:97,'Operating Analysis'!L11) -> 12 | M124: =INDEX('Time Series Assumptions'!97:97,'Operating Analysis'!M11) -> 12 | N124: =INDEX('Time Series Assumptions'!97:97,'Operating Analysis'!N11) -> 12 | O124: =INDEX('Time Series Assumptions'!97:97,'Operating Analysis'!O11) -> 12 | P124: =INDEX('Time Series Assumptions'!97:97,'Operating Analysis'!P11) -> 12 | Q124: =INDEX('Time Series Assumptions'!97:97,'Operating Analysis'!Q11) -> 12 | R124: =INDEX('Time Series Assumptions'!97:97,'Operating Analysis'!R11) -> 12 | S124: =INDEX('Time Series Assumptions'!97:97,'Operating Analysis'!S11) -> 12 | T124: =INDEX('Time Series Assumptions'!97:97,'Operating Analysis'!T11) -> 12 | U124: =INDEX('Time Series Assumptions'!97:97,'Operating Analysis'!U11) -> 12 | V124: =INDEX('Time Series Assumptions'!97:97,'Operating Analysis'!V11) -> 12 | W124: =INDEX('Time Series Assumptions'!97:97,'Operating Analysis'!W11) -> 12
C125: Annual Depreciation Rate | G125: =1/G124 -> 0.08333333333 | H125: =1/H124 -> 0.08333333333 | I125: 0.08333333333 | J125: 0.08333333333 | K125: 0.08333333333 | L125: 0.08333333333 | M125: 0.08333333333 | N125: 0.08333333333 | O125: 0.08333333333 | P125: 0.08333333333 | Q125: 0.08333333333 | R125: 0.08333333333 | S125: 0.08333333333 | T125: 0.08333333333 | U125: 0.08333333333 | V125: 0.08333333333 | W125: 0.08333333333
C126: Depreciation Expense | G126: =G125*AVERAGE(G122,G119)*(G9/12) -> 0 | H126: =H125*AVERAGE(H122,H119)*(H9/12) -> 0 | I126: 0 | J126: 0 | K126: 0 | L126: 0 | M126: 31250 | N126: 23569.63847 | O126: 64772.61028 | P126: 129400 | Q126: 158800 | R126: 191140 | S126: 226714 | T126: 265845.4 | U126: 308889.94 | V126: 356238.934 | W126: 408322.8274
C128: Accumulated Depreciation | G128: =F128+G126 -> 0 | H128: =G128+H126 -> 0 | I128: 0 | J128: 0 | K128: 0 | L128: 0 | M128: 31250 | N128: 54819.63847 | O128: 119592.2488 | P128: 248992.2488 | Q128: 407792.2488 | R128: 598932.2488 | S128: 825646.2488 | T128: 1091491.649 | U128: 1400381.589 | V128: 1756620.523 | W128: 2164943.35
C129: Net Plant for New Expenditures | G129: =G122-G128 -> 0 | H129: =H122-H128 -> 0 | I129: 0 | J129: 0 | K129: 0 | L129: 0 | M129: 718750 | N129: 892194.3317 | O129: 1265207.751 | P129: 1471807.751 | Q129: 1682607.751 | R129: 1898027.751 | S129: 2118529.751 | T129: 2344621.951 | U129: 2576863.371 | V129: 2815868.933 | W129: 3062315.051
C131: Total Depreciation New | G131: =G126+G112 -> 0 | H131: =H126+H112 -> 0 | I131: 0 | J131: 0 | K131: 0 | L131: 0 | M131: 198312 | N131: 79256.97181 | O131: 176147.2769 | P131: 294791.38 | Q131: 322537.4662 | R131: 351602.7169 | S131: 371130.4452 | T131: 392931.8718 | U131: 416913.441 | V131: 442657.7348 | W131: 477457.868
C132: Total Net Plant | F132: =F129+F116 -> 29277 | G132: =G129+G116 -> 73778 | H132: =H129+H116 -> 178868 | I132: 430104 | J132: 842622 | K132: 988782 | L132: 1430789 | M132: 1982477 | N132: 2100233.998 | O132: 2361872.751 | P132: 2403081.371 | Q132: 2450143.905 | R132: 2505101.188 | S132: 2581186.743 | T132: 2680192.471 | U132: 2804410.39 | V132: 2956997.151 | W132: 3134308.229
C134: Total Depreciation - Existing and New | F134: =F131*NOT(F13)+F108*F13 -> 0 | G134: 0 | H134: 10210 | I134: 24481 | J134: 61846 | K134: 130746 | L134: 167062 | M134: 198312 | N134: 79256.97181 | O134: 176147.2769 | P134: 294791.38 | Q134: 322537.4662 | R134: 351602.7169 | S134: 371130.4452 | T134: 392931.8718 | U134: 416913.441 | V134: 442657.7348 | W134: 477457.868
A136: Return on Invested Capital
C138: Total Net Plant | F138: =F132 -> 29277 | G138: =G132 -> 73778 | H138: 178868 | I138: 430104 | J138: 842622 | K138: 988782 | L138: 1430789 | M138: 1982477 | N138: 2100233.998 | O138: 2361872.751 | P138: 2403081.371 | Q138: 2450143.905 | R138: 2505101.188 | S138: 2581186.743 | T138: 2680192.471 | U138: 2804410.39 | V138: 2956997.151 | W138: 3134308.229
C139: Total Working Capital | F139: =F99 -> 0 | G139: =G99 -> -4251 | H139: 20509 | I139: 14323 | J139: 42370 | K139: 207843 | L139: 266963 | M139: 272429.7078 | N139: 317697.1687 | O139: 257448.872 | P139: 268112.8059 | Q139: 292891.4458 | R139: 319959.9304 | S139: 344839.4483 | T139: 370942.4425 | U139: 399002.0219 | V139: 429162.8553 | W139: 461580.1014
C140: Invested Capital Adjustments | F140: =INDEX('Time Series Assumptions'!114:114,'Operating Analysis'!F11) -> 906 | G140: =INDEX('Time Series Assumptions'!114:114,'Operating Analysis'!G11) -> -710 | H140: =INDEX('Time Series Assumptions'!114:114,'Operating Analysis'!H11) -> 26687 | I140: =INDEX('Time Series Assumptions'!114:114,'Operating Analysis'!I11) -> 133847 | J140: =INDEX('Time Series Assumptions'!114:114,'Operating Analysis'!J11) -> 79139 | K140: =INDEX('Time Series Assumptions'!114:114,'Operating Analysis'!K11) -> 489023 | L140: =INDEX('Time Series Assumptions'!114:114,'Operating Analysis'!L11) -> 811563 | M140: =INDEX('Time Series Assumptions'!114:114,'Operating Analysis'!M11) -> 811563 | N140: =INDEX('Time Series Assumptions'!114:114,'Operating Analysis'!N11) -> 811563 | O140: =INDEX('Time Series Assumptions'!114:114,'Operating Analysis'!O11) -> 811563 | P140: =INDEX('Time Series Assumptions'!114:114,'Operating Analysis'!P11) -> 811563 | Q140: =INDEX('Time Series Assumptions'!114:114,'Operating Analysis'!Q11) -> 811563 | R140: =INDEX('Time Series Assumptions'!114:114,'Operating Analysis'!R11) -> 811563 | S140: =INDEX('Time Series Assumptions'!114:114,'Operating Analysis'!S11) -> 811563 | T140: =INDEX('Time Series Assumptions'!114:114,'Operating Analysis'!T11) -> 811563 | U140: =INDEX('Time Series Assumptions'!114:114,'Operating Analysis'!U11) -> 811563 | V140: =INDEX('Time Series Assumptions'!114:114,'Operating Analysis'!V11) -> 811563 | W140: =INDEX('Time Series Assumptions'!114:114,'Operating Analysis'!W11) -> 811563
D141: Total Invested Capital | F141: =F138+F139+F140 -> 30183 | G141: =G138+G139+G140 -> 68817 | H141: 226064 | I141: 578274 | J141: 964131 | K141: 1685648 | L141: 2509315 | M141: 3066469.708 | N141: 3229494.167 | O141: 3430884.623 | P141: 3482757.177 | Q141: 3554598.351 | R141: 3636624.119 | S141: 3737589.191 | T141: 3862697.914 | U141: 4014975.412 | V141: 4197723.007 | W141: 4407451.33
D142: Average Invested Capital | F142: =AVERAGE(E141,F141) -> 30183 | G142: =AVERAGE(F141,G141) -> 49500 | H142: 147440.5 | I142: 402169 | J142: 771202.5 | K142: 1324889.5 | L142: 2097481.5 | M142: 2787892.354 | N142: 3147981.937 | O142: 3330189.395 | P142: 3456820.9 | Q142: 3518677.764 | R142: 3595611.235 | S142: 3687106.655 | T142: 3800143.553 | U142: 3938836.663 | V142: 4106349.209 | W142: 4302587.169
C144: EBITDA | F144: =F27-F62 -> -16781 | G144: =G27-G62 -> -4790 | H144: 13020 | I144: 161662 | J144: 500185 | K144: 810361 | L144: 915965 | M144: 1049846.661 | N144: 375702.5366 | O144: 469844.5292 | P144: 664377.8762 | Q144: 725685.8297 | R144: 792650.069 | S144: 853955.0224 | T144: 874219.5206 | U144: 891430.2503 | V144: 904885.5777 | W144: 913782.7974
C145: Less: Depreciation | F145: =F134 -> 0 | G145: =G134 -> 0 | H145: 10210 | I145: 24481 | J145: 61846 | K145: 130746 | L145: 167062 | M145: 198312 | N145: 79256.97181 | O145: 176147.2769 | P145: 294791.38 | Q145: 322537.4662 | R145: 351602.7169 | S145: 371130.4452 | T145: 392931.8718 | U145: 416913.441 | V145: 442657.7348 | W145: 477457.868
C146: EBIT | F146: =F144-F145 -> -16781 | G146: =G144-G145 -> -4790 | H146: 2810 | I146: 137181 | J146: 438339 | K146: 679615 | L146: 748903 | M146: 851534.6608 | N146: 296445.5648 | O146: 293697.2522 | P146: 369586.4962 | Q146: 403148.3635 | R146: 441047.3521 | S146: 482824.5772 | T146: 481287.6488 | U146: 474516.8093 | V146: 462227.8429 | W146: 436324.9294
C147: Tax Rate | F147: =INDEX('Time Series Assumptions'!102:102,'Operating Analysis'!F11) -> 0.15 | G147: =INDEX('Time Series Assumptions'!102:102,'Operating Analysis'!G11) -> 0.15 | H147: =INDEX('Time Series Assumptions'!102:102,'Operating Analysis'!H11) -> 0.15 | I147: =INDEX('Time Series Assumptions'!102:102,'Operating Analysis'!I11) -> 0.15 | J147: =INDEX('Time Series Assumptions'!102:102,'Operating Analysis'!J11) -> 0.15 | K147: =INDEX('Time Series Assumptions'!102:102,'Operating Analysis'!K11) -> 0.15 | L147: =INDEX('Time Series Assumptions'!102:102,'Operating Analysis'!L11) -> 0.15 | M147: =INDEX('Time Series Assumptions'!102:102,'Operating Analysis'!M11) -> 0.15 | N147: =INDEX('Time Series Assumptions'!102:102,'Operating Analysis'!N11) -> 0.15 | O147: =INDEX('Time Series Assumptions'!102:102,'Operating Analysis'!O11) -> 0.15 | P147: =INDEX('Time Series Assumptions'!102:102,'Operating Analysis'!P11) -> 0.15 | Q147: =INDEX('Time Series Assumptions'!102:102,'Operating Analysis'!Q11) -> 0.15 | R147: =INDEX('Time Series Assumptions'!102:102,'Operating Analysis'!R11) -> 0.15 | S147: =INDEX('Time Series Assumptions'!102:102,'Operating Analysis'!S11) -> 0.15 | T147: =INDEX('Time Series Assumptions'!102:102,'Operating Analysis'!T11) -> 0.15 | U147: =INDEX('Time Series Assumptions'!102:102,'Operating Analysis'!U11) -> 0.15 | V147: =INDEX('Time Series Assumptions'!102:102,'Operating Analysis'!V11) -> 0.15 | W147: =INDEX('Time Series Assumptions'!102:102,'Operating Analysis'!W11) -> 0.15
C148: NOPLAT | F148: =F146*(1-F147) -> -14263.85 | G148: =G146*(1-G147) -> -4071.5 | H148: 2388.5 | I148: 116603.85 | J148: 372588.15 | K148: 577672.75 | L148: 636567.55 | M148: 723804.4617 | N148: 251978.7301 | O148: 249642.6644 | P148: 314148.5218 | Q148: 342676.109 | R148: 374890.2493 | S148: 410400.8906 | T148: 409094.5015 | U148: 403339.2879 | V148: 392893.6665 | W148: 370876.19
C149: With Partial Year Adjustment | F149: =F148*12/F9 -> -14263.85 | G149: =G148*12/G9 -> -4071.5 | H149: 2388.5 | I149: 116603.85 | J149: 372588.15 | K149: 577672.75 | L149: 636567.55 | M149: 723804.4617 | N149: 755936.1903 | O149: 374463.9966 | P149: 314148.5218 | Q149: 342676.109 | R149: 374890.2493 | S149: 410400.8906 | T149: 409094.5015 | U149: 403339.2879 | V149: 392893.6665 | W149: 370876.19
C151: ROIC | F151: =F149/F142 -> -0.4725789352 | G151: =G149/G142 -> -0.08225252525 | H151: 0.01619975516 | I151: 0.2899374392 | J151: 0.4831262217 | K151: 0.436015796 | L151: 0.3034913776 | M151: 0.2596242501 | N151: 0.2401335857 | O151: 0.1124452553 | P151: 0.0908778704 | Q151: 0.0973877496 | R151: 0.1042632879 | S151: 0.1113070299 | T151: 0.107652381 | U151: 0.1024006128 | V151: 0.09567955535 | W151: 0.08619841398

Sheet Financial Model
A1: FINANCIAL MODEL | F1: =Integrity!D12 -> Model OK
D3: Start Date | F3: ='Operating Analysis'!G4 -> 2005-01-01 | G3: ='Operating Analysis'!H4 -> 2006-01-01 | H3: ='Operating Analysis'!I4 -> 2007-01-01 | I3: ='Operating Analysis'!J4 -> 2008-01-01 | J3: ='Operating Analysis'!K4 -> 2009-01-01 | K3: ='Operating Analysis'!L4 -> 2010-01-01 | L3: ='Operating Analysis'!M4 -> 2011-01-01 | M3: ='Operating Analysis'!N4 -> 2012-01-01 | N3: ='Operating Analysis'!O4 -> 2012-05-01 | O3: ='Operating Analysis'!P4 -> 2013-01-01 | P3: ='Operating Analysis'!Q4 -> 2014-01-01 | Q3: ='Operating Analysis'!R4 -> 2015-01-01 | R3: ='Operating Analysis'!S4 -> 2016-01-01 | S3: ='Operating Analysis'!T4 -> 2017-01-01 | T3: ='Operating Analysis'!U4 -> 2018-01-01 | U3: ='Operating Analysis'!V4 -> 2019-01-01 | V3: ='Operating Analysis'!W4 -> 2020-01-01
D4: End Date | E4: ='Operating Analysis'!F5 -> 2004-12-31 | F4: ='Operating Analysis'!G5 -> 2005-12-31 | G4: ='Operating Analysis'!H5 -> 2006-12-31 | H4: ='Operating Analysis'!I5 -> 2007-12-31 | I4: ='Operating Analysis'!J5 -> 2008-12-31 | J4: ='Operating Analysis'!K5 -> 2009-12-31 | K4: ='Operating Analysis'!L5 -> 2010-12-31 | L4: ='Operating Analysis'!M5 -> 2011-12-31 | M4: ='Operating Analysis'!N5 -> 2012-04-30 | N4: ='Operating Analysis'!O5 -> 2012-12-31 | O4: ='Operating Analysis'!P5 -> 2013-12-31 | P4: ='Operating Analysis'!Q5 -> 2014-12-31 | Q4: ='Operating Analysis'!R5 -> 2015-12-31 | R4: ='Operating Analysis'!S5 -> 2016-12-31 | S4: ='Operating Analysis'!T5 -> 2017-12-31 | T4: ='Operating Analysis'!U5 -> 2018-12-31 | U4: ='Operating Analysis'!V5 -> 2019-12-31 | V4: ='Operating Analysis'!W5 -> 2020-12-31
D5: Year | E5: =YEAR(E4) -> 2004 | F5: =YEAR(F4) -> 2005 | G5: 2006 | H5: 2007 | I5: 2008 | J5: 2009 | K5: 2010 | L5: 2011 | M5: 2012 | N5: 2012 | O5: 2013 | P5: 2014 | Q5: 2015 | R5: 2016 | S5: 2017 | T5: 2018 | U5: 2019 | V5: 2020
D7: Match for Historic Analysis | E7: =MATCH(E5,'Historic Data'!3:3,0) -> 5 | F7: =MATCH(F5,'Historic Data'!3:3,0) -> 6 | G7: =MATCH(G5,'Historic Data'!3:3,0) -> 7 | H7: =MATCH(H5,'Historic Data'!3:3,0) -> 8 | I7: =MATCH(I5,'Historic Data'!3:3,0) -> 9 | J7: =MATCH(J5,'Historic Data'!3:3,0) -> 10 | K7: =MATCH(K5,'Historic Data'!3:3,0) -> 11 | L7: =MATCH(L5,'Historic Data'!3:3,0) ->  | M7: =MATCH(M5,'Historic Data'!3:3,0) ->  | N7: =MATCH(N5,'Historic Data'!3:3,0) ->  | O7: =MATCH(O5,'Historic Data'!3:3,0) ->  | P7: =MATCH(P5,'Historic Data'!3:3,0) ->  | Q7: =MATCH(Q5,'Historic Data'!3:3,0) ->  | R7: =MATCH(R5,'Historic Data'!3:3,0) ->  | S7: =MATCH(S5,'Historic Data'!3:3,0) ->  | T7: =MATCH(T5,'Historic Data'!3:3,0) ->  | U7: =MATCH(U5,'Historic Data'!3:3,0) ->  | V7: =MATCH(V5,'Historic Data'!3:3,0) -> 
D8: Match for Time Series Analysis | E8: ='Operating Analysis'!F11 -> 6 | F8: ='Operating Analysis'!G11 -> 7 | G8: ='Operating Analysis'!H11 -> 8 | H8: ='Operating Analysis'!I11 -> 9 | I8: ='Operating Analysis'!J11 -> 10 | J8: ='Operating Analysis'!K11 -> 11 | K8: ='Operating Analysis'!L11 -> 12 | L8: ='Operating Analysis'!M11 -> 13 | M8: ='Operating Analysis'!N11 -> 14 | N8: ='Operating Analysis'!O11 -> 14 | O8: ='Operating Analysis'!P11 -> 15 | P8: ='Operating Analysis'!Q11 -> 16 | Q8: ='Operating Analysis'!R11 -> 17 | R8: ='Operating Analysis'!S11 -> 18 | S8: ='Operating Analysis'!T11 -> 19 | T8: ='Operating Analysis'!U11 -> 20 | U8: ='Operating Analysis'!V11 -> 21 | V8: ='Operating Analysis'!W11 -> 22
D9: Match of Operating Assumptions | E9: =MATCH(E4,'Operating Analysis'!5:5,0) -> 6 | F9: =MATCH(F4,'Operating Analysis'!5:5,0) -> 7 | G9: =MATCH(G4,'Operating Analysis'!5:5,0) -> 8 | H9: =MATCH(H4,'Operating Analysis'!5:5,0) -> 9 | I9: =MATCH(I4,'Operating Analysis'!5:5,0) -> 10 | J9: =MATCH(J4,'Operating Analysis'!5:5,0) -> 11 | K9: =MATCH(K4,'Operating Analysis'!5:5,0) -> 12 | L9: =MATCH(L4,'Operating Analysis'!5:5,0) -> 13 | M9: =MATCH(M4,'Operating Analysis'!5:5,0) -> 14 | N9: =MATCH(N4,'Operating Analysis'!5:5,0) -> 15 | O9: =MATCH(O4,'Operating Analysis'!5:5,0) -> 16 | P9: =MATCH(P4,'Operating Analysis'!5:5,0) -> 17 | Q9: =MATCH(Q4,'Operating Analysis'!5:5,0) -> 18 | R9: =MATCH(R4,'Operating Analysis'!5:5,0) -> 19 | S9: =MATCH(S4,'Operating Analysis'!5:5,0) -> 20 | T9: =MATCH(T4,'Operating Analysis'!5:5,0) -> 21 | U9: =MATCH(U4,'Operating Analysis'!5:5,0) -> 22 | V9: =MATCH(V4,'Operating Analysis'!5:5,0) -> 23
D10: Days in Period | E10: =INDEX('Operating Analysis'!8:8,'Financial Model'!E9) -> 360 | F10: =INDEX('Operating Analysis'!8:8,'Financial Model'!F9) -> 360 | G10: =INDEX('Operating Analysis'!8:8,'Financial Model'!G9) -> 360 | H10: =INDEX('Operating Analysis'!8:8,'Financial Model'!H9) -> 360 | I10: =INDEX('Operating Analysis'!8:8,'Financial Model'!I9) -> 360 | J10: =INDEX('Operating Analysis'!8:8,'Financial Model'!J9) -> 360 | K10: =INDEX('Operating Analysis'!8:8,'Financial Model'!K9) -> 360 | L10: =INDEX('Operating Analysis'!8:8,'Financial Model'!L9) -> 360 | M10: =INDEX('Operating Analysis'!8:8,'Financial Model'!M9) -> 120 | N10: =INDEX('Operating Analysis'!8:8,'Financial Model'!N9) -> 240 | O10: =INDEX('Operating Analysis'!8:8,'Financial Model'!O9) -> 360 | P10: =INDEX('Operating Analysis'!8:8,'Financial Model'!P9) -> 360 | Q10: =INDEX('Operating Analysis'!8:8,'Financial Model'!Q9) -> 360 | R10: =INDEX('Operating Analysis'!8:8,'Financial Model'!R9) -> 360 | S10: =INDEX('Operating Analysis'!8:8,'Financial Model'!S9) -> 360 | T10: =INDEX('Operating Analysis'!8:8,'Financial Model'!T9) -> 360 | U10: =INDEX('Operating Analysis'!8:8,'Financial Model'!U9) -> 360 | V10: =INDEX('Operating Analysis'!8:8,'Financial Model'!V9) -> 360
D11: Months in Period | E11: =E10/30 -> 12 | F11: =F10/30 -> 12 | G11: 12 | H11: 12 | I11: 12 | J11: 12 | K11: 12 | L11: 12 | M11: 4 | N11: 8 | O11: 12 | P11: 12 | Q11: 12 | R11: 12 | S11: 12 | T11: 12 | U11: 12 | V11: 12
D12: Historic Period | E12: =(E5<='Model Time Line'!$E$30) -> TRUE | F12: =(F5<='Model Time Line'!$E$30) -> TRUE | G12: =(G5<='Model Time Line'!$E$30) -> TRUE | H12: =(H5<='Model Time Line'!$E$30) -> TRUE | I12: =(I5<='Model Time Line'!$E$30) -> TRUE | J12: =(J5<='Model Time Line'!$E$30) -> TRUE | K12: =(K5<='Model Time Line'!$E$30) -> TRUE | L12: =(L5<='Model Time Line'!$E$30) -> FALSE | M12: =(M5<='Model Time Line'!$E$30) -> FALSE | N12: =(N5<='Model Time Line'!$E$30) -> FALSE | O12: =(O5<='Model Time Line'!$E$30) -> FALSE | P12: =(P5<='Model Time Line'!$E$30) -> FALSE | Q12: =(Q5<='Model Time Line'!$E$30) -> FALSE | R12: =(R5<='Model Time Line'!$E$30) -> FALSE | S12: =(S5<='Model Time Line'!$E$30) -> FALSE | T12: =(T5<='Model Time Line'!$E$30) -> FALSE | U12: =(U5<='Model Time Line'!$E$30) -> FALSE | V12: =(V5<='Model Time Line'!$E$30) -> FALSE
A14: Working Analysis and Working Capital
B16: Data from Operating Analysis
D17: Revenues | G17: ='Operating Analysis'!H27 -> 134974 | H17: ='Operating Analysis'!I27 -> 503976 | I17: ='Operating Analysis'!J27 -> 1246301 | J17: ='Operating Analysis'!K27 -> 2066200 | K17: ='Operating Analysis'!L27 -> 2563515 | L17: ='Operating Analysis'!M27 -> 2777746.424 | M17: ='Operating Analysis'!N27 -> 1071853.211 | N17: ='Operating Analysis'!O27 -> 1769590.662 | O17: ='Operating Analysis'!P27 -> 2747289.502 | P17: ='Operating Analysis'!Q27 -> 3001413.781 | Q17: ='Operating Analysis'!R27 -> 3279044.556 | R17: ='Operating Analysis'!S27 -> 3534810.031 | S17: ='Operating Analysis'!T27 -> 3810525.214 | T17: ='Operating Analysis'!U27 -> 4107746.181 | U17: ='Operating Analysis'!V27 -> 4428150.383 | V17: ='Operating Analysis'!W27 -> 4773546.113
D18: Opeating Expenses | G18: ='Operating Analysis'!H62 -> 121954 | H18: ='Operating Analysis'!I62 -> 342314 | I18: ='Operating Analysis'!J62 -> 746116 | J18: ='Operating Analysis'!K62 -> 1255839 | K18: ='Operating Analysis'!L62 -> 1647550 | L18: ='Operating Analysis'!M62 -> 1727899.763 | M18: ='Operating Analysis'!N62 -> 696150.6741 | N18: ='Operating Analysis'!O62 -> 1299746.133 | O18: ='Operating Analysis'!P62 -> 2082911.626 | P18: ='Operating Analysis'!Q62 -> 2275727.952 | Q18: ='Operating Analysis'!R62 -> 2486394.487 | R18: ='Operating Analysis'!S62 -> 2680855.009 | S18: ='Operating Analysis'!T62 -> 2936305.693 | T18: ='Operating Analysis'!U62 -> 3216315.93 | U18: ='Operating Analysis'!V62 -> 3523264.805 | V18: ='Operating Analysis'!W62 -> 3859763.315
D19: EBITDA | G19: =G17-G18 -> 13020 | H19: =H17-H18 -> 161662 | I19: 500185 | J19: 810361 | K19: 915965 | L19: 1049846.661 | M19: 375702.5366 | N19: 469844.5292 | O19: 664377.8762 | P19: 725685.8297 | Q19: 792650.069 | R19: 853955.0224 | S19: 874219.5206 | T19: 891430.2503 | U19: 904885.5777 | V19: 913782.7974
D21: Capital Expenditures | G21: ='Operating Analysis'!H44 -> 153150 | H21: ='Operating Analysis'!I44 -> 242371 | I21: ='Operating Analysis'!J44 -> 459271 | J21: ='Operating Analysis'!K44 -> 279941 | K21: ='Operating Analysis'!L44 -> 588914 | L21: ='Operating Analysis'!M44 -> 750000 | M21: ='Operating Analysis'!N44 -> 197013.9701 | N21: ='Operating Analysis'!O44 -> 437786.0299 | O21: ='Operating Analysis'!P44 -> 336000 | P21: ='Operating Analysis'!Q44 -> 369600 | Q21: ='Operating Analysis'!R44 -> 406560 | R21: ='Operating Analysis'!S44 -> 447216 | S21: ='Operating Analysis'!T44 -> 491937.6 | T21: ='Operating Analysis'!U44 -> 541131.36 | U21: ='Operating Analysis'!V44 -> 595244.496 | V21: ='Operating Analysis'!W44 -> 654768.9456
D23: Accounts Receivable | G23: ='Operating Analysis'!H70 -> 27966 | H23: ='Operating Analysis'!I70 -> 58369 | I23: ='Operating Analysis'!J70 -> 183257 | J23: ='Operating Analysis'!K70 -> 226884 | K23: ='Operating Analysis'!L70 -> 307019 | L23: ='Operating Analysis'!M70 -> 332676.3952 | M23: ='Operating Analysis'!N70 -> 385111.0303 | N23: ='Operating Analysis'!O70 -> 317902.1512 | O23: ='Operating Analysis'!P70 -> 329028.7265 | P23: ='Operating Analysis'!Q70 -> 359463.8837 | Q23: ='Operating Analysis'!R70 -> 392714.2929 | R23: ='Operating Analysis'!S70 -> 423346.0077 | S23: ='Operating Analysis'!T70 -> 456366.9964 | T23: ='Operating Analysis'!U70 -> 491963.6221 | U23: ='Operating Analysis'!V70 -> 530336.7846 | V23: ='Operating Analysis'!W70 -> 571703.0538
D24: Inventories | G24: ='Operating Analysis'!H75 -> 16510 | H24: ='Operating Analysis'!I75 -> 8674 | I24: ='Operating Analysis'!J75 -> 15417 | J24: ='Operating Analysis'!K75 -> 174516 | K24: ='Operating Analysis'!L75 -> 243170 | L24: ='Operating Analysis'!M75 -> 245408.8173 | M24: ='Operating Analysis'!N75 -> 307379.51 | N24: ='Operating Analysis'!O75 -> 297046.1885 | O24: ='Operating Analysis'!P75 -> 324522.9609 | P24: ='Operating Analysis'!Q75 -> 354541.3348 | Q24: ='Operating Analysis'!R75 -> 387336.4082 | R24: ='Operating Analysis'!S75 -> 417548.6481 | S24: ='Operating Analysis'!T75 -> 459303.5129 | T24: ='Operating Analysis'!U75 -> 505233.8642 | U24: ='Operating Analysis'!V75 -> 555757.2506 | V24: ='Operating Analysis'!W75 -> 611332.9756
D25: Prepaid Expenses | G25: ='Operating Analysis'!H80 -> 8116 | H25: ='Operating Analysis'!I80 -> 64780 | I25: ='Operating Analysis'!J80 -> 90584 | J25: ='Operating Analysis'!K80 -> 164071 | K25: ='Operating Analysis'!L80 -> 143033 | L25: ='Operating Analysis'!M80 -> 154986.1827 | M25: ='Operating Analysis'!N80 -> 179414.2577 | N25: ='Operating Analysis'!O80 -> 148103.2066 | O25: ='Operating Analysis'!P80 -> 153286.8188 | P25: ='Operating Analysis'!Q80 -> 167465.8496 | Q25: ='Operating Analysis'!R80 -> 182956.4407 | R25: ='Operating Analysis'!S80 -> 197227.043 | S25: ='Operating Analysis'!T80 -> 212610.7524 | T25: ='Operating Analysis'!U80 -> 229194.3911 | U25: ='Operating Analysis'!V80 -> 247071.5536 | V25: ='Operating Analysis'!W80 -> 266343.1348
D27: Accounts Payable | G27: ='Operating Analysis'!H85 -> 32083 | H27: ='Operating Analysis'!I85 -> 26441 | I27: ='Operating Analysis'!J85 -> 46251 | J27: ='Operating Analysis'!K85 -> 75744 | K27: ='Operating Analysis'!L85 -> 82312 | L27: ='Operating Analysis'!M85 -> 83069.83003 | M27: ='Operating Analysis'!N85 -> 104046.6432 | N27: ='Operating Analysis'!O85 -> 100548.8583 | O27: ='Operating Analysis'!P85 -> 109849.6277 | P27: ='Operating Analysis'!Q85 -> 120010.7182 | Q27: ='Operating Analysis'!R85 -> 131111.7096 | R27: ='Operating Analysis'!S85 -> 141338.423 | S27: ='Operating Analysis'!T85 -> 155472.2653 | T27: ='Operating Analysis'!U85 -> 171019.4918 | U27: ='Operating Analysis'!V85 -> 188121.441 | V27: ='Operating Analysis'!W85 -> 206933.5851
D28: Accrued Expenses | G28: ='Operating Analysis'!H90 -> 0 | H28: ='Operating Analysis'!I90 -> 76256 | I28: ='Operating Analysis'!J90 -> 140899 | J28: ='Operating Analysis'!K90 -> 193277 | K28: ='Operating Analysis'!L90 -> 244271 | L28: ='Operating Analysis'!M90 -> 256183.9112 | M28: ='Operating Analysis'!N90 -> 309640.5353 | N28: ='Operating Analysis'!O90 -> 289056.7396 | O28: ='Operating Analysis'!P90 -> 308819.0986 | P28: ='Operating Analysis'!Q90 -> 337406.6599 | Q28: ='Operating Analysis'!R90 -> 368640.7501 | R28: ='Operating Analysis'!S90 -> 397472.0852 | S28: ='Operating Analysis'!T90 -> 435346.0156 | T28: ='Operating Analysis'!U90 -> 476861.2234 | U28: ='Operating Analysis'!V90 -> 522370.4392 | V28: ='Operating Analysis'!W90 -> 572260.778
D29: Other Liabilities | G29: ='Operating Analysis'!H95 -> 0 | H29: ='Operating Analysis'!I95 -> 14803 | I29: ='Operating Analysis'!J95 -> 59738 | J29: ='Operating Analysis'!K95 -> 88607 | K29: ='Operating Analysis'!L95 -> 99676 | L29: ='Operating Analysis'!M95 -> 121387.9462 | M29: ='Operating Analysis'!N95 -> 140520.4508 | N29: ='Operating Analysis'!O95 -> 115997.0764 | O29: ='Operating Analysis'!P95 -> 120056.974 | P29: ='Operating Analysis'!Q95 -> 131162.2441 | Q29: ='Operating Analysis'!R95 -> 143294.7517 | R29: ='Operating Analysis'!S95 -> 154471.7423 | S29: ='Operating Analysis'!T95 -> 166520.5383 | T29: ='Operating Analysis'!U95 -> 179509.1402 | U29: ='Operating Analysis'!V95 -> 193510.8532 | V29: ='Operating Analysis'!W95 -> 208604.6997
D30: Income Tax Payable | G30: =IF(G12,INDEX('Historic Data'!196:196,G7),F30) -> 340 | H30: =IF(H12,INDEX('Historic Data'!196:196,H7),G30) -> 24487 | I30: =IF(I12,INDEX('Historic Data'!196:196,I7),H30) -> 99938 | J30: =IF(J12,INDEX('Historic Data'!196:196,J7),I30) -> 8740 | K30: =IF(K12,INDEX('Historic Data'!196:196,K7),J30) -> 16831 | L30: =IF(L12,INDEX('Historic Data'!196:196,L7),K30) -> 16831 | M30: =IF(M12,INDEX('Historic Data'!196:196,M7),L30) -> 16831 | N30: =IF(N12,INDEX('Historic Data'!196:196,N7),M30) -> 16831 | O30: =IF(O12,INDEX('Historic Data'!196:196,O7),N30) -> 16831 | P30: =IF(P12,INDEX('Historic Data'!196:196,P7),O30) -> 16831 | Q30: =IF(Q12,INDEX('Historic Data'!196:196,Q7),P30) -> 16831 | R30: =IF(R12,INDEX('Historic Data'!196:196,R7),Q30) -> 16831 | S30: =IF(S12,INDEX('Historic Data'!196:196,S7),R30) -> 16831 | T30: =IF(T12,INDEX('Historic Data'!196:196,T7),S30) -> 16831 | U30: =IF(U12,INDEX('Historic Data'!196:196,U7),T30) -> 16831 | V30: =IF(V12,INDEX('Historic Data'!196:196,V7),U30) -> 16831
D32: Change in Working Capital | G32: ='Operating Analysis'!H100 -> 24760 | H32: ='Operating Analysis'!I100 -> -6186 | I32: ='Operating Analysis'!J100 -> 28047 | J32: ='Operating Analysis'!K100 -> 165473 | K32: ='Operating Analysis'!L100 -> 59120 | L32: ='Operating Analysis'!M100 -> 5466.707751 | M32: ='Operating Analysis'!N100 -> 45267.46092 | N32: ='Operating Analysis'!O100 -> -60248.29666 | O32: ='Operating Analysis'!P100 -> 10663.93393 | P32: ='Operating Analysis'!Q100 -> 24778.63986 | Q32: ='Operating Analysis'!R100 -> 27068.48458 | R32: ='Operating Analysis'!S100 -> 24879.51796 | S32: ='Operating Analysis'!T100 -> 26102.99413 | T32: ='Operating Analysis'!U100 -> 28059.57939 | U32: ='Operating Analysis'!V100 -> 30160.83347 | V32: ='Operating Analysis'!W100 -> 32417.24606
A34: Depreciation Analysis and Other Assets and Liabilities
B36: Depreciation and Net Plant
C37: Total Depreciation Expense | G37: =INDEX('Operating Analysis'!134:134,G9) -> 10210 | H37: =INDEX('Operating Analysis'!134:134,H9) -> 24481 | I37: =INDEX('Operating Analysis'!134:134,I9) -> 61846 | J37: =INDEX('Operating Analysis'!134:134,J9) -> 130746 | K37: =INDEX('Operating Analysis'!134:134,K9) -> 167062 | L37: =INDEX('Operating Analysis'!134:134,L9) -> 198312 | M37: =INDEX('Operating Analysis'!134:134,M9) -> 79256.97181 | N37: =INDEX('Operating Analysis'!134:134,N9) -> 176147.2769 | O37: =INDEX('Operating Analysis'!134:134,O9) -> 294791.38 | P37: =INDEX('Operating Analysis'!134:134,P9) -> 322537.4662 | Q37: =INDEX('Operating Analysis'!134:134,Q9) -> 351602.7169 | R37: =INDEX('Operating Analysis'!134:134,R9) -> 371130.4452 | S37: =INDEX('Operating Analysis'!134:134,S9) -> 392931.8718 | T37: =INDEX('Operating Analysis'!134:134,T9) -> 416913.441 | U37: =INDEX('Operating Analysis'!134:134,U9) -> 442657.7348 | V37: =INDEX('Operating Analysis'!134:134,V9) -> 477457.868
C38: Total Net Plant | G38: =INDEX('Operating Analysis'!132:132,G9) -> 178868 | H38: =INDEX('Operating Analysis'!132:132,H9) -> 430104 | I38: =INDEX('Operating Analysis'!132:132,I9) -> 842622 | J38: =INDEX('Operating Analysis'!132:132,J9) -> 988782 | K38: =INDEX('Operating Analysis'!132:132,K9) -> 1430789 | L38: =INDEX('Operating Analysis'!132:132,L9) -> 1982477 | M38: =INDEX('Operating Analysis'!132:132,M9) -> 2100233.998 | N38: =INDEX('Operating Analysis'!132:132,N9) -> 2361872.751 | O38: =INDEX('Operating Analysis'!132:132,O9) -> 2403081.371 | P38: =INDEX('Operating Analysis'!132:132,P9) -> 2450143.905 | Q38: =INDEX('Operating Analysis'!132:132,Q9) -> 2505101.188 | R38: =INDEX('Operating Analysis'!132:132,R9) -> 2581186.743 | S38: =INDEX('Operating Analysis'!132:132,S9) -> 2680192.471 | T38: =INDEX('Operating Analysis'!132:132,T9) -> 2804410.39 | U38: =INDEX('Operating Analysis'!132:132,U9) -> 2956997.151 | V38: =INDEX('Operating Analysis'!132:132,V9) -> 3134308.229
B40: Other Assets, Liabilities and Other Income
C41: Project Assets | G41: =INDEX('Time Series Assumptions'!106:106,'Financial Model'!G$8) -> 27515 | H41: =INDEX('Time Series Assumptions'!106:106,'Financial Model'!H$8) -> 87688 | I41: =INDEX('Time Series Assumptions'!106:106,'Financial Model'!I$8) -> 61993 | J41: =INDEX('Time Series Assumptions'!106:106,'Financial Model'!J$8) -> 132496 | K41: =INDEX('Time Series Assumptions'!106:106,'Financial Model'!K$8) -> 320140 | L41: =INDEX('Time Series Assumptions'!106:106,'Financial Model'!L$8) -> 320140 | M41: =INDEX('Time Series Assumptions'!106:106,'Financial Model'!M$8) -> 320140 | N41: =INDEX('Time Series Assumptions'!106:106,'Financial Model'!N$8) -> 320140 | O41: =INDEX('Time Series Assumptions'!106:106,'Financial Model'!O$8) -> 320140 | P41: =INDEX('Time Series Assumptions'!106:106,'Financial Model'!P$8) -> 320140 | Q41: =INDEX('Time Series Assumptions'!106:106,'Financial Model'!Q$8) -> 320140 | R41: =INDEX('Time Series Assumptions'!106:106,'Financial Model'!R$8) -> 320140 | S41: =INDEX('Time Series Assumptions'!106:106,'Financial Model'!S$8) -> 320140 | T41: =INDEX('Time Series Assumptions'!106:106,'Financial Model'!T$8) -> 320140 | U41: =INDEX('Time Series Assumptions'!106:106,'Financial Model'!U$8) -> 320140 | V41: =INDEX('Time Series Assumptions'!106:106,'Financial Model'!V$8) -> 320140
C42: Deferred Tax Assets | G42: =INDEX('Time Series Assumptions'!107:107,'Financial Model'!G$8) -> 0 | H42: =INDEX('Time Series Assumptions'!107:107,'Financial Model'!H$8) -> 36603 | I42: =INDEX('Time Series Assumptions'!107:107,'Financial Model'!I$8) -> 39481 | J42: =INDEX('Time Series Assumptions'!107:107,'Financial Model'!J$8) -> 152194 | K42: =INDEX('Time Series Assumptions'!107:107,'Financial Model'!K$8) -> 259624 | L42: =INDEX('Time Series Assumptions'!107:107,'Financial Model'!L$8) -> 259624 | M42: =INDEX('Time Series Assumptions'!107:107,'Financial Model'!M$8) -> 259624 | N42: =INDEX('Time Series Assumptions'!107:107,'Financial Model'!N$8) -> 259624 | O42: =INDEX('Time Series Assumptions'!107:107,'Financial Model'!O$8) -> 259624 | P42: =INDEX('Time Series Assumptions'!107:107,'Financial Model'!P$8) -> 259624 | Q42: =INDEX('Time Series Assumptions'!107:107,'Financial Model'!Q$8) -> 259624 | R42: =INDEX('Time Series Assumptions'!107:107,'Financial Model'!R$8) -> 259624 | S42: =INDEX('Time Series Assumptions'!107:107,'Financial Model'!S$8) -> 259624 | T42: =INDEX('Time Series Assumptions'!107:107,'Financial Model'!T$8) -> 259624 | U42: =INDEX('Time Series Assumptions'!107:107,'Financial Model'!U$8) -> 259624 | V42: =INDEX('Time Series Assumptions'!107:107,'Financial Model'!V$8) -> 259624
C43: Investment in Related Property | G43: =INDEX('Time Series Assumptions'!108:108,'Financial Model'!G$8) -> 0 | H43: =INDEX('Time Series Assumptions'!108:108,'Financial Model'!H$8) -> 33449 | I43: =INDEX('Time Series Assumptions'!108:108,'Financial Model'!I$8) -> 33829 | J43: =INDEX('Time Series Assumptions'!108:108,'Financial Model'!J$8) -> 25000 | K43: =INDEX('Time Series Assumptions'!108:108,'Financial Model'!K$8) -> 0 | L43: =INDEX('Time Series Assumptions'!108:108,'Financial Model'!L$8) -> 0 | M43: =INDEX('Time Series Assumptions'!108:108,'Financial Model'!M$8) -> 0 | N43: =INDEX('Time Series Assumptions'!108:108,'Financial Model'!N$8) -> 0 | O43: =INDEX('Time Series Assumptions'!108:108,'Financial Model'!O$8) -> 0 | P43: =INDEX('Time Series Assumptions'!108:108,'Financial Model'!P$8) -> 0 | Q43: =INDEX('Time Series Assumptions'!108:108,'Financial Model'!Q$8) -> 0 | R43: =INDEX('Time Series Assumptions'!108:108,'Financial Model'!R$8) -> 0 | S43: =INDEX('Time Series Assumptions'!108:108,'Financial Model'!S$8) -> 0 | T43: =INDEX('Time Series Assumptions'!108:108,'Financial Model'!T$8) -> 0 | U43: =INDEX('Time Series Assumptions'!108:108,'Financial Model'!U$8) -> 0 | V43: =INDEX('Time Series Assumptions'!108:108,'Financial Model'!V$8) -> 0
C44: Goodwilll | G44: =INDEX('Time Series Assumptions'!109:109,'Financial Model'!G$8) -> 0 | H44: =INDEX('Time Series Assumptions'!109:109,'Financial Model'!H$8) -> 0 | I44: =INDEX('Time Series Assumptions'!109:109,'Financial Model'!I$8) -> 0 | J44: =INDEX('Time Series Assumptions'!109:109,'Financial Model'!J$8) -> 286515 | K44: =INDEX('Time Series Assumptions'!109:109,'Financial Model'!K$8) -> 433288 | L44: =INDEX('Time Series Assumptions'!109:109,'Financial Model'!L$8) -> 433288 | M44: =INDEX('Time Series Assumptions'!109:109,'Financial Model'!M$8) -> 433288 | N44: =INDEX('Time Series Assumptions'!109:109,'Financial Model'!N$8) -> 433288 | O44: =INDEX('Time Series Assumptions'!109:109,'Financial Model'!O$8) -> 433288 | P44: =INDEX('Time Series Assumptions'!109:109,'Financial Model'!P$8) -> 433288 | Q44: =INDEX('Time Series Assumptions'!109:109,'Financial Model'!Q$8) -> 433288 | R44: =INDEX('Time Series Assumptions'!109:109,'Financial Model'!R$8) -> 433288 | S44: =INDEX('Time Series Assumptions'!109:109,'Financial Model'!S$8) -> 433288 | T44: =INDEX('Time Series Assumptions'!109:109,'Financial Model'!T$8) -> 433288 | U44: =INDEX('Time Series Assumptions'!109:109,'Financial Model'!U$8) -> 433288 | V44: =INDEX('Time Series Assumptions'!109:109,'Financial Model'!V$8) -> 433288
C45: Other Assets
C47: Accrued Liability | G47: =-INDEX('Time Series Assumptions'!111:111,'Financial Model'!G$8) -> 3724 | H47: =-INDEX('Time Series Assumptions'!111:111,'Financial Model'!H$8) -> 13079 | I47: =-INDEX('Time Series Assumptions'!111:111,'Financial Model'!I$8) -> 35238 | J47: =-INDEX('Time Series Assumptions'!111:111,'Financial Model'!J$8) -> 92799 | K47: =-INDEX('Time Series Assumptions'!111:111,'Financial Model'!K$8) -> 132951 | L47: =-INDEX('Time Series Assumptions'!111:111,'Financial Model'!L$8) -> 132951 | M47: =-INDEX('Time Series Assumptions'!111:111,'Financial Model'!M$8) -> 132951 | N47: =-INDEX('Time Series Assumptions'!111:111,'Financial Model'!N$8) -> 132951 | O47: =-INDEX('Time Series Assumptions'!111:111,'Financial Model'!O$8) -> 132951 | P47: =-INDEX('Time Series Assumptions'!111:111,'Financial Model'!P$8) -> 132951 | Q47: =-INDEX('Time Series Assumptions'!111:111,'Financial Model'!Q$8) -> 132951 | R47: =-INDEX('Time Series Assumptions'!111:111,'Financial Model'!R$8) -> 132951 | S47: =-INDEX('Time Series Assumptions'!111:111,'Financial Model'!S$8) -> 132951 | T47: =-INDEX('Time Series Assumptions'!111:111,'Financial Model'!T$8) -> 132951 | U47: =-INDEX('Time Series Assumptions'!111:111,'Financial Model'!U$8) -> 132951 | V47: =-INDEX('Time Series Assumptions'!111:111,'Financial Model'!V$8) -> 132951
C48: Other Liabiilities | G48: =-INDEX('Time Series Assumptions'!112:112,'Financial Model'!G$8) -> 0 | H48: =-INDEX('Time Series Assumptions'!112:112,'Financial Model'!H$8) -> 10814 | I48: =-INDEX('Time Series Assumptions'!112:112,'Financial Model'!I$8) -> 20926 | J48: =-INDEX('Time Series Assumptions'!112:112,'Financial Model'!J$8) -> 62600 | K48: =-INDEX('Time Series Assumptions'!112:112,'Financial Model'!K$8) -> 112026 | L48: =-INDEX('Time Series Assumptions'!112:112,'Financial Model'!L$8) -> 112026 | M48: =-INDEX('Time Series Assumptions'!112:112,'Financial Model'!M$8) -> 112026 | N48: =-INDEX('Time Series Assumptions'!112:112,'Financial Model'!N$8) -> 112026 | O48: =-INDEX('Time Series Assumptions'!112:112,'Financial Model'!O$8) -> 112026 | P48: =-INDEX('Time Series Assumptions'!112:112,'Financial Model'!P$8) -> 112026 | Q48: =-INDEX('Time Series Assumptions'!112:112,'Financial Model'!Q$8) -> 112026 | R48: =-INDEX('Time Series Assumptions'!112:112,'Financial Model'!R$8) -> 112026 | S48: =-INDEX('Time Series Assumptions'!112:112,'Financial Model'!S$8) -> 112026 | T48: =-INDEX('Time Series Assumptions'!112:112,'Financial Model'!T$8) -> 112026 | U48: =-INDEX('Time Series Assumptions'!112:112,'Financial Model'!U$8) -> 112026 | V48: =-INDEX('Time Series Assumptions'!112:112,'Financial Model'!V$8) -> 112026
C50: Other Income | G50: =INDEX('Time Series Assumptions'!116:116,'Financial Model'!G8) -> -799 | H50: =INDEX('Time Series Assumptions'!116:116,'Financial Model'!H8) -> -1219 | I50: =INDEX('Time Series Assumptions'!116:116,'Financial Model'!I8) -> -934 | J50: =INDEX('Time Series Assumptions'!116:116,'Financial Model'!J8) -> -2985 | K50: =INDEX('Time Series Assumptions'!116:116,'Financial Model'!K8) -> 2273 | L50: =INDEX('Time Series Assumptions'!116:116,'Financial Model'!L8) -> 2273 | M50: =INDEX('Time Series Assumptions'!116:116,'Financial Model'!M8) -> 2273 | N50: =INDEX('Time Series Assumptions'!116:116,'Financial Model'!N8) -> 2273 | O50: =INDEX('Time Series Assumptions'!116:116,'Financial Model'!O8) -> 2273 | P50: =INDEX('Time Series Assumptions'!116:116,'Financial Model'!P8) -> 2273 | Q50: =INDEX('Time Series Assumptions'!116:116,'Financial Model'!Q8) -> 2273 | R50: =INDEX('Time Series Assumptions'!116:116,'Financial Model'!R8) -> 2273 | S50: =INDEX('Time Series Assumptions'!116:116,'Financial Model'!S8) -> 2273 | T50: =INDEX('Time Series Assumptions'!116:116,'Financial Model'!T8) -> 2273 | U50: =INDEX('Time Series Assumptions'!116:116,'Financial Model'!U8) -> 2273 | V50: =INDEX('Time Series Assumptions'!116:116,'Financial Model'!V8) -> 2273
C51: Gains from Foreign Exchange | G51: =INDEX('Time Series Assumptions'!117:117,'Financial Model'!G8) -> 5544 | H51: =INDEX('Time Series Assumptions'!117:117,'Financial Model'!H8) -> 1881 | I51: =INDEX('Time Series Assumptions'!117:117,'Financial Model'!I8) -> 5722 | J51: =INDEX('Time Series Assumptions'!117:117,'Financial Model'!J8) -> 5207 | K51: =INDEX('Time Series Assumptions'!117:117,'Financial Model'!K8) -> -3468 | L51: =INDEX('Time Series Assumptions'!117:117,'Financial Model'!L8) -> 0 | M51: =INDEX('Time Series Assumptions'!117:117,'Financial Model'!M8) -> 0 | N51: =INDEX('Time Series Assumptions'!117:117,'Financial Model'!N8) -> 0 | O51: =INDEX('Time Series Assumptions'!117:117,'Financial Model'!O8) -> 0 | P51: =INDEX('Time Series Assumptions'!117:117,'Financial Model'!P8) -> 0 | Q51: =INDEX('Time Series Assumptions'!117:117,'Financial Model'!Q8) -> 0 | R51: =INDEX('Time Series Assumptions'!117:117,'Financial Model'!R8) -> 0 | S51: =INDEX('Time Series Assumptions'!117:117,'Financial Model'!S8) -> 0 | T51: =INDEX('Time Series Assumptions'!117:117,'Financial Model'!T8) -> 0 | U51: =INDEX('Time Series Assumptions'!117:117,'Financial Model'!U8) -> 0 | V51: =INDEX('Time Series Assumptions'!117:117,'Financial Model'!V8) -> 0
C52: Stock Based Compensation | G52: =INDEX('Time Series Assumptions'!119:119,'Financial Model'!G8) -> 11897 | H52: =INDEX('Time Series Assumptions'!119:119,'Financial Model'!H8) -> 38965 | I52: =INDEX('Time Series Assumptions'!119:119,'Financial Model'!I8) -> 58944 | J52: =INDEX('Time Series Assumptions'!119:119,'Financial Model'!J8) -> 88745 | K52: =INDEX('Time Series Assumptions'!119:119,'Financial Model'!K8) -> 99622 | L52: =INDEX('Time Series Assumptions'!119:119,'Financial Model'!L8) -> 99622 | M52: =INDEX('Time Series Assumptions'!119:119,'Financial Model'!M8) -> 99622 | N52: =INDEX('Time Series Assumptions'!119:119,'Financial Model'!N8) -> 99622 | O52: =INDEX('Time Series Assumptions'!119:119,'Financial Model'!O8) -> 99622 | P52: =INDEX('Time Series Assumptions'!119:119,'Financial Model'!P8) -> 99622 | Q52: =INDEX('Time Series Assumptions'!119:119,'Financial Model'!Q8) -> 99622 | R52: =INDEX('Time Series Assumptions'!119:119,'Financial Model'!R8) -> 99622 | S52: =INDEX('Time Series Assumptions'!119:119,'Financial Model'!S8) -> 99622 | T52: =INDEX('Time Series Assumptions'!119:119,'Financial Model'!T8) -> 99622 | U52: =INDEX('Time Series Assumptions'!119:119,'Financial Model'!U8) -> 99622 | V52: =INDEX('Time Series Assumptions'!119:119,'Financial Model'!V8) -> 99622
B54: Historic Cash, Debt and Interest Expense
D55: Suplus Cash | E55: =IF(E12,INDEX('Historic Data'!180:180,'Financial Model'!E7)) -> 3771 | F55: =IF(F12,INDEX('Historic Data'!180:180,'Financial Model'!F7)) -> 18300 | G55: =IF(G12,INDEX('Historic Data'!180:180,'Financial Model'!G7)) -> 316639 | H55: =IF(H12,INDEX('Historic Data'!180:180,'Financial Model'!H7)) -> 651645 | I55: =IF(I12,INDEX('Historic Data'!180:180,'Financial Model'!I7)) -> 847319 | J55: =IF(J12,INDEX('Historic Data'!180:180,'Financial Model'!J7)) -> 1150837 | K55: =IF(K12,INDEX('Historic Data'!180:180,'Financial Model'!K7)) -> 1199852 | L55: =IF(L12,INDEX('Historic Data'!180:180,'Financial Model'!L7)) -> FALSE | M55: =IF(M12,INDEX('Historic Data'!180:180,'Financial Model'!M7)) -> FALSE | N55: =IF(N12,INDEX('Historic Data'!180:180,'Financial Model'!N7)) -> FALSE | O55: =IF(O12,INDEX('Historic Data'!180:180,'Financial Model'!O7)) -> FALSE | P55: =IF(P12,INDEX('Historic Data'!180:180,'Financial Model'!P7)) -> FALSE | Q55: =IF(Q12,INDEX('Historic Data'!180:180,'Financial Model'!Q7)) -> FALSE | R55: =IF(R12,INDEX('Historic Data'!180:180,'Financial Model'!R7)) -> FALSE | S55: =IF(S12,INDEX('Historic Data'!180:180,'Financial Model'!S7)) -> FALSE | T55: =IF(T12,INDEX('Historic Data'!180:180,'Financial Model'!T7)) -> FALSE | U55: =IF(U12,INDEX('Historic Data'!180:180,'Financial Model'!U7)) -> FALSE | V55: =IF(V12,INDEX('Historic Data'!180:180,'Financial Model'!V7)) -> FALSE
D56: Short-term Debt | E56: =IF(E12,INDEX('Historic Data'!198:198,'Financial Model'!E7)) -> 0 | F56: =IF(F12,INDEX('Historic Data'!198:198,'Financial Model'!F7)) -> 20000 | G56: =IF(G12,INDEX('Historic Data'!198:198,'Financial Model'!G7)) -> 16339 | H56: =IF(H12,INDEX('Historic Data'!198:198,'Financial Model'!H7)) -> 24473 | I56: =IF(I12,INDEX('Historic Data'!198:198,'Financial Model'!I7)) -> 0 | J56: =IF(J12,INDEX('Historic Data'!198:198,'Financial Model'!J7)) -> 0 | K56: =IF(K12,INDEX('Historic Data'!198:198,'Financial Model'!K7)) -> 0 | L56: =IF(L12,INDEX('Historic Data'!198:198,'Financial Model'!L7)) -> FALSE | M56: =IF(M12,INDEX('Historic Data'!198:198,'Financial Model'!M7)) -> FALSE | N56: =IF(N12,INDEX('Historic Data'!198:198,'Financial Model'!N7)) -> FALSE | O56: =IF(O12,INDEX('Historic Data'!198:198,'Financial Model'!O7)) -> FALSE | P56: =IF(P12,INDEX('Historic Data'!198:198,'Financial Model'!P7)) -> FALSE | Q56: =IF(Q12,INDEX('Historic Data'!198:198,'Financial Model'!Q7)) -> FALSE | R56: =IF(R12,INDEX('Historic Data'!198:198,'Financial Model'!R7)) -> FALSE | S56: =IF(S12,INDEX('Historic Data'!198:198,'Financial Model'!S7)) -> FALSE | T56: =IF(T12,INDEX('Historic Data'!198:198,'Financial Model'!T7)) -> FALSE | U56: =IF(U12,INDEX('Historic Data'!198:198,'Financial Model'!U7)) -> FALSE | V56: =IF(V12,INDEX('Historic Data'!198:198,'Financial Model'!V7)) -> FALSE
D57: Long-term Debt | E57: =IF(E12,INDEX('Historic Data'!203:203,'Financial Model'!E7)) -> 13700 | F57: =IF(F12,INDEX('Historic Data'!203:203,'Financial Model'!F7)) -> 28723 | G57: =IF(G12,INDEX('Historic Data'!203:203,'Financial Model'!G7)) -> 64358 | H57: =IF(H12,INDEX('Historic Data'!203:203,'Financial Model'!H7)) -> 83692 | I57: =IF(I12,INDEX('Historic Data'!203:203,'Financial Model'!I7)) -> 198470 | J57: =IF(J12,INDEX('Historic Data'!203:203,'Financial Model'!J7)) -> 174958 | K57: =IF(K12,INDEX('Historic Data'!203:203,'Financial Model'!K7)) -> 237391 | L57: =IF(L12,INDEX('Historic Data'!203:203,'Financial Model'!L7)) -> FALSE | M57: =IF(M12,INDEX('Historic Data'!203:203,'Financial Model'!M7)) -> FALSE | N57: =IF(N12,INDEX('Historic Data'!203:203,'Financial Model'!N7)) -> FALSE | O57: =IF(O12,INDEX('Historic Data'!203:203,'Financial Model'!O7)) -> FALSE | P57: =IF(P12,INDEX('Historic Data'!203:203,'Financial Model'!P7)) -> FALSE | Q57: =IF(Q12,INDEX('Historic Data'!203:203,'Financial Model'!Q7)) -> FALSE | R57: =IF(R12,INDEX('Historic Data'!203:203,'Financial Model'!R7)) -> FALSE | S57: =IF(S12,INDEX('Historic Data'!203:203,'Financial Model'!S7)) -> FALSE | T57: =IF(T12,INDEX('Historic Data'!203:203,'Financial Model'!T7)) -> FALSE | U57: =IF(U12,INDEX('Historic Data'!203:203,'Financial Model'!U7)) -> FALSE | V57: =IF(V12,INDEX('Historic Data'!203:203,'Financial Model'!V7)) -> FALSE
D58: Interest Expense | E58: =IF(E12,INDEX('Historic Data'!165:165,'Financial Model'!E7)) -> 100 | F58: =IF(F12,INDEX('Historic Data'!165:165,'Financial Model'!F7)) -> 418 | G58: =IF(G12,INDEX('Historic Data'!165:165,'Financial Model'!G7)) -> 1023 | H58: =IF(H12,INDEX('Historic Data'!165:165,'Financial Model'!H7)) -> 2294 | I58: =IF(I12,INDEX('Historic Data'!165:165,'Financial Model'!I7)) -> 509 | J58: =IF(J12,INDEX('Historic Data'!165:165,'Financial Model'!J7)) -> 5258 | K58: =IF(K12,INDEX('Historic Data'!165:165,'Financial Model'!K7)) -> 6 | L58: =IF(L12,INDEX('Historic Data'!165:165,'Financial Model'!L7)) -> FALSE | M58: =IF(M12,INDEX('Historic Data'!165:165,'Financial Model'!M7)) -> FALSE | N58: =IF(N12,INDEX('Historic Data'!165:165,'Financial Model'!N7)) -> FALSE | O58: =IF(O12,INDEX('Historic Data'!165:165,'Financial Model'!O7)) -> FALSE | P58: =IF(P12,INDEX('Historic Data'!165:165,'Financial Model'!P7)) -> FALSE | Q58: =IF(Q12,INDEX('Historic Data'!165:165,'Financial Model'!Q7)) -> FALSE | R58: =IF(R12,INDEX('Historic Data'!165:165,'Financial Model'!R7)) -> FALSE | S58: =IF(S12,INDEX('Historic Data'!165:165,'Financial Model'!S7)) -> FALSE | T58: =IF(T12,INDEX('Historic Data'!165:165,'Financial Model'!T7)) -> FALSE | U58: =IF(U12,INDEX('Historic Data'!165:165,'Financial Model'!U7)) -> FALSE | V58: =IF(V12,INDEX('Historic Data'!165:165,'Financial Model'!V7)) -> FALSE
D59: Interest Income | E59: =IF(E12,INDEX('Historic Data'!166:166,'Financial Model'!E7)) -> 131 | F59: =IF(F12,INDEX('Historic Data'!166:166,'Financial Model'!F7)) -> 316 | G59: =IF(G12,INDEX('Historic Data'!166:166,'Financial Model'!G7)) -> 2648 | H59: =IF(H12,INDEX('Historic Data'!166:166,'Financial Model'!H7)) -> 20413 | I59: =IF(I12,INDEX('Historic Data'!166:166,'Financial Model'!I7)) -> 21158 | J59: =IF(J12,INDEX('Historic Data'!166:166,'Financial Model'!J7)) -> 9735 | K59: =IF(K12,INDEX('Historic Data'!166:166,'Financial Model'!K7)) -> 14375 | L59: =IF(L12,INDEX('Historic Data'!166:166,'Financial Model'!L7)) -> FALSE | M59: =IF(M12,INDEX('Historic Data'!166:166,'Financial Model'!M7)) -> FALSE | N59: =IF(N12,INDEX('Historic Data'!166:166,'Financial Model'!N7)) -> FALSE | O59: =IF(O12,INDEX('Historic Data'!166:166,'Financial Model'!O7)) -> FALSE | P59: =IF(P12,INDEX('Historic Data'!166:166,'Financial Model'!P7)) -> FALSE | Q59: =IF(Q12,INDEX('Historic Data'!166:166,'Financial Model'!Q7)) -> FALSE | R59: =IF(R12,INDEX('Historic Data'!166:166,'Financial Model'!R7)) -> FALSE | S59: =IF(S12,INDEX('Historic Data'!166:166,'Financial Model'!S7)) -> FALSE | T59: =IF(T12,INDEX('Historic Data'!166:166,'Financial Model'!T7)) -> FALSE | U59: =IF(U12,INDEX('Historic Data'!166:166,'Financial Model'!U7)) -> FALSE | V59: =IF(V12,INDEX('Historic Data'!166:166,'Financial Model'!V7)) -> FALSE
B61: Long-term Debt
C62: Debt Facility 1 - Fixed Rate Malaysian Facility
D63: Base Debt Amount | E63: =INDEX('Time Series Assumptions'!124:124,'Financial Model'!E8) -> 65009 | F63: =INDEX('Time Series Assumptions'!124:124,'Financial Model'!F8) -> 65009 | G63: =INDEX('Time Series Assumptions'!124:124,'Financial Model'!G8) -> 65009 | H63: =INDEX('Time Series Assumptions'!124:124,'Financial Model'!H8) -> 65009 | I63: =INDEX('Time Series Assumptions'!124:124,'Financial Model'!I8) -> 65009 | J63: =INDEX('Time Series Assumptions'!124:124,'Financial Model'!J8) -> 65009 | K63: =INDEX('Time Series Assumptions'!124:124,'Financial Model'!K8) -> 65009 | L63: =INDEX('Time Series Assumptions'!124:124,'Financial Model'!L8) -> 65009 | M63: =INDEX('Time Series Assumptions'!124:124,'Financial Model'!M8) -> 65009 | N63: =INDEX('Time Series Assumptions'!124:124,'Financial Model'!N8) -> 65009 | O63: =INDEX('Time Series Assumptions'!124:124,'Financial Model'!O8) -> 65009 | P63: =INDEX('Time Series Assumptions'!124:124,'Financial Model'!P8) -> 65009 | Q63: =INDEX('Time Series Assumptions'!124:124,'Financial Model'!Q8) -> 65009 | R63: =INDEX('Time Series Assumptions'!124:124,'Financial Model'!R8) -> 65009 | S63: =INDEX('Time Series Assumptions'!124:124,'Financial Model'!S8) -> 65009 | T63: =INDEX('Time Series Assumptions'!124:124,'Financial Model'!T8) -> 65009 | U63: =INDEX('Time Series Assumptions'!124:124,'Financial Model'!U8) -> 65009 | V63: =INDEX('Time Series Assumptions'!124:124,'Financial Model'!V8) -> 65009
D64: Debt Repayment Percent | E64: =INDEX('Time Series Assumptions'!127:127,'Financial Model'!E8) -> 0 | F64: =INDEX('Time Series Assumptions'!127:127,'Financial Model'!F8) -> 0 | G64: =INDEX('Time Series Assumptions'!127:127,'Financial Model'!G8) -> 0 | H64: =INDEX('Time Series Assumptions'!127:127,'Financial Model'!H8) -> 0 | I64: =INDEX('Time Series Assumptions'!127:127,'Financial Model'!I8) -> 0 | J64: =INDEX('Time Series Assumptions'!127:127,'Financial Model'!J8) -> 0 | K64: =INDEX('Time Series Assumptions'!127:127,'Financial Model'!K8) -> 0 | L64: =INDEX('Time Series Assumptions'!127:127,'Financial Model'!L8) -> 0 | M64: =INDEX('Time Series Assumptions'!127:127,'Financial Model'!M8) -> 0 | N64: =INDEX('Time Series Assumptions'!127:127,'Financial Model'!N8) -> 0 | O64: =INDEX('Time Series Assumptions'!127:127,'Financial Model'!O8) -> 0 | P64: =INDEX('Time Series Assumptions'!127:127,'Financial Model'!P8) -> 0 | Q64: =INDEX('Time Series Assumptions'!127:127,'Financial Model'!Q8) -> 0 | R64: =INDEX('Time Series Assumptions'!127:127,'Financial Model'!R8) -> 1 | S64: =INDEX('Time Series Assumptions'!127:127,'Financial Model'!S8) -> 0 | T64: =INDEX('Time Series Assumptions'!127:127,'Financial Model'!T8) -> 0 | U64: =INDEX('Time Series Assumptions'!127:127,'Financial Model'!U8) -> 0 | V64: =INDEX('Time Series Assumptions'!127:127,'Financial Model'!V8) -> 0
D66: Opening Balance | F66: =E68 -> 65009 | G66: =F68 -> 65009 | H66: 65009 | I66: 65009 | J66: 65009 | K66: 65009 | L66: 65009 | M66: 65009 | N66: 65009 | O66: 65009 | P66: 65009 | Q66: 65009 | R66: 65009 | S66: 0 | T66: 0 | U66: 0 | V66: 0
D67: Less: Repayment of Debt | E67: =E63*E64 -> 0 | F67: =F63*F64 -> 0 | G67: 0 | H67: 0 | I67: 0 | J67: 0 | K67: 0 | L67: 0 | M67: 0 | N67: 0 | O67: 0 | P67: 0 | Q67: 0 | R67: 65009 | S67: 0 | T67: 0 | U67: 0 | V67: 0
D68: Closing Balance | E68: =IF(E12,E63,E66-E67) -> 65009 | F68: 65009 | G68: 65009 | H68: 65009 | I68: 65009 | J68: 65009 | K68: 65009 | L68: 65009 | M68: 65009 | N68: 65009 | O68: 65009 | P68: 65009 | Q68: 65009 | R68: 0 | S68: 0 | T68: 0 | U68: 0 | V68: 0
D70: Interest Rate | E70: =INDEX('Time Series Assumptions'!126:126,'Financial Model'!E8) -> 0.05 | F70: =INDEX('Time Series Assumptions'!126:126,'Financial Model'!F8) -> 0.05 | G70: =INDEX('Time Series Assumptions'!126:126,'Financial Model'!G8) -> 0.05 | H70: =INDEX('Time Series Assumptions'!126:126,'Financial Model'!H8) -> 0.05 | I70: =INDEX('Time Series Assumptions'!126:126,'Financial Model'!I8) -> 0.05 | J70: =INDEX('Time Series Assumptions'!126:126,'Financial Model'!J8) -> 0.05 | K70: =INDEX('Time Series Assumptions'!126:126,'Financial Model'!K8) -> 0.05 | L70: =INDEX('Time Series Assumptions'!126:126,'Financial Model'!L8) -> 0.05 | M70: =INDEX('Time Series Assumptions'!126:126,'Financial Model'!M8) -> 0.05 | N70: =INDEX('Time Series Assumptions'!126:126,'Financial Model'!N8) -> 0.05 | O70: =INDEX('Time Series Assumptions'!126:126,'Financial Model'!O8) -> 0.05 | P70: =INDEX('Time Series Assumptions'!126:126,'Financial Model'!P8) -> 0.05 | Q70: =INDEX('Time Series Assumptions'!126:126,'Financial Model'!Q8) -> 0.05 | R70: =INDEX('Time Series Assumptions'!126:126,'Financial Model'!R8) -> 0.05 | S70: =INDEX('Time Series Assumptions'!126:126,'Financial Model'!S8) -> 0.05 | T70: =INDEX('Time Series Assumptions'!126:126,'Financial Model'!T8) -> 0.05 | U70: =INDEX('Time Series Assumptions'!126:126,'Financial Model'!U8) -> 0.05 | V70: =INDEX('Time Series Assumptions'!126:126,'Financial Model'!V8) -> 0.05
D71: Interest Expense | E71: =E70*AVERAGE(E68,E66)*(E11/12) -> 3250.45 | F71: 3250.45 | G71: 3250.45 | H71: 3250.45 | I71: 3250.45 | J71: 3250.45 | K71: 3250.45 | L71: 3250.45 | M71: 1083.483333 | N71: 2166.966667 | O71: 3250.45 | P71: 3250.45 | Q71: 3250.45 | R71: 1625.225 | S71: 0 | T71: 0 | U71: 0 | V71: 0
C73: Debt Facility 2 - Floating Rate Malaysian Facility
D74: Base Debt Amount | E74: =INDEX('Time Series Assumptions'!130:130,'Financial Model'!E8) -> 65009 | F74: =INDEX('Time Series Assumptions'!130:130,'Financial Model'!F8) -> 65009 | G74: =INDEX('Time Series Assumptions'!130:130,'Financial Model'!G8) -> 65009 | H74: =INDEX('Time Series Assumptions'!130:130,'Financial Model'!H8) -> 65009 | I74: =INDEX('Time Series Assumptions'!130:130,'Financial Model'!I8) -> 65009 | J74: =INDEX('Time Series Assumptions'!130:130,'Financial Model'!J8) -> 65009 | K74: =INDEX('Time Series Assumptions'!130:130,'Financial Model'!K8) -> 65009 | L74: =INDEX('Time Series Assumptions'!130:130,'Financial Model'!L8) -> 65009 | M74: =INDEX('Time Series Assumptions'!130:130,'Financial Model'!M8) -> 65009 | N74: =INDEX('Time Series Assumptions'!130:130,'Financial Model'!N8) -> 65009 | O74: =INDEX('Time Series Assumptions'!130:130,'Financial Model'!O8) -> 65009 | P74: =INDEX('Time Series Assumptions'!130:130,'Financial Model'!P8) -> 65009 | Q74: =INDEX('Time Series Assumptions'!130:130,'Financial Model'!Q8) -> 65009 | R74: =INDEX('Time Series Assumptions'!130:130,'Financial Model'!R8) -> 65009 | S74: =INDEX('Time Series Assumptions'!130:130,'Financial Model'!S8) -> 65009 | T74: =INDEX('Time Series Assumptions'!130:130,'Financial Model'!T8) -> 65009 | U74: =INDEX('Time Series Assumptions'!130:130,'Financial Model'!U8) -> 65009 | V74: =INDEX('Time Series Assumptions'!130:130,'Financial Model'!V8) -> 65009
D75: Debt Repayment Percent | E75: =INDEX('Time Series Assumptions'!133:133,'Financial Model'!E8) -> 0 | F75: =INDEX('Time Series Assumptions'!133:133,'Financial Model'!F8) -> 0 | G75: =INDEX('Time Series Assumptions'!133:133,'Financial Model'!G8) -> 0 | H75: =INDEX('Time Series Assumptions'!133:133,'Financial Model'!H8) -> 0 | I75: =INDEX('Time Series Assumptions'!133:133,'Financial Model'!I8) -> 0 | J75: =INDEX('Time Series Assumptions'!133:133,'Financial Model'!J8) -> 0 | K75: =INDEX('Time Series Assumptions'!133:133,'Financial Model'!K8) -> 0 | L75: =INDEX('Time Series Assumptions'!133:133,'Financial Model'!L8) -> 0 | M75: =INDEX('Time Series Assumptions'!133:133,'Financial Model'!M8) -> 0 | N75: =INDEX('Time Series Assumptions'!133:133,'Financial Model'!N8) -> 0 | O75: =INDEX('Time Series Assumptions'!133:133,'Financial Model'!O8) -> 0 | P75: =INDEX('Time Series Assumptions'!133:133,'Financial Model'!P8) -> 0 | Q75: =INDEX('Time Series Assumptions'!133:133,'Financial Model'!Q8) -> 0 | R75: =INDEX('Time Series Assumptions'!133:133,'Financial Model'!R8) -> 1 | S75: =INDEX('Time Series Assumptions'!133:133,'Financial Model'!S8) -> 0 | T75: =INDEX('Time Series Assumptions'!133:133,'Financial Model'!T8) -> 0 | U75: =INDEX('Time Series Assumptions'!133:133,'Financial Model'!U8) -> 0 | V75: =INDEX('Time Series Assumptions'!133:133,'Financial Model'!V8) -> 0
D77: Opening Balance | F77: =E79 -> 65009 | G77: =F79 -> 65009 | H77: 65009 | I77: 65009 | J77: 65009 | K77: 65009 | L77: 65009 | M77: 65009 | N77: 65009 | O77: 65009 | P77: 65009 | Q77: 65009 | R77: 65009 | S77: 0 | T77: 0 | U77: 0 | V77: 0
D78: Less: Repayment of Debt | E78: =E74*E75 -> 0 | F78: =F74*F75 -> 0 | G78: 0 | H78: 0 | I78: 0 | J78: 0 | K78: 0 | L78: 0 | M78: 0 | N78: 0 | O78: 0 | P78: 0 | Q78: 0 | R78: 65009 | S78: 0 | T78: 0 | U78: 0 | V78: 0
D79: Closing Balance | E79: =IF(E12,E74,E77-E78) -> 65009 | F79: 65009 | G79: 65009 | H79: 65009 | I79: 65009 | J79: 65009 | K79: 65009 | L79: 65009 | M79: 65009 | N79: 65009 | O79: 65009 | P79: 65009 | Q79: 65009 | R79: 0 | S79: 0 | T79: 0 | U79: 0 | V79: 0
D81: Interest Rate | E81: =INDEX('Time Series Assumptions'!132:132,'Financial Model'!E8) -> 0.015 | F81: =INDEX('Time Series Assumptions'!132:132,'Financial Model'!F8) -> 0.015 | G81: =INDEX('Time Series Assumptions'!132:132,'Financial Model'!G8) -> 0.015 | H81: =INDEX('Time Series Assumptions'!132:132,'Financial Model'!H8) -> 0.015 | I81: =INDEX('Time Series Assumptions'!132:132,'Financial Model'!I8) -> 0.015 | J81: =INDEX('Time Series Assumptions'!132:132,'Financial Model'!J8) -> 0.015 | K81: =INDEX('Time Series Assumptions'!132:132,'Financial Model'!K8) -> 0.015 | L81: =INDEX('Time Series Assumptions'!132:132,'Financial Model'!L8) -> 0.015 | M81: =INDEX('Time Series Assumptions'!132:132,'Financial Model'!M8) -> 0.015 | N81: =INDEX('Time Series Assumptions'!132:132,'Financial Model'!N8) -> 0.015 | O81: =INDEX('Time Series Assumptions'!132:132,'Financial Model'!O8) -> 0.015 | P81: =INDEX('Time Series Assumptions'!132:132,'Financial Model'!P8) -> 0.015 | Q81: =INDEX('Time Series Assumptions'!132:132,'Financial Model'!Q8) -> 0.015 | R81: =INDEX('Time Series Assumptions'!132:132,'Financial Model'!R8) -> 0.015 | S81: =INDEX('Time Series Assumptions'!132:132,'Financial Model'!S8) -> 0.015 | T81: =INDEX('Time Series Assumptions'!132:132,'Financial Model'!T8) -> 0.015 | U81: =INDEX('Time Series Assumptions'!132:132,'Financial Model'!U8) -> 0.015 | V81: =INDEX('Time Series Assumptions'!132:132,'Financial Model'!V8) -> 0.015
D82: Interest Expense | E82: =AVERAGE(E79,E77)*E81*(E11/12) -> 975.135 | F82: 975.135 | G82: 975.135 | H82: 975.135 | I82: 975.135 | J82: 975.135 | K82: 975.135 | L82: 975.135 | M82: 325.045 | N82: 650.09 | O82: 975.135 | P82: 975.135 | Q82: 975.135 | R82: 487.5675 | S82: 0 | T82: 0 | U82: 0 | V82: 0
C84: Debt Facility 3 - Revolver and Other Long term Debt
D85: Base Debt Amount | E85: =INDEX('Time Series Assumptions'!136:136,'Financial Model'!E8) -> -116318 | F85: =INDEX('Time Series Assumptions'!136:136,'Financial Model'!F8) -> -101295 | G85: =INDEX('Time Series Assumptions'!136:136,'Financial Model'!G8) -> -65660 | H85: =INDEX('Time Series Assumptions'!136:136,'Financial Model'!H8) -> -46326 | I85: =INDEX('Time Series Assumptions'!136:136,'Financial Model'!I8) -> 68452 | J85: =INDEX('Time Series Assumptions'!136:136,'Financial Model'!J8) -> 44940 | K85: =INDEX('Time Series Assumptions'!136:136,'Financial Model'!K8) -> 107373 | L85: =INDEX('Time Series Assumptions'!136:136,'Financial Model'!L8) -> 107373 | M85: =INDEX('Time Series Assumptions'!136:136,'Financial Model'!M8) -> 107373 | N85: =INDEX('Time Series Assumptions'!136:136,'Financial Model'!N8) -> 107373 | O85: =INDEX('Time Series Assumptions'!136:136,'Financial Model'!O8) -> 107373 | P85: =INDEX('Time Series Assumptions'!136:136,'Financial Model'!P8) -> 107373 | Q85: =INDEX('Time Series Assumptions'!136:136,'Financial Model'!Q8) -> 107373 | R85: =INDEX('Time Series Assumptions'!136:136,'Financial Model'!R8) -> 107373 | S85: =INDEX('Time Series Assumptions'!136:136,'Financial Model'!S8) -> 107373 | T85: =INDEX('Time Series Assumptions'!136:136,'Financial Model'!T8) -> 107373 | U85: =INDEX('Time Series Assumptions'!136:136,'Financial Model'!U8) -> 107373 | V85: =INDEX('Time Series Assumptions'!136:136,'Financial Model'!V8) -> 107373
D86: Debt Repayment Percent | E86: =INDEX('Time Series Assumptions'!138:138,'Financial Model'!E8) -> 0 | F86: =INDEX('Time Series Assumptions'!138:138,'Financial Model'!F8) -> 0 | G86: =INDEX('Time Series Assumptions'!138:138,'Financial Model'!G8) -> 0 | H86: =INDEX('Time Series Assumptions'!138:138,'Financial Model'!H8) -> 0 | I86: =INDEX('Time Series Assumptions'!138:138,'Financial Model'!I8) -> 0 | J86: =INDEX('Time Series Assumptions'!138:138,'Financial Model'!J8) -> 0 | K86: =INDEX('Time Series Assumptions'!138:138,'Financial Model'!K8) -> 0 | L86: =INDEX('Time Series Assumptions'!138:138,'Financial Model'!L8) -> 0.25 | M86: =INDEX('Time Series Assumptions'!138:138,'Financial Model'!M8) -> 0.25 | N86: =INDEX('Time Series Assumptions'!138:138,'Financial Model'!N8) -> 0.25 | O86: =INDEX('Time Series Assumptions'!138:138,'Financial Model'!O8) -> 0.25 | P86: =INDEX('Time Series Assumptions'!138:138,'Financial Model'!P8) -> 0.25 | Q86: =INDEX('Time Series Assumptions'!138:138,'Financial Model'!Q8) -> 0 | R86: =INDEX('Time Series Assumptions'!138:138,'Financial Model'!R8) -> 0 | S86: =INDEX('Time Series Assumptions'!138:138,'Financial Model'!S8) -> 0 | T86: =INDEX('Time Series Assumptions'!138:138,'Financial Model'!T8) -> 0 | U86: =INDEX('Time Series Assumptions'!138:138,'Financial Model'!U8) -> 0 | V86: =INDEX('Time Series Assumptions'!138:138,'Financial Model'!V8) -> 0
D88: Opening Balance | F88: =E90 -> -116318 | G88: =F90 -> -101295 | H88: -65660 | I88: -46326 | J88: 68452 | K88: 44940 | L88: 107373 | M88: 80529.75 | N88: 53686.5 | O88: 26843.25 | P88: 0 | Q88: -26843.25 | R88: -26843.25 | S88: -26843.25 | T88: -26843.25 | U88: -26843.25 | V88: -26843.25
D89: Less: Repayment of Debt | E89: =E85*E86 -> 0 | F89: =F85*F86 -> 0 | G89: 0 | H89: 0 | I89: 0 | J89: 0 | K89: 0 | L89: 26843.25 | M89: 26843.25 | N89: 26843.25 | O89: 26843.25 | P89: 26843.25 | Q89: 0 | R89: 0 | S89: 0 | T89: 0 | U89: 0 | V89: 0
D90: Closing Balance | E90: =IF(E12,E85,E88-E89) -> -116318 | F90: -101295 | G90: -65660 | H90: -46326 | I90: 68452 | J90: 44940 | K90: 107373 | L90: 80529.75 | M90: 53686.5 | N90: 26843.25 | O90: 0 | P90: -26843.25 | Q90: -26843.25 | R90: -26843.25 | S90: -26843.25 | T90: -26843.25 | U90: -26843.25 | V90: -26843.25
D92: Interest Rate | E92: =INDEX('Time Series Assumptions'!137:137,'Financial Model'!E8) -> 0.025 | F92: =INDEX('Time Series Assumptions'!137:137,'Financial Model'!F8) -> 0.025 | G92: =INDEX('Time Series Assumptions'!137:137,'Financial Model'!G8) -> 0.025 | H92: =INDEX('Time Series Assumptions'!137:137,'Financial Model'!H8) -> 0.025 | I92: =INDEX('Time Series Assumptions'!137:137,'Financial Model'!I8) -> 0.025 | J92: =INDEX('Time Series Assumptions'!137:137,'Financial Model'!J8) -> 0.025 | K92: =INDEX('Time Series Assumptions'!137:137,'Financial Model'!K8) -> 0.025 | L92: =INDEX('Time Series Assumptions'!137:137,'Financial Model'!L8) -> 0.025 | M92: =INDEX('Time Series Assumptions'!137:137,'Financial Model'!M8) -> 0.025 | N92: =INDEX('Time Series Assumptions'!137:137,'Financial Model'!N8) -> 0.025 | O92: =INDEX('Time Series Assumptions'!137:137,'Financial Model'!O8) -> 0.025 | P92: =INDEX('Time Series Assumptions'!137:137,'Financial Model'!P8) -> 0.025 | Q92: =INDEX('Time Series Assumptions'!137:137,'Financial Model'!Q8) -> 0.025 | R92: =INDEX('Time Series Assumptions'!137:137,'Financial Model'!R8) -> 0.025 | S92: =INDEX('Time Series Assumptions'!137:137,'Financial Model'!S8) -> 0.025 | T92: =INDEX('Time Series Assumptions'!137:137,'Financial Model'!T8) -> 0.025 | U92: =INDEX('Time Series Assumptions'!137:137,'Financial Model'!U8) -> 0.025 | V92: =INDEX('Time Series Assumptions'!137:137,'Financial Model'!V8) -> 0.025
D93: Interest Expense | E93: =E92*AVERAGE(E90,E88)*(E11/12) -> -2907.95 | F93: -2720.1625 | G93: -2086.9375 | H93: -1399.825 | I93: 276.575 | J93: 1417.4 | K93: 1903.9125 | L93: 2348.784375 | M93: 559.234375 | N93: 671.08125 | O93: 335.540625 | P93: -335.540625 | Q93: -671.08125 | R93: -671.08125 | S93: -671.08125 | T93: -671.08125 | U93: -671.08125 | V93: -671.08125
C95: Total Historic and Projected Long-term Interest Expense | E95: =IF(E12,E58,E93+E82+E71) -> 100 | F95: 418 | G95: 1023 | H95: 2294 | I95: 509 | J95: 5258 | K95: 6 | L95: 6574.369375 | M95: 1967.762708 | N95: 3488.137917 | O95: 4561.125625 | P95: 3890.044375 | Q95: 3554.50375 | R95: 1441.71125 | S95: -671.08125 | T95: -671.08125 | U95: -671.08125 | V95: -671.08125
C96: Total Long-term Debt | E96: =E90+E79+E68 -> 13700 | F96: =F90+F79+F68 -> 28723 | G96: 64358 | H96: 83692 | I96: 198470 | J96: 174958 | K96: 237391 | L96: 210547.75 | M96: 183704.5 | N96: 156861.25 | O96: 130018 | P96: 103174.75 | Q96: 103174.75 | R96: -26843.25 | S96: -26843.25 | T96: -26843.25 | U96: -26843.25 | V96: -26843.25
B98: Cash Less Short-term Debt
C99: Balance
D100: Opening Balance | F100: =E102 -> 3771 | G100: =F102 -> -1700 | H100: 300300 | I100: 627172 | J100: 847319 | K100: 1150837 | L100: 1199852 | M100: 1343651.396 | N100: 1408877.128 | O100: 1435240.947 | P100: 1677878.419 | Q100: 1931192.092 | R100: 2235278.645 | S100: 2429652.959 | T100: 2731630.245 | U100: 3002608.646 | V100: 3234398.817
D101: Add: Net Cash Flow from Cash Flow Statement Below | F101: =F170 -> 0 | G101: =G170 -> -163726 | H101: -53350 | I101: -77142 | J101: 325470 | K101: 183229 | L101: 143799.3964 | M101: 65225.73176 | N101: 26363.81872 | O101: 242637.4721 | P101: 253313.6726 | Q101: 304086.553 | R101: 194374.3146 | S101: 301977.2858 | T101: 270978.4014 | U101: 231790.171 | V101: 184269.6279
D102: Closing Balance | E102: =IF(E12,E55-E56,E100+E101) -> 3771 | F102: -1700 | G102: 300300 | H102: 627172 | I102: 847319 | J102: 1150837 | K102: 1199852 | L102: 1343651.396 | M102: 1408877.128 | N102: 1435240.947 | O102: 1677878.419 | P102: 1931192.092 | Q102: 2235278.645 | R102: 2429652.959 | S102: 2731630.245 | T102: 3002608.646 | U102: 3234398.817 | V102: 3418668.445
C104: Minimum Cash Balance as Percent of Revenues | E104: =INDEX('Time Series Assumptions'!142:142,'Financial Model'!E8) -> 0.02 | F104: =INDEX('Time Series Assumptions'!142:142,'Financial Model'!F8) -> 0.02 | G104: =INDEX('Time Series Assumptions'!142:142,'Financial Model'!G8) -> 0.02 | H104: =INDEX('Time Series Assumptions'!142:142,'Financial Model'!H8) -> 0.02 | I104: =INDEX('Time Series Assumptions'!142:142,'Financial Model'!I8) -> 0.02 | J104: =INDEX('Time Series Assumptions'!142:142,'Financial Model'!J8) -> 0.02 | K104: =INDEX('Time Series Assumptions'!142:142,'Financial Model'!K8) -> 0.02 | L104: =INDEX('Time Series Assumptions'!142:142,'Financial Model'!L8) -> 0.02 | M104: =INDEX('Time Series Assumptions'!142:142,'Financial Model'!M8) -> 0.02 | N104: =INDEX('Time Series Assumptions'!142:142,'Financial Model'!N8) -> 0.02 | O104: =INDEX('Time Series Assumptions'!142:142,'Financial Model'!O8) -> 0.02 | P104: =INDEX('Time Series Assumptions'!142:142,'Financial Model'!P8) -> 0.02 | Q104: =INDEX('Time Series Assumptions'!142:142,'Financial Model'!Q8) -> 0.02 | R104: =INDEX('Time Series Assumptions'!142:142,'Financial Model'!R8) -> 0.02 | S104: =INDEX('Time Series Assumptions'!142:142,'Financial Model'!S8) -> 0.02 | T104: =INDEX('Time Series Assumptions'!142:142,'Financial Model'!T8) -> 0.02 | U104: =INDEX('Time Series Assumptions'!142:142,'Financial Model'!U8) -> 0.02 | V104: =INDEX('Time Series Assumptions'!142:142,'Financial Model'!V8) -> 0.02
C105: Minimum Cash Balance | E105: =E104*E17 -> 0 | F105: 0 | G105: 2699.48 | H105: 10079.52 | I105: 24926.02 | J105: 41324 | K105: 51270.3 | L105: 55554.92847 | M105: 21437.06422 | N105: 35391.81323 | O105: 54945.79005 | P105: 60028.27563 | Q105: 65580.89112 | R105: 70696.20063 | S105: 76210.50428 | T105: 82154.92361 | U105: 88563.00765 | V105: 95470.92225
C107: Allocation of Closing Balance to Cash Balance | E107: =IF(E12,E55,MAX(E102,E105)) -> 3771 | F107: 18300 | G107: 316639 | H107: 651645 | I107: 847319 | J107: 1150837 | K107: 1199852 | L107: 1343651.396 | M107: 1408877.128 | N107: 1435240.947 | O107: 1677878.419 | P107: 1931192.092 | Q107: 2235278.645 | R107: 2429652.959 | S107: 2731630.245 | T107: 3002608.646 | U107: 3234398.817 | V107: 3418668.445
C108: Allocation of Closing Balance to Short-term Debt | E108: =IF(E12,E56,MAX(-E102+E105,0)) -> 0 | F108: 20000 | G108: 16339 | H108: 24473 | I108: 0 | J108: 0 | K108: 0 | L108: 0 | M108: 0 | N108: 0 | O108: 0 | P108: 0 | Q108: 0 | R108: 0 | S108: 0 | T108: 0 | U108: 0 | V108: 0
C109: Total | E109: =E107-E108 -> 3771 | F109: =F107-F108 -> -1700 | G109: 300300 | H109: 627172 | I109: 847319 | J109: 1150837 | K109: 1199852 | L109: 1343651.396 | M109: 1408877.128 | N109: 1435240.947 | O109: =O107-O108 -> 1677878.419 | P109: 1931192.092 | Q109: 2235278.645 | R109: 2429652.959 | S109: 2731630.245 | T109: 3002608.646 | U109: 3234398.817 | V109: 3418668.445
C110: Check | E110: =E109=E102 -> TRUE | F110: =F109=F102 -> TRUE | G110: TRUE | H110: TRUE | I110: TRUE | J110: TRUE | K110: TRUE | L110: TRUE | M110: TRUE | N110: TRUE | O110: TRUE | P110: TRUE | Q110: TRUE | R110: TRUE | S110: TRUE | T110: TRUE | U110: TRUE | V110: TRUE
C111: Aggregate Check | E111: =AND(E110:V110) -> TRUE
C113: Interest Income Rate | E113: =INDEX('Time Series Assumptions'!141:141,'Financial Model'!E8) -> 0.0075 | F113: =INDEX('Time Series Assumptions'!141:141,'Financial Model'!F8) -> 0.0075 | G113: =INDEX('Time Series Assumptions'!141:141,'Financial Model'!G8) -> 0.0075 | H113: =INDEX('Time Series Assumptions'!141:141,'Financial Model'!H8) -> 0.0075 | I113: =INDEX('Time Series Assumptions'!141:141,'Financial Model'!I8) -> 0.0075 | J113: =INDEX('Time Series Assumptions'!141:141,'Financial Model'!J8) -> 0.0075 | K113: =INDEX('Time Series Assumptions'!141:141,'Financial Model'!K8) -> 0.0075 | L113: =INDEX('Time Series Assumptions'!141:141,'Financial Model'!L8) -> 0.0075 | M113: =INDEX('Time Series Assumptions'!141:141,'Financial Model'!M8) -> 0.0075 | N113: =INDEX('Time Series Assumptions'!141:141,'Financial Model'!N8) -> 0.0075 | O113: =INDEX('Time Series Assumptions'!141:141,'Financial Model'!O8) -> 0.0075 | P113: =INDEX('Time Series Assumptions'!141:141,'Financial Model'!P8) -> 0.0075 | Q113: =INDEX('Time Series Assumptions'!141:141,'Financial Model'!Q8) -> 0.0075 | R113: =INDEX('Time Series Assumptions'!141:141,'Financial Model'!R8) -> 0.0075 | S113: =INDEX('Time Series Assumptions'!141:141,'Financial Model'!S8) -> 0.0075 | T113: =INDEX('Time Series Assumptions'!141:141,'Financial Model'!T8) -> 0.0075 | U113: =INDEX('Time Series Assumptions'!141:141,'Financial Model'!U8) -> 0.0075 | V113: =INDEX('Time Series Assumptions'!141:141,'Financial Model'!V8) -> 0.0075
C114: Interest Expense Rate | E114: =INDEX('Time Series Assumptions'!143:143,'Financial Model'!E8) -> 0.025 | F114: =INDEX('Time Series Assumptions'!143:143,'Financial Model'!F8) -> 0.025 | G114: =INDEX('Time Series Assumptions'!143:143,'Financial Model'!G8) -> 0.025 | H114: =INDEX('Time Series Assumptions'!143:143,'Financial Model'!H8) -> 0.025 | I114: =INDEX('Time Series Assumptions'!143:143,'Financial Model'!I8) -> 0.025 | J114: =INDEX('Time Series Assumptions'!143:143,'Financial Model'!J8) -> 0.025 | K114: =INDEX('Time Series Assumptions'!143:143,'Financial Model'!K8) -> 0.025 | L114: =INDEX('Time Series Assumptions'!143:143,'Financial Model'!L8) -> 0.025 | M114: =INDEX('Time Series Assumptions'!143:143,'Financial Model'!M8) -> 0.025 | N114: =INDEX('Time Series Assumptions'!143:143,'Financial Model'!N8) -> 0.025 | O114: =INDEX('Time Series Assumptions'!143:143,'Financial Model'!O8) -> 0.025 | P114: =INDEX('Time Series Assumptions'!143:143,'Financial Model'!P8) -> 0.025 | Q114: =INDEX('Time Series Assumptions'!143:143,'Financial Model'!Q8) -> 0.025 | R114: =INDEX('Time Series Assumptions'!143:143,'Financial Model'!R8) -> 0.025 | S114: =INDEX('Time Series Assumptions'!143:143,'Financial Model'!S8) -> 0.025 | T114: =INDEX('Time Series Assumptions'!143:143,'Financial Model'!T8) -> 0.025 | U114: =INDEX('Time Series Assumptions'!143:143,'Financial Model'!U8) -> 0.025 | V114: =INDEX('Time Series Assumptions'!143:143,'Financial Model'!V8) -> 0.025
C116: Interest Income | E116: =E113*D107 -> 0 | F116: =F113*E107 -> 28.2825 | G116: 137.25 | H116: 2374.7925 | I116: 4887.3375 | J116: 6354.8925 | K116: 8631.2775 | L116: 8998.89 | M116: 10077.38547 | N116: 10566.57846 | O116: 10764.3071 | P116: 12584.08814 | Q116: 14483.94069 | R116: 16764.58983 | S116: 18222.39719 | T116: 20487.22684 | U116: 22519.56485 | V116: 24257.99113
C117: Short-term Interest Expense | E117: =E114*D108 -> 0 | F117: =F114*E108 -> 0 | G117: 500 | H117: 408.475 | I117: 611.825 | J117: 0 | K117: 0 | L117: 0 | M117: 0 | N117: 0 | O117: 0 | P117: 0 | Q117: 0 | R117: 0 | S117: 0 | T117: 0 | U117: 0 | V117: 0
C119: Interest Income with History | E119: =IF(E12,E59,E116)*(E11/12) -> 131 | F119: 316 | G119: 2648 | H119: 20413 | I119: 21158 | J119: 9735 | K119: 14375 | L119: 8998.89 | M119: 3359.128491 | N119: 7044.385641 | O119: 10764.3071 | P119: 12584.08814 | Q119: 14483.94069 | R119: 16764.58983 | S119: 18222.39719 | T119: 20487.22684 | U119: 22519.56485 | V119: 24257.99113
C120: Interest Expense with History | E120: =IF(E12,0,E117)*(E11/12) -> 0 | F120: 0 | G120: 0 | H120: 0 | I120: 0 | J120: 0 | K120: 0 | L120: 0 | M120: 0 | N120: 0 | O120: 0 | P120: 0 | Q120: 0 | R120: 0 | S120: 0 | T120: 0 | U120: 0 | V120: 0
A122: Profit and Loss Statement
C124: Effective Tax Rate | G124: =INDEX('Time Series Assumptions'!100:100,'Financial Model'!G8) -> 0.5671023965 | H124: =INDEX('Time Series Assumptions'!100:100,'Financial Model'!H8) -> -0.01533706929 | I124: =INDEX('Time Series Assumptions'!100:100,'Financial Model'!I8) -> 0.2489262058 | J124: =INDEX('Time Series Assumptions'!100:100,'Financial Model'!J8) -> 0.06728115702 | K124: =INDEX('Time Series Assumptions'!100:100,'Financial Model'!K8) -> 0.1284332161 | L124: =INDEX('Time Series Assumptions'!100:100,'Financial Model'!L8) -> 0.15 | M124: =INDEX('Time Series Assumptions'!100:100,'Financial Model'!M8) -> 0.15 | N124: =INDEX('Time Series Assumptions'!100:100,'Financial Model'!N8) -> 0.15 | O124: =INDEX('Time Series Assumptions'!100:100,'Financial Model'!O8) -> 0.15 | P124: =INDEX('Time Series Assumptions'!100:100,'Financial Model'!P8) -> 0.15 | Q124: =INDEX('Time Series Assumptions'!100:100,'Financial Model'!Q8) -> 0.15 | R124: =INDEX('Time Series Assumptions'!100:100,'Financial Model'!R8) -> 0.15 | S124: =INDEX('Time Series Assumptions'!100:100,'Financial Model'!S8) -> 0.15 | T124: =INDEX('Time Series Assumptions'!100:100,'Financial Model'!T8) -> 0.15 | U124: =INDEX('Time Series Assumptions'!100:100,'Financial Model'!U8) -> 0.15 | V124: =INDEX('Time Series Assumptions'!100:100,'Financial Model'!V8) -> 0.15
C126: Revenues | G126: =G17 -> 134974 | H126: 503976 | I126: 1246301 | J126: 2066200 | K126: 2563515 | L126: 2777746.424 | M126: 1071853.211 | N126: 1769590.662 | O126: 2747289.502 | P126: 3001413.781 | Q126: 3279044.556 | R126: 3534810.031 | S126: 3810525.214 | T126: 4107746.181 | U126: 4428150.383 | V126: 4773546.113
C127: Less: Cash Operating Expenses | G127: =G18 -> 121954 | H127: 342314 | I127: 746116 | J127: 1255839 | K127: 1647550 | L127: 1727899.763 | M127: 696150.6741 | N127: 1299746.133 | O127: 2082911.626 | P127: 2275727.952 | Q127: 2486394.487 | R127: 2680855.009 | S127: 2936305.693 | T127: 3216315.93 | U127: 3523264.805 | V127: 3859763.315
D128: EBITDA | G128: =G126-G127 -> 13020 | H128: =H126-H127 -> 161662 | I128: 500185 | J128: 810361 | K128: 915965 | L128: 1049846.661 | M128: 375702.5366 | N128: 469844.5292 | O128: 664377.8762 | P128: 725685.8297 | Q128: 792650.069 | R128: 853955.0224 | S128: 874219.5206 | T128: 891430.2503 | U128: 904885.5777 | V128: 913782.7974
C129: Less: Depreciation | G129: =G37 -> 10210 | H129: 24481 | I129: 61846 | J129: 130746 | K129: 167062 | L129: 198312 | M129: 79256.97181 | N129: 176147.2769 | O129: 294791.38 | P129: 322537.4662 | Q129: 351602.7169 | R129: 371130.4452 | S129: 392931.8718 | T129: 416913.441 | U129: 442657.7348 | V129: 477457.868
D130: EBIT | G130: =G128-G129 -> 2810 | H130: 137181 | I130: 438339 | J130: 679615 | K130: 748903 | L130: 851534.6608 | M130: 296445.5648 | N130: 293697.2522 | O130: 369586.4962 | P130: 403148.3635 | Q130: 441047.3521 | R130: 482824.5772 | S130: 481287.6488 | T130: 474516.8093 | U130: 462227.8429 | V130: 436324.9294
C131: Less: Interest on Long-term Debt | G131: =G95 -> 1023 | H131: 2294 | I131: 509 | J131: 5258 | K131: 6 | L131: 6574.369375 | M131: 1967.762708 | N131: 3488.137917 | O131: 4561.125625 | P131: 3890.044375 | Q131: 3554.50375 | R131: 1441.71125 | S131: -671.08125 | T131: -671.08125 | U131: -671.08125 | V131: -671.08125
C132: Less: Interest on Short-term Debt | G132: =G120 -> 0 | H132: =H120 -> 0 | I132: 0 | J132: 0 | K132: 0 | L132: 0 | M132: 0 | N132: 0 | O132: 0 | P132: 0 | Q132: 0 | R132: 0 | S132: 0 | T132: 0 | U132: 0 | V132: 0
C133: Add: Interest Income | G133: =G119 -> 2648 | H133: =H119 -> 20413 | I133: 21158 | J133: 9735 | K133: 14375 | L133: 8998.89 | M133: 3359.128491 | N133: 7044.385641 | O133: 10764.3071 | P133: 12584.08814 | Q133: 14483.94069 | R133: 16764.58983 | S133: 18222.39719 | T133: 20487.22684 | U133: 22519.56485 | V133: 24257.99113
C134: Add: Other Income | G134: =G50 -> -799 | H134: -1219 | I134: -934 | J134: -2985 | K134: 2273 | L134: 2273 | M134: 2273 | N134: 2273 | O134: 2273 | P134: 2273 | Q134: 2273 | R134: 2273 | S134: 2273 | T134: 2273 | U134: 2273 | V134: 2273
C135: Add: Foreign Exchange Gains | G135: =G51 -> 5544 | H135: 1881 | I135: 5722 | J135: 5207 | K135: -3468 | L135: 0 | M135: 0 | N135: 0 | O135: 0 | P135: 0 | Q135: 0 | R135: 0 | S135: 0 | T135: 0 | U135: 0 | V135: 0
D136: EBT | G136: =G130-G131-G132+G133+G134+G135 -> 9180 | H136: 155962 | I136: 463776 | J136: 686314 | K136: 762077 | L136: 856232.1814 | M136: 300109.9306 | N136: 299526.5 | O136: 378062.6777 | P136: 414115.4073 | Q136: 454249.7891 | R136: 500420.4558 | S136: 502454.1273 | T136: 497948.1174 | U136: 487691.489 | V136: 463527.0017
C137: Less: Taxes Booked | G137: =G136*G124 -> 5206 | H137: -2392 | I137: 115446 | J137: 46176 | K137: 97876 | L137: 128434.8272 | M137: 45016.48959 | N137: 44928.97499 | O137: 56709.40165 | P137: 62117.3111 | Q137: 68137.46836 | R137: 75063.06837 | S137: 75368.11909 | T137: 74692.21761 | U137: 73153.72335 | V137: 69529.05026
D138: Earnings | G138: =G136-G137 -> 3974 | H138: 158354 | I138: 348330 | J138: 640138 | K138: 664201 | L138: 727797.3542 | M138: 255093.441 | N138: 254597.525 | O138: 321353.276 | P138: 351998.0962 | Q138: 386112.3207 | R138: 425357.3874 | S138: 427086.0082 | T138: 423255.8998 | U138: 414537.7657 | V138: 393997.9515
D140: Acutal Earnings | G140: =INDEX('Historic Data'!171:171,G7) -> 3974 | H140: =INDEX('Historic Data'!171:171,H7) -> 158354 | I140: =INDEX('Historic Data'!171:171,I7) -> 348330 | J140: =INDEX('Historic Data'!171:171,J7) -> 640138 | K140: =INDEX('Historic Data'!171:171,K7) -> 664201 | L140: =INDEX('Historic Data'!171:171,L7) ->  | M140: =INDEX('Historic Data'!171:171,M7) ->  | N140: =INDEX('Historic Data'!171:171,N7) ->  | O140: =INDEX('Historic Data'!171:171,O7) ->  | P140: =INDEX('Historic Data'!171:171,P7) ->  | Q140: =INDEX('Historic Data'!171:171,Q7) ->  | R140: =INDEX('Historic Data'!171:171,R7) ->  | S140: =INDEX('Historic Data'!171:171,S7) ->  | T140: =INDEX('Historic Data'!171:171,T7) ->  | U140: =INDEX('Historic Data'!171:171,U7) ->  | V140: =INDEX('Historic Data'!171:171,V7) -> 
D141: Actual EBITDA | G141: =INDEX('Historic Data'!161:161,'Financial Model'!G7)-INDEX('Historic Data'!162:162,'Financial Model'!G7) -> 13020 | H141: =INDEX('Historic Data'!161:161,'Financial Model'!H7)-INDEX('Historic Data'!162:162,'Financial Model'!H7) -> 161662 | I141: =INDEX('Historic Data'!161:161,'Financial Model'!I7)-INDEX('Historic Data'!162:162,'Financial Model'!I7) -> 500185 | J141: =INDEX('Historic Data'!161:161,'Financial Model'!J7)-INDEX('Historic Data'!162:162,'Financial Model'!J7) -> 810361 | K141: =INDEX('Historic Data'!161:161,'Financial Model'!K7)-INDEX('Historic Data'!162:162,'Financial Model'!K7) -> 915965 | L141: =INDEX('Historic Data'!161:161,'Financial Model'!L7)-INDEX('Historic Data'!162:162,'Financial Model'!L7) ->  | M141: =INDEX('Historic Data'!161:161,'Financial Model'!M7)-INDEX('Historic Data'!162:162,'Financial Model'!M7) ->  | N141: =INDEX('Historic Data'!161:161,'Financial Model'!N7)-INDEX('Historic Data'!162:162,'Financial Model'!N7) ->  | O141: =INDEX('Historic Data'!161:161,'Financial Model'!O7)-INDEX('Historic Data'!162:162,'Financial Model'!O7) ->  | P141: =INDEX('Historic Data'!161:161,'Financial Model'!P7)-INDEX('Historic Data'!162:162,'Financial Model'!P7) ->  | Q141: =INDEX('Historic Data'!161:161,'Financial Model'!Q7)-INDEX('Historic Data'!162:162,'Financial Model'!Q7) ->  | R141: =INDEX('Historic Data'!161:161,'Financial Model'!R7)-INDEX('Historic Data'!162:162,'Financial Model'!R7) ->  | S141: =INDEX('Historic Data'!161:161,'Financial Model'!S7)-INDEX('Historic Data'!162:162,'Financial Model'!S7) ->  | T141: =INDEX('Historic Data'!161:161,'Financial Model'!T7)-INDEX('Historic Data'!162:162,'Financial Model'!T7) ->  | U141: =INDEX('Historic Data'!161:161,'Financial Model'!U7)-INDEX('Historic Data'!162:162,'Financial Model'!U7) ->  | V141: =INDEX('Historic Data'!161:161,'Financial Model'!V7)-INDEX('Historic Data'!162:162,'Financial Model'!V7) -> 
D142: Earnings Test | E142: =AND(G142:V142) -> TRUE | G142: =IF(G12,G138=G140,TRUE) -> TRUE | H142: TRUE | I142: TRUE | J142: TRUE | K142: TRUE | L142: TRUE | M142: TRUE | N142: TRUE | O142: TRUE | P142: TRUE | Q142: TRUE | R142: TRUE | S142: TRUE | T142: TRUE | U142: TRUE | V142: TRUE
B144: Taxes
D145: EBT
D146: Add: Book Depreciation
D147: Less: Tax Depricaiton
D148: Add: Other Differences
D149: Adjusted EBIT
D150: Tax Rate
D151: Taxes Paid | G151: =G137 -> 5206 | H151: =H137 -> -2392 | I151: 115446 | J151: 46176 | K151: 97876 | L151: 128434.8272 | M151: 45016.48959 | N151: 44928.97499 | O151: 56709.40165 | P151: 62117.3111 | Q151: 68137.46836 | R151: 75063.06837 | S151: 75368.11909 | T151: 74692.21761 | U151: 73153.72335 | V151: 69529.05026
D152: Taxes Deferred
A154: Cash Flow Statement
C156: EBITDA | G156: =G128 -> 13020 | H156: =H128 -> 161662 | I156: 500185 | J156: 810361 | K156: 915965 | L156: 1049846.661 | M156: 375702.5366 | N156: 469844.5292 | O156: 664377.8762 | P156: 725685.8297 | Q156: 792650.069 | R156: 853955.0224 | S156: 874219.5206 | T156: 891430.2503 | U156: 904885.5777 | V156: 913782.7974
C157: Less: Taxes Paid | G157: =G151 -> 5206 | H157: =H151 -> -2392 | I157: 115446 | J157: 46176 | K157: 97876 | L157: 128434.8272 | M157: 45016.48959 | N157: 44928.97499 | O157: 56709.40165 | P157: 62117.3111 | Q157: 68137.46836 | R157: 75063.06837 | S157: 75368.11909 | T157: 74692.21761 | U157: 73153.72335 | V157: 69529.05026
C158: Less: Working Capital Changes | G158: =G32 -> 24760 | H158: -6186 | I158: 28047 | J158: 165473 | K158: 59120 | L158: 5466.707751 | M158: 45267.46092 | N158: -60248.29666 | O158: 10663.93393 | P158: 24778.63986 | Q158: 27068.48458 | R158: 24879.51796 | S158: 26102.99413 | T158: 28059.57939 | U158: 30160.83347 | V158: 32417.24606
D159: Cash Flow from Operations | G159: =G156-G157-G158 -> -16946 | H159: =H156-H157-H158 -> 170240 | I159: 356692 | J159: 598712 | K159: 758969 | L159: 915945.1258 | M159: 285418.5861 | N159: 485163.8509 | O159: 597004.5406 | P159: 638789.8788 | Q159: 697444.1161 | R159: 754012.4361 | S159: 772748.4074 | T159: 788678.4533 | U159: 801571.0209 | V159: 811836.5011
C160: Less: Capital Expenditures | G160: =G21 -> 153150 | H160: 242371 | I160: 459271 | J160: 279941 | K160: 588914 | L160: 750000 | M160: 197013.9701 | N160: 437786.0299 | O160: 336000 | P160: 369600 | Q160: 406560 | R160: 447216 | S160: 491937.6 | T160: 541131.36 | U160: 595244.496 | V160: 654768.9456
D161: Cash Flow Before Financing | G161: =G159-G160 -> -170096 | H161: =H159-H160 -> -72131 | I161: -102579 | J161: 318771 | K161: 170055 | L161: 165945.1258 | M161: 88404.61597 | N161: 47377.82099 | O161: 261004.5406 | P161: 269189.8788 | Q161: 290884.1161 | R161: 306796.4361 | S161: 280810.8074 | T161: 247547.0933 | U161: 206326.5249 | V161: 157067.5555
C162: Less: Interest Expense - Long-term | G162: =G131 -> 1023 | H162: =H131 -> 2294 | I162: 509 | J162: 5258 | K162: 6 | L162: 6574.369375 | M162: 1967.762708 | N162: 3488.137917 | O162: 4561.125625 | P162: 3890.044375 | Q162: 3554.50375 | R162: 1441.71125 | S162: -671.08125 | T162: -671.08125 | U162: -671.08125 | V162: -671.08125
C163: Less: Interest Expense - Short-term | G163: =G132 -> 0 | H163: =H132 -> 0 | I163: 0 | J163: 0 | K163: 0 | L163: 0 | M163: 0 | N163: 0 | O163: 0 | P163: 0 | Q163: 0 | R163: 0 | S163: 0 | T163: 0 | U163: 0 | V163: 0
C164: Add: Interest Income | G164: =G133 -> 2648 | H164: =H133 -> 20413 | I164: 21158 | J164: 9735 | K164: 14375 | L164: 8998.89 | M164: 3359.128491 | N164: 7044.385641 | O164: 10764.3071 | P164: 12584.08814 | Q164: 14483.94069 | R164: 16764.58983 | S164: 18222.39719 | T164: 20487.22684 | U164: 22519.56485 | V164: 24257.99113
C165: Add: Other Income | G165: =G134+G135 -> 4745 | H165: =H134+H135 -> 662 | I165: 4788 | J165: 2222 | K165: -1195 | L165: 2273 | M165: 2273 | N165: 2273 | O165: 2273 | P165: 2273 | Q165: 2273 | R165: 2273 | S165: 2273 | T165: 2273 | U165: 2273 | V165: 2273
C166: Less: Debt Repayments | G166: =G67+G78+G89 -> 0 | H166: =H67+H78+H89 -> 0 | I166: 0 | J166: 0 | K166: 0 | L166: 26843.25 | M166: 26843.25 | N166: 26843.25 | O166: 26843.25 | P166: 26843.25 | Q166: 0 | R166: 130018 | S166: 0 | T166: 0 | U166: 0 | V166: 0
C167: Less: Dividends
C168: Add: New Common Equity Issued
C169: Add: Stock Option Grants
D170: Net Cash Flow | G170: =G161-G162-G163+G164+G165-G166-G167+G169 -> -163726 | H170: =H161-H162-H163+H164+H165-H166-H167+H169 -> -53350 | I170: -77142 | J170: 325470 | K170: 183229 | L170: 143799.3964 | M170: 65225.73176 | N170: 26363.81872 | O170: 242637.4721 | P170: 253313.6726 | Q170: 304086.553 | R170: 194374.3146 | S170: 301977.2858 | T170: 270978.4014 | U170: 231790.171 | V170: 184269.6279
A172: Balance Sheet
C174: Historic Equity Balance | E174: =INDEX('Historic Data'!206:206,'Financial Model'!E7) -> 22641 | F174: =INDEX('Historic Data'!206:206,'Financial Model'!F7) -> 38394 | G174: =INDEX('Historic Data'!206:206,'Financial Model'!G7) -> 461666 | H174: =INDEX('Historic Data'!206:206,'Financial Model'!H7) -> 1097267 | I174: =INDEX('Historic Data'!206:206,'Financial Model'!I7) -> 1513042 | J174: =INDEX('Historic Data'!206:206,'Financial Model'!J7) -> 2652787 | K174: =INDEX('Historic Data'!206:206,'Financial Model'!K7) -> 3454945 | L174: =INDEX('Historic Data'!206:206,'Financial Model'!L7) ->  | M174: =INDEX('Historic Data'!206:206,'Financial Model'!M7) ->  | N174: =INDEX('Historic Data'!206:206,'Financial Model'!N7) ->  | O174: =INDEX('Historic Data'!206:206,'Financial Model'!O7) ->  | P174: =INDEX('Historic Data'!206:206,'Financial Model'!P7) ->  | Q174: =INDEX('Historic Data'!206:206,'Financial Model'!Q7) ->  | R174: =INDEX('Historic Data'!206:206,'Financial Model'!R7) ->  | S174: =INDEX('Historic Data'!206:206,'Financial Model'!S7) ->  | T174: =INDEX('Historic Data'!206:206,'Financial Model'!T7) ->  | U174: =INDEX('Historic Data'!206:206,'Financial Model'!U7) ->  | V174: =INDEX('Historic Data'!206:206,'Financial Model'!V7) -> 
C176: Equity Balance
D177: Opening Balance | F177: =E181 -> 22641 | G177: =F181 -> 38394 | H177: 461666 | I177: 1097267 | J177: 1513042 | K177: 2652787 | L177: 3454945 | M177: 4182742.354 | N177: 4437835.795 | O177: 4692433.32 | P177: 5013786.596 | Q177: 5365784.692 | R177: 5751897.013 | S177: 6177254.401 | T177: 6604340.409 | U177: 7027596.309 | V177: 7442134.074
D178: Add: Income | F178: =F138 -> 0 | G178: =G138 -> 3974 | H178: 158354 | I178: 348330 | J178: 640138 | K178: 664201 | L178: 727797.3542 | M178: 255093.441 | N178: 254597.525 | O178: 321353.276 | P178: 351998.0962 | Q178: 386112.3207 | R178: 425357.3874 | S178: 427086.0082 | T178: 423255.8998 | U178: 414537.7657 | V178: 393997.9515
D179: Less: Dividends | F179: =F167 -> 0 | G179: =G167 -> 0 | H179: 0 | I179: 0 | J179: 0 | K179: 0 | L179: 0 | M179: 0 | N179: 0 | O179: 0 | P179: 0 | Q179: 0 | R179: 0 | S179: 0 | T179: 0 | U179: 0 | V179: 0
D180: Add: Shae Issues from Stock Based Compensation | F180: =F169 -> 0 | G180: =G169 -> 0 | H180: 0 | I180: 0 | J180: 0 | K180: 0 | L180: 0 | M180: 0 | N180: 0 | O180: 0 | P180: 0 | Q180: 0 | R180: 0 | S180: 0 | T180: 0 | U180: 0 | V180: 0
D181: Closing Balance | E181: =IF(E12,E174,E177+E178-E179+E180) -> 22641 | F181: 38394 | G181: 461666 | H181: 1097267 | I181: 1513042 | J181: 2652787 | K181: 3454945 | L181: 4182742.354 | M181: 4437835.795 | N181: 4692433.32 | O181: 5013786.596 | P181: 5365784.692 | Q181: 5751897.013 | R181: 6177254.401 | S181: 6604340.409 | T181: 7027596.309 | U181: 7442134.074 | V181: 7836132.026
B183: Assets
C184: Current Assets
D185: Cash Balance and Investments | E185: =E107 -> 3771 | F185: =F107 -> 18300 | G185: 316639 | H185: 651645 | I185: 847319 | J185: 1150837 | K185: 1199852 | L185: 1343651.396 | M185: 1408877.128 | N185: 1435240.947 | O185: 1677878.419 | P185: 1931192.092 | Q185: 2235278.645 | R185: 2429652.959 | S185: 2731630.245 | T185: 3002608.646 | U185: 3234398.817 | V185: 3418668.445
D186: Accounts Reveiveable | E186: =E23 -> 0 | F186: 0 | G186: 27966 | H186: 58369 | I186: 183257 | J186: 226884 | K186: 307019 | L186: 332676.3952 | M186: 385111.0303 | N186: 317902.1512 | O186: 329028.7265 | P186: 359463.8837 | Q186: 392714.2929 | R186: 423346.0077 | S186: 456366.9964 | T186: 491963.6221 | U186: 530336.7846 | V186: 571703.0538
D187: Inventories | E187: =E24 -> 0 | F187: 0 | G187: 16510 | H187: 8674 | I187: 15417 | J187: 174516 | K187: 243170 | L187: 245408.8173 | M187: 307379.51 | N187: 297046.1885 | O187: 324522.9609 | P187: 354541.3348 | Q187: 387336.4082 | R187: 417548.6481 | S187: 459303.5129 | T187: 505233.8642 | U187: 555757.2506 | V187: 611332.9756
D188: Pre-paid Expenses | E188: =E25 -> 0 | F188: 0 | G188: 8116 | H188: 64780 | I188: 90584 | J188: 164071 | K188: 143033 | L188: 154986.1827 | M188: 179414.2577 | N188: 148103.2066 | O188: 153286.8188 | P188: 167465.8496 | Q188: 182956.4407 | R188: 197227.043 | S188: 212610.7524 | T188: 229194.3911 | U188: 247071.5536 | V188: 266343.1348
D189: Total Current Assets | E189: =SUM(E185:E188) -> 3771 | F189: =SUM(F185:F188) -> 18300 | G189: 369231 | H189: 783468 | I189: 1136577 | J189: 1716308 | K189: 1893074 | L189: 2076722.792 | M189: 2280781.926 | N189: 2198292.493 | O189: 2484716.925 | P189: 2812663.16 | Q189: 3198285.786 | R189: 3467774.658 | S189: 3859911.507 | T189: 4229000.524 | U189: 4567564.406 | V189: 4868047.609
C191: Long-term Assets
D192: Net Plant | E192: =E38 -> 0 | F192: =F38 -> 0 | G192: 178868 | H192: 430104 | I192: 842622 | J192: 988782 | K192: 1430789 | L192: 1982477 | M192: 2100233.998 | N192: 2361872.751 | O192: 2403081.371 | P192: 2450143.905 | Q192: 2505101.188 | R192: 2581186.743 | S192: 2680192.471 | T192: 2804410.39 | U192: 2956997.151 | V192: 3134308.229
D193: Project Assets | E193: =E41 -> 0 | F193: =F41 -> 0 | G193: 27515 | H193: 87688 | I193: 61993 | J193: 132496 | K193: 320140 | L193: 320140 | M193: 320140 | N193: 320140 | O193: 320140 | P193: 320140 | Q193: 320140 | R193: 320140 | S193: 320140 | T193: 320140 | U193: 320140 | V193: 320140
D194: Deferred Tax Assets | E194: =E42 -> 0 | F194: =F42 -> 0 | G194: 0 | H194: 36603 | I194: 39481 | J194: 152194 | K194: 259624 | L194: 259624 | M194: 259624 | N194: 259624 | O194: 259624 | P194: 259624 | Q194: 259624 | R194: 259624 | S194: 259624 | T194: 259624 | U194: 259624 | V194: 259624
D195: Investment in Related Property | E195: =E43 -> 0 | F195: =F43 -> 0 | G195: 0 | H195: 33449 | I195: 33829 | J195: 25000 | K195: 0 | L195: 0 | M195: 0 | N195: 0 | O195: 0 | P195: 0 | Q195: 0 | R195: 0 | S195: 0 | T195: 0 | U195: 0 | V195: 0
D196: Goodwilll | E196: =E44 -> 0 | F196: =F44 -> 0 | G196: 0 | H196: 0 | I196: 0 | J196: 286515 | K196: 433288 | L196: 433288 | M196: 433288 | N196: 433288 | O196: 433288 | P196: 433288 | Q196: 433288 | R196: 433288 | S196: 433288 | T196: 433288 | U196: 433288 | V196: 433288
D197: Other Assets | E197: =INDEX('Time Series Assumptions'!110:110,E8) -> 906 | F197: =INDEX('Time Series Assumptions'!110:110,F8) -> 286 | G197: =INDEX('Time Series Assumptions'!110:110,G8) -> 2896 | H197: =INDEX('Time Series Assumptions'!110:110,H8) -> 0 | I197: =INDEX('Time Series Assumptions'!110:110,I8) -> 0 | J197: =INDEX('Time Series Assumptions'!110:110,J8) -> 48217 | K197: =INDEX('Time Series Assumptions'!110:110,K8) -> 43488 | L197: =INDEX('Time Series Assumptions'!110:110,L8) -> 43488 | M197: =INDEX('Time Series Assumptions'!110:110,M8) -> 43488 | N197: =INDEX('Time Series Assumptions'!110:110,N8) -> 43488 | O197: =INDEX('Time Series Assumptions'!110:110,O8) -> 43488 | P197: =INDEX('Time Series Assumptions'!110:110,P8) -> 43488 | Q197: =INDEX('Time Series Assumptions'!110:110,Q8) -> 43488 | R197: =INDEX('Time Series Assumptions'!110:110,R8) -> 43488 | S197: =INDEX('Time Series Assumptions'!110:110,S8) -> 43488 | T197: =INDEX('Time Series Assumptions'!110:110,T8) -> 43488 | U197: =INDEX('Time Series Assumptions'!110:110,U8) -> 43488 | V197: =INDEX('Time Series Assumptions'!110:110,V8) -> 43488
D198: Total Long-term Assets | E198: =SUM(E192:E197) -> 906 | F198: =SUM(F192:F197) -> 286 | G198: 209279 | H198: 587844 | I198: 977925 | J198: 1633204 | K198: 2487329 | L198: 3039017 | M198: 3156773.998 | N198: 3418412.751 | O198: 3459621.371 | P198: 3506683.905 | Q198: 3561641.188 | R198: 3637726.743 | S198: 3736732.471 | T198: 3860950.39 | U198: 4013537.151 | V198: 4190848.229
D200: Total Assets | E200: =E189+E198 -> 4677 | F200: =F189+F198 -> 18586 | G200: =G189+G198 -> 578510 | H200: 1371312 | I200: 2114502 | J200: 3349512 | K200: 4380403 | L200: 5115739.792 | M200: 5437555.924 | N200: 5616705.244 | O200: 5944338.296 | P200: 6319347.065 | Q200: 6759926.975 | R200: 7105501.401 | S200: 7596643.978 | T200: 8089950.914 | U200: 8581101.558 | V200: 9058895.838
D201: Historic Assets | E201: =INDEX('Historic Data'!191:191,'Financial Model'!E7) -> 41765 | F201: =INDEX('Historic Data'!191:191,'Financial Model'!F7) -> 101884 | G201: =INDEX('Historic Data'!191:191,'Financial Model'!G7) -> 578510 | H201: =INDEX('Historic Data'!191:191,'Financial Model'!H7) -> 1371312 | I201: =INDEX('Historic Data'!191:191,'Financial Model'!I7) -> 2114502 | J201: =INDEX('Historic Data'!191:191,'Financial Model'!J7) -> 3349512 | K201: =INDEX('Historic Data'!191:191,'Financial Model'!K7) -> 4380403 | L201: =INDEX('Historic Data'!191:191,'Financial Model'!L7) ->  | M201: =INDEX('Historic Data'!191:191,'Financial Model'!M7) ->  | N201: =INDEX('Historic Data'!191:191,'Financial Model'!N7) ->  | O201: =INDEX('Historic Data'!191:191,'Financial Model'!O7) ->  | P201: =INDEX('Historic Data'!191:191,'Financial Model'!P7) ->  | Q201: =INDEX('Historic Data'!191:191,'Financial Model'!Q7) ->  | R201: =INDEX('Historic Data'!191:191,'Financial Model'!R7) ->  | S201: =INDEX('Historic Data'!191:191,'Financial Model'!S7) ->  | T201: =INDEX('Historic Data'!191:191,'Financial Model'!T7) ->  | U201: =INDEX('Historic Data'!191:191,'Financial Model'!U7) ->  | V201: =INDEX('Historic Data'!191:191,'Financial Model'!V7) -> 
D202: Difference | G202: =G201-G200 -> 0 | H202: =H201-H200 -> 0 | I202: 0 | J202: 0 | K202: 0
D203: Test | E203: =AND(G203:V203) -> TRUE | G203: =IF(G12,G202=0,TRUE) -> TRUE | H203: =IF(H12,H202=0,TRUE) -> TRUE | I203: TRUE | J203: TRUE | K203: TRUE | L203: TRUE | M203: TRUE | N203: TRUE | O203: TRUE | P203: TRUE | Q203: TRUE | R203: TRUE | S203: TRUE | T203: TRUE | U203: TRUE | V203: TRUE
B205: Liabilities and Capital
C206: Currentl Liabilities
D207: Short-term Debt | E207: =E108 -> 0 | F207: =F108 -> 20000 | G207: 16339 | H207: 24473 | I207: 0 | J207: 0 | K207: 0 | L207: 0 | M207: 0 | N207: 0 | O207: 0 | P207: 0 | Q207: 0 | R207: 0 | S207: 0 | T207: 0 | U207: 0 | V207: 0
D208: Accounts Payable | E208: =E27 -> 0 | F208: 0 | G208: 32083 | H208: 26441 | I208: 46251 | J208: 75744 | K208: 82312 | L208: 83069.83003 | M208: 104046.6432 | N208: 100548.8583 | O208: 109849.6277 | P208: 120010.7182 | Q208: 131111.7096 | R208: 141338.423 | S208: 155472.2653 | T208: 171019.4918 | U208: 188121.441 | V208: 206933.5851
D209: Accrued Expenses | E209: =E28 -> 0 | F209: 0 | G209: 0 | H209: 76256 | I209: 140899 | J209: 193277 | K209: 244271 | L209: 256183.9112 | M209: 309640.5353 | N209: 289056.7396 | O209: 308819.0986 | P209: 337406.6599 | Q209: 368640.7501 | R209: 397472.0852 | S209: 435346.0156 | T209: 476861.2234 | U209: 522370.4392 | V209: 572260.778
D210: Income Tax Liability | E210: =E30 -> 0 | F210: =F30 -> 0 | G210: 340 | H210: 24487 | I210: 99938 | J210: 8740 | K210: 16831 | L210: 16831 | M210: 16831 | N210: 16831 | O210: 16831 | P210: 16831 | Q210: 16831 | R210: 16831 | S210: 16831 | T210: 16831 | U210: 16831 | V210: 16831
D211: Other Current Liabilities | E211: =E29 -> 0 | F211: 0 | G211: 0 | H211: 14803 | I211: 59738 | J211: 88607 | K211: 99676 | L211: 121387.9462 | M211: 140520.4508 | N211: 115997.0764 | O211: 120056.974 | P211: 131162.2441 | Q211: 143294.7517 | R211: 154471.7423 | S211: 166520.5383 | T211: 179509.1402 | U211: 193510.8532 | V211: 208604.6997
D212: Total Current Liabilities | E212: =SUM(E207:E211) -> 0 | F212: =SUM(F207:F211) -> 20000 | G212: =SUM(G207:G211) -> 48762 | H212: =SUM(H207:H211) -> 166460 | I212: =SUM(I207:I211) -> 346826 | J212: 366368 | K212: 443090 | L212: 477472.6874 | M212: 571038.6293 | N212: 522433.6742 | O212: 555556.7002 | P212: 605410.6222 | Q212: 659878.2114 | R212: 710113.2505 | S212: 774169.8192 | T212: 844220.8555 | U212: 920833.7334 | V212: 1004630.063
D214: Total Long-term Debt | E214: =E96 -> 13700 | F214: =F96 -> 28723 | G214: 64358 | H214: 83692 | I214: 198470 | J214: 174958 | K214: 237391 | L214: 210547.75 | M214: 183704.5 | N214: 156861.25 | O214: 130018 | P214: 103174.75 | Q214: 103174.75 | R214: -26843.25 | S214: -26843.25 | T214: -26843.25 | U214: -26843.25 | V214: -26843.25
D215: Accrued Liability | E215: =E47 -> 0 | F215: =F47 -> 0 | G215: 3724 | H215: 13079 | I215: 35238 | J215: 92799 | K215: 132951 | L215: 132951 | M215: 132951 | N215: 132951 | O215: 132951 | P215: 132951 | Q215: 132951 | R215: 132951 | S215: 132951 | T215: 132951 | U215: 132951 | V215: 132951
D216: Other Liabiilities | E216: =E48 -> 0 | F216: =F48 -> 0 | G216: 0 | H216: 10814 | I216: 20926 | J216: 62600 | K216: 112026 | L216: 112026 | M216: 112026 | N216: 112026 | O216: 112026 | P216: 112026 | Q216: 112026 | R216: 112026 | S216: 112026 | T216: 112026 | U216: 112026 | V216: 112026
D217: Total Other Liabilities | E217: =SUM(E214:E216) -> 13700 | F217: =SUM(F214:F216) -> 28723 | G217: 68082 | H217: 107585 | I217: 254634 | J217: 330357 | K217: 482368 | L217: 455524.75 | M217: 428681.5 | N217: 401838.25 | O217: 374995 | P217: 348151.75 | Q217: 348151.75 | R217: 218133.75 | S217: 218133.75 | T217: 218133.75 | U217: 218133.75 | V217: 218133.75
D219: Total Equity | E219: =E181 -> 22641 | F219: =F181 -> 38394 | G219: 461666 | H219: 1097267 | I219: 1513042 | J219: 2652787 | K219: 3454945 | L219: 4182742.354 | M219: 4437835.795 | N219: 4692433.32 | O219: 5013786.596 | P219: 5365784.692 | Q219: 5751897.013 | R219: 6177254.401 | S219: 6604340.409 | T219: 7027596.309 | U219: 7442134.074 | V219: 7836132.026
D221: Total Liabilities and Equity | E221: =E212+E217+E219 -> 36341 | F221: =F212+F217+F219 -> 87117 | G221: 578510 | H221: 1371312 | I221: 2114502 | J221: 3349512 | K221: 4380403 | L221: 5115739.792 | M221: 5437555.924 | N221: 5616705.244 | O221: 5944338.296 | P221: 6319347.065 | Q221: 6759926.975 | R221: 7105501.401 | S221: 7596643.978 | T221: 8089950.914 | U221: 8581101.558 | V221: 9058895.838
D222: Historic Liabilites and Equity | E222: =INDEX('Historic Data'!207:207,'Financial Model'!E7) -> 41765 | F222: =INDEX('Historic Data'!207:207,'Financial Model'!F7) -> 101884 | G222: =INDEX('Historic Data'!207:207,'Financial Model'!G7) -> 578510 | H222: =INDEX('Historic Data'!207:207,'Financial Model'!H7) -> 1371312 | I222: =INDEX('Historic Data'!207:207,'Financial Model'!I7) -> 2114502 | J222: =INDEX('Historic Data'!207:207,'Financial Model'!J7) -> 3349512 | K222: =INDEX('Historic Data'!207:207,'Financial Model'!K7) -> 4380403 | L222: =INDEX('Historic Data'!207:207,'Financial Model'!L7) ->  | M222: =INDEX('Historic Data'!207:207,'Financial Model'!M7) ->  | N222: =INDEX('Historic Data'!207:207,'Financial Model'!N7) ->  | O222: =INDEX('Historic Data'!207:207,'Financial Model'!O7) ->  | P222: =INDEX('Historic Data'!207:207,'Financial Model'!P7) ->  | Q222: =INDEX('Historic Data'!207:207,'Financial Model'!Q7) ->  | R222: =INDEX('Historic Data'!207:207,'Financial Model'!R7) ->  | S222: =INDEX('Historic Data'!207:207,'Financial Model'!S7) ->  | T222: =INDEX('Historic Data'!207:207,'Financial Model'!T7) ->  | U222: =INDEX('Historic Data'!207:207,'Financial Model'!U7) ->  | V222: =INDEX('Historic Data'!207:207,'Financial Model'!V7) -> 
D223: Difference | G223: =G221-G222 -> 0 | H223: 0 | I223: 0 | J223: 0 | K223: 0
D224: Test | E224: =AND(G224:V224) -> TRUE | G224: =IF(G12,G223=0,TRUE) -> TRUE | H224: =IF(H12,H223=0,TRUE) -> TRUE | I224: TRUE | J224: TRUE | K224: TRUE | L224: TRUE | M224: TRUE | N224: TRUE | O224: TRUE | P224: TRUE | Q224: TRUE | R224: TRUE | S224: TRUE | T224: TRUE | U224: TRUE | V224: TRUE
D227: Historic and Prospective Difference | G227: =G221-G200 -> 0 | H227: 0 | I227: 0 | J227: 0 | K227: 0 | L227: 0 | M227: 0 | N227: 0 | O227: 0 | P227: 0 | Q227: 0 | R227: 0 | S227: 0 | T227: 0 | U227: 0 | V227: 0
D228: Test | E228: =AND(G228:V228) -> TRUE | G228: =G227=0 -> TRUE | H228: =H227=0 -> TRUE | I228: TRUE | J228: TRUE | K228: TRUE | L228: TRUE | M228: TRUE | N228: TRUE | O228: TRUE | P228: TRUE | Q228: TRUE | R228: TRUE | S228: TRUE | T228: TRUE | U228: TRUE | V228: TRUE
P229: =P227-O227 -> 0 | Q229: =Q227-P227 -> 0 | R229: 0 | S229: 0 | T229: 0 | U229: 0 | V229: 0
A230: Earnings per Share and Return on Equity
B232: Shares
C233: Historic Shares | E233: =INDEX('Historic Data'!304:304,'Financial Model'!E7) -> 0 | F233: =INDEX('Historic Data'!304:304,'Financial Model'!F7) -> 0 | G233: =INDEX('Historic Data'!304:304,'Financial Model'!G7) -> 58255 | H233: =INDEX('Historic Data'!304:304,'Financial Model'!H7) -> 77971 | I233: =INDEX('Historic Data'!304:304,'Financial Model'!I7) -> 82124 | J233: =INDEX('Historic Data'!304:304,'Financial Model'!J7) -> 85044 | K233: =INDEX('Historic Data'!304:304,'Financial Model'!K7) -> 86491 | L233: =INDEX('Historic Data'!304:304,'Financial Model'!L7) ->  | M233: =INDEX('Historic Data'!304:304,'Financial Model'!M7) ->  | N233: =INDEX('Historic Data'!304:304,'Financial Model'!N7) ->  | O233: =INDEX('Historic Data'!304:304,'Financial Model'!O7) ->  | P233: =INDEX('Historic Data'!304:304,'Financial Model'!P7) ->  | Q233: =INDEX('Historic Data'!304:304,'Financial Model'!Q7) ->  | R233: =INDEX('Historic Data'!304:304,'Financial Model'!R7) ->  | S233: =INDEX('Historic Data'!304:304,'Financial Model'!S7) ->  | T233: =INDEX('Historic Data'!304:304,'Financial Model'!T7) ->  | U233: =INDEX('Historic Data'!304:304,'Financial Model'!U7) ->  | V233: =INDEX('Historic Data'!304:304,'Financial Model'!V7) -> 
C235: Equity Issued from Stock Grants | G235: =G168 -> 0 | H235: =H168 -> 0 | I235: 0 | J235: 0 | K235: 0 | L235: 0 | M235: 0 | N235: 0 | O235: 0 | P235: 0 | Q235: 0 | R235: 0 | S235: 0 | T235: 0 | U235: 0 | V235: 0
C236: Equity Issued from New Equity Issues | G236: =G169 -> 0 | H236: =H169 -> 0 | I236: 0 | J236: 0 | K236: 0 | L236: 0 | M236: 0 | N236: 0 | O236: 0 | P236: 0 | Q236: 0 | R236: 0 | S236: 0 | T236: 0 | U236: 0 | V236: 0
C237: Total New Equity | G237: =G235+G236 -> 0 | H237: =H235+H236 -> 0 | I237: 0 | J237: 0 | K237: 0 | L237: 0 | M237: 0 | N237: 0 | O237: 0 | P237: 0 | Q237: 0 | R237: 0 | S237: 0 | T237: 0 | U237: 0 | V237: 0
C239: Assumed P/E Ratio for New Shares | G239: =INDEX('Time Series Assumptions'!146:146,'Financial Model'!H8) -> 15 | H239: =INDEX('Time Series Assumptions'!146:146,'Financial Model'!I8) -> 15 | I239: =INDEX('Time Series Assumptions'!146:146,'Financial Model'!J8) -> 15 | J239: =INDEX('Time Series Assumptions'!146:146,'Financial Model'!K8) -> 15 | K239: =INDEX('Time Series Assumptions'!146:146,'Financial Model'!L8) -> 15 | L239: =INDEX('Time Series Assumptions'!146:146,'Financial Model'!M8) -> 15 | M239: =INDEX('Time Series Assumptions'!146:146,'Financial Model'!N8) -> 15 | N239: =INDEX('Time Series Assumptions'!146:146,'Financial Model'!O8) -> 15 | O239: =INDEX('Time Series Assumptions'!146:146,'Financial Model'!P8) -> 15 | P239: =INDEX('Time Series Assumptions'!146:146,'Financial Model'!Q8) -> 15 | Q239: =INDEX('Time Series Assumptions'!146:146,'Financial Model'!R8) -> 15 | R239: =INDEX('Time Series Assumptions'!146:146,'Financial Model'!S8) -> 15 | S239: =INDEX('Time Series Assumptions'!146:146,'Financial Model'!T8) -> 15 | T239: =INDEX('Time Series Assumptions'!146:146,'Financial Model'!U8) -> 15 | U239: =INDEX('Time Series Assumptions'!146:146,'Financial Model'!V8) -> 15 | V239: =INDEX('Time Series Assumptions'!146:146,'Financial Model'!W8) -> 15
C240: Opening Balance of Shares | G240: =G247 -> 0 | H240: =H247 -> 58255 | I240: 77971 | J240: 82124 | K240: 85044 | L240: 86491 | M240: 86491 | N240: 86491 | O240: 86491 | P240: 86491 | Q240: 86491 | R240: 86491 | S240: 86491 | T240: 86491 | U240: 86491 | V240: 86491
C241: Net Income | G241: =G138 -> 3974 | H241: =H138 -> 158354 | I241: 348330 | J241: 640138 | K241: 664201 | L241: 727797.3542 | M241: 255093.441 | N241: 254597.525 | O241: 321353.276 | P241: 351998.0962 | Q241: 386112.3207 | R241: 425357.3874 | S241: 427086.0082 | T241: 423255.8998 | U241: 414537.7657 | V241: 393997.9515
C242: EPS | G242: =IF(G240,G241/G240) -> FALSE | H242: =IF(H240,H241/H240) -> 2.718290276 | I242: 4.467430198 | J242: 7.794773757 | K242: 7.810086543 | L242: 8.414717765 | M242: 2.949363992 | N242: 2.943630262 | O242: 3.715453354 | P242: 4.069765597 | Q242: 4.464190733 | R242: 4.917938137 | S242: 4.937924272 | T242: 4.893640955 | U242: 4.792842789 | V242: 4.555363581
C244: Assumed Stock Price on New Shares | G244: =G239*G242 -> 0 | H244: =H239*H242 -> 40.77435413 | I244: 67.01145298 | J244: 116.9216064 | K244: 117.1512982 | L244: 126.2207665 | M244: 44.24045988 | N244: 44.15445393 | O244: 55.73180031 | P244: 61.04648395 | Q244: 66.962861 | R244: 73.76907206 | S244: 74.06886408 | T244: 73.40461432 | U244: 71.89264183 | V244: 68.33045371
C246: Share Balance
C247: Opening Balance | H247: =G249 -> 58255 | I247: =H249 -> 77971 | J247: 82124 | K247: 85044 | L247: 86491 | M247: 86491 | N247: 86491 | O247: 86491 | P247: 86491 | Q247: 86491 | R247: 86491 | S247: 86491 | T247: 86491 | U247: 86491 | V247: 86491
C248: Add: New Shares Issued
C249: Closing Balance | G249: =IF(G12,G233,G247+G248) -> 58255 | H249: 77971 | I249: 82124 | J249: 85044 | K249: 86491 | L249: 86491 | M249: 86491 | N249: 86491 | O249: 86491 | P249: 86491 | Q249: 86491 | R249: 86491 | S249: 86491 | T249: 86491 | U249: 86491 | V249: 86491
C251: Average Shares | G251: =AVERAGE(G249,G247) -> 58255 | H251: =AVERAGE(H249,H247) -> 68113 | I251: 80047.5 | J251: 83584 | K251: 85767.5 | L251: 86491 | M251: 86491 | N251: 86491 | O251: 86491 | P251: 86491 | Q251: 86491 | R251: 86491 | S251: 86491 | T251: 86491 | U251: 86491 | V251: 86491
C252: Earnings per Share | G252: =G241/G251 -> 0.0682173204 | H252: 2.324871904 | I252: 4.351541272 | J252: 7.658618874 | K252: 7.744203807 | L252: 8.414717765 | M252: 2.949363992 | N252: 2.943630262 | O252: 3.715453354 | P252: 4.069765597 | Q252: 4.464190733 | R252: 4.917938137 | S252: 4.937924272 | T252: 4.893640955 | U252: 4.792842789 | V252: 4.555363581
C254: Average Equity Balance | G254: =AVERAGE(F219:G219) -> 250030 | H254: =AVERAGE(G219:H219) -> 779466.5 | I254: 1305154.5 | J254: 2082914.5 | K254: 3053866 | L254: 3818843.677 | M254: 4310289.075 | N254: 4565134.558 | O254: 4853109.958 | P254: 5189785.644 | Q254: 5558840.853 | R254: 5964575.707 | S254: 6390797.405 | T254: 6815968.359 | U254: 7234865.191 | V254: 7639133.05
C255: Return on Equity | G255: =G241/G254 -> 0.01589409271 | H255: =H241/H254 -> 0.2031569028 | I255: 0.2668879432 | J255: 0.3073280252 | K255: 0.2174951357 | L255: 0.1905805568 | M255: 0.05918244382 | N255: 0.05576999358 | O255: 0.06621594788 | P255: 0.06782517051 | Q255: 0.06945914282 | R255: 0.07131393888 | S255: 0.06682828154 | T255: 0.06209769141 | U255: 0.05729723425 | V255: 0.05157626512
A257: Equity Cash Flow and Valuation
... 15 more rows

Sheet Discounted Cash Flow
A1: DISCOUNTED CASH FLOW ANALYSIS | G1: =Integrity!D12 -> Model OK
A3: Parameters
C5: Valuation Date | E5: ='Model Time Line'!E8 -> 2012-04-30
C6: End of Explicit Period | E6: ='Model Time Line'!$E$9 -> 2018-12-31
C7: WACC | E7: ='Valuation Inputs'!J33 -> 0.1155487857
C8: Match | E8: =MATCH(E5,'Operating Analysis'!5:5,0) -> 14
C9: Terminal Growth Rate | E9: ='Valuation Inputs'!E37 -> 0.04
C10: ROIC WACC Spread | E10: ='Valuation Inputs'!E39 -> 0.01
C11: Tax Rate | E11: ='Valuation Inputs'!E15 -> 0.15
C12: Stable Capital Expenditures to Depreciation | E12: ='Valuation Inputs'!E38 -> 1.2
C15: Index Code | E15: =E8 -> 14 | F15: =E15+1 -> 15 | G15: =F15+1 -> 16 | H15: 17 | I15: 18 | J15: 19 | K15: 20 | L15: 21 | M15: 22 | N15: 23 | O15: 24 | P15: 25 | Q15: 26 | R15: 27 | S15: 28 | T15: 29 | U15: 30 | V15: 31
C16: Start Date | E16: =INDEX('Operating Analysis'!4:4,'Discounted Cash Flow'!E15) -> 2012-01-01 | F16: =INDEX('Operating Analysis'!4:4,'Discounted Cash Flow'!F15) -> 2012-05-01 | G16: =INDEX('Operating Analysis'!4:4,'Discounted Cash Flow'!G15) -> 2013-01-01 | H16: =INDEX('Operating Analysis'!4:4,'Discounted Cash Flow'!H15) -> 2014-01-01 | I16: =INDEX('Operating Analysis'!4:4,'Discounted Cash Flow'!I15) -> 2015-01-01 | J16: =INDEX('Operating Analysis'!4:4,'Discounted Cash Flow'!J15) -> 2016-01-01 | K16: =INDEX('Operating Analysis'!4:4,'Discounted Cash Flow'!K15) -> 2017-01-01 | L16: =INDEX('Operating Analysis'!4:4,'Discounted Cash Flow'!L15) -> 2018-01-01 | M16: =INDEX('Operating Analysis'!4:4,'Discounted Cash Flow'!M15) -> 2019-01-01 | N16: =INDEX('Operating Analysis'!4:4,'Discounted Cash Flow'!N15) -> 2020-01-01 | O16: =INDEX('Operating Analysis'!4:4,'Discounted Cash Flow'!O15) -> 2021-01-01 | P16: =INDEX('Operating Analysis'!4:4,'Discounted Cash Flow'!P15) -> 2022-01-01 | Q16: =INDEX('Operating Analysis'!4:4,'Discounted Cash Flow'!Q15) -> 2023-01-01 | R16: =INDEX('Operating Analysis'!4:4,'Discounted Cash Flow'!R15) -> 2024-01-01 | S16: =INDEX('Operating Analysis'!4:4,'Discounted Cash Flow'!S15) -> 2025-01-01 | T16: =INDEX('Operating Analysis'!4:4,'Discounted Cash Flow'!T15) -> 2026-01-01 | U16: =INDEX('Operating Analysis'!4:4,'Discounted Cash Flow'!U15) -> 2027-01-01 | V16: =INDEX('Operating Analysis'!4:4,'Discounted Cash Flow'!V15) -> 2028-01-01
C17: End Date | E17: =INDEX('Operating Analysis'!5:5,'Discounted Cash Flow'!E15) -> 2012-04-30 | F17: =INDEX('Operating Analysis'!5:5,'Discounted Cash Flow'!F15) -> 2012-12-31 | G17: =INDEX('Operating Analysis'!5:5,'Discounted Cash Flow'!G15) -> 2013-12-31 | H17: =INDEX('Operating Analysis'!5:5,'Discounted Cash Flow'!H15) -> 2014-12-31 | I17: =INDEX('Operating Analysis'!5:5,'Discounted Cash Flow'!I15) -> 2015-12-31 | J17: =INDEX('Operating Analysis'!5:5,'Discounted Cash Flow'!J15) -> 2016-12-31 | K17: =INDEX('Operating Analysis'!5:5,'Discounted Cash Flow'!K15) -> 2017-12-31 | L17: =INDEX('Operating Analysis'!5:5,'Discounted Cash Flow'!L15) -> 2018-12-31 | M17: =INDEX('Operating Analysis'!5:5,'Discounted Cash Flow'!M15) -> 2019-12-31 | N17: =INDEX('Operating Analysis'!5:5,'Discounted Cash Flow'!N15) -> 2020-12-31 | O17: =INDEX('Operating Analysis'!5:5,'Discounted Cash Flow'!O15) -> 2021-12-31 | P17: =INDEX('Operating Analysis'!5:5,'Discounted Cash Flow'!P15) -> 2022-12-31 | Q17: =INDEX('Operating Analysis'!5:5,'Discounted Cash Flow'!Q15) -> 2023-12-31 | R17: =INDEX('Operating Analysis'!5:5,'Discounted Cash Flow'!R15) -> 2024-12-31 | S17: =INDEX('Operating Analysis'!5:5,'Discounted Cash Flow'!S15) -> 2025-12-31 | T17: =INDEX('Operating Analysis'!5:5,'Discounted Cash Flow'!T15) -> 2026-12-31 | U17: =INDEX('Operating Analysis'!5:5,'Discounted Cash Flow'!U15) -> 2027-12-31 | V17: =INDEX('Operating Analysis'!5:5,'Discounted Cash Flow'!V15) -> 2028-12-31
C19: Date for Valuation | E19: =E17 -> 2012-04-30 | F19: =AVERAGE(F16:F17) -> 2012-08-31 | G19: =AVERAGE(G16:G17) -> 2013-07-02 | H19: 2014-07-02 | I19: 2015-07-02 | J19: 2016-07-01T12:00:00 | K19: 2017-07-02 | L19: 2018-07-02 | M19: 2019-07-02 | N19: 2020-07-01T12:00:00 | O19: 2021-07-02 | P19: 2022-07-02 | Q19: 2023-07-02 | R19: 2024-07-01T12:00:00 | S19: 2025-07-02 | T19: 2026-07-02 | U19: 2027-07-02 | V19: 2028-07-01T12:00:00
C21: Explicit Period | E21: =INDEX('Operating Analysis'!14:14,'Discounted Cash Flow'!E15) -> FALSE | F21: =INDEX('Operating Analysis'!14:14,'Discounted Cash Flow'!F15) -> TRUE | G21: =INDEX('Operating Analysis'!14:14,'Discounted Cash Flow'!G15) -> TRUE | H21: =INDEX('Operating Analysis'!14:14,'Discounted Cash Flow'!H15) -> TRUE | I21: =INDEX('Operating Analysis'!14:14,'Discounted Cash Flow'!I15) -> TRUE | J21: =INDEX('Operating Analysis'!14:14,'Discounted Cash Flow'!J15) -> TRUE | K21: =INDEX('Operating Analysis'!14:14,'Discounted Cash Flow'!K15) -> TRUE | L21: =INDEX('Operating Analysis'!14:14,'Discounted Cash Flow'!L15) -> TRUE | M21: =INDEX('Operating Analysis'!14:14,'Discounted Cash Flow'!M15) -> FALSE | N21: =INDEX('Operating Analysis'!14:14,'Discounted Cash Flow'!N15) -> FALSE | O21: =INDEX('Operating Analysis'!14:14,'Discounted Cash Flow'!O15) -> 0 | P21: =INDEX('Operating Analysis'!14:14,'Discounted Cash Flow'!P15) -> 0 | Q21: =INDEX('Operating Analysis'!14:14,'Discounted Cash Flow'!Q15) -> 0 | R21: =INDEX('Operating Analysis'!14:14,'Discounted Cash Flow'!R15) -> 0 | S21: =INDEX('Operating Analysis'!14:14,'Discounted Cash Flow'!S15) -> 0 | T21: =INDEX('Operating Analysis'!14:14,'Discounted Cash Flow'!T15) -> 0 | U21: =INDEX('Operating Analysis'!14:14,'Discounted Cash Flow'!U15) -> 0 | V21: =INDEX('Operating Analysis'!14:14,'Discounted Cash Flow'!V15) -> 0
C22: Stablle Period | E22: =INDEX('Operating Analysis'!15:15,'Discounted Cash Flow'!E15) -> FALSE | F22: =INDEX('Operating Analysis'!15:15,'Discounted Cash Flow'!F15) -> FALSE | G22: =INDEX('Operating Analysis'!15:15,'Discounted Cash Flow'!G15) -> FALSE | H22: =INDEX('Operating Analysis'!15:15,'Discounted Cash Flow'!H15) -> FALSE | I22: =INDEX('Operating Analysis'!15:15,'Discounted Cash Flow'!I15) -> FALSE | J22: =INDEX('Operating Analysis'!15:15,'Discounted Cash Flow'!J15) -> FALSE | K22: =INDEX('Operating Analysis'!15:15,'Discounted Cash Flow'!K15) -> FALSE | L22: =INDEX('Operating Analysis'!15:15,'Discounted Cash Flow'!L15) -> FALSE | M22: =INDEX('Operating Analysis'!15:15,'Discounted Cash Flow'!M15) -> TRUE | N22: =INDEX('Operating Analysis'!15:15,'Discounted Cash Flow'!N15) -> FALSE | O22: =INDEX('Operating Analysis'!15:15,'Discounted Cash Flow'!O15) -> 0 | P22: =INDEX('Operating Analysis'!15:15,'Discounted Cash Flow'!P15) -> 0 | Q22: =INDEX('Operating Analysis'!15:15,'Discounted Cash Flow'!Q15) -> 0 | R22: =INDEX('Operating Analysis'!15:15,'Discounted Cash Flow'!R15) -> 0 | S22: =INDEX('Operating Analysis'!15:15,'Discounted Cash Flow'!S15) -> 0 | T22: =INDEX('Operating Analysis'!15:15,'Discounted Cash Flow'!T15) -> 0 | U22: =INDEX('Operating Analysis'!15:15,'Discounted Cash Flow'!U15) -> 0 | V22: =INDEX('Operating Analysis'!15:15,'Discounted Cash Flow'!V15) -> 0
C23: Modelled Period | E23: =E21<>E22 -> FALSE | F23: =F21<>F22 -> TRUE | G23: TRUE | H23: TRUE | I23: TRUE | J23: TRUE | K23: TRUE | L23: TRUE | M23: TRUE | N23: FALSE | O23: FALSE | P23: FALSE | Q23: FALSE | R23: FALSE | S23: FALSE | T23: FALSE | U23: FALSE | V23: FALSE
A25: Free Cash Flow Components
C27: Revenues | E27: =INDEX('Operating Analysis'!27:27,E15)*E21+D27*(1+$E$9)*E22 -> 0 | F27: =INDEX('Operating Analysis'!27:27,F15)*F21+E27*(1+$E$9)*F22 -> 1769590.662 | G27: =INDEX('Operating Analysis'!27:27,G15)*G21+F27*(1+$E$9)*G22 -> 2747289.502 | H27: =INDEX('Operating Analysis'!27:27,H15)*H21+G27*(1+$E$9)*H22 -> 3001413.781 | I27: =INDEX('Operating Analysis'!27:27,I15)*I21+H27*(1+$E$9)*I22 -> 3279044.556 | J27: =INDEX('Operating Analysis'!27:27,J15)*J21+I27*(1+$E$9)*J22 -> 3534810.031 | K27: =INDEX('Operating Analysis'!27:27,K15)*K21+J27*(1+$E$9)*K22 -> 3810525.214 | L27: =INDEX('Operating Analysis'!27:27,L15)*L21+K27*(1+$E$9)*L22 -> 4107746.181 | M27: =INDEX('Operating Analysis'!27:27,M15)*M21+L27*(1+$E$9)*M22 -> 4272056.028 | N27: =INDEX('Operating Analysis'!27:27,N15)*N21+M27*(1+$E$9)*N22 -> 0 | O27: =INDEX('Operating Analysis'!27:27,O15)*O21+N27*(1+$E$9)*O22 -> 0 | P27: =INDEX('Operating Analysis'!27:27,P15)*P21+O27*(1+$E$9)*P22 -> 0 | Q27: =INDEX('Operating Analysis'!27:27,Q15)*Q21+P27*(1+$E$9)*Q22 -> 0 | R27: =INDEX('Operating Analysis'!27:27,R15)*R21+Q27*(1+$E$9)*R22 -> 0 | S27: =INDEX('Operating Analysis'!27:27,S15)*S21+R27*(1+$E$9)*S22 -> 0 | T27: =INDEX('Operating Analysis'!27:27,T15)*T21+S27*(1+$E$9)*T22 -> 0 | U27: =INDEX('Operating Analysis'!27:27,U15)*U21+T27*(1+$E$9)*U22 -> 0 | V27: =INDEX('Operating Analysis'!27:27,V15)*V21+U27*(1+$E$9)*V22 -> 0
C28: Percent Increase | G28: =IF(F27,G27/F27-1) -> 0.5525 | H28: =IF(G27,H27/G27-1) -> 0.0925 | I28: 0.0925 | J28: 0.078 | K28: 0.078 | L28: 0.078 | M28: 0.04 | N28: -1 | O28: FALSE | P28: FALSE | Q28: FALSE | R28: FALSE | S28: FALSE | T28: FALSE | U28: FALSE | V28: FALSE
C30: Cash Operating Expense | F30: =INDEX('Operating Analysis'!62:62,F15)*F21+E30*(1+$E$9)*F22 -> 1299746.133 | G30: =INDEX('Operating Analysis'!62:62,G15)*G21+F30*(1+$E$9)*G22 -> 2082911.626 | H30: =INDEX('Operating Analysis'!62:62,H15)*H21+G30*(1+$E$9)*H22 -> 2275727.952 | I30: =INDEX('Operating Analysis'!62:62,I15)*I21+H30*(1+$E$9)*I22 -> 2486394.487 | J30: =INDEX('Operating Analysis'!62:62,J15)*J21+I30*(1+$E$9)*J22 -> 2680855.009 | K30: =INDEX('Operating Analysis'!62:62,K15)*K21+J30*(1+$E$9)*K22 -> 2936305.693 | L30: =INDEX('Operating Analysis'!62:62,L15)*L21+K30*(1+$E$9)*L22 -> 3216315.93 | M30: =INDEX('Operating Analysis'!62:62,M15)*M21+L30*(1+$E$9)*M22 -> 3344968.567 | N30: =INDEX('Operating Analysis'!62:62,N15)*N21+M30*(1+$E$9)*N22 -> 0 | O30: =INDEX('Operating Analysis'!62:62,O15)*O21+N30*(1+$E$9)*O22 -> 0 | P30: =INDEX('Operating Analysis'!62:62,P15)*P21+O30*(1+$E$9)*P22 -> 0 | Q30: =INDEX('Operating Analysis'!62:62,Q15)*Q21+P30*(1+$E$9)*Q22 -> 0 | R30: =INDEX('Operating Analysis'!62:62,R15)*R21+Q30*(1+$E$9)*R22 -> 0 | S30: =INDEX('Operating Analysis'!62:62,S15)*S21+R30*(1+$E$9)*S22 -> 0 | T30: =INDEX('Operating Analysis'!62:62,T15)*T21+S30*(1+$E$9)*T22 -> 0 | U30: =INDEX('Operating Analysis'!62:62,U15)*U21+T30*(1+$E$9)*U22 -> 0 | V30: =INDEX('Operating Analysis'!62:62,V15)*V21+U30*(1+$E$9)*V22 -> 0
C31: Percent Increase | G31: =IF(F30,G30/F30-1) -> 0.6025526632 | H31: =IF(G30,H30/G30-1) -> 0.09257057429 | I31: 0.09257105419 | J31: 0.07820984281 | K31: 0.09528701976 | L31: 0.09536140518 | M31: 0.04 | N31: -1 | O31: FALSE | P31: FALSE | Q31: FALSE | R31: FALSE | S31: FALSE | T31: FALSE | U31: FALSE | V31: FALSE
C33: EBITDA | F33: =F27-F30 -> 469844.5292 | G33: =G27-G30 -> 664377.8762 | H33: 725685.8297 | I33: 792650.069 | J33: 853955.0224 | K33: 874219.5206 | L33: 891430.2503 | M33: 927087.4604 | N33: 0 | O33: 0 | P33: 0 | Q33: 0 | R33: 0 | S33: 0 | T33: 0 | U33: 0 | V33: 0
C34: Percent Increase | G34: =IF(F33,G33/F33-1) -> 0.4140376974 | H34: =IF(G33,H33/G33-1) -> 0.09227874037 | I34: 0.0922771763 | J34: 0.0773417625 | K34: 0.02373017044 | L34: 0.01968696572 | M34: 0.04 | N34: -1 | O34: FALSE | P34: FALSE | Q34: FALSE | R34: FALSE | S34: FALSE | T34: FALSE | U34: FALSE | V34: FALSE
C36: Less: Deprecation | E36: =INDEX('Operating Analysis'!131:131,E15)*E21+D36*(1+$E$9)*E22 -> 0 | F36: =INDEX('Operating Analysis'!131:131,F15)*F21+E36*(1+$E$9)*F22 -> 176147.2769 | G36: =INDEX('Operating Analysis'!131:131,G15)*G21+F36*(1+$E$9)*G22 -> 294791.38 | H36: =INDEX('Operating Analysis'!131:131,H15)*H21+G36*(1+$E$9)*H22 -> 322537.4662 | I36: =INDEX('Operating Analysis'!131:131,I15)*I21+H36*(1+$E$9)*I22 -> 351602.7169 | J36: =INDEX('Operating Analysis'!131:131,J15)*J21+I36*(1+$E$9)*J22 -> 371130.4452 | K36: =INDEX('Operating Analysis'!131:131,K15)*K21+J36*(1+$E$9)*K22 -> 392931.8718 | L36: =INDEX('Operating Analysis'!131:131,L15)*L21+K36*(1+$E$9)*L22 -> 416913.441 | M36: =INDEX('Operating Analysis'!131:131,M15)*M21+L36*(1+$E$9)*M22 -> 433589.9786 | N36: =INDEX('Operating Analysis'!131:131,N15)*N21+M36*(1+$E$9)*N22 -> 0 | O36: =INDEX('Operating Analysis'!131:131,O15)*O21+N36*(1+$E$9)*O22 -> 0 | P36: =INDEX('Operating Analysis'!131:131,P15)*P21+O36*(1+$E$9)*P22 -> 0 | Q36: =INDEX('Operating Analysis'!131:131,Q15)*Q21+P36*(1+$E$9)*Q22 -> 0 | R36: =INDEX('Operating Analysis'!131:131,R15)*R21+Q36*(1+$E$9)*R22 -> 0 | S36: =INDEX('Operating Analysis'!131:131,S15)*S21+R36*(1+$E$9)*S22 -> 0 | T36: =INDEX('Operating Analysis'!131:131,T15)*T21+S36*(1+$E$9)*T22 -> 0 | U36: =INDEX('Operating Analysis'!131:131,U15)*U21+T36*(1+$E$9)*U22 -> 0 | V36: =INDEX('Operating Analysis'!131:131,V15)*V21+U36*(1+$E$9)*V22 -> 0
C37: EBIT | F37: =F33-F36 -> 293697.2522 | G37: =G33-G36 -> 369586.4962 | H37: 403148.3635 | I37: 441047.3521 | J37: 482824.5772 | K37: 481287.6488 | L37: 474516.8093 | M37: 493497.4817 | N37: 0 | O37: 0 | P37: 0 | Q37: 0 | R37: 0 | S37: 0 | T37: 0 | U37: 0 | V37: 0
C38: Tax Rate | F38: =$E$11 -> 0.15 | G38: =$E$11 -> 0.15 | H38: 0.15 | I38: 0.15 | J38: 0.15 | K38: 0.15 | L38: 0.15 | M38: 0.15 | N38: 0.15 | O38: 0.15 | P38: 0.15 | Q38: 0.15 | R38: 0.15 | S38: 0.15 | T38: 0.15 | U38: 0.15 | V38: 0.15
C39: Operating Taxes | F39: =F37*F38 -> 44054.58784 | G39: =G37*G38 -> 55437.97443 | H39: 60472.25453 | I39: 66157.10282 | J39: 72423.68658 | K39: 72193.14733 | L39: 71177.5214 | M39: 74024.62226 | N39: 0 | O39: 0 | P39: 0 | Q39: 0 | R39: 0 | S39: 0 | T39: 0 | U39: 0 | V39: 0
C41: Capital Expenditures | E41: =INDEX('Operating Analysis'!44:44,E15)*E21+F36*E22 -> 0 | F41: =INDEX('Operating Analysis'!44:44,F15)*F21+F36*F22*$E$12 -> 437786.0299 | G41: =INDEX('Operating Analysis'!44:44,G15)*G21+G36*G22*$E$12 -> 336000 | H41: =INDEX('Operating Analysis'!44:44,H15)*H21+H36*H22*$E$12 -> 369600 | I41: =INDEX('Operating Analysis'!44:44,I15)*I21+I36*I22*$E$12 -> 406560 | J41: =INDEX('Operating Analysis'!44:44,J15)*J21+J36*J22*$E$12 -> 447216 | K41: =INDEX('Operating Analysis'!44:44,K15)*K21+K36*K22*$E$12 -> 491937.6 | L41: =INDEX('Operating Analysis'!44:44,L15)*L21+L36*L22*$E$12 -> 541131.36 | M41: =INDEX('Operating Analysis'!44:44,M15)*M21+M36*M22*$E$12 -> 520307.9744 | N41: =INDEX('Operating Analysis'!44:44,N15)*N21+N36*N22*$E$12 -> 0 | O41: =INDEX('Operating Analysis'!44:44,O15)*O21+O36*O22*$E$12 -> 0 | P41: =INDEX('Operating Analysis'!44:44,P15)*P21+P36*P22*$E$12 -> 0 | Q41: =INDEX('Operating Analysis'!44:44,Q15)*Q21+Q36*Q22*$E$12 -> 0 | R41: =INDEX('Operating Analysis'!44:44,R15)*R21+R36*R22*$E$12 -> 0 | S41: =INDEX('Operating Analysis'!44:44,S15)*S21+S36*S22*$E$12 -> 0 | T41: =INDEX('Operating Analysis'!44:44,T15)*T21+T36*T22*$E$12 -> 0 | U41: =INDEX('Operating Analysis'!44:44,U15)*U21+U36*U22*$E$12 -> 0 | V41: =INDEX('Operating Analysis'!44:44,V15)*V21+V36*V22*$E$12 -> 0
C42: Percent of Depreciation | F42: =IF(F36,F41/F36) -> 2.485340889 | G42: =IF(G36,G41/G36) -> 1.139789094 | H42: 1.145913386 | I42: 1.156305058 | J42: 1.205010275 | K42: 1.251966652 | L42: 1.297946544 | M42: 1.2 | N42: FALSE | O42: FALSE | P42: FALSE | Q42: FALSE | R42: FALSE | S42: FALSE | T42: FALSE | U42: FALSE | V42: FALSE
C44: Working Capital Level | E44: =INDEX('Operating Analysis'!99:99,E15)*E21+E33*E22*D45 -> 0 | F44: =INDEX('Operating Analysis'!99:99,F15)*F21+F33*F22*E45 -> 257448.872 | G44: =INDEX('Operating Analysis'!99:99,G15)*G21+G33*G22*F45 -> 268112.8059 | H44: =INDEX('Operating Analysis'!99:99,H15)*H21+H33*H22*G45 -> 292891.4458 | I44: =INDEX('Operating Analysis'!99:99,I15)*I21+I33*I22*H45 -> 319959.9304 | J44: =INDEX('Operating Analysis'!99:99,J15)*J21+J33*J22*I45 -> 344839.4483 | K44: =INDEX('Operating Analysis'!99:99,K15)*K21+K33*K22*J45 -> 370942.4425 | L44: =INDEX('Operating Analysis'!99:99,L15)*L21+L33*L22*K45 -> 399002.0219 | M44: =INDEX('Operating Analysis'!99:99,M15)*M21+M33*M22*L45 -> 414962.1027 | N44: =INDEX('Operating Analysis'!99:99,N15)*N21+N33*N22*M45 -> 0 | O44: =INDEX('Operating Analysis'!99:99,O15)*O21+O33*O22*N45 -> 0 | P44: =INDEX('Operating Analysis'!99:99,P15)*P21+P33*P22*O45 -> 0 | Q44: =INDEX('Operating Analysis'!99:99,Q15)*Q21+Q33*Q22*P45 -> 0 | R44: =INDEX('Operating Analysis'!99:99,R15)*R21+R33*R22*Q45 -> 0 | S44: =INDEX('Operating Analysis'!99:99,S15)*S21+S33*S22*R45 -> 0 | T44: =INDEX('Operating Analysis'!99:99,T15)*T21+T33*T22*S45 -> 0 | U44: =INDEX('Operating Analysis'!99:99,U15)*U21+U33*U22*T45 -> 0 | V44: =INDEX('Operating Analysis'!99:99,V15)*V21+V33*V22*U45 -> 0
C45: Working Capital as Pct of EBITDA | F45: =IF(F33,F44/F33) -> 0.5479448116 | G45: =IF(G33,G44/G33) -> 0.4035546871 | H45: 0.4036064007 | I45: 0.4036584905 | J45: 0.4038145327 | K45: 0.4243126969 | L45: 0.447597579 | M45: 0.447597579 | N45: FALSE | O45: FALSE | P45: FALSE | Q45: FALSE | R45: FALSE | S45: FALSE | T45: FALSE | U45: FALSE | V45: FALSE
C46: Change in Working Capital | F46: =INDEX('Operating Analysis'!100:100,F15)*F21+(F44-E44)*F22 -> -60248.29666 | G46: =INDEX('Operating Analysis'!100:100,G15)*G21+(G44-F44)*G22 -> 10663.93393 | H46: =INDEX('Operating Analysis'!100:100,H15)*H21+(H44-G44)*H22 -> 24778.63986 | I46: =INDEX('Operating Analysis'!100:100,I15)*I21+(I44-H44)*I22 -> 27068.48458 | J46: =INDEX('Operating Analysis'!100:100,J15)*J21+(J44-I44)*J22 -> 24879.51796 | K46: =INDEX('Operating Analysis'!100:100,K15)*K21+(K44-J44)*K22 -> 26102.99413 | L46: =INDEX('Operating Analysis'!100:100,L15)*L21+(L44-K44)*L22 -> 28059.57939 | M46: =INDEX('Operating Analysis'!100:100,M15)*M21+(M44-L44)*M22 -> 15960.08087 | N46: =INDEX('Operating Analysis'!100:100,N15)*N21+(N44-M44)*N22 -> 0 | O46: =INDEX('Operating Analysis'!100:100,O15)*O21+(O44-N44)*O22 -> 0 | P46: =INDEX('Operating Analysis'!100:100,P15)*P21+(P44-O44)*P22 -> 0 | Q46: =INDEX('Operating Analysis'!100:100,Q15)*Q21+(Q44-P44)*Q22 -> 0 | R46: =INDEX('Operating Analysis'!100:100,R15)*R21+(R44-Q44)*R22 -> 0 | S46: =INDEX('Operating Analysis'!100:100,S15)*S21+(S44-R44)*S22 -> 0 | T46: =INDEX('Operating Analysis'!100:100,T15)*T21+(T44-S44)*T22 -> 0 | U46: =INDEX('Operating Analysis'!100:100,U15)*U21+(U44-T44)*U22 -> 0 | V46: =INDEX('Operating Analysis'!100:100,V15)*V21+(V44-U44)*V22 -> 0
A48: Free Cash Flow Formula
C49: EBITDA | E49: =E33 -> 0 | F49: =F33 -> 469844.5292 | G49: 664377.8762 | H49: 725685.8297 | I49: 792650.069 | J49: 853955.0224 | K49: 874219.5206 | L49: 891430.2503 | M49: 927087.4604 | N49: 0 | O49: 0 | P49: 0 | Q49: 0 | R49: 0 | S49: 0 | T49: 0 | U49: 0 | V49: 0
C50: Less: Operating Taxes | E50: =E39 -> 0 | F50: =F39 -> 44054.58784 | G50: 55437.97443 | H50: 60472.25453 | I50: 66157.10282 | J50: 72423.68658 | K50: 72193.14733 | L50: 71177.5214 | M50: 74024.62226 | N50: 0 | O50: 0 | P50: 0 | Q50: 0 | R50: 0 | S50: 0 | T50: 0 | U50: 0 | V50: 0
C51: Less: Capital Expenditures | E51: =E41 -> 0 | F51: =F41 -> 437786.0299 | G51: 336000 | H51: 369600 | I51: 406560 | J51: 447216 | K51: 491937.6 | L51: 541131.36 | M51: 520307.9744 | N51: 0 | O51: 0 | P51: 0 | Q51: 0 | R51: 0 | S51: 0 | T51: 0 | U51: 0 | V51: 0
C52: Less: Working Capital Change | E52: =E46 -> 0 | F52: =F46 -> -60248.29666 | G52: 10663.93393 | H52: 24778.63986 | I52: 27068.48458 | J52: 24879.51796 | K52: 26102.99413 | L52: 28059.57939 | M52: 15960.08087 | N52: 0 | O52: 0 | P52: 0 | Q52: 0 | R52: 0 | S52: 0 | T52: 0 | U52: 0 | V52: 0
D53: Free Cash Flow | E53: =E49-E50-E51-E52 -> 0 | F53: =F49-F50-F51-F52 -> 48252.20815 | G53: =G49-G50-G51-G52 -> 262275.9678 | H53: 270834.9354 | I53: 292864.4816 | J53: 309435.8178 | K53: 283985.7791 | L53: 251061.7896 | M53: 316794.7829 | N53: 0 | O53: 0 | P53: 0 | Q53: 0 | R53: 0 | S53: 0 | T53: 0 | U53: 0 | V53: 0
C55: PV of Free Cash Flow | E55: =XNPV(E7,E53:Q53,E19:Q19) -> 1327487.685
A57: Terminal Value Using Growth Rate
C58: Growth Rate Multiple | E58: =(1+$E$9)/($E$7-$E$9) -> 13.76593933 | F58: =(1+$E$9)/($E$7-$E$9) -> 13.76593933 | G58: 13.76593933 | H58: 13.76593933 | I58: 13.76593933 | J58: 13.76593933 | K58: 13.76593933 | L58: 13.76593933 | M58: 13.76593933 | N58: 13.76593933 | O58: 13.76593933 | P58: 13.76593933 | Q58: 13.76593933 | R58: 13.76593933 | S58: 13.76593933 | T58: 13.76593933 | U58: 13.76593933 | V58: 13.76593933
C59: Terminal Value | E59: =E58*E53*E22 -> 0 | F59: =F58*F53*F22 -> 0 | G59: =G58*G53*G22 -> 0 | H59: 0 | I59: 0 | J59: 0 | K59: 0 | L59: 0 | M59: 4360977.759 | N59: 0 | O59: 0 | P59: 0 | Q59: 0 | R59: 0 | S59: 0 | T59: 0 | U59: 0 | V59: 0
C61: PV of Terminal Value - Growth Rate | E61: =XNPV(E7,E59:V59,E19:V19) -> 1989926.954
A63: Total Value | E63: Total | F63: EV/EBITDA
C64: Enterprise Value | E64: =E55+E61 -> 3317414.639 | F64: =E64/F49 -> 7.060664608
C65: Add: Value of of Cash | E65: ='Valuation Inputs'!E29*-1 -> 1199852
C66: Less: Value of Debt | E66: =-'Valuation Inputs'!E30 -> -237391 | H66: =E70 -> 49.5218416 | I66: 0.02 | J66: 0.03 | K66: 0.04 | L66: 0.05 | N66: 0.02 | O66: 0.02
C67: Total Equity Value | E67: =SUM(E64:E66) -> 4279875.639 | H67: 0.09 | I67: 56.81658399 | J67: 61.87856683 | K67: 68.9653428 | L67: 79.59550676
H68: 0.1 | I68: 51.03023048 | J68: 54.60946911 | K68: 59.38178728 | L68: 66.06303273
C69: Shares | E69: 86424 | H69: 0.11 | I69: 46.53556649 | J69: 49.16143984 | K69: 52.53756271 | L69: 57.03905988 | N69: =L67/I72-1 -> 1.118650217
C70: Value per Share | E70: =E67/E69 -> 49.5218416 | H70: 0.12 | I70: 42.94464329 | J70: 44.9271115 | K70: 47.40519676 | L70: 50.59130637
H71: 0.13 | I71: 40.01062104 | J71: 41.54209465 | K71: 43.41389574 | L71: 45.75364709
A72: Terminal Value using Value Drivers | H72: 0.14 | I72: 37.56897015 | J72: 38.77453048 | K72: 40.22120287 | L72: 41.98935802
C73: WACC | E73: =E7 -> 0.1155487857
C74: ROIC from ROIC/WACC Spread | E74: =E73+E10 -> 0.1255487857 | I74: =I72/I67-1 -> -0.3387675303
C75: Growth Rate | E75: =E9 -> 0.04
C77: NOPLAT Multiple | E77: =(1-E75/E74)/(E73-E75) -> 9.019321015 | F77: =E77 -> 9.019321015 | G77: =F77 -> 9.019321015 | H77: 9.019321015 | I77: 9.019321015 | J77: 9.019321015 | K77: 9.019321015 | L77: 9.019321015 | M77: 9.019321015 | N77: 9.019321015 | O77: 9.019321015 | P77: 9.019321015 | Q77: 9.019321015 | R77: 9.019321015 | S77: 9.019321015 | T77: 9.019321015 | U77: 9.019321015 | V77: 9.019321015
C78: NOPLAT | E78: =E37-E39 -> 0 | F78: =F37-F39 -> 249642.6644 | G78: 314148.5218 | H78: 342676.109 | I78: 374890.2493 | J78: 410400.8906 | K78: 409094.5015 | L78: 403339.2879 | M78: 419472.8595 | N78: 0 | O78: 0 | P78: 0 | Q78: 0 | R78: 0 | S78: 0 | T78: 0 | U78: 0 | V78: 0
C80: Terminal Value | E80: =E77*E78*E22 -> 0 | F80: =F77*F78*F22 -> 0 | G80: 0 | H80: 0 | I80: 0 | J80: 0 | K80: 0 | L80: 0 | M80: 3783360.376 | N80: 0 | O80: 0 | P80: 0 | Q80: 0 | R80: 0 | S80: 0 | T80: 0 | U80: 0 | V80: 0
C81: PV of Terminal Value | E81: =XNPV(E73,E80:V80,E19:V19) -> 1726358.446
H82: =E87 -> 46.47212731 | I82: 0.02 | J82: 0.03 | K82: 0.04 | L82: 0.05
C83: Total Enterprise Value | E83: =E81+E55 -> 3053846.131 | H83: 0.09 | I83: 57.20684729 | J83: 58.1060178 | K83: 59.26623934 | L83: 60.8833002
C84: Bridge | E84: =E65+E66 -> 962461 | H84: 0.1 | I84: 51.89603181 | J84: 52.52609911 | K84: 53.29635742 | L84: 54.29092136
C85: Equity Value | E85: =E83+E84 -> 4016307.131 | H85: 0.11 | I85: 47.63578354 | J85: 48.09894084 | K85: 48.64311389 | L85: 49.30881056 | N85: =L83/I88-1 -> 0.5704984009
C86: Shares | E86: =E69 -> 86424 | H86: 0.12 | I86: 44.14375941 | J86: 44.49701379 | K86: 44.89979633 | L86: 45.37333338
E87: =E85/E86 -> 46.47212731 | H87: 0.13 | I87: 41.23122386 | J87: 41.50858555 | K87: 41.81760829 | L87: 42.17016499
A88: Terminal Value using EV/EBITDA Multiple | H88: 0.14 | I88: 38.76686545 | J88: 38.98975475 | K88: 39.23363315 | L88: 39.50549703
C90: EV/EBITDA from Stable Analysis | E90: ='EV EBITDA Summary'!D18 -> 8.487210347 | F90: =E90 -> 8.487210347 | G90: =F90 -> 8.487210347 | H90: 8.487210347 | I90: 8.487210347 | J90: 8.487210347 | K90: 8.487210347 | L90: 8.487210347 | M90: 8.487210347 | N90: 8.487210347 | O90: 8.487210347 | P90: 8.487210347 | Q90: 8.487210347 | R90: 8.487210347 | S90: 8.487210347 | T90: 8.487210347 | U90: 8.487210347 | V90: 8.487210347
C91: EBITDA | E91: =E33 -> 0 | F91: =F33 -> 469844.5292 | G91: 664377.8762 | H91: 725685.8297 | I91: 792650.069 | J91: 853955.0224 | K91: 874219.5206 | L91: 891430.2503 | M91: 927087.4604 | N91: 0 | O91: 0 | P91: 0 | Q91: 0 | R91: 0 | S91: 0 | T91: 0 | U91: 0 | V91: 0
C93: Terminal Value | E93: =E90*E91*E22 -> 0 | F93: =F90*F91*F22 -> 0 | G93: 0 | H93: 0 | I93: 0 | J93: 0 | K93: 0 | L93: 0 | M93: 7868386.286 | N93: 0 | O93: 0 | P93: 0 | Q93: 0 | R93: 0 | S93: 0 | T93: 0 | U93: 0 | V93: 0
C95: PV of Terminal Value | E95: =XNPV(E73,E93:V93,E19:V19) -> 3590367.761
C96: PV of Explicit Cash Flow | E96: =E55 -> 1327487.685 | H96: =E102 -> 68.04031803 | I96: 7.5 | J96: 8 | K96: 8.5 | L96: 9
C97: Total Enterprise Value | E97: =SUM(E95:E96) -> 4917855.446 | H97: 0.09 | I97: 71.23369038 | J97: 74.12376068 | K97: 77.01383099 | L97: 79.9039013
H98: 0.1 | I98: 67.9190785 | J98: 70.62583792 | K98: 73.33259734 | L98: 76.03935676 | N98: =L97/I102-1 -> 0.4078901474
C99: Bridge | E99: =E84 -> 962461 | H99: 0.11 | I99: 64.83068919 | J99: 67.36726854 | K99: 69.9038479 | L99: 72.44042726
C100: Equity Value | E100: =E97+E99 -> 5880316.446 | H100: 0.12 | I100: 61.9509272 | J100: 64.32941091 | K100: 66.70789461 | L100: 69.08637831
C101: Shares | E101: =E86 -> 86424 | H101: 0.13 | I101: 59.26371676 | J101: 61.49523448 | K101: 63.72675219 | L101: 65.9582699
C102: Value per Share | E102: =E100/E101 -> 68.04031803 | H102: 0.14 | I102: 56.75435789 | J102: 58.84916748 | K102: 60.94397706 | L102: 63.03878664
I104: =I102/I97-1 -> -0.2032652303

Sheet Integrity
J3: FALSE | K3: Comment2
B5: Short-term Debt Balance | C5: ='Financial Model'!E111 -> TRUE | D5: =IF(C5,"",B5) -> 
B6: Historic Balance Sheet Assets | C6: ='Financial Model'!E203 -> TRUE | D6: =IF(C6,"",B6) -> 
B7: Historic Balance Sheet Liabilities | C7: ='Financial Model'!E224 -> TRUE | D7: =IF(C7,"",B7) -> 
B8: Historic Income Statement | C8: ='Financial Model'!E142 -> TRUE | D8: =IF(C8,"",B8) -> 
B9: Prospective Balance Sheet | C9: ='Financial Model'!E228 -> TRUE | D9: =IF(C9,"",B9) -> 
D10: =D5&D6&D7&D8&D9 -> 
B12: Aggregate Test | D12: =IF(D10="","Model OK",D10) -> Model OK

Sheet Graph Data
E3: ='Time Series Assumptions'!F3 -> 2004 | F3: ='Time Series Assumptions'!G3 -> 2005 | G3: ='Time Series Assumptions'!H3 -> 2006 | H3: ='Time Series Assumptions'!I3 -> 2007 | I3: ='Time Series Assumptions'!J3 -> 2008 | J3: ='Time Series Assumptions'!K3 -> 2009 | K3: ='Time Series Assumptions'!L3 -> 2010 | L3: ='Time Series Assumptions'!M3 -> 2011 | M3: ='Time Series Assumptions'!N3 -> 2012 | N3: ='Time Series Assumptions'!O3 -> 2013 | O3: ='Time Series Assumptions'!P3 -> 2014 | P3: ='Time Series Assumptions'!Q3 -> 2015 | Q3: ='Time Series Assumptions'!R3 -> 2016 | R3: ='Time Series Assumptions'!S3 -> 2017 | S3: ='Time Series Assumptions'!T3 -> 2018 | T3: ='Time Series Assumptions'!U3 -> 2019 | U3: ='Time Series Assumptions'!V3 -> 2020 | V3: ='Time Series Assumptions'!W3 -> 2021
D4: Revenues | E4: =SUMIF('Operating Analysis'!$6:$6,'Graph Data'!E$3,'Operating Analysis'!27:27) -> 13522 | F4: =SUMIF('Operating Analysis'!$6:$6,'Graph Data'!F$3,'Operating Analysis'!27:27) -> 48063 | G4: =SUMIF('Operating Analysis'!$6:$6,'Graph Data'!G$3,'Operating Analysis'!27:27) -> 134974 | H4: =SUMIF('Operating Analysis'!$6:$6,'Graph Data'!H$3,'Operating Analysis'!27:27) -> 503976 | I4: =SUMIF('Operating Analysis'!$6:$6,'Graph Data'!I$3,'Operating Analysis'!27:27) -> 1246301 | J4: =SUMIF('Operating Analysis'!$6:$6,'Graph Data'!J$3,'Operating Analysis'!27:27) -> 2066200 | K4: =SUMIF('Operating Analysis'!$6:$6,'Graph Data'!K$3,'Operating Analysis'!27:27) -> 2563515 | L4: =SUMIF('Operating Analysis'!$6:$6,'Graph Data'!L$3,'Operating Analysis'!27:27) -> 2777746.424 | M4: =SUMIF('Operating Analysis'!$6:$6,'Graph Data'!M$3,'Operating Analysis'!27:27) -> 2841443.873 | N4: =SUMIF('Operating Analysis'!$6:$6,'Graph Data'!N$3,'Operating Analysis'!27:27) -> 2747289.502 | O4: =SUMIF('Operating Analysis'!$6:$6,'Graph Data'!O$3,'Operating Analysis'!27:27) -> 3001413.781 | P4: =SUMIF('Operating Analysis'!$6:$6,'Graph Data'!P$3,'Operating Analysis'!27:27) -> 3279044.556 | Q4: =SUMIF('Operating Analysis'!$6:$6,'Graph Data'!Q$3,'Operating Analysis'!27:27) -> 3534810.031 | R4: =SUMIF('Operating Analysis'!$6:$6,'Graph Data'!R$3,'Operating Analysis'!27:27) -> 3810525.214 | S4: =SUMIF('Operating Analysis'!$6:$6,'Graph Data'!S$3,'Operating Analysis'!27:27) -> 4107746.181 | T4: =SUMIF('Operating Analysis'!$6:$6,'Graph Data'!T$3,'Operating Analysis'!27:27) -> 4428150.383 | U4: =SUMIF('Operating Analysis'!$6:$6,'Graph Data'!U$3,'Operating Analysis'!27:27) -> 4773546.113 | V4: =SUMIF('Operating Analysis'!$6:$6,'Graph Data'!V$3,'Operating Analysis'!27:27) -> 0
D5: Cash Operating Expenses | E5: =SUMIF('Operating Analysis'!$6:$6,'Graph Data'!E$3,'Operating Analysis'!62:62) -> 30303 | F5: =SUMIF('Operating Analysis'!$6:$6,'Graph Data'!F$3,'Operating Analysis'!62:62) -> 52853 | G5: =SUMIF('Operating Analysis'!$6:$6,'Graph Data'!G$3,'Operating Analysis'!62:62) -> 121954 | H5: =SUMIF('Operating Analysis'!$6:$6,'Graph Data'!H$3,'Operating Analysis'!62:62) -> 342314 | I5: =SUMIF('Operating Analysis'!$6:$6,'Graph Data'!I$3,'Operating Analysis'!62:62) -> 746116 | J5: =SUMIF('Operating Analysis'!$6:$6,'Graph Data'!J$3,'Operating Analysis'!62:62) -> 1255839 | K5: =SUMIF('Operating Analysis'!$6:$6,'Graph Data'!K$3,'Operating Analysis'!62:62) -> 1647550 | L5: =SUMIF('Operating Analysis'!$6:$6,'Graph Data'!L$3,'Operating Analysis'!62:62) -> 1727899.763 | M5: =SUMIF('Operating Analysis'!$6:$6,'Graph Data'!M$3,'Operating Analysis'!62:62) -> 1995896.807 | N5: =SUMIF('Operating Analysis'!$6:$6,'Graph Data'!N$3,'Operating Analysis'!62:62) -> 2082911.626 | O5: =SUMIF('Operating Analysis'!$6:$6,'Graph Data'!O$3,'Operating Analysis'!62:62) -> 2275727.952 | P5: =SUMIF('Operating Analysis'!$6:$6,'Graph Data'!P$3,'Operating Analysis'!62:62) -> 2486394.487 | Q5: =SUMIF('Operating Analysis'!$6:$6,'Graph Data'!Q$3,'Operating Analysis'!62:62) -> 2680855.009 | R5: =SUMIF('Operating Analysis'!$6:$6,'Graph Data'!R$3,'Operating Analysis'!62:62) -> 2936305.693 | S5: =SUMIF('Operating Analysis'!$6:$6,'Graph Data'!S$3,'Operating Analysis'!62:62) -> 3216315.93 | T5: =SUMIF('Operating Analysis'!$6:$6,'Graph Data'!T$3,'Operating Analysis'!62:62) -> 3523264.805 | U5: =SUMIF('Operating Analysis'!$6:$6,'Graph Data'!U$3,'Operating Analysis'!62:62) -> 3859763.315 | V5: =SUMIF('Operating Analysis'!$6:$6,'Graph Data'!V$3,'Operating Analysis'!62:62) -> 0
